Workbook

Sheet 00summary (hidden)
A1: 00 Summary
A4: Policy Information
B5: 主险年金
B6: Issue Year | D6: 2019
B7: Age | D7: =输入页!F5 -> 45
B8: Sex | C8: 1 = M 2 = F | D8: =IF(输入页!J5="男",1,2) -> 2
B9: Upper limit | D9: 106
B10: Benefit Term | D10: =age_upper-age -> 61
B11: Premium Term | D11: =输入页!J9 -> 10 | G11: 1
B12: 年领保额 | D12: =E12*11.866 -> 11866 | E12: 1000 | G12: 起领年龄 | H12: 保费读表值 | K12: 1 | L12: 2
B13: GP-读表 | D13: =IF(G11=1,VLOOKUP(ann2_begin_age,$G$13:$H$15,2,FALSE),'04 premium'!H5) -> 40779 | G13: 60 | H13: =VLOOKUP(age,gp_read!$C$7:$O$67,VLOOKUP(ppp,pp_read,sex+1,FALSE),FALSE) -> 56468 | J13: 1 | K13: 2 | L13: =K13+1 -> 3
B14: 养老金起领年龄 | D14: =输入页!N9 -> 65 | G14: 65 | H14: =VLOOKUP(age,gp_read!$C$76:$O$141,VLOOKUP(ppp,pp_read,sex+1,FALSE),FALSE) -> 40779 | J14: 3 | K14: 4 | L14: =K14+1 -> 5
G15: 70 | H15: =VLOOKUP(age,gp_read!$C$150:$O$220,VLOOKUP(ppp,pp_read,sex+1,FALSE),FALSE) -> 30373 | J15: 5 | K15: 6 | L15: 7
B16: 是否保领 | C16: 1=是 2=否 | D16: 1 | J16: 10 | K16: 8 | L16: 9
B17: 保证领取至 | D17: =start_age+5 -> 90 | E17: 岁 | F17: 0.18 | J17: 15 | K17: 10 | L17: 11
J18: 20 | K18: 12 | L18: 13
B20: 起领年龄 | D20: =ann2_begin_age+20 -> 85
B21: 附加万能
B22: Issue Year | D22: 2018
B23: 万能账户 | C23: 1=鑫账户 2=鑫账户卓越版 3=嘉福1号 | D23: 3
B24: Age | D24: =age -> 45
B25: sex | D25: =sex -> 2
B26: single prem | D26: 0
B27: 月度add prem | D27: 0
B28: optional SA | D28: 0

Sheet 01mort (hidden)
A1: 01 Mortality Table
J2: 1 | K2: 2 | L2: 3 | M2: 4 | N2: 5 | O2: 6 | P2: 7
B3: Mortality Tables (00-03) | J3: Mortality Tables (10-13)
C4: CL(00-03) | K4: 非养老类业务一表 | M4: 非养老类业务二表 | O4: 养老类业务表
C5: Life | F5: Annuity | R5: 下表round到7位，与报备费率表一致
C6: CL1 | D6: CL2 | E6: CL3 | F6: CL4 | G6: CL5 | H6: CL6 | R6: 万能月度风险保险费率
B7: Age | C7: Male | D7: Female | E7: Unisex | F7: Male | G7: Female | H7: Unisex | J7: Age | K7: 男（CL1） | L7: 女（CL2） | M7: 男（CL3） | N7: 女（CL4） | O7: 男（CL5） | P7: 女（CL6） | R7: Age | S7: 男（CL1） | T7: 女（CL2）
B8: 0 | C8: 0.000722 | D8: 0.000661 | E8: =(C8+D8)/2 -> 0.0006915 | F8: 0.000627 | G8: 0.000575 | H8: =0.5*(F8+G8) -> 0.000601 | J8: 0 | K8: 0.867 | L8: 0.62 | M8: 0.62 | N8: 0.455 | O8: 0.566 | P8: 0.453 | R8: 0 | S8: =ROUND(IF(R8>=75,0,VLOOKUP(R8,$B$8:$H$113,5,FALSE))*0.8/12,7) -> 4.18e-05 | T8: =ROUND(IF(R8>=75,0,VLOOKUP(R8,$B$8:$H$113,6,FALSE))*0.8/12,7) -> 3.83e-05 | U8: =S8*12 -> 0.0005016 | V8: =T8*12 -> 0.0004596
B9: 1 | C9: 0.000603 | D9: 0.000536 | E9: =(C9+D9)/2 -> 0.0005695 | F9: 0.000525 | G9: 0.000466 | H9: =0.5*(F9+G9) -> 0.0004955 | J9: 1 | K9: 0.615 | L9: 0.456 | M9: 0.465 | N9: 0.324 | O9: 0.386 | P9: 0.289 | R9: 1 | S9: =ROUND(IF(R9>=75,0,VLOOKUP(R9,$B$8:$H$113,5,FALSE))*0.8/12,7) -> 3.5e-05 | T9: =ROUND(IF(R9>=75,0,VLOOKUP(R9,$B$8:$H$113,6,FALSE))*0.8/12,7) -> 3.11e-05 | U9: =S9*12 -> 0.00042 | V9: =T9*12 -> 0.0003732
B10: 2 | C10: 0.000499 | D10: 0.000424 | E10: 0.0004615 | F10: 0.000434 | G10: 0.000369 | H10: 0.0004015 | J10: 2 | K10: 0.445 | L10: 0.337 | M10: 0.353 | N10: 0.236 | O10: 0.268 | P10: 0.184 | R10: 2 | S10: 2.89e-05 | T10: 2.46e-05 | U10: 0.0003468 | V10: 0.0002952
B11: 3 | C11: 0.000416 | D11: 0.000333 | E11: 0.0003745 | F11: 0.000362 | G11: 0.00029 | H11: 0.000326 | J11: 3 | K11: 0.339 | L11: 0.256 | M11: 0.278 | N11: 0.18 | O11: 0.196 | P11: 0.124 | R11: 3 | S11: 2.41e-05 | T11: 1.93e-05 | U11: 0.0002892 | V11: 0.0002316
B12: 4 | C12: 0.000358 | D12: 0.000267 | E12: 0.0003125 | F12: 0.000311 | G12: 0.000232 | H12: 0.0002715 | J12: 4 | K12: 0.28 | L12: 0.203 | M12: 0.229 | N12: 0.149 | O12: 0.158 | P12: 0.095 | R12: 4 | S12: 2.07e-05 | T12: 1.55e-05 | U12: 0.0002484 | V12: 0.000186
B13: 5 | C13: 0.000323 | D13: 0.000224 | E13: 0.0002735 | F13: 0.000281 | G13: 0.000195 | H13: 0.000238 | J13: 5 | K13: 0.251 | L13: 0.17 | M13: 0.2 | N13: 0.131 | O13: 0.141 | P13: 0.084 | R13: 5 | S13: 1.87e-05 | T13: 1.3e-05 | U13: 0.0002244 | V13: 0.000156
B14: 6 | C14: 0.000309 | D14: 0.000201 | E14: 0.000255 | F14: 0.000269 | G14: 0.000175 | H14: 0.000222 | J14: 6 | K14: 0.237 | L14: 0.149 | M14: 0.182 | N14: 0.119 | O14: 0.132 | P14: 0.078 | R14: 6 | S14: 1.79e-05 | T14: 1.17e-05 | U14: 0.0002148 | V14: 0.0001404
B15: 7 | C15: 0.000308 | D15: 0.000189 | E15: 0.0002485 | F15: 0.000268 | G15: 0.000164 | H15: 0.000216 | J15: 7 | K15: 0.233 | L15: 0.137 | M15: 0.172 | N15: 0.11 | O15: 0.129 | P15: 0.074 | R15: 7 | S15: 1.79e-05 | T15: 1.09e-05 | U15: 0.0002148 | V15: 0.0001308
B16: 8 | C16: 0.000311 | D16: 0.000181 | E16: 0.000246 | F16: 0.00027 | G16: 0.000158 | H16: 0.000214 | J16: 8 | K16: 0.238 | L16: 0.133 | M16: 0.171 | N16: 0.105 | O16: 0.131 | P16: 0.072 | R16: 8 | S16: 1.8e-05 | T16: 1.05e-05 | U16: 0.000216 | V16: 0.000126
B17: 9 | C17: 0.000312 | D17: 0.000175 | E17: 0.0002435 | F17: 0.000271 | G17: 0.000152 | H17: 0.0002115 | J17: 9 | K17: 0.25 | L17: 0.136 | M17: 0.177 | N17: 0.103 | O17: 0.137 | P17: 0.072 | R17: 9 | S17: 1.81e-05 | T17: 1.01e-05 | U17: 0.0002172 | V17: 0.0001212
B18: 10 | C18: 0.000312 | D18: 0.000169 | E18: 0.0002405 | F18: 0.000272 | G18: 0.000147 | H18: 0.0002095 | J18: 10 | K18: 0.269 | L18: 0.145 | M18: 0.187 | N18: 0.103 | O18: 0.146 | P18: 0.074 | R18: 10 | S18: 1.81e-05 | T18: 9.8e-06 | U18: 0.0002172 | V18: 0.0001176
B19: 11 | C19: 0.000312 | D19: 0.000165 | E19: 0.0002385 | F19: 0.000271 | G19: 0.000143 | H19: 0.000207 | J19: 11 | K19: 0.293 | L19: 0.157 | M19: 0.202 | N19: 0.105 | O19: 0.157 | P19: 0.077 | R19: 11 | S19: 1.81e-05 | T19: 9.5e-06 | U19: 0.0002172 | V19: 0.000114
B20: 12 | C20: 0.000313 | D20: 0.000165 | E20: 0.000239 | F20: 0.000272 | G20: 0.000143 | H20: 0.0002075 | J20: 12 | K20: 0.319 | L20: 0.172 | M20: 0.22 | N20: 0.109 | O20: 0.17 | P20: 0.08 | R20: 12 | S20: 1.81e-05 | T20: 9.5e-06 | U20: 0.0002172 | V20: 0.000114
B21: 13 | C21: 0.00032 | D21: 0.000169 | E21: 0.0002445 | F21: 0.000278 | G21: 0.000147 | H21: 0.0002125 | J21: 13 | K21: 0.347 | L21: 0.189 | M21: 0.24 | N21: 0.115 | O21: 0.184 | P21: 0.085 | R21: 13 | S21: 1.85e-05 | T21: 9.8e-06 | U21: 0.000222 | V21: 0.0001176
B22: 14 | C22: 0.000336 | D22: 0.000179 | E22: 0.0002575 | F22: 0.000292 | G22: 0.000156 | H22: 0.000224 | J22: 14 | K22: 0.375 | L22: 0.206 | M22: 0.261 | N22: 0.121 | O22: 0.197 | P22: 0.09 | R22: 14 | S22: 1.95e-05 | T22: 1.04e-05 | U22: 0.000234 | V22: 0.0001248
B23: 15 | C23: 0.000364 | D23: 0.000192 | E23: 0.000278 | F23: 0.000316 | G23: 0.000167 | H23: 0.0002415 | J23: 15 | K23: 0.402 | L23: 0.221 | M23: 0.28 | N23: 0.128 | O23: 0.208 | P23: 0.095 | R23: 15 | S23: 2.11e-05 | T23: 1.11e-05 | U23: 0.0002532 | V23: 0.0001332
B24: 16 | C24: 0.000404 | D24: 0.000208 | E24: 0.000306 | F24: 0.000351 | G24: 0.000181 | H24: 0.000266 | J24: 16 | K24: 0.427 | L24: 0.234 | M24: 0.298 | N24: 0.135 | O24: 0.219 | P24: 0.1 | R24: 16 | S24: 2.34e-05 | T24: 1.21e-05 | U24: 0.0002808 | V24: 0.0001452
B25: 17 | C25: 0.000455 | D25: 0.000226 | E25: 0.0003405 | F25: 0.000396 | G25: 0.000196 | H25: 0.000296 | J25: 17 | K25: 0.449 | L25: 0.245 | M25: 0.315 | N25: 0.141 | O25: 0.227 | P25: 0.105 | R25: 17 | S25: 2.64e-05 | T25: 1.31e-05 | U25: 0.0003168 | V25: 0.0001572
B26: 18 | C26: 0.000513 | D26: 0.000245 | E26: 0.000379 | F26: 0.000446 | G26: 0.000213 | H26: 0.0003295 | J26: 18 | K26: 0.469 | L26: 0.255 | M26: 0.331 | N26: 0.149 | O26: 0.235 | P26: 0.11 | R26: 18 | S26: 2.97e-05 | T26: 1.42e-05 | U26: 0.0003564 | V26: 0.0001704
B27: 19 | C27: 0.000572 | D27: 0.000264 | E27: 0.000418 | F27: 0.000497 | G27: 0.00023 | H27: 0.0003635 | J27: 19 | K27: 0.489 | L27: 0.262 | M27: 0.346 | N27: 0.156 | O27: 0.241 | P27: 0.115 | R27: 19 | S27: 3.31e-05 | T27: 1.53e-05 | U27: 0.0003972 | V27: 0.0001836
B28: 20 | C28: 0.000621 | D28: 0.000283 | E28: 0.000452 | F28: 0.00054 | G28: 0.000246 | H28: 0.000393 | J28: 20 | K28: 0.508 | L28: 0.269 | M28: 0.361 | N28: 0.163 | O28: 0.248 | P28: 0.12 | R28: 20 | S28: 3.6e-05 | T28: 1.64e-05 | U28: 0.000432 | V28: 0.0001968
B29: 21 | C29: 0.000661 | D29: 0.0003 | E29: 0.0004805 | F29: 0.000575 | G29: 0.000261 | H29: 0.000418 | J29: 21 | K29: 0.527 | L29: 0.274 | M29: 0.376 | N29: 0.17 | O29: 0.256 | P29: 0.125 | R29: 21 | S29: 3.83e-05 | T29: 1.74e-05 | U29: 0.0004596 | V29: 0.0002088
B30: 22 | C30: 0.000692 | D30: 0.000315 | E30: 0.0005035 | F30: 0.000601 | G30: 0.000274 | H30: 0.0004375 | J30: 22 | K30: 0.547 | L30: 0.279 | M30: 0.392 | N30: 0.178 | O30: 0.264 | P30: 0.129 | R30: 22 | S30: 4.01e-05 | T30: 1.83e-05 | U30: 0.0004812 | V30: 0.0002196
B31: 23 | C31: 0.000716 | D31: 0.000328 | E31: 0.000522 | F31: 0.000623 | G31: 0.000285 | H31: 0.000454 | J31: 23 | K31: 0.568 | L31: 0.284 | M31: 0.409 | N31: 0.185 | O31: 0.273 | P31: 0.134 | R31: 23 | S31: 4.15e-05 | T31: 1.9e-05 | U31: 0.000498 | V31: 0.000228
B32: 24 | C32: 0.000738 | D32: 0.000338 | E32: 0.000538 | F32: 0.000643 | G32: 0.000293 | H32: 0.000468 | J32: 24 | K32: 0.591 | L32: 0.289 | M32: 0.428 | N32: 0.192 | O32: 0.284 | P32: 0.139 | R32: 24 | S32: 4.29e-05 | T32: 1.95e-05 | U32: 0.0005148 | V32: 0.000234
B33: 25 | C33: 0.000759 | D33: 0.000347 | E33: 0.000553 | F33: 0.00066 | G33: 0.000301 | H33: 0.0004805 | J33: 25 | K33: 0.615 | L33: 0.294 | M33: 0.448 | N33: 0.2 | O33: 0.297 | P33: 0.144 | R33: 25 | S33: 4.4e-05 | T33: 2.01e-05 | U33: 0.000528 | V33: 0.0002412
B34: 26 | C34: 0.000779 | D34: 0.000355 | E34: 0.000567 | F34: 0.000676 | G34: 0.000308 | H34: 0.000492 | J34: 26 | K34: 0.644 | L34: 0.3 | M34: 0.471 | N34: 0.208 | O34: 0.314 | P34: 0.149 | R34: 26 | S34: 4.51e-05 | T34: 2.05e-05 | U34: 0.0005412 | V34: 0.000246
B35: 27 | C35: 0.000795 | D35: 0.000362 | E35: 0.0005785 | F35: 0.000693 | G35: 0.000316 | H35: 0.0005045 | J35: 27 | K35: 0.675 | L35: 0.307 | M35: 0.497 | N35: 0.216 | O35: 0.333 | P35: 0.154 | R35: 27 | S35: 4.62e-05 | T35: 2.11e-05 | U35: 0.0005544 | V35: 0.0002532
B36: 28 | C36: 0.000815 | D36: 0.000372 | E36: 0.0005935 | F36: 0.000712 | G36: 0.000325 | H36: 0.0005185 | J36: 28 | K36: 0.711 | L36: 0.316 | M36: 0.526 | N36: 0.225 | O36: 0.354 | P36: 0.16 | R36: 28 | S36: 4.75e-05 | T36: 2.17e-05 | U36: 0.00057 | V36: 0.0002604
B37: 29 | C37: 0.000842 | D37: 0.000386 | E37: 0.000614 | F37: 0.000734 | G37: 0.000337 | H37: 0.0005355 | J37: 29 | K37: 0.751 | L37: 0.327 | M37: 0.558 | N37: 0.235 | O37: 0.379 | P37: 0.167 | R37: 29 | S37: 4.89e-05 | T37: 2.25e-05 | U37: 0.0005868 | V37: 0.00027
B38: 30 | C38: 0.000881 | D38: 0.000406 | E38: 0.0006435 | F38: 0.000759 | G38: 0.000351 | H38: 0.000555 | J38: 30 | K38: 0.797 | L38: 0.34 | M38: 0.595 | N38: 0.247 | O38: 0.407 | P38: 0.175 | R38: 30 | S38: 5.06e-05 | T38: 2.34e-05 | U38: 0.0006072 | V38: 0.0002808
B39: 31 | C39: 0.000932 | D39: 0.000432 | E39: 0.000682 | F39: 0.000788 | G39: 0.000366 | H39: 0.000577 | J39: 31 | K39: 0.847 | L39: 0.356 | M39: 0.635 | N39: 0.261 | O39: 0.438 | P39: 0.186 | R39: 31 | S39: 5.25e-05 | T39: 2.44e-05 | U39: 0.00063 | V39: 0.0002928
B40: 32 | C40: 0.000994 | D40: 0.000465 | E40: 0.0007295 | F40: 0.00082 | G40: 0.000384 | H40: 0.000602 | J40: 32 | K40: 0.903 | L40: 0.374 | M40: 0.681 | N40: 0.277 | O40: 0.472 | P40: 0.198 | R40: 32 | S40: 5.47e-05 | T40: 2.56e-05 | U40: 0.0006564 | V40: 0.0003072
B41: 33 | C41: 0.001055 | D41: 0.000496 | E41: 0.0007755 | F41: 0.000855 | G41: 0.000402 | H41: 0.0006285 | J41: 33 | K41: 0.966 | L41: 0.397 | M41: 0.732 | N41: 0.297 | O41: 0.509 | P41: 0.213 | R41: 33 | S41: 5.7e-05 | T41: 2.68e-05 | U41: 0.000684 | V41: 0.0003216
B42: 34 | C42: 0.001121 | D42: 0.000528 | E42: 0.0008245 | F42: 0.000893 | G42: 0.000421 | H42: 0.000657 | J42: 34 | K42: 1.035 | L42: 0.423 | M42: 0.788 | N42: 0.319 | O42: 0.549 | P42: 0.231 | R42: 34 | S42: 5.95e-05 | T42: 2.81e-05 | U42: 0.000714 | V42: 0.0003372
B43: 35 | C43: 0.001194 | D43: 0.000563 | E43: 0.0008785 | F43: 0.000936 | G43: 0.000441 | H43: 0.0006885 | J43: 35 | K43: 1.111 | L43: 0.454 | M43: 0.85 | N43: 0.346 | O43: 0.592 | P43: 0.253 | R43: 35 | S43: 6.24e-05 | T43: 2.94e-05 | U43: 0.0007488 | V43: 0.0003528
B44: 36 | C44: 0.001275 | D44: 0.000601 | E44: 0.000938 | F44: 0.000985 | G44: 0.000464 | H44: 0.0007245 | J44: 36 | K44: 1.196 | L44: 0.489 | M44: 0.919 | N44: 0.376 | O44: 0.639 | P44: 0.277 | R44: 36 | S44: 6.57e-05 | T44: 3.09e-05 | U44: 0.0007884 | V44: 0.0003708
B45: 37 | C45: 0.001367 | D45: 0.000646 | E45: 0.0010065 | F45: 0.001043 | G45: 0.000493 | H45: 0.000768 | J45: 37 | K45: 1.29 | L45: 0.53 | M45: 0.995 | N45: 0.411 | O45: 0.69 | P45: 0.305 | R45: 37 | S45: 6.95e-05 | T45: 3.29e-05 | U45: 0.000834 | V45: 0.0003948
B46: 38 | C46: 0.001472 | D46: 0.000699 | E46: 0.0010855 | F46: 0.001111 | G46: 0.000528 | H46: 0.0008195 | J46: 38 | K46: 1.395 | L46: 0.577 | M46: 1.078 | N46: 0.45 | O46: 0.746 | P46: 0.337 | R46: 38 | S46: 7.41e-05 | T46: 3.52e-05 | U46: 0.0008892 | V46: 0.0004224
B47: 39 | C47: 0.001589 | D47: 0.000761 | E47: 0.001175 | F47: 0.001189 | G47: 0.000569 | H47: 0.000879 | J47: 39 | K47: 1.515 | L47: 0.631 | M47: 1.17 | N47: 0.494 | O47: 0.808 | P47: 0.372 | R47: 39 | S47: 7.93e-05 | T47: 3.79e-05 | U47: 0.0009516 | V47: 0.0004548
B48: 40 | C48: 0.001715 | D48: 0.000828 | E48: 0.0012715 | F48: 0.001275 | G48: 0.000615 | H48: 0.000945 | J48: 40 | K48: 1.651 | L48: 0.692 | M48: 1.27 | N48: 0.542 | O48: 0.878 | P48: 0.41 | R48: 40 | S48: 8.5e-05 | T48: 4.1e-05 | U48: 0.00102 | V48: 0.000492
B49: 41 | C49: 0.001845 | D49: 0.000897 | E49: 0.001371 | F49: 0.001366 | G49: 0.000664 | H49: 0.001015 | J49: 41 | K49: 1.804 | L49: 0.762 | M49: 1.38 | N49: 0.595 | O49: 0.955 | P49: 0.45 | R49: 41 | S49: 9.11e-05 | T49: 4.43e-05 | U49: 0.0010932 | V49: 0.0005316
B50: 42 | C50: 0.001978 | D50: 0.000966 | E50: 0.001472 | F50: 0.001461 | G50: 0.000714 | H50: 0.0010875 | J50: 42 | K50: 1.978 | L50: 0.841 | M50: 1.5 | N50: 0.653 | O50: 1.041 | P50: 0.494 | R50: 42 | S50: 9.74e-05 | T50: 4.76e-05 | U50: 0.0011688 | V50: 0.0005712
B51: 43 | C51: 0.002113 | D51: 0.001033 | E51: 0.001573 | F51: 0.00156 | G51: 0.000763 | H51: 0.0011615 | J51: 43 | K51: 2.173 | L51: 0.929 | M51: 1.631 | N51: 0.715 | O51: 1.138 | P51: 0.54 | R51: 43 | S51: 0.000104 | T51: 5.09e-05 | U51: 0.001248 | V51: 0.0006108
B52: 44 | C52: 0.002255 | D52: 0.001103 | E52: 0.001679 | F52: 0.001665 | G52: 0.000815 | H52: 0.00124 | J52: 44 | K52: 2.393 | L52: 1.028 | M52: 1.774 | N52: 0.783 | O52: 1.245 | P52: 0.589 | R52: 44 | S52: 0.000111 | T52: 5.43e-05 | U52: 0.001332 | V52: 0.0006516
B53: 45 | C53: 0.002413 | D53: 0.001181 | E53: 0.001797 | F53: 0.001783 | G53: 0.000873 | H53: 0.001328 | J53: 45 | K53: 2.639 | L53: 1.137 | M53: 1.929 | N53: 0.857 | O53: 1.364 | P53: 0.64 | R53: 45 | S53: 0.0001189 | T53: 5.82e-05 | U53: 0.0014268 | V53: 0.0006984
B54: 46 | C54: 0.002595 | D54: 0.001274 | E54: 0.0019345 | F54: 0.001918 | G54: 0.000942 | H54: 0.00143 | J54: 46 | K54: 2.913 | L54: 1.259 | M54: 2.096 | N54: 0.935 | O54: 1.496 | P54: 0.693 | R54: 46 | S54: 0.0001279 | T54: 6.28e-05 | U54: 0.0015348 | V54: 0.0007536
B55: 47 | C55: 0.002805 | D55: 0.001389 | E55: 0.002097 | F55: 0.002055 | G55: 0.001014 | H55: 0.0015345 | J55: 47 | K55: 3.213 | L55: 1.392 | M55: 2.277 | N55: 1.02 | O55: 1.641 | P55: 0.75 | R55: 47 | S55: 0.000137 | T55: 6.76e-05 | U55: 0.001644 | V55: 0.0008112
B56: 48 | C56: 0.003042 | D56: 0.001527 | E56: 0.0022845 | F56: 0.002238 | G56: 0.001123 | H56: 0.0016805 | J56: 48 | K56: 3.538 | L56: 1.537 | M56: 2.472 | N56: 1.112 | O56: 1.798 | P56: 0.811 | R56: 48 | S56: 0.0001492 | T56: 7.49e-05 | U56: 0.0017904 | V56: 0.0008988
B57: 49 | C57: 0.003299 | D57: 0.00169 | E57: 0.0024945 | F57: 0.002446 | G57: 0.001251 | H57: 0.0018485 | J57: 49 | K57: 3.884 | L57: 1.692 | M57: 2.682 | N57: 1.212 | O57: 1.967 | P57: 0.877 | R57: 49 | S57: 0.0001631 | T57: 8.34e-05 | U57: 0.0019572 | V57: 0.0010008
B58: 50 | C58: 0.00357 | D58: 0.001873 | E58: 0.0027215 | F58: 0.002666 | G58: 0.001393 | H58: 0.0020295 | J58: 50 | K58: 4.249 | L58: 1.859 | M58: 2.908 | N58: 1.321 | O58: 2.148 | P58: 0.95 | R58: 50 | S58: 0.0001777 | T58: 9.29e-05 | U58: 0.0021324 | V58: 0.0011148
B59: 51 | C59: 0.003847 | D59: 0.002074 | E59: 0.0029605 | F59: 0.00288 | G59: 0.001548 | H59: 0.002214 | J59: 51 | K59: 4.633 | L59: 2.037 | M59: 3.15 | N59: 1.439 | O59: 2.34 | P59: 1.031 | R59: 51 | S59: 0.000192 | T59: 0.0001032 | U59: 0.002304 | V59: 0.0012384
B60: 52 | C60: 0.004132 | D60: 0.002295 | E60: 0.0032135 | F60: 0.003085 | G60: 0.001714 | H60: 0.0023995 | J60: 52 | K60: 5.032 | L60: 2.226 | M60: 3.409 | N60: 1.568 | O60: 2.544 | P60: 1.12 | R60: 52 | S60: 0.0002057 | T60: 0.0001143 | U60: 0.0024684 | V60: 0.0013716
B61: 53 | C61: 0.004434 | D61: 0.002546 | E61: 0.00349 | F61: 0.0033 | G61: 0.001893 | H61: 0.0025965 | J61: 53 | K61: 5.445 | L61: 2.424 | M61: 3.686 | N61: 1.709 | O61: 2.759 | P61: 1.219 | R61: 53 | S61: 0.00022 | T61: 0.0001262 | U61: 0.00264 | V61: 0.0015144
B62: 54 | C62: 0.004778 | D62: 0.002836 | E62: 0.003807 | F62: 0.003545 | G62: 0.002093 | H62: 0.002819 | J62: 54 | K62: 5.869 | L62: 2.634 | M62: 3.982 | N62: 1.861 | O62: 2.985 | P62: 1.329 | R62: 54 | S62: 0.0002363 | T62: 0.0001395 | U62: 0.0028356 | V62: 0.001674
B63: 55 | C63: 0.005203 | D63: 0.003178 | E63: 0.0041905 | F63: 0.003838 | G63: 0.002318 | H63: 0.003078 | J63: 55 | K63: 6.302 | L63: 2.853 | M63: 4.297 | N63: 2.027 | O63: 3.221 | P63: 1.45 | R63: 55 | S63: 0.0002559 | T63: 0.0001545 | U63: 0.0030708 | V63: 0.001854
B64: 56 | C64: 0.005744 | D64: 0.003577 | E64: 0.0046605 | F64: 0.004207 | G64: 0.002607 | H64: 0.003407 | J64: 56 | K64: 6.747 | L64: 3.085 | M64: 4.636 | N64: 2.208 | O64: 3.469 | P64: 1.585 | R64: 56 | S64: 0.0002805 | T64: 0.0001738 | U64: 0.003366 | V64: 0.0020856
B65: 57 | C65: 0.006427 | D65: 0.004036 | E65: 0.0052315 | F65: 0.004676 | G65: 0.002979 | H65: 0.0038275 | J65: 57 | K65: 7.227 | L65: 3.342 | M65: 4.999 | N65: 2.403 | O65: 3.731 | P65: 1.736 | R65: 57 | S65: 0.0003117 | T65: 0.0001986 | U65: 0.0037404 | V65: 0.0023832
B66: 58 | C66: 0.00726 | D66: 0.004556 | E66: 0.005908 | F66: 0.005275 | G66: 0.00341 | H66: 0.0043425 | J66: 58 | K66: 7.77 | L66: 3.638 | M66: 5.389 | N66: 2.613 | O66: 4.014 | P66: 1.905 | R66: 58 | S66: 0.0003517 | T66: 0.0002273 | U66: 0.0042204 | V66: 0.0027276
B67: 59 | C67: 0.008229 | D67: 0.005133 | E67: 0.006681 | F67: 0.006039 | G67: 0.003816 | H67: 0.0049275 | J67: 59 | K67: 8.403 | L67: 3.99 | M67: 5.807 | N67: 2.84 | O67: 4.323 | P67: 2.097 | R67: 59 | S67: 0.0004026 | T67: 0.0002544 | U67: 0.0048312 | V67: 0.0030528
B68: 60 | C68: 0.009313 | D68: 0.005768 | E68: 0.0075405 | F68: 0.006989 | G68: 0.004272 | H68: 0.0056305 | J68: 60 | K68: 9.161 | L68: 4.414 | M68: 6.258 | N68: 3.088 | O68: 4.66 | P68: 2.315 | R68: 60 | S68: 0.0004659 | T68: 0.0002848 | U68: 0.0055908 | V68: 0.0034176
B69: 61 | C69: 0.01049 | D69: 0.006465 | E69: 0.0084775 | F69: 0.007867 | G69: 0.004781 | H69: 0.006324 | J69: 61 | K69: 10.065 | L69: 4.923 | M69: 6.742 | N69: 3.366 | O69: 5.034 | P69: 2.561 | R69: 61 | S69: 0.0005245 | T69: 0.0003187 | U69: 0.006294 | V69: 0.0038244
B70: 62 | C70: 0.011747 | D70: 0.007235 | E70: 0.009491 | F70: 0.008725 | G70: 0.005351 | H70: 0.007038 | J70: 62 | K70: 11.129 | L70: 5.529 | M70: 7.261 | N70: 3.684 | O70: 5.448 | P70: 2.836 | R70: 62 | S70: 0.0005817 | T70: 0.0003567 | U70: 0.0069804 | V70: 0.0042804
B71: 63 | C71: 0.013091 | D71: 0.008094 | E71: 0.0105925 | F71: 0.009677 | G71: 0.005988 | H71: 0.0078325 | J71: 63 | K71: 12.36 | L71: 6.244 | M71: 7.815 | N71: 4.055 | O71: 5.909 | P71: 3.137 | R71: 63 | S71: 0.0006451 | T71: 0.0003992 | U71: 0.0077412 | V71: 0.0047904
B72: 64 | C72: 0.014542 | D72: 0.009059 | E72: 0.0118005 | F72: 0.010731 | G72: 0.006701 | H72: 0.008716 | J72: 64 | K72: 13.771 | L72: 7.078 | M72: 8.405 | N72: 4.495 | O72: 6.422 | P72: 3.468 | R72: 64 | S72: 0.0007154 | T72: 0.0004467 | U72: 0.0085848 | V72: 0.0053604
B73: 65 | C73: 0.016134 | D73: 0.010148 | E73: =(C73+D73)/2 -> 0.013141 | F73: 0.0119 | G73: 0.007499 | H73: =0.5*(F73+G73) -> 0.0096995 | J73: 65 | K73: 15.379 | L73: 8.045 | M73: 9.039 | N73: 5.016 | O73: 6.988 | P73: 3.835 | R73: 65 | S73: =ROUND(IF(R73>=75,0,VLOOKUP(R73,$B$8:$H$113,5,FALSE))*0.8/12,7) -> 0.0007933 | T73: =ROUND(IF(R73>=75,0,VLOOKUP(R73,$B$8:$H$113,6,FALSE))*0.8/12,7) -> 0.0004999 | U73: =S73*12 -> 0.0095196 | V73: =T73*12 -> 0.0059988
B74: 66 | C74: 0.017905 | D74: 0.011376 | E74: 0.0146405 | F74: 0.013229 | G74: 0.008408 | H74: 0.0108185 | J74: 66 | K74: 17.212 | L74: 9.165 | M74: 9.738 | N74: 5.626 | O74: 7.61 | P74: 4.254 | R74: 66 | S74: 0.0008819 | T74: 0.0005605 | U74: 0.0105828 | V74: 0.006726
B75: 67 | C75: 0.019886 | D75: 0.01276 | E75: 0.016323 | F75: 0.014705 | G75: 0.009438 | H75: 0.0120715 | J75: 67 | K75: 19.304 | L75: 10.46 | M75: 10.538 | N75: 6.326 | O75: 8.292 | P75: 4.74 | R75: 67 | S75: 0.0009803 | T75: 0.0006292 | U75: 0.0117636 | V75: 0.0075504
B76: 68 | C76: 0.022103 | D76: 0.014316 | E76: 0.0182095 | F76: 0.016344 | G76: 0.010592 | H76: 0.013468 | J76: 68 | K76: 21.691 | L76: 11.955 | M76: 11.496 | N76: 7.115 | O76: 9.046 | P76: 5.302 | R76: 68 | S76: 0.0010896 | T76: 0.0007061 | U76: 0.0130752 | V76: 0.0084732
B77: 69 | C77: 0.024571 | D77: 0.016066 | E77: 0.0203185 | F77: 0.018164 | G77: 0.011886 | H77: 0.015025 | J77: 69 | K77: 24.411 | L77: 13.674 | M77: 12.686 | N77: 8 | O77: 9.897 | P77: 5.943 | R77: 69 | S77: 0.0012109 | T77: 0.0007924 | U77: 0.0145308 | V77: 0.0095088
B78: 70 | C78: 0.027309 | D78: 0.018033 | E78: 0.022671 | F78: 0.020184 | G78: 0.013337 | H78: 0.0167605 | J78: 70 | K78: 27.495 | L78: 15.643 | M78: 14.192 | N78: 9.007 | O78: 10.888 | P78: 6.66 | R78: 70 | S78: 0.0013456 | T78: 0.0008891 | U78: 0.0161472 | V78: 0.0106692
B79: 71 | C79: 0.03034 | D79: 0.020241 | E79: 0.0252905 | F79: 0.022425 | G79: 0.014964 | H79: 0.0186945 | J79: 71 | K79: 30.965 | L79: 17.887 | M79: 16.106 | N79: 10.185 | O79: 12.08 | P79: 7.46 | R79: 71 | S79: 0.001495 | T79: 0.0009976 | U79: 0.01794 | V79: 0.0119712
B80: 72 | C80: 0.033684 | D80: 0.022715 | E80: 0.0281995 | F80: 0.024911 | G80: 0.016787 | H80: 0.020849 | J80: 72 | K80: 34.832 | L80: 20.432 | M80: 18.517 | N80: 11.606 | O80: 13.55 | P80: 8.369 | R80: 72 | S80: 0.0016607 | T80: 0.0011191 | U80: 0.0199284 | V80: 0.0134292
B81: 73 | C81: 0.037371 | D81: 0.025479 | E81: 0.031425 | F81: 0.027668 | G81: 0.018829 | H81: 0.0232485 | J81: 73 | K81: 39.105 | L81: 23.303 | M81: 21.51 | N81: 13.353 | O81: 15.387 | P81: 9.436 | R81: 73 | S81: 0.0018445 | T81: 0.0012553 | U81: 0.022134 | V81: 0.0150636
B82: 74 | C82: 0.04143 | D82: 0.028561 | E82: 0.0349955 | F82: 0.030647 | G82: 0.021117 | H82: 0.025882 | J82: 74 | K82: 43.796 | L82: 26.528 | M82: 25.151 | N82: 15.508 | O82: 17.686 | P82: 10.73 | R82: 74 | S82: 0.0020431 | T82: 0.0014078 | U82: 0.0245172 | V82: 0.0168936
B83: 75 | C83: 0.045902 | D83: 0.031989 | E83: 0.0389455 | F83: 0.033939 | G83: 0.023702 | H83: 0.0288205 | J83: 75 | K83: 48.921 | L83: 30.137 | M83: 29.49 | N83: 18.134 | O83: 20.539 | P83: 12.332 | R83: 75 | S83: 0 | T83: 0 | U83: 0 | V83: 0
B84: 76 | C84: 0.050829 | D84: 0.035796 | E84: 0.0433125 | F84: 0.037577 | G84: 0.026491 | H84: 0.032034 | J84: 76 | K84: 54.506 | L84: 34.165 | M84: 34.545 | N84: 21.268 | O84: 24.017 | P84: 14.315 | R84: 76 | S84: 0 | T84: 0 | U84: 0 | V84: 0
B85: 77 | C85: 0.056262 | D85: 0.040026 | E85: 0.048144 | F85: 0.041594 | G85: 0.029602 | H85: 0.035598 | J85: 77 | K85: 60.586 | L85: 38.653 | M85: 40.31 | N85: 24.916 | O85: 28.162 | P85: 16.734 | R85: 77 | S85: 0 | T85: 0 | U85: 0 | V85: 0
B86: 78 | C86: 0.062257 | D86: 0.044726 | E86: 0.0534915 | F86: 0.046028 | G86: 0.03307 | H86: 0.039549 | J86: 78 | K86: 67.202 | L86: 43.648 | M86: 46.747 | N86: 29.062 | O86: 32.978 | P86: 19.619 | R86: 78 | S86: 0 | T86: 0 | U86: 0 | V86: 0
B87: 79 | C87: 0.068871 | D87: 0.049954 | E87: 0.0594125 | F87: 0.05092 | G87: 0.036935 | H87: 0.0439275 | J87: 79 | K87: 74.4 | L87: 49.205 | M87: 53.801 | N87: 33.674 | O87: 38.437 | P87: 22.971 | R87: 79 | S87: 0 | T87: 0 | U87: 0 | V87: 0
B88: 80 | C88: 0.076187 | D88: 0.055774 | E88: 0.0659805 | F88: 0.056312 | G88: 0.041241 | H88: 0.0487765 | J88: 80 | K88: 82.22 | L88: 55.385 | M88: 61.403 | N88: 38.718 | O88: 44.492 | P88: 26.77 | R88: 80 | S88: 0 | T88: 0 | U88: 0 | V88: 0
B89: 81 | C89: 0.084224 | D89: 0.062253 | E89: 0.0732385 | F89: 0.062253 | G89: 0.046033 | H89: 0.054143 | J89: 81 | K89: 90.7 | L89: 62.254 | M89: 69.485 | N89: 44.16 | O89: 51.086 | P89: 30.989 | R89: 81 | S89: 0 | T89: 0 | U89: 0 | V89: 0
B90: 82 | C90: 0.093071 | D90: 0.069494 | E90: 0.0812825 | F90: 0.068791 | G90: 0.051365 | H90: 0.060078 | J90: 82 | K90: 99.868 | L90: 69.88 | M90: 77.987 | N90: 49.977 | O90: 58.173 | P90: 35.598 | R90: 82 | S90: 0 | T90: 0 | U90: 0 | V90: 0
B91: 83 | C91: 0.1028 | D91: 0.077511 | E91: 0.0901555 | F91: 0.075983 | G91: 0.057291 | H91: 0.066637 | J91: 83 | K91: 109.754 | L91: 78.32 | M91: 86.872 | N91: 56.157 | O91: 65.722 | P91: 40.576 | R91: 83 | S91: 0 | T91: 0 | U91: 0 | V91: 0
B92: 84 | C92: 0.113489 | D92: 0.086415 | E92: 0.099952 | F92: 0.083883 | G92: 0.063872 | H92: 0.0738775 | J92: 84 | K92: 120.388 | L92: 87.611 | M92: 96.13 | N92: 62.695 | O92: 73.729 | P92: 45.915 | R92: 84 | S92: 0 | T92: 0 | U92: 0 | V92: 0
B93: 85 | C93: 0.125221 | D93: 0.096294 | E93: 0.1107575 | F93: 0.092554 | G93: 0.071174 | H93: 0.081864 | J93: 85 | K93: 131.817 | L93: 97.754 | M93: 105.786 | N93: 69.596 | O93: 82.223 | P93: 51.616 | R93: 85 | S93: 0 | T93: 0 | U93: 0 | V93: 0
B94: 86 | C94: 0.13808 | D94: 0.107243 | E94: 0.1226615 | F94: 0.102059 | G94: 0.079267 | H94: 0.090663 | J94: 86 | K94: 144.105 | L94: 108.704 | M94: 115.9 | N94: 76.863 | O94: 91.239 | P94: 57.646 | R94: 86 | S94: 0 | T94: 0 | U94: 0 | V94: 0
B95: 87 | C95: 0.152157 | D95: 0.119364 | E95: 0.1357605 | F95: 0.112464 | G95: 0.088225 | H95: 0.1003445 | J95: 87 | K95: 157.334 | L95: 120.371 | M95: 126.569 | N95: 84.501 | O95: 100.9 | P95: 64.084 | R95: 87 | S95: 0 | T95: 0 | U95: 0 | V95: 0
B96: 88 | C96: 0.167543 | D96: 0.132763 | E96: 0.150153 | F96: 0.123836 | G96: 0.098129 | H96: 0.1109825 | J96: 88 | K96: 171.609 | L96: 132.638 | M96: 137.917 | N96: 92.504 | O96: 111.321 | P96: 70.942 | R96: 88 | S96: 0 | T96: 0 | U96: 0 | V96: 0
B97: 89 | C97: 0.184333 | D97: 0.147553 | E97: 0.165943 | F97: 0.136246 | G97: 0.109061 | H97: 0.1226535 | J97: 89 | K97: 187.046 | L97: 145.395 | M97: 150.089 | N97: 100.864 | O97: 122.608 | P97: 78.241 | R97: 89 | S97: 0 | T97: 0 | U97: 0 | V97: 0
B98: 90 | C98: 0.202621 | D98: 0.16385 | E98: 0.1832355 | F98: 0.149763 | G98: 0.121107 | H98: 0.135435 | J98: 90 | K98: 203.765 | L98: 158.572 | M98: 163.239 | N98: 109.567 | O98: 134.87 | P98: 86.003 | R98: 90 | S98: 0 | T98: 0 | U98: 0 | V98: 0
B99: 91 | C99: 0.2225 | D99: 0.181775 | E99: 0.2021375 | F99: 0.164456 | G99: 0.134355 | H99: 0.1494055 | J99: 91 | K99: 221.873 | L99: 172.172 | M99: 177.519 | N99: 118.605 | O99: 148.212 | P99: 94.249 | R99: 91 | S99: 0 | T99: 0 | U99: 0 | V99: 0
B100: 92 | C100: 0.244059 | D100: 0.201447 | E100: 0.222753 | F100: 0.180392 | G100: 0.148896 | H100: 0.164644 | J100: 92 | K100: 241.451 | L100: 186.294 | M100: 193.067 | N100: 127.985 | O100: 162.742 | P100: 103.002 | R100: 92 | S100: 0 | T100: 0 | U100: 0 | V100: 0
B101: 93 | C101: 0.267383 | D101: 0.222987 | E101: 0.245185 | F101: 0.197631 | G101: 0.164816 | H101: 0.1812235 | J101: 93 | K101: 262.539 | L101: 201.129 | M101: 209.999 | N101: 137.743 | O101: 178.566 | P101: 112.281 | R101: 93 | S101: 0 | T101: 0 | U101: 0 | V101: 0
B102: 94 | C102: 0.292544 | D102: 0.246507 | E102: 0.2695255 | F102: 0.216228 | G102: 0.182201 | H102: 0.1992145 | J102: 94 | K102: 285.129 | L102: 216.94 | M102: 228.394 | N102: 147.962 | O102: 195.793 | P102: 122.109 | R102: 94 | S102: 0 | T102: 0 | U102: 0 | V102: 0
B103: 95 | C103: 0.319604 | D103: 0.272115 | E103: 0.2958595 | F103: 0.236229 | G103: 0.201129 | H103: 0.218679 | J103: 95 | K103: 309.16 | L103: 234.026 | M103: 248.299 | N103: 158.777 | O103: 214.499 | P103: 132.54 | R103: 95 | S103: 0 | T103: 0 | U103: 0 | V103: 0
B104: 96 | C104: 0.348606 | D104: 0.299903 | E104: 0.3242545 | F104: 0.257666 | G104: 0.221667 | H104: 0.2396665 | J104: 96 | K104: 334.529 | L104: 252.673 | M104: 269.718 | N104: 170.38 | O104: 234.65 | P104: 143.757 | R104: 96 | S104: 0 | T104: 0 | U104: 0 | V104: 0
B105: 97 | C105: 0.379572 | D105: 0.329942 | E105: 0.354757 | F105: 0.280553 | G105: 0.24387 | H105: 0.2622115 | J105: 97 | K105: 361.101 | L105: 273.112 | M105: 292.621 | N105: 183.02 | O105: 256.18 | P105: 155.979 | R105: 97 | S105: 0 | T105: 0 | U105: 0 | V105: 0
B106: 98 | C106: 0.412495 | D106: 0.362281 | E106: 0.387388 | F106: 0.304887 | G106: 0.267773 | H106: 0.28633 | J106: 98 | K106: 388.727 | L106: 295.478 | M106: 316.951 | N106: 196.986 | O106: 279.025 | P106: 169.421 | R106: 98 | S106: 0 | T106: 0 | U106: 0 | V106: 0
B107: 99 | C107: 0.447334 | D107: 0.396933 | E107: 0.4221335 | F107: 0.330638 | G107: 0.293385 | H107: 0.3120115 | J107: 99 | K107: 417.257 | L107: 319.794 | M107: 342.628 | N107: 212.604 | O107: 303.12 | P107: 184.301 | R107: 99 | S107: 0 | T107: 0 | U107: 0 | V107: 0
B108: 100 | C108: 0.48401 | D108: 0.433869 | E108: 0.4589395 | F108: 0.357746 | G108: 0.320685 | H108: 0.3392155 | J108: 100 | K108: 446.544 | L108: 345.975 | M108: 369.561 | N108: 230.215 | O108: 328.401 | P108: 200.836 | R108: 100 | S108: 0 | T108: 0 | U108: 0 | V108: 0
B109: 101 | C109: 0.522397 | D109: 0.473008 | E109: 0.4977025 | F109: 0.386119 | G109: 0.349615 | H109: 0.367867 | J109: 101 | K109: 476.447 | L109: 373.856 | M109: 397.652 | N109: 250.172 | O109: 354.803 | P109: 219.242 | R109: 101 | S109: 0 | T109: 0 | U109: 0 | V109: 0
B110: 102 | C110: 0.562317 | D110: 0.514211 | E110: 0.538264 | F110: 0.415626 | G110: 0.380069 | H110: 0.3978475 | J110: 102 | K110: 506.83 | L110: 403.221 | M110: 426.801 | N110: 272.831 | O110: 382.261 | P110: 239.737 | R110: 102 | S110: 0 | T110: 0 | U110: 0 | V110: 0
B111: 103 | C111: 0.603539 | D111: 0.557269 | E111: 0.580404 | F111: 0.446094 | G111: 0.411894 | H111: 0.428994 | J111: 103 | K111: 537.558 | L111: 433.833 | M111: 456.906 | N111: 298.551 | O111: 410.71 | P111: 262.537 | R111: 103 | S111: 0 | T111: 0 | U111: 0 | V111: 0
B112: 104 | C112: 0.64577 | D112: 0.601896 | E112: 0.623833 | F112: 0.477308 | G112: 0.444879 | H112: 0.4610935 | J112: 104 | K112: 568.497 | L112: 465.447 | M112: 487.867 | N112: 327.687 | O112: 440.086 | P112: 287.859 | R112: 104 | S112: 0 | T112: 0 | U112: 0 | V112: 0
B113: 105 | C113: 1 | D113: 1 | E113: 1 | F113: 1 | G113: 1 | H113: 1 | J113: 105 | K113: 1000 | L113: 1000 | M113: 1000 | N113: 1000 | O113: 1000 | P113: 1000 | R113: 105 | S113: 0 | T113: 0 | U113: 0 | V113: 0

Sheet 02exp (hidden)
A1: 02 Expense
A4: EV Expense Assumptions | I4: Table 1: Princing Loading Assumption
D5: Regular Premium | F5: Single Premium | I5: ppp/year | J5: 1 | K5: 2 | L5: 3 | M5: 4 | N5: 5 | O5: 6+
A6: Acquisition | B6: per policy | C6: =IF(ppp>1,D6,F6) -> 91.58 | D6: 91.58 | E6: RMB | F6: 91.58 | G6: RMB | I6: 1 | J6: 0.08
B7: % premium | C7: =IF(ppp>1,D7,F7) -> 0.2382 | D7: =11.45%+VLOOKUP(ppp,A17:C22,3,FALSE) -> 0.2382 | F7: =1.19%+C17 -> 0.0248 | I7: 3 | J7: 0.2 | K7: 0.15 | L7: 0.125
B8: % commission | C8: 0 | D8: 0 | F8: 0 | I8: 5 | J8: 0.3 | K8: 0.15 | L8: 0.13 | M8: 0.1 | N8: 0.095
A9: Maintainance | B9: per policy | C9: =IF(ppp>1,D9,F9) -> 69.77 | D9: 69.77 | E9: RMB | F9: 34.88 | G9: RMB | I9: 10 | J9: 0.4 | K9: 0.2 | L9: 0.15 | M9: 0.15 | N9: 0.105 | O9: 0.1
B10: % premium | C10: =IF(ppp>1,D10,F10) -> 0.0175 | D10: =D15+0.51% -> 0.0175 | F10: 0 | I10: 15 | J10: 0.4 | K10: 0.25 | L10: 0.15 | M10: 0.15 | N10: 0.14 | O10: 0.118
I11: 20 | J11: 0.45 | K11: 0.25 | L11: 0.15 | M11: 0.15 | N11: 0.14 | O11: 0.125
A13: Average Size | B13: =VLOOKUP(ppp,A17:B22,2,FALSE)/GP*(1+adverse_az) -> 4.904485152 | I13: Table 2: CV Loading Assumption
I14: ppp/year | J14: 1 | K14: 2 | L14: 3 | M14: 4 | N14: 5 | O14: 6+
B15: 件均保费20万标保 | D15: 0.0124 | I15: 1 | J15: 0.08
A16: Average Size Assumption-件均保费 | C16: 一类 | D16: 二类 | E16: 万能件均 | I16: 3 | J16: 0.3 | K16: 0.2 | L16: 0.15
A17: 1 | B17: 2000000 | C17: 0.0129 | D17: 0.0203 | E17: 3241.648569 | I17: 5 | J17: 0.3 | K17: 0.2 | L17: 0.15 | M17: 0.12 | N17: 0.12
A18: 3 | B18: 700000 | C18: 0.0375 | D18: 0.0595 | I18: 10 | J18: 0.4 | K18: 0.25 | L18: 0.15 | M18: 0.12 | N18: 0.12 | O18: 0.12
A19: 5 | B19: 400000 | C19: 0.0623 | D19: 0.0986 | I19: 15 | J19: 0.4 | K19: 0.25 | L19: 0.15 | M19: 0.12 | N19: 0.12 | O19: 0.12
A20: 10 | B20: 200000 | C20: 0.1237 | D20: 0.1957 | I20: 20 | J20: 0.45 | K20: 0.25 | L20: 0.15 | M20: 0.12 | N20: 0.12 | O20: 0.12
A21: 15 | B21: 150000 | C21: 0.1237 | D21: 0.1957
A22: 20 | B22: 150000 | C22: 0.142 | D22: 0.2247
A25: 万能费用
A26: Acquisition | B26: per policy | C26: 2.04
B27: % premium | C27: 0.0046
B28: % commission | C28: 0.8
A29: Maintainance | B29: per policy | C29: 2
B30: % premium | C30: 0.00075
B34: 1 | C34: 3 | D34: 5 | E34: 10 | F34: 20
B35: 0.0129 | C35: 0.0375 | D35: 0.0623 | E35: 0.1237 | F35: 0.142

Sheet 03assumption (hidden)
A1: Interest Rate | L1: PAD | N1: annuity | O1: rider | AC1: Sensitive Test | AG1: 万能最低保证利率 | AH1: =IF('00summary'!D23=2,2.85%,2.5%) -> 0.025
A2: Pricing Interest Rate | C2: 0.025 | E2: Insurance Fund | G2: 0.0015 | L2: Expense | N2: 0.1 | O2: 0.1 | AC2: 30% adver mortality | AD2: 0 | AG2: 万能赚取利差 | AH2: =IF('00summary'!D23=2,0,0.75%) -> 0.0075
A3: Valuation Interest Rate | C3: =int_pricing -> 0.025 | E3: tax | G3: 0.25 | L3: Mort | N3: -0.1 | O3: -0.1 | AC3: 30% adver persistency | AD3: 0 | AG3: 万能账户相关假设
A4: CV Interest Rate | C4: =int_pricing+1.5% -> 0.04 | E4: tax free | G4: 0.13 | L4: Lapse | N4: -0.1 | O4: -0.1 | AC4: 30% adver LTC | AD4: 0 | AG4: 1 | AH4: 2 | AI4: 3 | AJ4: 4 | AK4: 5 | AL4: 6 | AM4: 7 | AN4: 8 | AO4: 9 | AP4: 10 | AQ4: 11 | AR4: 12 | AS4: 13 | AT4: 14
A5: Par prop | C5: 0.7 | E5: risk discount | G5: 0.11 | H5: =(1+discount)^(1/12)-1 -> 0.008734593824 | AC5: 30% adver expense | AD5: 0 | AG5: 保单年度 | AH5: 演示投资收益率 | AK5: 初始费用 | AM5: 退保费用 | AN5: 万能账户假设
AC6: 30% adver commission | AD6: 0 | AH6: 低 | AI6: 中 | AJ6: 高 | AK6: 趸交/追加 | AL6: 转入 | AN6: yield interest | AO6: credit rate | AP6: partial withdraw | AQ6: Lapse | AR6: Maintain rate | AS6: Persis bonus rate | AT6: Superaddition prem
A7: CV Factors | E7: EV LAPSE | I7: EV Investment returns | L7: EV - Commission | U7: Table C: Lapse, Investment Return, RDR | AC7: 30% adver average size | AD7: 0 | AG7: 1 | AH7: 0.025 | AI7: 0.045 | AJ7: 0.06 | AK7: 0.03 | AL7: 0.01 | AM7: 0.05 | AN7: 0.047 | AP7: 0.05 | AQ7: 0.11 | AR7: 0 | AS7: 0 | AT7: 0
A8: Year | B8: 1 | C8: 2 | E8: Policy Year | F8: Single | G8: Regular | I8: Policy Year | J8: int | M8: policy year | U8: Policy Year | V8: Calandar Year | W8: Lapse Single | X8: Lapse Regular | Y8: Inv. Rtn | Z8: RDR | AC8: 100bp reduc in yield | AD8: 0 | AG8: 2 | AH8: 0.025 | AI8: 0.045 | AJ8: 0.06 | AK8: 0.03 | AL8: 0.01 | AM8: 0.04 | AN8: 0.048 | AP8: 0.08 | AQ8: 0.06 | AR8: 0 | AS8: 0 | AT8: 0
A9: 1 | B9: =IF($A9<MIN(20,ppp),80%+$A9*(100%-80%)/MIN(20,ppp),100%) -> 0.82 | C9: =IF($A9<MIN(20,ppp),90%+$A9*(100%-90%)/MIN(20,ppp),100%) -> 0.91 | E9: 1 | F9: 0.01 | G9: 0.1 | I9: 1 | J9: 0.045 | L9: ppp | M9: 1 | N9: 2 | O9: 3 | P9: 4 | Q9: 5 | R9: 6 | S9: 7 | U9: 1 | V9: =issue_year+U9-1 ->  | W9: 0.1 | X9: 0.01 | Y9: 0.048 | Z9: 0.11 | AG9: 3 | AH9: 0.025 | AI9: 0.045 | AJ9: 0.06 | AK9: 0.03 | AL9: 0.01 | AM9: 0.03 | AN9: 0.049 | AP9: 0.08 | AQ9: 0.04 | AR9: 0 | AS9: 0 | AT9: 0
A10: 2 | B10: 0.84 | C10: 0.92 | E10: 2 | F10: 0.01 | G10: 0.09 | I10: 2 | J10: 0.045 | L10: 1 | M10: 0.1 | N10: 0 | O10: 0 | P10: 0 | Q10: 0 | R10: 0 | S10: 0 | U10: 2 | W10: 0.06 | X10: 0.01 | Y10: 0.049 | Z10: 0.11 | AC10: =pm ->  | AG10: 4 | AH10: 0.025 | AI10: 0.045 | AJ10: 0.06 | AK10: 0.03 | AL10: 0.01 | AM10: 0.02 | AN10: 0.05 | AP10: 0.12 | AQ10: 0.04 | AR10: 0 | AS10: 0 | AT10: 0
A11: 3 | B11: 0.86 | C11: 0.93 | E11: 3 | F11: 0.02 | G11: 0.05 | I11: 3 | J11: 0.045 | L11: 3 | M11: 0.22 | N11: 0.083 | O11: 0.042 | P11: 0 | Q11: 0 | R11: 0 | S11: 0 | U11: 3 | W11: 0.04 | X11: 0.02 | Y11: 0.05 | Z11: 0.11 | AC11: =nbv ->  | AG11: 5 | AH11: 0.025 | AI11: 0.045 | AJ11: 0.06 | AK11: 0.03 | AL11: 0.01 | AM11: 0.01 | AN11: 0.05 | AP11: 0.1 | AQ11: 0.03 | AR11: 0 | AS11: 0 | AT11: 0
A12: 4 | B12: 0.88 | C12: 0.94 | E12: 4 | F12: 0.02 | G12: 0.04 | I12: 4 | J12: 0.045 | L12: 5 | M12: 0.3 | N12: 0.098 | O12: 0.064 | P12: 0.059 | Q12: 0.02 | R12: 0 | S12: 0 | U12: 4 | W12: 0.035 | X12: 0.02 | Y12: 0.051 | Z12: 0.11 | AG12: 6 | AH12: 0.025 | AI12: 0.045 | AJ12: 0.06 | AK12: 0.03 | AL12: 0.01 | AM12: 0 | AN12: 0.05 | AP12: 0.3 | AQ12: 0.025 | AR12: 0 | AS12: 0 | AT12: 0
A13: 5 | B13: 0.9 | C13: 0.95 | E13: 5 | F13: 0.02 | G13: 0.03 | I13: 5 | J13: 0.045 | L13: 10 | M13: 0.64 | N13: 0.159 | O13: 0.102 | P13: 0.099 | Q13: 0.037 | R13: 0 | S13: 0 | U13: 5 | W13: 0.03 | X13: 0.02 | Y13: 0.053 | Z13: 0.11 | AG13: 7 | AH13: 0.025 | AI13: 0.045 | AJ13: 0.06 | AK13: 0.03 | AL13: 0.01 | AM13: 0 | AN13: 0.05 | AP13: 0.1 | AQ13: 0.025 | AR13: 0 | AS13: 0 | AT13: 0
A14: 6 | B14: 0.92 | C14: 0.96 | E14: 6 | F14: 0.02 | G14: 0.025 | I14: 6 | J14: 0.045 | L14: 15 | M14: 0.75 | N14: 0.21 | O14: 0.126 | P14: 0.112 | Q14: 0.04 | R14: 0 | S14: 0 | U14: 6 | W14: 0.02 | X14: 0.02 | Y14: 0.055 | Z14: 0.11 | AG14: 8 | AH14: 0.025 | AI14: 0.045 | AJ14: 0.06 | AK14: 0.03 | AL14: 0.01 | AM14: 0 | AN14: 0.05 | AP14: 0.1 | AQ14: 0.025 | AR14: 0 | AS14: 0 | AT14: 0
A15: 7 | B15: 0.94 | C15: 0.97 | E15: 7 | F15: 0.02 | G15: 0.025 | I15: 7 | J15: 0.045 | L15: 20 | M15: 0.9 | N15: 0.28 | O15: 0.14 | P15: 0.12 | Q15: 0.05 | R15: 0 | S15: 0 | U15: 7 | W15: 0.02 | X15: 0.02 | Y15: 0.055 | Z15: 0.11 | AG15: 9 | AH15: 0.025 | AI15: 0.045 | AJ15: 0.06 | AK15: 0.03 | AL15: 0.01 | AM15: 0 | AN15: 0.05 | AP15: 0.1 | AQ15: 0.025 | AR15: 0 | AS15: 0 | AT15: 0
A16: 8 | B16: 0.96 | C16: 0.98 | E16: 8 | F16: 0.02 | G16: 0.025 | I16: 8 | J16: 0.045 | U16: 8 | W16: 0.02 | X16: 0.02 | Y16: 0.055 | Z16: 0.11 | AG16: 10 | AH16: 0.025 | AI16: 0.045 | AJ16: 0.06 | AK16: 0.03 | AL16: 0.01 | AM16: 0 | AN16: 0.05 | AP16: 0.1 | AQ16: 0.02 | AR16: 0 | AS16: 0 | AT16: 0
A17: 9 | B17: 0.98 | C17: 0.99 | E17: 9 | F17: 0.02 | G17: 0.025 | I17: 9 | J17: 0.045 | L17: EV - Inflation | M17: 0.025 | U17: 9 | W17: 0.02 | X17: 0.02 | Y17: 0.055 | Z17: 0.11 | AG17: 11 | AH17: 0.025 | AI17: 0.045 | AJ17: 0.06 | AK17: 0.03 | AL17: 0.01 | AM17: 0 | AN17: 0.05 | AP17: 0.1 | AQ17: 0.02 | AR17: 0 | AS17: 0 | AT17: 0
A18: 10 | B18: 1 | C18: 1 | E18: 10 | F18: 0.02 | G18: 0.02 | I18: 10 | J18: 0.045 | U18: 10 | W18: 0.02 | X18: 0.02 | Y18: 0.055 | Z18: 0.11 | AG18: 12 | AH18: 0.025 | AI18: 0.045 | AJ18: 0.06 | AK18: 0.03 | AL18: 0.01 | AM18: 0 | AN18: 0.05 | AP18: 0.1 | AQ18: 0.02 | AR18: 0 | AS18: 0 | AT18: 0
A19: 11 | B19: 1 | C19: 1 | I19: 11 | J19: 0.045 | L19: 万能佣金 | U19: 11 | W19: 0.02 | X19: 0.02 | Y19: 0.055 | Z19: 0.11 | AG19: 13 | AH19: 0.025 | AI19: 0.045 | AJ19: 0.06 | AK19: 0.03 | AL19: 0.01 | AM19: 0 | AN19: 0.05 | AP19: 0.1 | AQ19: 0.02 | AR19: 0 | AS19: 0 | AT19: 0
A20: 12 | B20: 1 | C20: 1 | I20: 12 | J20: 0.045 | L20: policy year | M20: 趸交 | N20: 追加 | U20: 12 | W20: 0.02 | X20: 0.02 | Y20: 0.055 | Z20: 0.11 | AG20: 14 | AH20: 0.025 | AI20: 0.045 | AJ20: 0.06 | AK20: 0.03 | AL20: 0.01 | AM20: 0 | AN20: 0.05 | AP20: 0.1 | AQ20: 0.02 | AR20: 0 | AS20: 0 | AT20: 0
A21: 13 | B21: 1 | C21: 1 | E21: EV - Mortality | I21: 13 | J21: 0.045 | L21: 1 | M21: 0.005 | N21: 0.005 | U21: 13 | W21: 0.02 | X21: 0.02 | Y21: 0.055 | Z21: 0.11 | AG21: 15 | AH21: 0.025 | AI21: 0.045 | AJ21: 0.06 | AK21: 0.03 | AL21: 0.01 | AM21: 0 | AN21: 0.05 | AP21: 0.1 | AQ21: 0.02 | AR21: 0 | AS21: 0 | AT21: 0
A22: 14 | B22: 1 | C22: 1 | F22: Male | G22: Female | I22: 14 | J22: 0.045 | L22: 2 | M22: 0 | N22: 0.005 | U22: 14 | W22: 0.02 | X22: 0.02 | Y22: 0.055 | Z22: 0.11 | AG22: 16 | AH22: 0.025 | AI22: 0.045 | AJ22: 0.06 | AK22: 0.03 | AL22: 0.01 | AM22: 0 | AN22: 0.05 | AP22: 0.1 | AQ22: 0.02 | AR22: 0 | AS22: 0 | AT22: 0
A23: 15 | B23: 1 | C23: 1 | E23: 1 | F23: 0.7 | G23: 0.6 | I23: 15 | J23: 0.045 | L23: 3 | M23: 0 | N23: 0.005 | U23: 15 | W23: 0.02 | X23: 0.02 | Y23: 0.055 | Z23: 0.11 | AG23: 17 | AH23: 0.025 | AI23: 0.045 | AJ23: 0.06 | AK23: 0.03 | AL23: 0.01 | AM23: 0 | AN23: 0.05 | AP23: 0.1 | AQ23: 0.02 | AR23: 0 | AS23: 0 | AT23: 0
A24: 16 | B24: 1 | C24: 1 | E24: 2 | F24: 0.85 | G24: 0.8 | I24: 16 | J24: 0.045 | L24: 4 | M24: 0 | N24: 0.005 | U24: 16 | W24: 0.02 | X24: 0.02 | Y24: 0.055 | Z24: 0.11 | AG24: 18 | AH24: 0.025 | AI24: 0.045 | AJ24: 0.06 | AK24: 0.03 | AL24: 0.01 | AM24: 0 | AN24: 0.05 | AP24: 0.1 | AQ24: 0.02 | AR24: 0 | AS24: 0 | AT24: 0
A25: 17 | B25: 1 | C25: 1 | E25: 3 | F25: 0.95 | G25: 0.9 | I25: 17 | J25: 0.045 | L25: 5 | M25: 0 | N25: 0.005 | U25: 17 | W25: 0.02 | X25: 0.02 | Y25: 0.055 | Z25: 0.11 | AG25: 19 | AH25: 0.025 | AI25: 0.045 | AJ25: 0.06 | AK25: 0.03 | AL25: 0.01 | AM25: 0 | AN25: 0.05 | AP25: 0.1 | AQ25: 0.02 | AR25: 0 | AS25: 0 | AT25: 0
A26: 18 | B26: 1 | C26: 1 | E26: 4 | F26: 0.95 | G26: 0.9 | I26: 18 | J26: 0.045 | L26: 6 | M26: 0 | N26: 0 | U26: 18 | W26: 0.02 | X26: 0.02 | Y26: 0.055 | Z26: 0.11 | AG26: 20 | AH26: 0.025 | AI26: 0.045 | AJ26: 0.06 | AK26: 0.03 | AL26: 0.01 | AM26: 0 | AN26: 0.05 | AP26: 0.1 | AQ26: 0.02 | AR26: 0 | AS26: 0 | AT26: 0
A27: 19 | B27: 1 | C27: 1 | E27: 5 | F27: 0.95 | G27: 0.9 | I27: 19 | J27: 0.045 | U27: 19 | W27: 0.02 | X27: 0.02 | Y27: 0.055 | Z27: 0.11 | AG27: 21 | AH27: 0.025 | AI27: 0.045 | AJ27: 0.06 | AK27: 0.03 | AL27: 0.01 | AM27: 0 | AN27: 0.05 | AP27: 0.1 | AQ27: 0.02 | AR27: 0 | AS27: 0 | AT27: 0
A28: 20 | B28: 1 | C28: 1 | E28: 6 | F28: 0.95 | G28: 0.9 | I28: 20 | J28: 0.045 | N28: (0,5] | O28: (5,10] | P28: (10,15] | Q28: (15,20] | R28: (20,∞） | U28: 20 | W28: 0.02 | X28: 0.02 | Y28: 0.055 | Z28: 0.11 | AG28: 22 | AH28: 0.025 | AI28: 0.045 | AJ28: 0.06 | AK28: 0.03 | AL28: 0.01 | AM28: 0 | AN28: 0.05 | AP28: 0.1 | AQ28: 0.02 | AR28: 0 | AS28: 0 | AT28: 0
A29: 21 | B29: 1 | C29: 1 | E29: 7 | F29: 0.95 | G29: 0.9 | I29: 21 | J29: 0.045 | L29: 0.02 | M29: （0,2%] | N29: 0.01 | O29: 0.015 | P29: 0.02 | Q29: 0.025 | R29: 0.03 | U29: 21 | W29: 0.02 | X29: 0.02 | Y29: 0.055 | Z29: 0.11 | AG29: 23 | AH29: 0.025 | AI29: 0.045 | AJ29: 0.06 | AK29: 0.03 | AL29: 0.01 | AM29: 0 | AN29: 0.05 | AP29: 0.1 | AQ29: 0.02 | AR29: 0 | AS29: 0 | AT29: 0
A30: 22 | B30: 1 | C30: 1 | E30: 8 | F30: 0.95 | G30: 0.9 | I30: 22 | J30: 0.045 | L30: 0.025 | M30: （2%,2.5%] | N30: 0.015 | O30: 0.02 | P30: 0.025 | Q30: 0.03 | R30: 0.035 | U30: 22 | W30: 0.02 | X30: 0.02 | Y30: 0.055 | Z30: 0.11 | AG30: 24 | AH30: 0.025 | AI30: 0.045 | AJ30: 0.06 | AK30: 0.03 | AL30: 0.01 | AM30: 0 | AN30: 0.05 | AP30: 0.1 | AQ30: 0.02 | AR30: 0 | AS30: 0 | AT30: 0
A31: 23 | B31: 1 | C31: 1 | E31: 9 | F31: 0.95 | G31: 0.9 | I31: 23 | J31: 0.045 | L31: 0.0285 | M31: （2.5%,3%] | N31: 0.02 | O31: 0.03 | P31: 0.035 | Q31: 0.04 | R31: 0.045 | U31: 23 | W31: 0.02 | X31: 0.02 | Y31: 0.055 | Z31: 0.11 | AG31: 25 | AH31: 0.025 | AI31: 0.045 | AJ31: 0.06 | AK31: 0.03 | AL31: 0.01 | AM31: 0 | AN31: 0.05 | AP31: 0.1 | AQ31: 0.02 | AR31: 0 | AS31: 0 | AT31: 0
A32: 24 | B32: 1 | C32: 1 | E32: 10 | F32: 0.95 | G32: 0.9 | I32: 24 | J32: 0.045 | L32: 0.035 | M32: （3%,3.5%] | N32: 0.025 | O32: 0.04 | P32: 0.05 | Q32: 0.06 | R32: 0.07 | U32: 24 | W32: 0.02 | X32: 0.02 | Y32: 0.055 | Z32: 0.11 | AG32: 26 | AH32: 0.025 | AI32: 0.045 | AJ32: 0.06 | AK32: 0.03 | AL32: 0.01 | AM32: 0 | AN32: 0.05 | AP32: 0.1 | AQ32: 0.02 | AR32: 0 | AS32: 0 | AT32: 0
A33: 25 | B33: 1 | C33: 1 | I33: 25 | J33: 0.045 | M33: （3.5%, +∞） | N33: 0.03 | O33: 0.055 | P33: 0.07 | Q33: 0.085 | R33: 0.1 | U33: 25 | W33: 0.02 | X33: 0.02 | Y33: 0.055 | Z33: 0.11 | AG33: 27 | AH33: 0.025 | AI33: 0.045 | AJ33: 0.06 | AK33: 0.03 | AL33: 0.01 | AM33: 0 | AN33: 0.05 | AP33: 0.1 | AQ33: 0.02 | AR33: 0 | AS33: 0 | AT33: 0
A34: 26 | B34: 1 | C34: 1 | I34: 26 | J34: 0.045 | U34: 26 | W34: 0.02 | X34: 0.02 | Y34: 0.055 | Z34: 0.11 | AG34: 28 | AH34: 0.025 | AI34: 0.045 | AJ34: 0.06 | AK34: 0.03 | AL34: 0.01 | AM34: 0 | AN34: 0.05 | AP34: 0.1 | AQ34: 0.02 | AR34: 0 | AS34: 0 | AT34: 0
A35: 27 | B35: 1 | C35: 1 | I35: 27 | J35: 0.045 | U35: 27 | W35: 0.02 | X35: 0.02 | Y35: 0.055 | Z35: 0.11 | AG35: 29 | AH35: 0.025 | AI35: 0.045 | AJ35: 0.06 | AK35: 0.03 | AL35: 0.01 | AM35: 0 | AN35: 0.05 | AP35: 0.1 | AQ35: 0.02 | AR35: 0 | AS35: 0 | AT35: 0
A36: 28 | B36: 1 | C36: 1 | I36: 28 | J36: 0.045 | U36: 28 | W36: 0.02 | X36: 0.02 | Y36: 0.055 | Z36: 0.11 | AG36: 30 | AH36: 0.025 | AI36: 0.045 | AJ36: 0.06 | AK36: 0.03 | AL36: 0.01 | AM36: 0 | AN36: 0.05 | AP36: 0.1 | AQ36: 0.02 | AR36: 0 | AS36: 0 | AT36: 0
A37: 29 | B37: 1 | C37: 1 | I37: 29 | J37: 0.045 | U37: 29 | W37: 0.02 | X37: 0.02 | Y37: 0.055 | Z37: 0.11 | AG37: 31 | AH37: 0.025 | AI37: 0.045 | AJ37: 0.06 | AK37: 0.03 | AL37: 0.01 | AM37: 0 | AN37: 0.05 | AP37: 0.1 | AQ37: 0.02 | AR37: 0 | AS37: 0 | AT37: 0
A38: 30 | B38: 1 | C38: 1 | I38: 30 | J38: 0.045 | U38: 30 | W38: 0.02 | X38: 0.02 | Y38: 0.055 | Z38: 0.11 | AG38: 32 | AH38: 0.025 | AI38: 0.045 | AJ38: 0.06 | AK38: 0.03 | AL38: 0.01 | AM38: 0 | AN38: 0.05 | AP38: 0.1 | AQ38: 0.02 | AR38: 0 | AS38: 0 | AT38: 0
A39: 31 | B39: 1 | C39: 1 | I39: 31 | J39: 0.045 | U39: 31 | W39: 0.02 | X39: 0.02 | Y39: 0.055 | Z39: 0.11 | AG39: 33 | AH39: 0.025 | AI39: 0.045 | AJ39: 0.06 | AK39: 0.03 | AL39: 0.01 | AM39: 0 | AN39: 0.05 | AP39: 0.1 | AQ39: 0.02 | AR39: 0 | AS39: 0 | AT39: 0
A40: 32 | B40: 1 | C40: 1 | I40: 32 | J40: 0.045 | U40: 32 | W40: 0.02 | X40: 0.02 | Y40: 0.055 | Z40: 0.11 | AG40: 34 | AH40: 0.025 | AI40: 0.045 | AJ40: 0.06 | AK40: 0.03 | AL40: 0.01 | AM40: 0 | AN40: 0.05 | AP40: 0.1 | AQ40: 0.02 | AR40: 0 | AS40: 0 | AT40: 0
A41: 33 | B41: =IF($A41<MIN(20,ppp),80%+$A41*(100%-80%)/MIN(20,ppp),100%) -> 1 | C41: =IF($A41<MIN(20,ppp),90%+$A41*(100%-90%)/MIN(20,ppp),100%) -> 1 | I41: 33 | J41: 0.045 | U41: 33 | V41: =issue_year+U41-1 ->  | W41: 0.02 | X41: 0.02 | Y41: 0.055 | Z41: 0.11 | AG41: 35 | AH41: 0.025 | AI41: 0.045 | AJ41: 0.06 | AK41: 0.03 | AL41: 0.01 | AM41: 0 | AN41: 0.05 | AP41: 0.1 | AQ41: 0.02 | AR41: 0 | AS41: 0 | AT41: 0
A42: 34 | B42: 1 | C42: 1 | I42: 34 | J42: 0.045 | U42: 34 | W42: 0.02 | X42: 0.02 | Y42: 0.055 | Z42: 0.11 | AG42: 36 | AH42: 0.025 | AI42: 0.045 | AJ42: 0.06 | AK42: 0.03 | AL42: 0.01 | AM42: 0 | AN42: 0.05 | AP42: 0.1 | AQ42: 0.02 | AR42: 0 | AS42: 0 | AT42: 0
A43: 35 | B43: 1 | C43: 1 | I43: 35 | J43: 0.045 | U43: 35 | W43: 0.02 | X43: 0.02 | Y43: 0.055 | Z43: 0.11 | AG43: 37 | AH43: 0.025 | AI43: 0.045 | AJ43: 0.06 | AK43: 0.03 | AL43: 0.01 | AM43: 0 | AN43: 0.05 | AP43: 0.1 | AQ43: 0.02 | AR43: 0 | AS43: 0 | AT43: 0
A44: 36 | B44: 1 | C44: 1 | I44: 36 | J44: 0.045 | U44: 36 | W44: 0.02 | X44: 0.02 | Y44: 0.055 | Z44: 0.11 | AG44: 38 | AH44: 0.025 | AI44: 0.045 | AJ44: 0.06 | AK44: 0.03 | AL44: 0.01 | AM44: 0 | AN44: 0.05 | AP44: 0.1 | AQ44: 0.02 | AR44: 0 | AS44: 0 | AT44: 0
A45: 37 | B45: 1 | C45: 1 | I45: 37 | J45: 0.045 | U45: 37 | W45: 0.02 | X45: 0.02 | Y45: 0.055 | Z45: 0.11 | AG45: 39 | AH45: 0.025 | AI45: 0.045 | AJ45: 0.06 | AK45: 0.03 | AL45: 0.01 | AM45: 0 | AN45: 0.05 | AP45: 0.1 | AQ45: 0.02 | AR45: 0 | AS45: 0 | AT45: 0
A46: 38 | B46: 1 | C46: 1 | I46: 38 | J46: 0.045 | U46: 38 | W46: 0.02 | X46: 0.02 | Y46: 0.055 | Z46: 0.11 | AG46: 40 | AH46: 0.025 | AI46: 0.045 | AJ46: 0.06 | AK46: 0.03 | AL46: 0.01 | AM46: 0 | AN46: 0.05 | AP46: 0.1 | AQ46: 0.02 | AR46: 0 | AS46: 0 | AT46: 0
A47: 39 | B47: 1 | C47: 1 | I47: 39 | J47: 0.045 | U47: 39 | W47: 0.02 | X47: 0.02 | Y47: 0.055 | Z47: 0.11 | AG47: 41 | AH47: 0.025 | AI47: 0.045 | AJ47: 0.06 | AK47: 0.03 | AL47: 0.01 | AM47: 0 | AN47: 0.05 | AP47: 0.1 | AQ47: 0.02 | AR47: 0 | AS47: 0 | AT47: 0
A48: 40 | B48: 1 | C48: 1 | I48: 40 | J48: 0.045 | U48: 40 | W48: 0.02 | X48: 0.02 | Y48: 0.055 | Z48: 0.11 | AG48: 42 | AH48: 0.025 | AI48: 0.045 | AJ48: 0.06 | AK48: 0.03 | AL48: 0.01 | AM48: 0 | AN48: 0.05 | AP48: 0.1 | AQ48: 0.02 | AR48: 0 | AS48: 0 | AT48: 0
A49: 41 | B49: 1 | C49: 1 | I49: 41 | J49: 0.045 | U49: 41 | W49: 0.02 | X49: 0.02 | Y49: 0.055 | Z49: 0.11 | AG49: 43 | AH49: 0.025 | AI49: 0.045 | AJ49: 0.06 | AK49: 0.03 | AL49: 0.01 | AM49: 0 | AN49: 0.05 | AP49: 0.1 | AQ49: 0.02 | AR49: 0 | AS49: 0 | AT49: 0
A50: 42 | B50: 1 | C50: 1 | I50: 42 | J50: 0.045 | U50: 42 | W50: 0.02 | X50: 0.02 | Y50: 0.055 | Z50: 0.11 | AG50: 44 | AH50: 0.025 | AI50: 0.045 | AJ50: 0.06 | AK50: 0.03 | AL50: 0.01 | AM50: 0 | AN50: 0.05 | AP50: 0.1 | AQ50: 0.02 | AR50: 0 | AS50: 0 | AT50: 0
A51: 43 | B51: 1 | C51: 1 | I51: 43 | J51: 0.045 | U51: 43 | W51: 0.02 | X51: 0.02 | Y51: 0.055 | Z51: 0.11 | AG51: 45 | AH51: 0.025 | AI51: 0.045 | AJ51: 0.06 | AK51: 0.03 | AL51: 0.01 | AM51: 0 | AN51: 0.05 | AP51: 0.1 | AQ51: 0.02 | AR51: 0 | AS51: 0 | AT51: 0
A52: 44 | B52: 1 | C52: 1 | I52: 44 | J52: 0.045 | U52: 44 | W52: 0.02 | X52: 0.02 | Y52: 0.055 | Z52: 0.11 | AG52: 46 | AH52: 0.025 | AI52: 0.045 | AJ52: 0.06 | AK52: 0.03 | AL52: 0.01 | AM52: 0 | AN52: 0.05 | AP52: 0.1 | AQ52: 0.02 | AR52: 0 | AS52: 0 | AT52: 0
A53: 45 | B53: 1 | C53: 1 | I53: 45 | J53: 0.045 | U53: 45 | W53: 0.02 | X53: 0.02 | Y53: 0.055 | Z53: 0.11 | AG53: 47 | AH53: 0.025 | AI53: 0.045 | AJ53: 0.06 | AK53: 0.03 | AL53: 0.01 | AM53: 0 | AN53: 0.05 | AP53: 0.1 | AQ53: 0.02 | AR53: 0 | AS53: 0 | AT53: 0
A54: 46 | B54: 1 | C54: 1 | I54: 46 | J54: 0.045 | U54: 46 | W54: 0.02 | X54: 0.02 | Y54: 0.055 | Z54: 0.11 | AG54: 48 | AH54: 0.025 | AI54: 0.045 | AJ54: 0.06 | AK54: 0.03 | AL54: 0.01 | AM54: 0 | AN54: 0.05 | AP54: 0.1 | AQ54: 0.02 | AR54: 0 | AS54: 0 | AT54: 0
A55: 47 | B55: 1 | C55: 1 | I55: 47 | J55: 0.045 | U55: 47 | W55: 0.02 | X55: 0.02 | Y55: 0.055 | Z55: 0.11 | AG55: 49 | AH55: 0.025 | AI55: 0.045 | AJ55: 0.06 | AK55: 0.03 | AL55: 0.01 | AM55: 0 | AN55: 0.05 | AP55: 0.1 | AQ55: 0.02 | AR55: 0 | AS55: 0 | AT55: 0
A56: 48 | B56: 1 | C56: 1 | I56: 48 | J56: 0.045 | U56: 48 | W56: 0.02 | X56: 0.02 | Y56: 0.055 | Z56: 0.11 | AG56: 50 | AH56: 0.025 | AI56: 0.045 | AJ56: 0.06 | AK56: 0.03 | AL56: 0.01 | AM56: 0 | AN56: 0.05 | AP56: 0.1 | AQ56: 0.02 | AR56: 0 | AS56: 0 | AT56: 0
A57: 49 | B57: 1 | C57: 1 | I57: 49 | J57: 0.045 | U57: 49 | W57: 0.02 | X57: 0.02 | Y57: 0.055 | Z57: 0.11 | AG57: 51 | AH57: 0.025 | AI57: 0.045 | AJ57: 0.06 | AK57: 0.03 | AL57: 0.01 | AM57: 0 | AN57: 0.05 | AP57: 0.1 | AQ57: 0.02 | AR57: 0 | AS57: 0 | AT57: 0
A58: 50 | B58: 1 | C58: 1 | I58: 50 | J58: 0.045 | U58: 50 | W58: 0.02 | X58: 0.02 | Y58: 0.055 | Z58: 0.11 | AG58: 52 | AH58: 0.025 | AI58: 0.045 | AJ58: 0.06 | AK58: 0.03 | AL58: 0.01 | AM58: 0 | AN58: 0.05 | AP58: 0.1 | AQ58: 0.02 | AR58: 0 | AS58: 0 | AT58: 0
A59: 51 | B59: 1 | C59: 1 | U59: 51 | W59: 0.02 | X59: 0.02 | Y59: 0.055 | Z59: 0.11 | AG59: 53 | AH59: 0.025 | AI59: 0.045 | AJ59: 0.06 | AK59: 0.03 | AL59: 0.01 | AM59: 0 | AN59: 0.05 | AP59: 0.1 | AQ59: 0.02 | AR59: 0 | AS59: 0 | AT59: 0
A60: 52 | B60: 1 | C60: 1 | U60: 52 | W60: 0.02 | X60: 0.02 | Y60: 0.055 | Z60: 0.11 | AG60: 54 | AH60: 0.025 | AI60: 0.045 | AJ60: 0.06 | AK60: 0.03 | AL60: 0.01 | AM60: 0 | AN60: 0.05 | AP60: 0.1 | AQ60: 0.02 | AR60: 0 | AS60: 0 | AT60: 0
A61: 53 | B61: 1 | C61: 1 | U61: 53 | W61: 0.02 | X61: 0.02 | Y61: 0.055 | Z61: 0.11 | AG61: 55 | AH61: 0.025 | AI61: 0.045 | AJ61: 0.06 | AK61: 0.03 | AL61: 0.01 | AM61: 0 | AN61: 0.05 | AP61: 0.1 | AQ61: 0.02 | AR61: 0 | AS61: 0 | AT61: 0
A62: 54 | B62: 1 | C62: 1 | U62: 54 | W62: 0.02 | X62: 0.02 | Y62: 0.055 | Z62: 0.11 | AG62: 56 | AH62: 0.025 | AI62: 0.045 | AJ62: 0.06 | AK62: 0.03 | AL62: 0.01 | AM62: 0 | AN62: 0.05 | AP62: 0.1 | AQ62: 0.02 | AR62: 0 | AS62: 0 | AT62: 0
A63: 55 | B63: 1 | C63: 1 | U63: 55 | W63: 0.02 | X63: 0.02 | Y63: 0.055 | Z63: 0.11 | AG63: 57 | AH63: 0.025 | AI63: 0.045 | AJ63: 0.06 | AK63: 0.03 | AL63: 0.01 | AM63: 0 | AN63: 0.05 | AP63: 0.1 | AQ63: 0.02 | AR63: 0 | AS63: 0 | AT63: 0
A64: 56 | B64: 1 | C64: 1 | U64: 56 | W64: 0.02 | X64: 0.02 | Y64: 0.055 | Z64: 0.11 | AG64: 58 | AH64: 0.025 | AI64: 0.045 | AJ64: 0.06 | AK64: 0.03 | AL64: 0.01 | AM64: 0 | AN64: 0.05 | AP64: 0.1 | AQ64: 0.02 | AR64: 0 | AS64: 0 | AT64: 0
A65: 57 | B65: 1 | C65: 1 | U65: 57 | W65: 0.02 | X65: 0.02 | Y65: 0.055 | Z65: 0.11 | AG65: 59 | AH65: 0.025 | AI65: 0.045 | AJ65: 0.06 | AK65: 0.03 | AL65: 0.01 | AM65: 0 | AN65: 0.05 | AP65: 0.1 | AQ65: 0.02 | AR65: 0 | AS65: 0 | AT65: 0
A66: 58 | B66: 1 | C66: 1 | U66: 58 | W66: 0.02 | X66: 0.02 | Y66: 0.055 | Z66: 0.11 | AG66: 60 | AH66: 0.025 | AI66: 0.045 | AJ66: 0.06 | AK66: 0.03 | AL66: 0.01 | AM66: 0 | AN66: 0.05 | AP66: 0.1 | AQ66: 0.02 | AR66: 0 | AS66: 0 | AT66: 0
A67: 59 | B67: 1 | C67: 1 | U67: 59 | W67: 0.02 | X67: 0.02 | Y67: 0.055 | Z67: 0.11 | AG67: 61 | AH67: 0.025 | AI67: 0.045 | AJ67: 0.06 | AK67: 0.03 | AL67: 0.01 | AM67: 0 | AN67: 0.05 | AP67: 0.1 | AQ67: 0.02 | AR67: 0 | AS67: 0 | AT67: 0
A68: 60 | B68: 1 | C68: 1 | U68: 60 | W68: 0.02 | X68: 0.02 | Y68: 0.055 | Z68: 0.11 | AG68: 62 | AH68: 0.025 | AI68: 0.045 | AJ68: 0.06 | AK68: 0.03 | AL68: 0.01 | AM68: 0 | AN68: 0.05 | AP68: 0.1 | AQ68: 0.02 | AR68: 0 | AS68: 0 | AT68: 0
A69: 61 | B69: 1 | C69: 1 | U69: 61 | W69: 0.02 | X69: 0.02 | Y69: 0.055 | Z69: 0.11 | AG69: 63 | AH69: 0.025 | AI69: 0.045 | AJ69: 0.06 | AK69: 0.03 | AL69: 0.01 | AM69: 0 | AN69: 0.05 | AP69: 0.1 | AQ69: 0.02 | AR69: 0 | AS69: 0 | AT69: 0
A70: 62 | B70: 1 | C70: 1 | U70: 62 | W70: 0.02 | X70: 0.02 | Y70: 0.055 | Z70: 0.11 | AG70: 64 | AH70: 0.025 | AI70: 0.045 | AJ70: 0.06 | AK70: 0.03 | AL70: 0.01 | AM70: 0 | AN70: 0.05 | AP70: 0.1 | AQ70: 0.02 | AR70: 0 | AS70: 0 | AT70: 0
A71: 63 | B71: 1 | C71: 1 | U71: 63 | W71: 0.02 | X71: 0.02 | Y71: 0.055 | Z71: 0.11 | AG71: 65 | AH71: 0.025 | AI71: 0.045 | AJ71: 0.06 | AK71: 0.03 | AL71: 0.01 | AM71: 0 | AN71: 0.05 | AP71: 0.1 | AQ71: 0.02 | AR71: 0 | AS71: 0 | AT71: 0
A72: 64 | B72: 1 | C72: 1 | U72: 64 | W72: 0.02 | X72: 0.02 | Y72: 0.055 | Z72: 0.11 | AG72: 66 | AH72: 0.025 | AI72: 0.045 | AJ72: 0.06 | AK72: 0.03 | AL72: 0.01 | AM72: 0 | AN72: 0.05 | AP72: 0.1 | AQ72: 0.02 | AR72: 0 | AS72: 0 | AT72: 0
A73: 65 | B73: =IF($A73<MIN(20,ppp),80%+$A73*(100%-80%)/MIN(20,ppp),100%) -> 1 | C73: =IF($A73<MIN(20,ppp),90%+$A73*(100%-90%)/MIN(20,ppp),100%) -> 1 | U73: 65 | V73: =issue_year+U73-1 ->  | W73: 0.02 | X73: 0.02 | Y73: 0.055 | Z73: 0.11 | AG73: 67 | AH73: 0.025 | AI73: 0.045 | AJ73: 0.06 | AK73: 0.03 | AL73: 0.01 | AM73: 0 | AN73: 0.05 | AP73: 0.1 | AQ73: 0.02 | AR73: 0 | AS73: 0 | AT73: 0
A74: 66 | B74: 1 | C74: 1 | U74: 66 | W74: 0.02 | X74: 0.02 | Y74: 0.055 | Z74: 0.11 | AG74: 68 | AH74: 0.025 | AI74: 0.045 | AJ74: 0.06 | AK74: 0.03 | AL74: 0.01 | AM74: 0 | AN74: 0.05 | AP74: 0.1 | AQ74: 0.02 | AR74: 0 | AS74: 0 | AT74: 0
A75: 67 | B75: 1 | C75: 1 | U75: 67 | W75: 0.02 | X75: 0.02 | Y75: 0.055 | Z75: 0.11 | AG75: 69 | AH75: 0.025 | AI75: 0.045 | AJ75: 0.06 | AK75: 0.03 | AL75: 0.01 | AM75: 0 | AN75: 0.05 | AP75: 0.1 | AQ75: 0.02 | AR75: 0 | AS75: 0 | AT75: 0
A76: 68 | B76: 1 | C76: 1 | U76: 68 | W76: 0.02 | X76: 0.02 | Y76: 0.055 | Z76: 0.11 | AG76: 70 | AH76: 0.025 | AI76: 0.045 | AJ76: 0.06 | AK76: 0.03 | AL76: 0.01 | AM76: 0 | AN76: 0.05 | AP76: 0.1 | AQ76: 0.02 | AR76: 0 | AS76: 0 | AT76: 0
A77: 69 | B77: 1 | C77: 1 | U77: 69 | W77: 0.02 | X77: 0.02 | Y77: 0.055 | Z77: 0.11 | AG77: 71 | AH77: 0.025 | AI77: 0.045 | AJ77: 0.06 | AK77: 0.03 | AL77: 0.01 | AM77: 0 | AN77: 0.05 | AP77: 0.1 | AQ77: 0.02 | AR77: 0 | AS77: 0 | AT77: 0
A78: 70 | B78: 1 | C78: 1 | U78: 70 | W78: 0.02 | X78: 0.02 | Y78: 0.055 | Z78: 0.11 | AG78: 72 | AH78: 0.025 | AI78: 0.045 | AJ78: 0.06 | AK78: 0.03 | AL78: 0.01 | AM78: 0 | AN78: 0.05 | AP78: 0.1 | AQ78: 0.02 | AR78: 0 | AS78: 0 | AT78: 0
A79: 71 | B79: 1 | C79: 1 | U79: 71 | W79: 0.02 | X79: 0.02 | Y79: 0.055 | Z79: 0.11 | AG79: 73 | AH79: 0.025 | AI79: 0.045 | AJ79: 0.06 | AK79: 0.03 | AL79: 0.01 | AM79: 0 | AN79: 0.05 | AP79: 0.1 | AQ79: 0.02 | AR79: 0 | AS79: 0 | AT79: 0
A80: 72 | B80: 1 | C80: 1 | U80: 72 | W80: 0.02 | X80: 0.02 | Y80: 0.055 | Z80: 0.11 | AG80: 74 | AH80: 0.025 | AI80: 0.045 | AJ80: 0.06 | AK80: 0.03 | AL80: 0.01 | AM80: 0 | AN80: 0.05 | AP80: 0.1 | AQ80: 0.02 | AR80: 0 | AS80: 0 | AT80: 0
A81: 73 | B81: 1 | C81: 1 | U81: 73 | W81: 0.02 | X81: 0.02 | Y81: 0.055 | Z81: 0.11 | AG81: 75 | AH81: 0.025 | AI81: 0.045 | AJ81: 0.06 | AK81: 0.03 | AL81: 0.01 | AM81: 0 | AN81: 0.05 | AP81: 0.1 | AQ81: 0.02 | AR81: 0 | AS81: 0 | AT81: 0
A82: 74 | B82: 1 | C82: 1 | U82: 74 | W82: 0.02 | X82: 0.02 | Y82: 0.055 | Z82: 0.11 | AG82: 76 | AH82: 0.025 | AI82: 0.045 | AJ82: 0.06 | AK82: 0.03 | AL82: 0.01 | AM82: 0 | AN82: 0.05 | AP82: 0.1 | AQ82: 0.02 | AR82: 0 | AS82: 0 | AT82: 0
A83: 75 | B83: 1 | C83: 1 | U83: 75 | W83: 0.02 | X83: 0.02 | Y83: 0.055 | Z83: 0.11 | AG83: 77 | AH83: 0.025 | AI83: 0.045 | AJ83: 0.06 | AK83: 0.03 | AL83: 0.01 | AM83: 0 | AN83: 0.05 | AP83: 0.1 | AQ83: 0.02 | AR83: 0 | AS83: 0 | AT83: 0
A84: 76 | B84: 1 | C84: 1 | U84: 76 | W84: 0.02 | X84: 0.02 | Y84: 0.055 | Z84: 0.11 | AG84: 78 | AH84: 0.025 | AI84: 0.045 | AJ84: 0.06 | AK84: 0.03 | AL84: 0.01 | AM84: 0 | AN84: 0.05 | AP84: 0.1 | AQ84: 0.02 | AR84: 0 | AS84: 0 | AT84: 0
A85: 77 | B85: 1 | C85: 1 | U85: 77 | W85: 0.02 | X85: 0.02 | Y85: 0.055 | Z85: 0.11 | AG85: 79 | AH85: 0.025 | AI85: 0.045 | AJ85: 0.06 | AK85: 0.03 | AL85: 0.01 | AM85: 0 | AN85: 0.05 | AP85: 0.1 | AQ85: 0.02 | AR85: 0 | AS85: 0 | AT85: 0
A86: 78 | B86: 1 | C86: 1 | U86: 78 | W86: 0.02 | X86: 0.02 | Y86: 0.055 | Z86: 0.11 | AG86: 80 | AH86: 0.025 | AI86: 0.045 | AJ86: 0.06 | AK86: 0.03 | AL86: 0.01 | AM86: 0 | AN86: 0.05 | AP86: 0.1 | AQ86: 0.02 | AR86: 0 | AS86: 0 | AT86: 0
A87: 79 | B87: 1 | C87: 1 | U87: 79 | W87: 0.02 | X87: 0.02 | Y87: 0.055 | Z87: 0.11 | AG87: 81 | AH87: 0.025 | AI87: 0.045 | AJ87: 0.06 | AK87: 0.03 | AL87: 0.01 | AM87: 0 | AN87: 0.05 | AP87: 0.1 | AQ87: 0.02 | AR87: 0 | AS87: 0 | AT87: 0
A88: 80 | B88: 1 | C88: 1 | U88: 80 | W88: 0.02 | X88: 0.02 | Y88: 0.055 | Z88: 0.11 | AG88: 82 | AH88: 0.025 | AI88: 0.045 | AJ88: 0.06 | AK88: 0.03 | AL88: 0.01 | AM88: 0 | AN88: 0.05 | AP88: 0.1 | AQ88: 0.02 | AR88: 0 | AS88: 0 | AT88: 0
A89: 81 | B89: 1 | C89: 1 | U89: 81 | W89: 0.02 | X89: 0.02 | Y89: 0.055 | Z89: 0.11 | AG89: 83 | AH89: 0.025 | AI89: 0.045 | AJ89: 0.06 | AK89: 0.03 | AL89: 0.01 | AM89: 0 | AN89: 0.05 | AP89: 0.1 | AQ89: 0.02 | AR89: 0 | AS89: 0 | AT89: 0
A90: 82 | B90: 1 | C90: 1 | U90: 82 | W90: 0.02 | X90: 0.02 | Y90: 0.055 | Z90: 0.11 | AG90: 84 | AH90: 0.025 | AI90: 0.045 | AJ90: 0.06 | AK90: 0.03 | AL90: 0.01 | AM90: 0 | AN90: 0.05 | AP90: 0.1 | AQ90: 0.02 | AR90: 0 | AS90: 0 | AT90: 0
A91: 83 | B91: 1 | C91: 1 | U91: 83 | W91: 0.02 | X91: 0.02 | Y91: 0.055 | Z91: 0.11 | AG91: 85 | AH91: 0.025 | AI91: 0.045 | AJ91: 0.06 | AK91: 0.03 | AL91: 0.01 | AM91: 0 | AN91: 0.05 | AP91: 0.1 | AQ91: 0.02 | AR91: 0 | AS91: 0 | AT91: 0
A92: 84 | B92: 1 | C92: 1 | U92: 84 | W92: 0.02 | X92: 0.02 | Y92: 0.055 | Z92: 0.11 | AG92: 86 | AH92: 0.025 | AI92: 0.045 | AJ92: 0.06 | AK92: 0.03 | AL92: 0.01 | AM92: 0 | AN92: 0.05 | AP92: 0.1 | AQ92: 0.02 | AR92: 0 | AS92: 0 | AT92: 0
A93: 85 | B93: 1 | C93: 1 | U93: 85 | W93: 0.02 | X93: 0.02 | Y93: 0.055 | Z93: 0.11 | AG93: 87 | AH93: 0.025 | AI93: 0.045 | AJ93: 0.06 | AK93: 0.03 | AL93: 0.01 | AM93: 0 | AN93: 0.05 | AP93: 0.1 | AQ93: 0.02 | AR93: 0 | AS93: 0 | AT93: 0
A94: 86 | B94: 1 | C94: 1 | U94: 86 | W94: 0.02 | X94: 0.02 | Y94: 0.055 | Z94: 0.11 | AG94: 88 | AH94: 0.025 | AI94: 0.045 | AJ94: 0.06 | AK94: 0.03 | AL94: 0.01 | AM94: 0 | AN94: 0.05 | AP94: 0.1 | AQ94: 0.02 | AR94: 0 | AS94: 0 | AT94: 0
A95: 87 | B95: 1 | C95: 1 | U95: 87 | W95: 0.02 | X95: 0.02 | Y95: 0.055 | Z95: 0.11 | AG95: 89 | AH95: 0.025 | AI95: 0.045 | AJ95: 0.06 | AK95: 0.03 | AL95: 0.01 | AM95: 0 | AN95: 0.05 | AP95: 0.1 | AQ95: 0.02 | AR95: 0 | AS95: 0 | AT95: 0
A96: 88 | B96: 1 | C96: 1 | U96: 88 | W96: 0.02 | X96: 0.02 | Y96: 0.055 | Z96: 0.11 | AG96: 90 | AH96: 0.025 | AI96: 0.045 | AJ96: 0.06 | AK96: 0.03 | AL96: 0.01 | AM96: 0 | AN96: 0.05 | AP96: 0.1 | AQ96: 0.02 | AR96: 0 | AS96: 0 | AT96: 0
A97: 89 | B97: 1 | C97: 1 | U97: 89 | W97: 0.02 | X97: 0.02 | Y97: 0.055 | Z97: 0.11 | AG97: 91 | AH97: 0.025 | AI97: 0.045 | AJ97: 0.06 | AK97: 0.03 | AL97: 0.01 | AM97: 0 | AN97: 0.05 | AP97: 0.1 | AQ97: 0.02 | AR97: 0 | AS97: 0 | AT97: 0
A98: 90 | B98: 1 | C98: 1 | U98: 90 | W98: 0.02 | X98: 0.02 | Y98: 0.055 | Z98: 0.11 | AG98: 92 | AH98: 0.025 | AI98: 0.045 | AJ98: 0.06 | AK98: 0.03 | AL98: 0.01 | AM98: 0 | AN98: 0.05 | AP98: 0.1 | AQ98: 0.02 | AR98: 0 | AS98: 0 | AT98: 0
A99: 91 | B99: 1 | C99: 1 | U99: 91 | W99: 0.02 | X99: 0.02 | Y99: 0.055 | Z99: 0.11 | AG99: 93 | AH99: 0.025 | AI99: 0.045 | AJ99: 0.06 | AK99: 0.03 | AL99: 0.01 | AM99: 0 | AN99: 0.05 | AP99: 0.1 | AQ99: 0.02 | AR99: 0 | AS99: 0 | AT99: 0
A100: 92 | B100: 1 | C100: 1 | U100: 92 | W100: 0.02 | X100: 0.02 | Y100: 0.055 | Z100: 0.11 | AG100: 94 | AH100: 0.025 | AI100: 0.045 | AJ100: 0.06 | AK100: 0.03 | AL100: 0.01 | AM100: 0 | AN100: 0.05 | AP100: 0.1 | AQ100: 0.02 | AR100: 0 | AS100: 0 | AT100: 0
A101: 93 | B101: 1 | C101: 1 | U101: 93 | W101: 0.02 | X101: 0.02 | Y101: 0.055 | Z101: 0.11 | AG101: 95 | AH101: 0.025 | AI101: 0.045 | AJ101: 0.06 | AK101: 0.03 | AL101: 0.01 | AM101: 0 | AN101: 0.05 | AP101: 0.1 | AQ101: 0.02 | AR101: 0 | AS101: 0 | AT101: 0
A102: 94 | B102: 1 | C102: 1 | U102: 94 | W102: 0.02 | X102: 0.02 | Y102: 0.055 | Z102: 0.11 | AG102: 96 | AH102: 0.025 | AI102: 0.045 | AJ102: 0.06 | AK102: 0.03 | AL102: 0.01 | AM102: 0 | AN102: 0.05 | AP102: 0.1 | AQ102: 0.02 | AR102: 0 | AS102: 0 | AT102: 0
A103: 95 | B103: 1 | C103: 1 | U103: 95 | W103: 0.02 | X103: 0.02 | Y103: 0.055 | Z103: 0.11 | AG103: 97 | AH103: 0.025 | AI103: 0.045 | AJ103: 0.06 | AK103: 0.03 | AL103: 0.01 | AM103: 0 | AN103: 0.05 | AP103: 0.1 | AQ103: 0.02 | AR103: 0 | AS103: 0 | AT103: 0
A104: 96 | B104: 1 | C104: 1 | U104: 96 | W104: 0.02 | X104: 0.02 | Y104: 0.055 | Z104: 0.11 | AG104: 98 | AH104: 0.025 | AI104: 0.045 | AJ104: 0.06 | AK104: 0.03 | AL104: 0.01 | AM104: 0 | AN104: 0.05 | AP104: 0.1 | AQ104: 0.02 | AR104: 0 | AS104: 0 | AT104: 0
A105: 97 | B105: =IF($A105<MIN(20,ppp),80%+$A105*(100%-80%)/MIN(20,ppp),100%) -> 1 | C105: =IF($A105<MIN(20,ppp),90%+$A105*(100%-90%)/MIN(20,ppp),100%) -> 1 | U105: 97 | V105: =issue_year+U105-1 ->  | W105: 0.02 | X105: 0.02 | Y105: 0.055 | Z105: 0.11 | AG105: 99 | AH105: 0.025 | AI105: 0.045 | AJ105: 0.06 | AK105: 0.03 | AL105: 0.01 | AM105: 0 | AN105: 0.05 | AP105: 0.1 | AQ105: 0.02 | AR105: 0 | AS105: 0 | AT105: 0
A106: 98 | B106: 1 | C106: 1 | U106: 98 | W106: 0.02 | X106: 0.02 | Y106: 0.055 | Z106: 0.11 | AG106: 100 | AH106: 0.025 | AI106: 0.045 | AJ106: 0.06 | AK106: 0.03 | AL106: 0.01 | AM106: 0 | AN106: 0.05 | AP106: 0.1 | AQ106: 0.02 | AR106: 0 | AS106: 0 | AT106: 0
A107: 99 | B107: 1 | C107: 1 | U107: 99 | W107: 0.02 | X107: 0.02 | Y107: 0.055 | Z107: 0.11 | AG107: 101 | AH107: 0.025 | AI107: 0.045 | AJ107: 0.06 | AK107: 0.03 | AL107: 0.01 | AM107: 0 | AN107: 0.05 | AP107: 0.1 | AQ107: 0.02 | AR107: 0 | AS107: 0 | AT107: 0
A108: 100 | B108: 1 | C108: 1 | U108: 100 | W108: 0.02 | X108: 0.02 | Y108: 0.055 | Z108: 0.11 | AG108: 102 | AH108: 0.025 | AI108: 0.045 | AJ108: 0.06 | AK108: 0.03 | AL108: 0.01 | AM108: 0 | AN108: 0.05 | AP108: 0.1 | AQ108: 0.02 | AR108: 0 | AS108: 0 | AT108: 0
A109: 101 | B109: 1 | C109: 1 | U109: 101 | W109: 0.02 | X109: 0.02 | Y109: 0.055 | Z109: 0.11 | AG109: 103 | AH109: 0.025 | AI109: 0.045 | AJ109: 0.06 | AK109: 0.03 | AL109: 0.01 | AM109: 0 | AN109: 0.05 | AP109: 0.1 | AQ109: 0.02 | AR109: 0 | AS109: 0 | AT109: 0
A110: 102 | B110: 1 | C110: 1 | U110: 102 | W110: 0.02 | X110: 0.02 | Y110: 0.055 | Z110: 0.11 | AG110: 104 | AH110: 0.025 | AI110: 0.045 | AJ110: 0.06 | AK110: 0.03 | AL110: 0.01 | AM110: 0 | AN110: 0.05 | AP110: 0.1 | AQ110: 0.02 | AR110: 0 | AS110: 0 | AT110: 0
A111: 103 | B111: 1 | C111: 1 | U111: 103 | W111: 0.02 | X111: 0.02 | Y111: 0.055 | Z111: 0.11 | AG111: 105 | AH111: 0.025 | AI111: 0.045 | AJ111: 0.06 | AK111: 0.03 | AL111: 0.01 | AM111: 0 | AN111: 0.05 | AP111: 0.1 | AQ111: 0.02 | AR111: 0 | AS111: 0 | AT111: 0
A112: 104 | B112: 1 | C112: 1 | U112: 104 | W112: 0.02 | X112: 0.02 | Y112: 0.055 | Z112: 0.11
A113: 105 | B113: 1 | C113: 1 | U113: 105 | W113: 0.02 | X113: 0.02 | Y113: 0.055 | Z113: 0.11
A114: 106 | B114: 1 | C114: 1 | U114: 106 | W114: 0.02 | X114: 0.02 | Y114: 0.055 | Z114: 0.11

Sheet 04 premium (hidden)
A2: age | B2: =age -> 45 | D2: i | E2: 0.025 | G2: pv_loading | H2: =SUM(L10:OFFSET(L10,ppp-1,)) -> 1.389888216
A3: sex | B3: =sex -> 2 | D3: 起领年龄 | E3: =ann2_begin_age -> 65 | G3: annuity due | H3: =SUM(F10:OFFSET(F10,ppp-1,)) -> 8.940123951
A4: bpp | B4: =bpp -> 61 | D4: gp | E4: =H4/(H3-H2) ->  | G4: pvfb | H4: =SUM(J10:OFFSET(J10,bpp-1,)) -> 
A5: ppp | B5: =ppp -> 10 | D5: ave_loading | E5: =H2/H3 -> 0.1554663251 | G5: gp_round | H5: =ROUND(E4,0) -> 
A8: Policy Year | B8: Age (BOY) | C8: qx (MOY) | D8: tpx (BOY) | E8: (1+i)-t (BOY) | F8: PVFP (BOY) | G8: annuity benefit array (BOY) | H8: death benefit array (MOY) | I8: prem | J8: PVFB0 | K8: Loading | L8: loading factor
A9: 0
A10: =IF(A9>=bpp,"",A9+1) -> 1 | B10: =IF(A10="","",A10+age-1) -> 45 | C10: =IF(A10="",0,VLOOKUP(B10,mort_10_13,IF(sex=1,6,7))/1000) -> 0.00064 | D10: 1 | E10: 1 | F10: =IF(A10="",0,D10*E10) -> 1 | G10: =IF(A10="",0,IF(B10<ann2_begin_age,0,SA)+MIN(A10,ppp)*gp_cal*I10) ->  | H10: =IF(A10="",0,IF(B10>=ann_ganrantee_age,0,MAX(gp_cal*MIN(A10,ppp)-SUM($G$10:G10),'05 cv'!T10))) ->  | I10: =IF(A10="",0,IF(AND(B10>start_age-1,B10<=ann_ganrantee_age),'00summary'!$F$17,0)) -> 0 | J10: =IF(A10="",0,G10*F10+H10*C10*F10/(1+i_pricing)^0.5) ->  | K10: =IF(A10="",0,IF(A10>ppp,0,VLOOKUP(ppp,pr_loading,MIN(6,A10)+1,FALSE))) -> 0.4 | L10: =IF(A10="",0,K10*F10) -> 0.4
A11: 2 | B11: 46 | C11: 0.000693 | D11: =IF(A11="",0,D10*(1-C10)) -> 0.99936 | E11: =IF(A11="",0,E10/(1+i_pricing)) -> 0.9756097561 | F11: =IF(A11="",0,D11*E11) -> 0.9749853659 | H11: =IF(A11="",0,IF(B11>=ann_ganrantee_age,0,MAX(gp_cal*MIN(A11,ppp)-SUM($G$10:G11),'05 cv'!T11))) ->  | I11: =IF(A11="",0,IF(AND(B11>start_age-1,B11<=ann_ganrantee_age),'00summary'!$F$17,0)) -> 0 | K11: 0.2 | L11: =IF(A11="",0,K11*F11) -> 0.1949970732
A12: 3 | B12: 47 | C12: 0.00075 | D12: =IF(A12="",0,D11*(1-C11)) -> 0.9986674435 | E12: 0.9518143962 | F12: 0.9505460498 | H12: =IF(A12="",0,IF(B12>=ann_ganrantee_age,0,MAX(gp_cal*MIN(A12,ppp)-SUM($G$10:G12),'05 cv'!T12))) ->  | I12: =IF(A12="",0,IF(AND(B12>start_age-1,B12<=ann_ganrantee_age),'00summary'!$F$17,0)) -> 0 | K12: 0.15 | L12: 0.1425819075
A13: 4 | B13: 48 | C13: 0.000811 | D13: 0.9979184429 | E13: 0.9285994109 | F13: 0.9266664783 | H13: =IF(A13="",0,IF(B13>=ann_ganrantee_age,0,MAX(gp_cal*MIN(A13,ppp)-SUM($G$10:G13),'05 cv'!T13))) ->  | I13: =IF(A13="",0,IF(AND(B13>start_age-1,B13<=ann_ganrantee_age),'00summary'!$F$17,0)) -> 0 | K13: 0.15 | L13: 0.1389999717
A14: 5 | B14: 49 | C14: 0.000877 | D14: 0.9971091311 | E14: 0.9059506448 | F14: 0.9033316602 | H14: =IF(A14="",0,IF(B14>=ann_ganrantee_age,0,MAX(gp_cal*MIN(A14,ppp)-SUM($G$10:G14),'05 cv'!T14))) ->  | I14: =IF(A14="",0,IF(AND(B14>start_age-1,B14<=ann_ganrantee_age),'00summary'!$F$17,0)) -> 0 | K14: 0.105 | L14: 0.09484982432
A15: 6 | B15: 50 | C15: 0.00095 | D15: 0.9962346664 | E15: 0.8838542876 | F15: 0.8805262813 | H15: =IF(A15="",0,IF(B15>=ann_ganrantee_age,0,MAX(gp_cal*MIN(A15,ppp)-SUM($G$10:G15),'05 cv'!T15))) ->  | I15: =IF(A15="",0,IF(AND(B15>start_age-1,B15<=ann_ganrantee_age),'00summary'!$F$17,0)) -> 0 | K15: 0.1 | L15: 0.08805262813
A16: 7 | B16: 51 | C16: 0.001031 | D16: 0.9952882434 | E16: 0.862296866 | F16: 0.858233933 | H16: =IF(A16="",0,IF(B16>=ann_ganrantee_age,0,MAX(gp_cal*MIN(A16,ppp)-SUM($G$10:G16),'05 cv'!T16))) ->  | I16: =IF(A16="",0,IF(AND(B16>start_age-1,B16<=ann_ganrantee_age),'00summary'!$F$17,0)) -> 0 | K16: 0.1 | L16: 0.0858233933
A17: 8 | B17: 52 | C17: 0.00112 | D17: 0.9942621013 | E17: 0.8412652351 | F17: 0.8364381404 | H17: =IF(A17="",0,IF(B17>=ann_ganrantee_age,0,MAX(gp_cal*MIN(A17,ppp)-SUM($G$10:G17),'05 cv'!T17))) ->  | I17: =IF(A17="",0,IF(AND(B17>start_age-1,B17<=ann_ganrantee_age),'00summary'!$F$17,0)) -> 0 | K17: 0.1 | L17: 0.08364381404
A18: 9 | B18: 53 | C18: 0.001219 | D18: 0.9931485277 | E18: 0.8207465708 | F18: 0.8151232484 | H18: =IF(A18="",0,IF(B18>=ann_ganrantee_age,0,MAX(gp_cal*MIN(A18,ppp)-SUM($G$10:G18),'05 cv'!T18))) ->  | I18: =IF(A18="",0,IF(AND(B18>start_age-1,B18<=ann_ganrantee_age),'00summary'!$F$17,0)) -> 0 | K18: 0.1 | L18: 0.08151232484
A19: 10 | B19: 54 | C19: 0.001329 | D19: 0.9919378797 | E19: 0.8007283618 | F19: 0.7942727933 | H19: =IF(A19="",0,IF(B19>=ann_ganrantee_age,0,MAX(gp_cal*MIN(A19,ppp)-SUM($G$10:G19),'05 cv'!T19))) ->  | I19: =IF(A19="",0,IF(AND(B19>start_age-1,B19<=ann_ganrantee_age),'00summary'!$F$17,0)) -> 0 | K19: 0.1 | L19: 0.07942727933
A20: 11 | B20: 55 | C20: 0.00145 | D20: 0.9906195942 | E20: 0.7811984017 | F20: 0.7738704437 | H20: =IF(A20="",0,IF(B20>=ann_ganrantee_age,0,MAX(gp_cal*MIN(A20,ppp)-SUM($G$10:G20),'05 cv'!T20))) ->  | I20: =IF(A20="",0,IF(AND(B20>start_age-1,B20<=ann_ganrantee_age),'00summary'!$F$17,0)) -> 0 | K20: 0 | L20: 0
A21: 12 | B21: 56 | C21: 0.001585 | D21: 0.9891831958 | E21: 0.7621447822 | F21: 0.7539008113 | H21: =IF(A21="",0,IF(B21>=ann_ganrantee_age,0,MAX(gp_cal*MIN(A21,ppp)-SUM($G$10:G21),'05 cv'!T21))) ->  | I21: =IF(A21="",0,IF(AND(B21>start_age-1,B21<=ann_ganrantee_age),'00summary'!$F$17,0)) -> 0 | K21: 0 | L21: 0
A22: 13 | B22: 57 | C22: 0.001736 | D22: 0.9876153404 | E22: 0.743555885 | F22: 0.7343471985 | H22: =IF(A22="",0,IF(B22>=ann_ganrantee_age,0,MAX(gp_cal*MIN(A22,ppp)-SUM($G$10:G22),'05 cv'!T22))) ->  | I22: =IF(A22="",0,IF(AND(B22>start_age-1,B22<=ann_ganrantee_age),'00summary'!$F$17,0)) -> 0 | K22: 0 | L22: 0
A23: 14 | B23: 58 | C23: 0.001905 | D23: 0.9859008402 | E23: 0.7254203757 | F23: 0.7151925579 | H23: =IF(A23="",0,IF(B23>=ann_ganrantee_age,0,MAX(gp_cal*MIN(A23,ppp)-SUM($G$10:G23),'05 cv'!T23))) ->  | I23: =IF(A23="",0,IF(AND(B23>start_age-1,B23<=ann_ganrantee_age),'00summary'!$F$17,0)) -> 0 | K23: 0 | L23: 0
A24: 15 | B24: 59 | C24: 0.002097 | D24: 0.9840226991 | E24: 0.7077271958 | F24: 0.6964196254 | H24: =IF(A24="",0,IF(B24>=ann_ganrantee_age,0,MAX(gp_cal*MIN(A24,ppp)-SUM($G$10:G24),'05 cv'!T24))) ->  | I24: =IF(A24="",0,IF(AND(B24>start_age-1,B24<=ann_ganrantee_age),'00summary'!$F$17,0)) -> 0 | K24: 0 | L24: 0
A25: 16 | B25: 60 | C25: 0.002315 | D25: 0.9819592035 | E25: 0.6904655568 | F25: 0.6780090082 | H25: =IF(A25="",0,IF(B25>=ann_ganrantee_age,0,MAX(gp_cal*MIN(A25,ppp)-SUM($G$10:G25),'05 cv'!T25))) ->  | I25: =IF(A25="",0,IF(AND(B25>start_age-1,B25<=ann_ganrantee_age),'00summary'!$F$17,0)) -> 0 | K25: 0 | L25: 0
A26: 17 | B26: 61 | C26: 0.002561 | D26: 0.9796859679 | E26: 0.6736249335 | F26: 0.659940895 | H26: =IF(A26="",0,IF(B26>=ann_ganrantee_age,0,MAX(gp_cal*MIN(A26,ppp)-SUM($G$10:G26),'05 cv'!T26))) ->  | I26: =IF(A26="",0,IF(AND(B26>start_age-1,B26<=ann_ganrantee_age),'00summary'!$F$17,0)) -> 0 | K26: 0 | L26: 0
A27: 18 | B27: 62 | C27: 0.002836 | D27: 0.9771769922 | E27: 0.6571950571 | F27: 0.6421958891 | H27: =IF(A27="",0,IF(B27>=ann_ganrantee_age,0,MAX(gp_cal*MIN(A27,ppp)-SUM($G$10:G27),'05 cv'!T27))) ->  | I27: =IF(A27="",0,IF(AND(B27>start_age-1,B27<=ann_ganrantee_age),'00summary'!$F$17,0)) -> 0 | K27: 0 | L27: 0
A28: 19 | B28: 63 | C28: 0.003137 | D28: 0.9744057182 | E28: 0.6411659093 | F28: 0.6247557284 | H28: =IF(A28="",0,IF(B28>=ann_ganrantee_age,0,MAX(gp_cal*MIN(A28,ppp)-SUM($G$10:G28),'05 cv'!T28))) ->  | I28: =IF(A28="",0,IF(AND(B28>start_age-1,B28<=ann_ganrantee_age),'00summary'!$F$17,0)) -> 0 | K28: 0 | L28: 0
A29: 20 | B29: 64 | C29: 0.003468 | D29: 0.9713490075 | E29: 0.6255277164 | F29: 0.6076057265 | H29: =IF(A29="",0,IF(B29>=ann_ganrantee_age,0,MAX(gp_cal*MIN(A29,ppp)-SUM($G$10:G29),'05 cv'!T29))) ->  | I29: =IF(A29="",0,IF(AND(B29>start_age-1,B29<=ann_ganrantee_age),'00summary'!$F$17,0)) -> 0 | K29: 0 | L29: 0
A30: 21 | B30: 65 | C30: 0.003835 | D30: 0.9679803691 | E30: 0.6102709429 | F30: 0.5907302925 | H30: =IF(A30="",0,IF(B30>=ann_ganrantee_age,0,MAX(gp_cal*MIN(A30,ppp)-SUM($G$10:G30),'05 cv'!T30))) ->  | I30: =IF(A30="",0,IF(AND(B30>start_age-1,B30<=ann_ganrantee_age),'00summary'!$F$17,0)) -> 0 | K30: 0 | L30: 0
A31: 22 | B31: 66 | C31: 0.004254 | D31: 0.9642681644 | E31: 0.5953862857 | F31: 0.5741120408 | H31: =IF(A31="",0,IF(B31>=ann_ganrantee_age,0,MAX(gp_cal*MIN(A31,ppp)-SUM($G$10:G31),'05 cv'!T31))) ->  | I31: =IF(A31="",0,IF(AND(B31>start_age-1,B31<=ann_ganrantee_age),'00summary'!$F$17,0)) -> 0 | K31: 0 | L31: 0
A32: 23 | B32: 67 | C32: 0.00474 | D32: 0.9601661676 | E32: 0.580864669 | F32: 0.5577266031 | H32: =IF(A32="",0,IF(B32>=ann_ganrantee_age,0,MAX(gp_cal*MIN(A32,ppp)-SUM($G$10:G32),'05 cv'!T32))) ->  | I32: =IF(A32="",0,IF(AND(B32>start_age-1,B32<=ann_ganrantee_age),'00summary'!$F$17,0)) -> 0 | K32: 0 | L32: 0
A33: 24 | B33: 68 | C33: 0.005302 | D33: 0.95561498 | E33: 0.566697238 | F33: 0.5415443698 | H33: =IF(A33="",0,IF(B33>=ann_ganrantee_age,0,MAX(gp_cal*MIN(A33,ppp)-SUM($G$10:G33),'05 cv'!T33))) ->  | I33: =IF(A33="",0,IF(AND(B33>start_age-1,B33<=ann_ganrantee_age),'00summary'!$F$17,0)) -> 0 | K33: 0 | L33: 0
A34: 25 | B34: 69 | C34: 0.005943 | D34: 0.9505483094 | E34: 0.5528753542 | F34: 0.5255347332 | H34: =IF(A34="",0,IF(B34>=ann_ganrantee_age,0,MAX(gp_cal*MIN(A34,ppp)-SUM($G$10:G34),'05 cv'!T34))) ->  | I34: =IF(A34="",0,IF(AND(B34>start_age-1,B34<=ann_ganrantee_age),'00summary'!$F$17,0)) -> 0 | K34: 0 | L34: 0
A35: 26 | B35: 70 | C35: 0.00666 | D35: 0.9448992008 | E35: 0.5393905894 | F35: 0.5096697369 | H35: =IF(A35="",0,IF(B35>=ann_ganrantee_age,0,MAX(gp_cal*MIN(A35,ppp)-SUM($G$10:G35),'05 cv'!T35))) ->  | I35: =IF(A35="",0,IF(AND(B35>start_age-1,B35<=ann_ganrantee_age),'00summary'!$F$17,0)) -> 0 | K35: 0 | L35: 0
A36: 27 | B36: 71 | C36: 0.00746 | D36: 0.9386061721 | E36: 0.5262347214 | F36: 0.4939271575 | H36: =IF(A36="",0,IF(B36>=ann_ganrantee_age,0,MAX(gp_cal*MIN(A36,ppp)-SUM($G$10:G36),'05 cv'!T36))) ->  | I36: =IF(A36="",0,IF(AND(B36>start_age-1,B36<=ann_ganrantee_age),'00summary'!$F$17,0)) -> 0 | K36: 0 | L36: 0
A37: 28 | B37: 72 | C37: 0.008369 | D37: 0.9316041701 | E37: 0.5133997282 | F37: 0.4782853277 | H37: =IF(A37="",0,IF(B37>=ann_ganrantee_age,0,MAX(gp_cal*MIN(A37,ppp)-SUM($G$10:G37),'05 cv'!T37))) ->  | I37: =IF(A37="",0,IF(AND(B37>start_age-1,B37<=ann_ganrantee_age),'00summary'!$F$17,0)) -> 0 | K37: 0 | L37: 0
A38: 29 | B38: 73 | C38: 0.009436 | D38: 0.9238075748 | E38: 0.5008777836 | F38: 0.4627146905 | H38: =IF(A38="",0,IF(B38>=ann_ganrantee_age,0,MAX(gp_cal*MIN(A38,ppp)-SUM($G$10:G38),'05 cv'!T38))) ->  | I38: =IF(A38="",0,IF(AND(B38>start_age-1,B38<=ann_ganrantee_age),'00summary'!$F$17,0)) -> 0 | K38: 0 | L38: 0
A39: 30 | B39: 74 | C39: 0.01073 | D39: 0.9150905265 | E39: 0.4886612523 | F39: 0.4471692827 | H39: =IF(A39="",0,IF(B39>=ann_ganrantee_age,0,MAX(gp_cal*MIN(A39,ppp)-SUM($G$10:G39),'05 cv'!T39))) ->  | I39: =IF(A39="",0,IF(AND(B39>start_age-1,B39<=ann_ganrantee_age),'00summary'!$F$17,0)) -> 0 | K39: 0 | L39: 0
A40: 31 | B40: 75 | C40: 0.012332 | D40: 0.9052716051 | E40: 0.4767426852 | F40: 0.4315816159 | H40: =IF(A40="",0,IF(B40>=ann_ganrantee_age,0,MAX(gp_cal*MIN(A40,ppp)-SUM($G$10:G40),'05 cv'!T40))) ->  | I40: =IF(A40="",0,IF(AND(B40>start_age-1,B40<=ann_ganrantee_age),'00summary'!$F$17,0)) -> 0 | K40: 0 | L40: 0
A41: 32 | B41: 76 | C41: 0.014315 | D41: 0.8941077957 | E41: 0.4651148148 | F41: 0.4158627818 | H41: =IF(A41="",0,IF(B41>=ann_ganrantee_age,0,MAX(gp_cal*MIN(A41,ppp)-SUM($G$10:G41),'05 cv'!T41))) ->  | I41: =IF(A41="",0,IF(AND(B41>start_age-1,B41<=ann_ganrantee_age),'00summary'!$F$17,0)) -> 0 | K41: 0 | L41: 0
A42: =IF(A41>=bpp,"",A41+1) -> 33 | B42: =IF(A42="","",A42+age-1) -> 77 | C42: =IF(A42="",0,VLOOKUP(B42,mort_10_13,IF(sex=1,6,7))/1000) -> 0.016734 | D42: 0.8813086426 | E42: 0.453770551 | F42: 0.3999119084 | G42: =IF(A42="",0,IF(B42<ann2_begin_age,0,SA)+MIN(A42,ppp)*gp_cal*I42) ->  | H42: =IF(A42="",0,IF(B42>=ann_ganrantee_age,0,MAX(gp_cal*MIN(A42,ppp)-SUM($G$10:G42),'05 cv'!T42))) ->  | I42: =IF(A42="",0,IF(AND(B42>start_age-1,B42<=ann_ganrantee_age),'00summary'!$F$17,0)) -> 0 | J42: =IF(A42="",0,G42*F42+H42*C42*F42/(1+i_pricing)^0.5) ->  | K42: =IF(A42="",0,IF(A42>ppp,0,VLOOKUP(ppp,pr_loading,MIN(6,A42)+1,FALSE))) -> 0 | L42: 0
A43: 34 | B43: 78 | C43: 0.019619 | D43: 0.8665608238 | E43: =IF(A43="",0,E42/(1+i_pricing)) -> 0.4427029766 | F43: 0.3836290561 | H43: =IF(A43="",0,IF(B43>=ann_ganrantee_age,0,MAX(gp_cal*MIN(A43,ppp)-SUM($G$10:G43),'05 cv'!T43))) ->  | I43: =IF(A43="",0,IF(AND(B43>start_age-1,B43<=ann_ganrantee_age),'00summary'!$F$17,0)) -> 0 | K43: 0 | L43: 0
A44: 35 | B44: 79 | C44: 0.022971 | D44: 0.849559767 | E44: 0.431905343 | F44: 0.3669294026 | H44: =IF(A44="",0,IF(B44>=ann_ganrantee_age,0,MAX(gp_cal*MIN(A44,ppp)-SUM($G$10:G44),'05 cv'!T44))) ->  | I44: =IF(A44="",0,IF(AND(B44>start_age-1,B44<=ann_ganrantee_age),'00summary'!$F$17,0)) -> 0 | K44: 0 | L44: 0
A45: 36 | B45: 80 | C45: 0.02677 | D45: 0.8300445296 | E45: 0.4213710664 | F45: 0.3497567486 | H45: =IF(A45="",0,IF(B45>=ann_ganrantee_age,0,MAX(gp_cal*MIN(A45,ppp)-SUM($G$10:G45),'05 cv'!T45))) ->  | I45: =IF(A45="",0,IF(AND(B45>start_age-1,B45<=ann_ganrantee_age),'00summary'!$F$17,0)) -> 0 | K45: 0 | L45: 0
A46: 37 | B46: 81 | C46: 0.030989 | D46: 0.8078242375 | E46: 0.4110937233 | F46: 0.3320914736 | H46: =IF(A46="",0,IF(B46>=ann_ganrantee_age,0,MAX(gp_cal*MIN(A46,ppp)-SUM($G$10:G46),'05 cv'!T46))) ->  | I46: =IF(A46="",0,IF(AND(B46>start_age-1,B46<=ann_ganrantee_age),'00summary'!$F$17,0)) -> 0 | K46: 0 | L46: 0
A47: 38 | B47: 82 | C47: 0.035598 | D47: 0.7827905722 | E47: 0.4010670471 | F47: 0.3139515033 | H47: =IF(A47="",0,IF(B47>=ann_ganrantee_age,0,MAX(gp_cal*MIN(A47,ppp)-SUM($G$10:G47),'05 cv'!T47))) ->  | I47: =IF(A47="",0,IF(AND(B47>start_age-1,B47<=ann_ganrantee_age),'00summary'!$F$17,0)) -> 0 | K47: 0 | L47: 0
A48: 39 | B48: 83 | C48: 0.040576 | D48: 0.7549247934 | E48: 0.391284924 | F48: 0.2953906904 | H48: =IF(A48="",0,IF(B48>=ann_ganrantee_age,0,MAX(gp_cal*MIN(A48,ppp)-SUM($G$10:G48),'05 cv'!T48))) ->  | I48: =IF(A48="",0,IF(AND(B48>start_age-1,B48<=ann_ganrantee_age),'00summary'!$F$17,0)) -> 0 | K48: 0 | L48: 0
A49: 40 | B49: 84 | C49: 0.045915 | D49: 0.724292965 | E49: 0.3817413893 | F49: 0.2764926027 | H49: =IF(A49="",0,IF(B49>=ann_ganrantee_age,0,MAX(gp_cal*MIN(A49,ppp)-SUM($G$10:G49),'05 cv'!T49))) ->  | I49: =IF(A49="",0,IF(AND(B49>start_age-1,B49<=ann_ganrantee_age),'00summary'!$F$17,0)) -> 0 | K49: 0 | L49: 0
A50: 41 | B50: 85 | C50: 0.051616 | D50: 0.6910370535 | E50: 0.3724306237 | F50: 0.2573633608 | H50: =IF(A50="",0,IF(B50>=ann_ganrantee_age,0,MAX(gp_cal*MIN(A50,ppp)-SUM($G$10:G50),'05 cv'!T50))) ->  | I50: =IF(A50="",0,IF(AND(B50>start_age-1,B50<=ann_ganrantee_age),'00summary'!$F$17,0)) -> 0.18 | K50: 0 | L50: 0
A51: 42 | B51: 86 | C51: 0.057646 | D51: 0.655368485 | E51: 0.3633469499 | F51: 0.2381261401 | H51: =IF(A51="",0,IF(B51>=ann_ganrantee_age,0,MAX(gp_cal*MIN(A51,ppp)-SUM($G$10:G51),'05 cv'!T51))) ->  | I51: =IF(A51="",0,IF(AND(B51>start_age-1,B51<=ann_ganrantee_age),'00summary'!$F$17,0)) -> 0.18 | K51: 0 | L51: 0
A52: 43 | B52: 87 | C52: 0.064084 | D52: 0.6175891133 | E52: 0.3544848292 | F52: 0.2189259714 | H52: =IF(A52="",0,IF(B52>=ann_ganrantee_age,0,MAX(gp_cal*MIN(A52,ppp)-SUM($G$10:G52),'05 cv'!T52))) ->  | I52: =IF(A52="",0,IF(AND(B52>start_age-1,B52<=ann_ganrantee_age),'00summary'!$F$17,0)) -> 0.18 | K52: 0 | L52: 0
A53: 44 | B53: 88 | C53: 0.070942 | D53: 0.5780115326 | E53: 0.3458388578 | F53: 0.1998988482 | H53: =IF(A53="",0,IF(B53>=ann_ganrantee_age,0,MAX(gp_cal*MIN(A53,ppp)-SUM($G$10:G53),'05 cv'!T53))) ->  | I53: =IF(A53="",0,IF(AND(B53>start_age-1,B53<=ann_ganrantee_age),'00summary'!$F$17,0)) -> 0.18 | K53: 0 | L53: 0
A54: 45 | B54: 89 | C54: 0.078241 | D54: 0.5370062384 | E54: 0.3374037637 | F54: 0.181187926 | H54: =IF(A54="",0,IF(B54>=ann_ganrantee_age,0,MAX(gp_cal*MIN(A54,ppp)-SUM($G$10:G54),'05 cv'!T54))) ->  | I54: =IF(A54="",0,IF(AND(B54>start_age-1,B54<=ann_ganrantee_age),'00summary'!$F$17,0)) -> 0.18 | K54: 0 | L54: 0
A55: 46 | B55: 90 | C55: 0.086003 | D55: 0.4949903333 | E55: 0.3291744036 | F55: 0.1629381478 | H55: =IF(A55="",0,IF(B55>=ann_ganrantee_age,0,MAX(gp_cal*MIN(A55,ppp)-SUM($G$10:G55),'05 cv'!T55))) -> 0 | I55: =IF(A55="",0,IF(AND(B55>start_age-1,B55<=ann_ganrantee_age),'00summary'!$F$17,0)) -> 0.18 | K55: 0 | L55: 0
A56: 47 | B56: 91 | C56: 0.094249 | D56: 0.4524196797 | E56: 0.3211457596 | F56: 0.1452926617 | H56: =IF(A56="",0,IF(B56>=ann_ganrantee_age,0,MAX(gp_cal*MIN(A56,ppp)-SUM($G$10:G56),'05 cv'!T56))) -> 0 | I56: =IF(A56="",0,IF(AND(B56>start_age-1,B56<=ann_ganrantee_age),'00summary'!$F$17,0)) -> 0 | K56: 0 | L56: 0
A57: 48 | B57: 92 | C57: 0.103002 | D57: 0.4097795773 | E57: 0.3133129362 | F57: 0.1283892426 | H57: =IF(A57="",0,IF(B57>=ann_ganrantee_age,0,MAX(gp_cal*MIN(A57,ppp)-SUM($G$10:G57),'05 cv'!T57))) -> 0 | I57: =IF(A57="",0,IF(AND(B57>start_age-1,B57<=ann_ganrantee_age),'00summary'!$F$17,0)) -> 0 | K57: 0 | L57: 0
A58: 49 | B58: 93 | C58: 0.112281 | D58: 0.3675714613 | E58: 0.3056711573 | F58: 0.1123559939 | H58: =IF(A58="",0,IF(B58>=ann_ganrantee_age,0,MAX(gp_cal*MIN(A58,ppp)-SUM($G$10:G58),'05 cv'!T58))) -> 0 | I58: =IF(A58="",0,IF(AND(B58>start_age-1,B58<=ann_ganrantee_age),'00summary'!$F$17,0)) -> 0 | K58: 0 | L58: 0
A59: 50 | B59: 94 | C59: 0.122109 | D59: 0.32630017 | E59: 0.2982157632 | F59: 0.09730785423 | H59: =IF(A59="",0,IF(B59>=ann_ganrantee_age,0,MAX(gp_cal*MIN(A59,ppp)-SUM($G$10:G59),'05 cv'!T59))) -> 0 | I59: =IF(A59="",0,IF(AND(B59>start_age-1,B59<=ann_ganrantee_age),'00summary'!$F$17,0)) -> 0 | K59: 0 | L59: 0
A60: 51 | B60: 95 | C60: 0.13254 | D60: 0.2864559826 | E60: 0.290942208 | F60: 0.08334213606 | H60: =IF(A60="",0,IF(B60>=ann_ganrantee_age,0,MAX(gp_cal*MIN(A60,ppp)-SUM($G$10:G60),'05 cv'!T60))) -> 0 | I60: =IF(A60="",0,IF(AND(B60>start_age-1,B60<=ann_ganrantee_age),'00summary'!$F$17,0)) -> 0 | K60: 0 | L60: 0
A61: 52 | B61: 96 | C61: 0.143757 | D61: 0.2484891066 | E61: 0.2838460566 | F61: 0.07053265302 | H61: =IF(A61="",0,IF(B61>=ann_ganrantee_age,0,MAX(gp_cal*MIN(A61,ppp)-SUM($G$10:G61),'05 cv'!T61))) -> 0 | I61: =IF(A61="",0,IF(AND(B61>start_age-1,B61<=ann_ganrantee_age),'00summary'!$F$17,0)) -> 0 | K61: 0 | L61: 0
A62: 53 | B62: 97 | C62: 0.155979 | D62: 0.2127670581 | E62: 0.276922982 | F62: 0.05892008821 | H62: =IF(A62="",0,IF(B62>=ann_ganrantee_age,0,MAX(gp_cal*MIN(A62,ppp)-SUM($G$10:G62),'05 cv'!T62))) -> 0 | I62: =IF(A62="",0,IF(AND(B62>start_age-1,B62<=ann_ganrantee_age),'00summary'!$F$17,0)) -> 0 | K62: 0 | L62: 0
A63: 54 | B63: 98 | C63: 0.169421 | D63: 0.1795798652 | E63: 0.2701687629 | F63: 0.04851687002 | H63: =IF(A63="",0,IF(B63>=ann_ganrantee_age,0,MAX(gp_cal*MIN(A63,ppp)-SUM($G$10:G63),'05 cv'!T63))) -> 0 | I63: =IF(A63="",0,IF(AND(B63>start_age-1,B63<=ann_ganrantee_age),'00summary'!$F$17,0)) -> 0 | K63: 0 | L63: 0
A64: 55 | B64: 99 | C64: 0.184301 | D64: 0.1491552648 | E64: 0.2635792809 | F64: 0.03931423745 | H64: =IF(A64="",0,IF(B64>=ann_ganrantee_age,0,MAX(gp_cal*MIN(A64,ppp)-SUM($G$10:G64),'05 cv'!T64))) -> 0 | I64: =IF(A64="",0,IF(AND(B64>start_age-1,B64<=ann_ganrantee_age),'00summary'!$F$17,0)) -> 0 | K64: 0 | L64: 0
A65: 56 | B65: 100 | C65: 0.200836 | D65: 0.1216658004 | E65: 0.257150518 | F65: 0.03128642358 | H65: =IF(A65="",0,IF(B65>=ann_ganrantee_age,0,MAX(gp_cal*MIN(A65,ppp)-SUM($G$10:G65),'05 cv'!T65))) -> 0 | I65: =IF(A65="",0,IF(AND(B65>start_age-1,B65<=ann_ganrantee_age),'00summary'!$F$17,0)) -> 0 | K65: 0 | L65: 0
A66: 57 | B66: 101 | C66: 0.219242 | D66: 0.09723092769 | E66: 0.2508785541 | F66: 0.02439315455 | H66: =IF(A66="",0,IF(B66>=ann_ganrantee_age,0,MAX(gp_cal*MIN(A66,ppp)-SUM($G$10:G66),'05 cv'!T66))) -> 0 | I66: =IF(A66="",0,IF(AND(B66>start_age-1,B66<=ann_ganrantee_age),'00summary'!$F$17,0)) -> 0 | K66: 0 | L66: 0
A67: 58 | B67: 102 | C67: 0.239737 | D67: 0.07591382464 | E67: 0.244759565 | F67: 0.0185806347 | H67: =IF(A67="",0,IF(B67>=ann_ganrantee_age,0,MAX(gp_cal*MIN(A67,ppp)-SUM($G$10:G67),'05 cv'!T67))) -> 0 | I67: =IF(A67="",0,IF(AND(B67>start_age-1,B67<=ann_ganrantee_age),'00summary'!$F$17,0)) -> 0 | K67: 0 | L67: 0
A68: 59 | B68: 103 | C68: 0.262537 | D68: 0.05771447206 | E68: 0.2387898195 | F68: 0.01378162837 | H68: =IF(A68="",0,IF(B68>=ann_ganrantee_age,0,MAX(gp_cal*MIN(A68,ppp)-SUM($G$10:G68),'05 cv'!T68))) -> 0 | I68: =IF(A68="",0,IF(AND(B68>start_age-1,B68<=ann_ganrantee_age),'00summary'!$F$17,0)) -> 0 | K68: 0 | L68: 0
A69: 60 | B69: 104 | C69: 0.287859 | D69: 0.04256228771 | E69: 0.2329656776 | F69: 0.009915552195 | H69: =IF(A69="",0,IF(B69>=ann_ganrantee_age,0,MAX(gp_cal*MIN(A69,ppp)-SUM($G$10:G69),'05 cv'!T69))) -> 0 | I69: =IF(A69="",0,IF(AND(B69>start_age-1,B69<=ann_ganrantee_age),'00summary'!$F$17,0)) -> 0 | K69: 0 | L69: 0
A70: 61 | B70: 105 | C70: 1 | D70: 0.03031035013 | E70: 0.2272835879 | F70: 0.006889045128 | H70: =IF(A70="",0,IF(B70>=ann_ganrantee_age,0,MAX(gp_cal*MIN(A70,ppp)-SUM($G$10:G70),'05 cv'!T70))) -> 0 | I70: =IF(A70="",0,IF(AND(B70>start_age-1,B70<=ann_ganrantee_age),'00summary'!$F$17,0)) -> 0 | K70: 0 | L70: 0
C71: 0 | D71: 0 | E71: 0 | F71: 0 | G71: 0 | H71: =IF(A71="",0,IF(B71>=ann_ganrantee_age,0,MAX(gp_cal*MIN(A71,ppp)-SUM($G$10:G71),'05 cv'!T71))) -> 0 | I71: =IF(A71="",0,IF(AND(B71>start_age-1,B71<=ann_ganrantee_age),'00summary'!$F$17,0)) -> 0 | J71: 0 | K71: 0 | L71: 0
C72: 0 | D72: 0 | E72: 0 | F72: 0 | G72: 0 | H72: =IF(A72="",0,IF(B72>=ann_ganrantee_age,0,MAX(gp_cal*MIN(A72,ppp)-SUM($G$10:G72),'05 cv'!T72))) -> 0 | I72: =IF(A72="",0,IF(AND(B72>start_age-1,B72<=ann_ganrantee_age),'00summary'!$F$17,0)) -> 0 | J72: 0 | K72: 0 | L72: 0
C73: 0 | D73: 0 | E73: 0 | F73: 0 | G73: 0 | H73: =IF(A73="",0,IF(B73>=ann_ganrantee_age,0,MAX(gp_cal*MIN(A73,ppp)-SUM($G$10:G73),'05 cv'!T73))) -> 0 | I73: =IF(A73="",0,IF(AND(B73>start_age-1,B73<=ann_ganrantee_age),'00summary'!$F$17,0)) -> 0 | J73: 0 | K73: 0 | L73: 0
A74: =IF(A73>=bpp,"",A73+1) ->  | B74: =IF(A74="","",A74+age-1) ->  | C74: =IF(A74="",0,VLOOKUP(B74,mort_10_13,IF(sex=1,6,7))/1000) -> 0 | D74: 0 | E74: 0 | F74: 0 | G74: =IF(A74="",0,IF(B74<ann2_begin_age,0,SA)+MIN(A74,ppp)*gp_cal*I74) -> 0 | H74: =IF(A74="",0,IF(B74>=ann_ganrantee_age,0,MAX(gp_cal*MIN(A74,ppp)-SUM($G$10:G74),'05 cv'!T74))) -> 0 | I74: =IF(A74="",0,IF(AND(B74>start_age-1,B74<=ann_ganrantee_age),'00summary'!$F$17,0)) -> 0 | J74: =IF(A74="",0,G74*F74+H74*C74*F74/(1+i_pricing)^0.5) -> 0 | K74: =IF(A74="",0,IF(A74>ppp,0,VLOOKUP(ppp,pr_loading,MIN(6,A74)+1,FALSE))) -> 0 | L74: 0
C75: 0 | D75: 0 | E75: =IF(A75="",0,E74/(1+i_pricing)) -> 0 | F75: =IF(A75="",0,D75*E75) -> 0 | G75: 0 | H75: =IF(A75="",0,IF(B75>=ann_ganrantee_age,0,MAX(gp_cal*MIN(A75,ppp)-SUM($G$10:G75),'05 cv'!T75))) -> 0 | I75: =IF(A75="",0,IF(AND(B75>start_age-1,B75<=ann_ganrantee_age),'00summary'!$F$17,0)) -> 0 | J75: 0 | K75: 0 | L75: =IF(A75="",0,K75*F75) -> 0
C76: 0 | D76: =IF(A76="",0,D75*(1-C75)) -> 0 | E76: 0 | F76: 0 | G76: 0 | H76: =IF(A76="",0,IF(B76>=ann_ganrantee_age,0,MAX(gp_cal*MIN(A76,ppp)-SUM($G$10:G76),'05 cv'!T76))) -> 0 | I76: =IF(A76="",0,IF(AND(B76>start_age-1,B76<=ann_ganrantee_age),'00summary'!$F$17,0)) -> 0 | J76: =IF(A76="",0,G76*F76+H76*C76*F76/(1+i_pricing)^0.5) -> 0 | K76: 0 | L76: 0
C77: 0 | D77: 0 | E77: 0 | F77: 0 | G77: 0 | H77: =IF(A77="",0,IF(B77>=ann_ganrantee_age,0,MAX(gp_cal*MIN(A77,ppp)-SUM($G$10:G77),'05 cv'!T77))) -> 0 | I77: =IF(A77="",0,IF(AND(B77>start_age-1,B77<=ann_ganrantee_age),'00summary'!$F$17,0)) -> 0 | J77: 0 | K77: 0 | L77: 0
C78: 0 | D78: 0 | E78: 0 | F78: 0 | G78: 0 | H78: =IF(A78="",0,IF(B78>=ann_ganrantee_age,0,MAX(gp_cal*MIN(A78,ppp)-SUM($G$10:G78),'05 cv'!T78))) -> 0 | I78: =IF(A78="",0,IF(AND(B78>start_age-1,B78<=ann_ganrantee_age),'00summary'!$F$17,0)) -> 0 | J78: 0 | K78: 0 | L78: 0
C79: 0 | D79: 0 | E79: 0 | F79: 0 | G79: 0 | H79: =IF(A79="",0,IF(B79>=ann_ganrantee_age,0,MAX(gp_cal*MIN(A79,ppp)-SUM($G$10:G79),'05 cv'!T79))) -> 0 | I79: =IF(A79="",0,IF(AND(B79>start_age-1,B79<=ann_ganrantee_age),'00summary'!$F$17,0)) -> 0 | J79: 0 | K79: 0 | L79: 0
C80: 0 | D80: 0 | E80: 0 | F80: 0 | G80: 0 | H80: =IF(A80="",0,IF(B80>=ann_ganrantee_age,0,MAX(gp_cal*MIN(A80,ppp)-SUM($G$10:G80),'05 cv'!T80))) -> 0 | I80: =IF(A80="",0,IF(AND(B80>start_age-1,B80<=ann_ganrantee_age),'00summary'!$F$17,0)) -> 0 | J80: 0 | K80: 0 | L80: 0
C81: 0 | D81: 0 | E81: 0 | F81: 0 | G81: 0 | H81: =IF(A81="",0,IF(B81>=ann_ganrantee_age,0,MAX(gp_cal*MIN(A81,ppp)-SUM($G$10:G81),'05 cv'!T81))) -> 0 | I81: =IF(A81="",0,IF(AND(B81>start_age-1,B81<=ann_ganrantee_age),'00summary'!$F$17,0)) -> 0 | J81: 0 | K81: 0 | L81: 0
C82: 0 | D82: 0 | E82: 0 | F82: 0 | G82: 0 | H82: =IF(A82="",0,IF(B82>=ann_ganrantee_age,0,MAX(gp_cal*MIN(A82,ppp)-SUM($G$10:G82),'05 cv'!T82))) -> 0 | I82: =IF(A82="",0,IF(AND(B82>start_age-1,B82<=ann_ganrantee_age),'00summary'!$F$17,0)) -> 0 | J82: 0 | K82: 0 | L82: 0
C83: 0 | D83: 0 | E83: 0 | F83: 0 | G83: 0 | H83: =IF(A83="",0,IF(B83>=ann_ganrantee_age,0,MAX(gp_cal*MIN(A83,ppp)-SUM($G$10:G83),'05 cv'!T83))) -> 0 | I83: =IF(A83="",0,IF(AND(B83>start_age-1,B83<=ann_ganrantee_age),'00summary'!$F$17,0)) -> 0 | J83: 0 | K83: 0 | L83: 0
C84: 0 | D84: 0 | E84: 0 | F84: 0 | G84: 0 | H84: =IF(A84="",0,IF(B84>=ann_ganrantee_age,0,MAX(gp_cal*MIN(A84,ppp)-SUM($G$10:G84),'05 cv'!T84))) -> 0 | I84: =IF(A84="",0,IF(AND(B84>start_age-1,B84<=ann_ganrantee_age),'00summary'!$F$17,0)) -> 0 | J84: 0 | K84: 0 | L84: 0
C85: 0 | D85: 0 | E85: 0 | F85: 0 | G85: 0 | H85: =IF(A85="",0,IF(B85>=ann_ganrantee_age,0,MAX(gp_cal*MIN(A85,ppp)-SUM($G$10:G85),'05 cv'!T85))) -> 0 | I85: =IF(A85="",0,IF(AND(B85>start_age-1,B85<=ann_ganrantee_age),'00summary'!$F$17,0)) -> 0 | J85: 0 | K85: 0 | L85: 0
C86: 0 | D86: 0 | E86: 0 | F86: 0 | G86: 0 | H86: =IF(A86="",0,IF(B86>=ann_ganrantee_age,0,MAX(gp_cal*MIN(A86,ppp)-SUM($G$10:G86),'05 cv'!T86))) -> 0 | I86: =IF(A86="",0,IF(AND(B86>start_age-1,B86<=ann_ganrantee_age),'00summary'!$F$17,0)) -> 0 | J86: 0 | K86: 0 | L86: 0
C87: 0 | D87: 0 | E87: 0 | F87: 0 | G87: 0 | H87: =IF(A87="",0,IF(B87>=ann_ganrantee_age,0,MAX(gp_cal*MIN(A87,ppp)-SUM($G$10:G87),'05 cv'!T87))) -> 0 | I87: =IF(A87="",0,IF(AND(B87>start_age-1,B87<=ann_ganrantee_age),'00summary'!$F$17,0)) -> 0 | J87: 0 | K87: 0 | L87: 0
C88: 0 | D88: 0 | E88: 0 | F88: 0 | G88: 0 | H88: =IF(A88="",0,IF(B88>=ann_ganrantee_age,0,MAX(gp_cal*MIN(A88,ppp)-SUM($G$10:G88),'05 cv'!T88))) -> 0 | I88: =IF(A88="",0,IF(AND(B88>start_age-1,B88<=ann_ganrantee_age),'00summary'!$F$17,0)) -> 0 | J88: 0 | K88: 0 | L88: 0
C89: 0 | D89: 0 | E89: 0 | F89: 0 | G89: 0 | H89: =IF(A89="",0,IF(B89>=ann_ganrantee_age,0,MAX(gp_cal*MIN(A89,ppp)-SUM($G$10:G89),'05 cv'!T89))) -> 0 | I89: =IF(A89="",0,IF(AND(B89>start_age-1,B89<=ann_ganrantee_age),'00summary'!$F$17,0)) -> 0 | J89: 0 | K89: 0 | L89: 0
C90: 0 | D90: 0 | E90: 0 | F90: 0 | G90: 0 | H90: =IF(A90="",0,IF(B90>=ann_ganrantee_age,0,MAX(gp_cal*MIN(A90,ppp)-SUM($G$10:G90),'05 cv'!T90))) -> 0 | I90: =IF(A90="",0,IF(AND(B90>start_age-1,B90<=ann_ganrantee_age),'00summary'!$F$17,0)) -> 0 | J90: 0 | K90: 0 | L90: 0
C91: 0 | D91: 0 | E91: 0 | F91: 0 | G91: 0 | H91: =IF(A91="",0,IF(B91>=ann_ganrantee_age,0,MAX(gp_cal*MIN(A91,ppp)-SUM($G$10:G91),'05 cv'!T91))) -> 0 | I91: =IF(A91="",0,IF(AND(B91>start_age-1,B91<=ann_ganrantee_age),'00summary'!$F$17,0)) -> 0 | J91: 0 | K91: 0 | L91: 0
C92: 0 | D92: 0 | E92: 0 | F92: 0 | G92: 0 | H92: =IF(A92="",0,IF(B92>=ann_ganrantee_age,0,MAX(gp_cal*MIN(A92,ppp)-SUM($G$10:G92),'05 cv'!T92))) -> 0 | I92: =IF(A92="",0,IF(AND(B92>start_age-1,B92<=ann_ganrantee_age),'00summary'!$F$17,0)) -> 0 | J92: 0 | K92: 0 | L92: 0
C93: 0 | D93: 0 | E93: 0 | F93: 0 | G93: 0 | H93: =IF(A93="",0,IF(B93>=ann_ganrantee_age,0,MAX(gp_cal*MIN(A93,ppp)-SUM($G$10:G93),'05 cv'!T93))) -> 0 | I93: =IF(A93="",0,IF(AND(B93>start_age-1,B93<=ann_ganrantee_age),'00summary'!$F$17,0)) -> 0 | J93: 0 | K93: 0 | L93: 0
C94: 0 | D94: 0 | E94: 0 | F94: 0 | G94: 0 | H94: =IF(A94="",0,IF(B94>=ann_ganrantee_age,0,MAX(gp_cal*MIN(A94,ppp)-SUM($G$10:G94),'05 cv'!T94))) -> 0 | I94: =IF(A94="",0,IF(AND(B94>start_age-1,B94<=ann_ganrantee_age),'00summary'!$F$17,0)) -> 0 | J94: 0 | K94: 0 | L94: 0
C95: 0 | D95: 0 | E95: 0 | F95: 0 | G95: 0 | H95: =IF(A95="",0,IF(B95>=ann_ganrantee_age,0,MAX(gp_cal*MIN(A95,ppp)-SUM($G$10:G95),'05 cv'!T95))) -> 0 | I95: =IF(A95="",0,IF(AND(B95>start_age-1,B95<=ann_ganrantee_age),'00summary'!$F$17,0)) -> 0 | J95: 0 | K95: 0 | L95: 0
C96: 0 | D96: 0 | E96: 0 | F96: 0 | G96: 0 | H96: =IF(A96="",0,IF(B96>=ann_ganrantee_age,0,MAX(gp_cal*MIN(A96,ppp)-SUM($G$10:G96),'05 cv'!T96))) -> 0 | I96: =IF(A96="",0,IF(AND(B96>start_age-1,B96<=ann_ganrantee_age),'00summary'!$F$17,0)) -> 0 | J96: 0 | K96: 0 | L96: 0
C97: 0 | D97: 0 | E97: 0 | F97: 0 | G97: 0 | H97: =IF(A97="",0,IF(B97>=ann_ganrantee_age,0,MAX(gp_cal*MIN(A97,ppp)-SUM($G$10:G97),'05 cv'!T97))) -> 0 | I97: =IF(A97="",0,IF(AND(B97>start_age-1,B97<=ann_ganrantee_age),'00summary'!$F$17,0)) -> 0 | J97: 0 | K97: 0 | L97: 0
C98: 0 | D98: 0 | E98: 0 | F98: 0 | G98: 0 | H98: =IF(A98="",0,IF(B98>=ann_ganrantee_age,0,MAX(gp_cal*MIN(A98,ppp)-SUM($G$10:G98),'05 cv'!T98))) -> 0 | I98: =IF(A98="",0,IF(AND(B98>start_age-1,B98<=ann_ganrantee_age),'00summary'!$F$17,0)) -> 0 | J98: 0 | K98: 0 | L98: 0
C99: 0 | D99: 0 | E99: 0 | F99: 0 | G99: 0 | H99: =IF(A99="",0,IF(B99>=ann_ganrantee_age,0,MAX(gp_cal*MIN(A99,ppp)-SUM($G$10:G99),'05 cv'!T99))) -> 0 | I99: =IF(A99="",0,IF(AND(B99>start_age-1,B99<=ann_ganrantee_age),'00summary'!$F$17,0)) -> 0 | J99: 0 | K99: 0 | L99: 0
C100: 0 | D100: 0 | E100: 0 | F100: 0 | G100: 0 | H100: =IF(A100="",0,IF(B100>=ann_ganrantee_age,0,MAX(gp_cal*MIN(A100,ppp)-SUM($G$10:G100),'05 cv'!T100))) -> 0 | I100: =IF(A100="",0,IF(AND(B100>start_age-1,B100<=ann_ganrantee_age),'00summary'!$F$17,0)) -> 0 | J100: 0 | K100: 0 | L100: 0
C101: 0 | D101: 0 | E101: 0 | F101: 0 | G101: 0 | H101: =IF(A101="",0,IF(B101>=ann_ganrantee_age,0,MAX(gp_cal*MIN(A101,ppp)-SUM($G$10:G101),'05 cv'!T101))) -> 0 | I101: =IF(A101="",0,IF(AND(B101>start_age-1,B101<=ann_ganrantee_age),'00summary'!$F$17,0)) -> 0 | J101: 0 | K101: 0 | L101: 0
C102: 0 | D102: 0 | E102: 0 | F102: 0 | G102: 0 | H102: =IF(A102="",0,IF(B102>=ann_ganrantee_age,0,MAX(gp_cal*MIN(A102,ppp)-SUM($G$10:G102),'05 cv'!T102))) -> 0 | I102: =IF(A102="",0,IF(AND(B102>start_age-1,B102<=ann_ganrantee_age),'00summary'!$F$17,0)) -> 0 | J102: 0 | K102: 0 | L102: 0
C103: 0 | D103: 0 | E103: 0 | F103: 0 | G103: 0 | H103: =IF(A103="",0,IF(B103>=ann_ganrantee_age,0,MAX(gp_cal*MIN(A103,ppp)-SUM($G$10:G103),'05 cv'!T103))) -> 0 | I103: =IF(A103="",0,IF(AND(B103>start_age-1,B103<=ann_ganrantee_age),'00summary'!$F$17,0)) -> 0 | J103: 0 | K103: 0 | L103: 0
C104: 0 | D104: 0 | E104: 0 | F104: 0 | G104: 0 | H104: =IF(A104="",0,IF(B104>=ann_ganrantee_age,0,MAX(gp_cal*MIN(A104,ppp)-SUM($G$10:G104),'05 cv'!T104))) -> 0 | I104: =IF(A104="",0,IF(AND(B104>start_age-1,B104<=ann_ganrantee_age),'00summary'!$F$17,0)) -> 0 | J104: 0 | K104: 0 | L104: 0
C105: 0 | D105: 0 | E105: 0 | F105: 0 | G105: 0 | H105: =IF(A105="",0,IF(B105>=ann_ganrantee_age,0,MAX(gp_cal*MIN(A105,ppp)-SUM($G$10:G105),'05 cv'!T105))) -> 0 | I105: =IF(A105="",0,IF(AND(B105>start_age-1,B105<=ann_ganrantee_age),'00summary'!$F$17,0)) -> 0 | J105: 0 | K105: 0 | L105: 0
A106: =IF(A105>=bpp,"",A105+1) ->  | B106: =IF(A106="","",A106+age-1) ->  | C106: =IF(A106="",0,VLOOKUP(B106,mort_10_13,IF(sex=1,6,7))/1000) -> 0 | D106: 0 | E106: 0 | F106: 0 | G106: =IF(A106="",0,IF(B106<ann2_begin_age,0,SA)+MIN(A106,ppp)*gp_cal*I106) -> 0 | H106: =IF(A106="",0,IF(B106>=ann_ganrantee_age,0,MAX(gp_cal*MIN(A106,ppp)-SUM($G$10:G106),'05 cv'!T106))) -> 0 | I106: =IF(A106="",0,IF(AND(B106>start_age-1,B106<=ann_ganrantee_age),'00summary'!$F$17,0)) -> 0 | J106: =IF(A106="",0,G106*F106+H106*C106*F106/(1+i_pricing)^0.5) -> 0 | K106: =IF(A106="",0,IF(A106>ppp,0,VLOOKUP(ppp,pr_loading,MIN(6,A106)+1,FALSE))) -> 0 | L106: 0
C107: 0 | D107: 0 | E107: =IF(A107="",0,E106/(1+i_pricing)) -> 0 | F107: 0 | G107: 0 | H107: =IF(A107="",0,IF(B107>=ann_ganrantee_age,0,MAX(gp_cal*MIN(A107,ppp)-SUM($G$10:G107),'05 cv'!T107))) -> 0 | I107: =IF(A107="",0,IF(AND(B107>start_age-1,B107<=ann_ganrantee_age),'00summary'!$F$17,0)) -> 0 | J107: 0 | K107: 0 | L107: 0
C108: 0 | D108: 0 | E108: 0 | F108: 0 | G108: 0 | H108: =IF(A108="",0,IF(B108>=ann_ganrantee_age,0,MAX(gp_cal*MIN(A108,ppp)-SUM($G$10:G108),'05 cv'!T108))) -> 0 | I108: =IF(A108="",0,IF(AND(B108>start_age-1,B108<=ann_ganrantee_age),'00summary'!$F$17,0)) -> 0 | J108: 0 | K108: 0 | L108: 0
C109: 0 | D109: 0 | E109: 0 | F109: 0 | G109: 0 | H109: =IF(A109="",0,IF(B109>=ann_ganrantee_age,0,MAX(gp_cal*MIN(A109,ppp)-SUM($G$10:G109),'05 cv'!T109))) -> 0 | I109: =IF(A109="",0,IF(AND(B109>start_age-1,B109<=ann_ganrantee_age),'00summary'!$F$17,0)) -> 0 | J109: 0 | K109: 0 | L109: 0
C110: 0 | D110: 0 | E110: 0 | F110: 0 | G110: 0 | H110: =IF(A110="",0,IF(B110>=ann_ganrantee_age,0,MAX(gp_cal*MIN(A110,ppp)-SUM($G$10:G110),'05 cv'!T110))) -> 0 | I110: =IF(A110="",0,IF(AND(B110>start_age-1,B110<=ann_ganrantee_age),'00summary'!$F$17,0)) -> 0 | J110: 0 | K110: 0 | L110: 0
C111: 0 | D111: 0 | E111: 0 | F111: 0 | G111: 0 | H111: =IF(A111="",0,IF(B111>=ann_ganrantee_age,0,MAX(gp_cal*MIN(A111,ppp)-SUM($G$10:G111),'05 cv'!T111))) -> 0 | I111: =IF(A111="",0,IF(AND(B111>start_age-1,B111<=ann_ganrantee_age),'00summary'!$F$17,0)) -> 0 | J111: 0 | K111: 0 | L111: 0
C112: 0 | D112: 0 | E112: 0 | F112: 0 | G112: 0 | H112: =IF(A112="",0,IF(B112>=ann_ganrantee_age,0,MAX(gp_cal*MIN(A112,ppp)-SUM($G$10:G112),'05 cv'!T112))) -> 0 | I112: =IF(A112="",0,IF(AND(B112>start_age-1,B112<=ann_ganrantee_age),'00summary'!$F$17,0)) -> 0 | J112: 0 | K112: 0 | L112: 0
C113: 0 | D113: 0 | E113: 0 | F113: 0 | G113: 0 | H113: =IF(A113="",0,IF(B113>=ann_ganrantee_age,0,MAX(gp_cal*MIN(A113,ppp)-SUM($G$10:G113),'05 cv'!T113))) -> 0 | I113: =IF(A113="",0,IF(AND(B113>start_age-1,B113<=ann_ganrantee_age),'00summary'!$F$17,0)) -> 0 | J113: 0 | K113: 0 | L113: 0
C114: 0 | D114: 0 | E114: 0 | F114: 0 | G114: 0 | H114: =IF(A114="",0,IF(B114>=ann_ganrantee_age,0,MAX(gp_cal*MIN(A114,ppp)-SUM($G$10:G114),'05 cv'!T114))) -> 0 | I114: =IF(A114="",0,IF(AND(B114>start_age-1,B114<=ann_ganrantee_age),'00summary'!$F$17,0)) -> 0 | J114: 0 | K114: 0 | L114: 0
C115: 0 | D115: 0 | E115: 0 | F115: 0 | G115: 0 | H115: =IF(A115="",0,IF(B115>=ann_ganrantee_age,0,MAX(gp_cal*MIN(A115,ppp)-SUM($G$10:G115),'05 cv'!T115))) -> 0 | I115: =IF(A115="",0,IF(AND(B115>start_age-1,B115<=ann_ganrantee_age),'00summary'!$F$17,0)) -> 0 | J115: 0 | K115: 0 | L115: 0
C116: 0 | D116: 0 | E116: 0 | F116: 0 | G116: 0 | H116: =IF(A116="",0,IF(B116>=ann_ganrantee_age,0,MAX(gp_cal*MIN(A116,ppp)-SUM($G$10:G116),'05 cv'!T116))) -> 0 | I116: =IF(A116="",0,IF(AND(B116>start_age-1,B116<=ann_ganrantee_age),'00summary'!$F$17,0)) -> 0 | J116: 0 | K116: 0 | L116: 0
C117: 0 | D117: 0 | E117: 0 | F117: 0 | G117: 0 | H117: =IF(A117="",0,IF(B117>=ann_ganrantee_age,0,MAX(gp_cal*MIN(A117,ppp)-SUM($G$10:G117),'05 cv'!T117))) -> 0 | I117: =IF(A117="",0,IF(AND(B117>start_age-1,B117<=ann_ganrantee_age),'00summary'!$F$17,0)) -> 0 | J117: 0 | K117: 0 | L117: 0

Sheet 05 cv (hidden)
A2: age | B2: =age -> 45 | D2: i | E2: 0.04 | G2: pv_loading | H2: =SUM(M10:OFFSET(M10,ppp-1,)) -> 1.441497286
A3: sex | B3: =sex -> 2 | D3: 起领年龄 | E3: =ann2_begin_age -> 65 | G3: annuity due | H3: =SUM(F10:OFFSET(F10,ppp-1,)) -> 8.407313006
A4: bpp | B4: =bpp -> 61 | D4: gp' | E4: =H4/(H3-H2) -> 26665.45954 | G4: pvfb | H4: =SUM(J10:OFFSET(J10,bpp-1,)) -> 185746.6772
A5: ppp | B5: =ppp -> 10 | U5: =ann2_begin_age&"_"&ppp&"_"&age&"_"&IF(sex=1,"男","女") -> 65_10_45_女
A7: 1 | B7: 2 | C7: 3 | D7: 4 | E7: 5 | F7: 6 | G7: 7 | H7: 8 | J7: 9 | K7: 10 | L7: 11 | M7: 12 | N7: 13 | O7: 14 | P7: 15 | Q7: 16 | R7: 17 | S7: 18 | T7: 19 | U7: 20 | AD7: 0
A8: Policy Year | B8: Age (BOY) | C8: qx (MOY) | D8: tpx (BOY) | E8: (1+i)-t (BOY) | F8: PVCP (BOY) | G8: annuity benefit array (BOY) | H8: death benefit array (MOY) | J8: PVFB0 | K8: PVFB0' | L8: Loading | M8: loading factor | N8: np | O8: pvfb | P8: pvfp | Q8: tpvr(不含下一年生存金） | R8: ft | S8: tcv | T8: tgcv | U8: tgcv_read
A9: 0 | O9: =IF(A10="",0,IF(B10<ann2_begin_age,SUM(J10:OFFSET(J10,bpp-1,)),SUM(K10:OFFSET(K10,bpp-1,)))/IF(F10=0,1,F10)) -> 185746.6772 | P9: =IF(A10="",0,SUM(N10:OFFSET(N10,ppp-1,))/IF(F10=0,1,F10)) -> 185746.6772 | Q9: =IF(A9="",0,O9-P9-IF(B10>ann_ganrantee_age,0,G10)) -> 5.820766091e-11
A10: =IF(A9>=bpp,"",A9+1) -> 1 | B10: =IF(A10="","",A10+age-1) -> 45 | C10: =IF(A10="",0,VLOOKUP(B10,mort_10_13,IF(sex=1,6,7))/1000) -> 0.00064 | D10: 1 | E10: 1 | F10: =IF(A10="",0,D10*E10) -> 1 | G10: =IF(A10="",0,IF(B10<ann2_begin_age,0,SA)+MIN(A10,ppp)*GP*I10) -> 0 | H10: =IF(A10="",0,IF(B10>=ann_ganrantee_age,0,MAX(GP*MIN(A10,ppp)-SUM($G$10:G10),U10))) -> 40779 | I10: =IF(A10="",0,IF(AND(B10>start_age-1,B10<=ann_ganrantee_age),'00summary'!$F$17,0)) -> 0 | J10: =IF(A10="",0,G10*F10+H10*C10*F10/(1+i_cv)^0.5) -> 25.5917436 | K10: =IF(A10="",0,J10) -> 25.5917436 | L10: =IF(A10="",0,IF(A10>ppp,0,VLOOKUP(ppp,cv_loading,MIN(6,A10)+1,FALSE))) -> 0.4 | M10: =IF(A10="",0,L10*F10) -> 0.4 | N10: =IF(A10="",0,IF(A10<=ppp,gp_cv*(1-L10)*F10,0)) -> 15999.27572 | O10: =IF(A11="",0,IF(B11<ann2_begin_age,SUM(J11:OFFSET(J11,bpp-1,)),SUM(K11:OFFSET(K11,bpp-1,)))/IF(F11=0,1,F11)) -> 193273.624 | P10: =IF(A11="",0,SUM(N11:OFFSET(N11,ppp-1,))/IF(F11=0,1,F11)) -> 176650.3538 | Q10: 16623.27023 | R10: =IF(A10="",0,IF(A10<MIN(ppp,20),0.9+0.1*A10/MIN(ppp,20),1)) -> 0.91 | S10: =IF(A10="",0,IF(B10>=ann_ganrantee_age,0,MAX(ROUND(Q10*R10,0),0))) -> 15127 | T10: =IF(A10="",0,IF(B10>=ann_ganrantee_age,0,S10+IF(B10>ann_ganrantee_age-1,0,G11))) -> 15127 | U10: =IF(A10="",0,IF('00summary'!$G$11=1,VLOOKUP('05 cv'!$U$5,cv_read!$4:$2064,A10+6,FALSE),T10)) -> 15127
A11: 2 | B11: 46 | C11: 0.000693 | D11: =IF(A11="",0,D10*(1-C10)) -> 0.99936 | E11: =IF(A11="",0,E10/(1+i_cv)) -> 0.9615384615 | F11: =IF(A11="",0,D11*E11) -> 0.9609230769 | G11: 0 | H11: =IF(A11="",0,IF(B11>=ann_ganrantee_age,0,MAX(GP*MIN(A11,ppp)-SUM($G$10:G11),U11))) -> 81558 | I11: =IF(A11="",0,IF(AND(B11>start_age-1,B11<=ann_ganrantee_age),'00summary'!$F$17,0)) -> 0 | J11: 53.25639382 | K11: =IF(A11="",0,J11) -> 53.25639382 | L11: 0.25 | M11: =IF(A11="",0,L11*F11) -> 0.2402307692 | N11: 19217.59157 | O11: =IF(A12="",0,IF(B12<ann2_begin_age,SUM(J12:OFFSET(J12,bpp-1,)),SUM(K12:OFFSET(K12,bpp-1,)))/IF(F12=0,1,F12)) -> 201086.2828 | P11: =IF(A12="",0,SUM(N12:OFFSET(N12,ppp-1,))/IF(F12=0,1,F12)) -> 163030.2895 | Q11: 38055.99328 | R11: 0.92 | S11: 35012 | T11: 35012 | U11: =IF(A11="",0,IF('00summary'!$G$11=1,VLOOKUP('05 cv'!$U$5,cv_read!$4:$2064,A11+6,FALSE),T11)) -> 35012
A12: 3 | B12: 47 | C12: 0.00075 | D12: =IF(A12="",0,D11*(1-C11)) -> 0.9986674435 | E12: 0.924556213 | F12: 0.9233241896 | G12: 0 | H12: =IF(A12="",0,IF(B12>=ann_ganrantee_age,0,MAX(GP*MIN(A12,ppp)-SUM($G$10:G12),U12))) -> 122337 | I12: =IF(A12="",0,IF(AND(B12>start_age-1,B12<=ann_ganrantee_age),'00summary'!$F$17,0)) -> 0 | J12: 83.07237628 | K12: 83.07237628 | L12: 0.15 | M12: 0.1384986284 | N12: 20927.73425 | O12: =IF(A13="",0,IF(B13<ann2_begin_age,SUM(J13:OFFSET(J13,bpp-1,)),SUM(K13:OFFSET(K13,bpp-1,)))/IF(F13=0,1,F13)) -> 209193.059 | P12: =IF(A13="",0,SUM(N13:OFFSET(N13,ppp-1,))/IF(F13=0,1,F13)) -> 146088.8014 | Q12: 63104.25762 | R12: 0.93 | S12: 58687 | T12: 58687 | U12: =IF(A12="",0,IF('00summary'!$G$11=1,VLOOKUP('05 cv'!$U$5,cv_read!$4:$2064,A12+6,FALSE),T12)) -> 58687
A13: 4 | B13: 48 | C13: 0.000811 | D13: 0.9979184429 | E13: 0.8889963587 | F13: 0.887145862 | G13: 0 | H13: =IF(A13="",0,IF(B13>=ann_ganrantee_age,0,MAX(GP*MIN(A13,ppp)-SUM($G$10:G13),U13))) -> 163116 | I13: =IF(A13="",0,IF(AND(B13>start_age-1,B13<=ann_ganrantee_age),'00summary'!$F$17,0)) -> 0 | J13: 115.0789203 | K13: 115.0789203 | L13: 0.12 | M13: 0.1064575034 | N13: 20817.41384 | O13: =IF(A14="",0,IF(B14<ann2_begin_age,SUM(J14:OFFSET(J14,bpp-1,)),SUM(K14:OFFSET(K14,bpp-1,)))/IF(F14=0,1,F14)) -> 217602.35 | P13: =IF(A14="",0,SUM(N14:OFFSET(N14,ppp-1,))/IF(F14=0,1,F14)) -> 127631.6342 | Q13: 89970.71587 | R13: 0.94 | S13: 84572 | T13: 84572 | U13: =IF(A13="",0,IF('00summary'!$G$11=1,VLOOKUP('05 cv'!$U$5,cv_read!$4:$2064,A13+6,FALSE),T13)) -> 84572
A14: 5 | B14: 49 | C14: 0.000877 | D14: 0.9971091311 | E14: 0.854804191 | F14: 0.8523330642 | G14: 0 | H14: =IF(A14="",0,IF(B14>=ann_ganrantee_age,0,MAX(GP*MIN(A14,ppp)-SUM($G$10:G14),U14))) -> 203895 | I14: =IF(A14="",0,IF(AND(B14>start_age-1,B14<=ann_ganrantee_age),'00summary'!$F$17,0)) -> 0 | J14: 149.4510036 | K14: 149.4510036 | L14: 0.12 | M14: 0.1022799677 | N14: 20000.5105 | O14: =IF(A15="",0,IF(B15<ann2_begin_age,SUM(J15:OFFSET(J15,bpp-1,)),SUM(K15:OFFSET(K15,bpp-1,)))/IF(F15=0,1,F15)) -> 226322.5718 | P14: =IF(A15="",0,SUM(N15:OFFSET(N15,ppp-1,))/IF(F15=0,1,F15)) -> 108427.7621 | Q14: 117894.8097 | R14: 0.95 | S14: 112000 | T14: 112000 | U14: =IF(A14="",0,IF('00summary'!$G$11=1,VLOOKUP('05 cv'!$U$5,cv_read!$4:$2064,A14+6,FALSE),T14)) -> 112000
A15: 6 | B15: 50 | C15: 0.00095 | D15: 0.9962346664 | E15: 0.8219271068 | F15: 0.818832277 | G15: 0 | H15: =IF(A15="",0,IF(B15>=ann_ganrantee_age,0,MAX(GP*MIN(A15,ppp)-SUM($G$10:G15),U15))) -> 244674 | I15: =IF(A15="",0,IF(AND(B15>start_age-1,B15<=ann_ganrantee_age),'00summary'!$F$17,0)) -> 0 | J15: 186.6335475 | K15: 186.6335475 | L15: 0.12 | M15: 0.09825987324 | N15: 19214.39428 | O15: =IF(A16="",0,IF(B16<ann2_begin_age,SUM(J16:OFFSET(J16,bpp-1,)),SUM(K16:OFFSET(K16,bpp-1,)))/IF(F16=0,1,F16)) -> 235362.025 | P15: =IF(A16="",0,SUM(N16:OFFSET(N16,ppp-1,))/IF(F16=0,1,F16)) -> 88444.66646 | Q15: 146917.3586 | R15: 0.96 | S15: 141041 | T15: 141041 | U15: =IF(A15="",0,IF('00summary'!$G$11=1,VLOOKUP('05 cv'!$U$5,cv_read!$4:$2064,A15+6,FALSE),T15)) -> 141041
A16: 7 | B16: 51 | C16: 0.001031 | D16: 0.9952882434 | E16: 0.7903145257 | F16: 0.7865907561 | G16: 0 | H16: =IF(A16="",0,IF(B16>=ann_ganrantee_age,0,MAX(GP*MIN(A16,ppp)-SUM($G$10:G16),U16))) -> 285453 | I16: =IF(A16="",0,IF(AND(B16>start_age-1,B16<=ann_ganrantee_age),'00summary'!$F$17,0)) -> 0 | J16: 226.9997849 | K16: 226.9997849 | L16: 0.12 | M16: 0.09439089073 | N16: 18457.8275 | O16: =IF(A17="",0,IF(B17<ann2_begin_age,SUM(J17:OFFSET(J17,bpp-1,)),SUM(K17:OFFSET(K17,bpp-1,)))/IF(F17=0,1,F17)) -> 244728.6909 | P16: =IF(A17="",0,SUM(N17:OFFSET(N17,ppp-1,))/IF(F17=0,1,F17)) -> 67647.96961 | Q16: 177080.7213 | R16: 0.97 | S16: 171768 | T16: 171768 | U16: =IF(A16="",0,IF('00summary'!$G$11=1,VLOOKUP('05 cv'!$U$5,cv_read!$4:$2064,A16+6,FALSE),T16)) -> 171768
A17: 8 | B17: 52 | C17: 0.00112 | D17: 0.9942621013 | E17: 0.7599178132 | F17: 0.7555574817 | G17: 0 | H17: =IF(A17="",0,IF(B17>=ann_ganrantee_age,0,MAX(GP*MIN(A17,ppp)-SUM($G$10:G17),U17))) -> 326232 | I17: =IF(A17="",0,IF(AND(B17>start_age-1,B17<=ann_ganrantee_age),'00summary'!$F$17,0)) -> 0 | J17: 270.7044669 | K17: 270.7044669 | L17: 0.12 | M17: 0.09066689781 | N17: 17729.61296 | O17: =IF(A18="",0,IF(B18<ann2_begin_age,SUM(J18:OFFSET(J18,bpp-1,)),SUM(K18:OFFSET(K18,bpp-1,)))/IF(F18=0,1,F18)) -> 254430.1846 | P17: =IF(A18="",0,SUM(N18:OFFSET(N18,ppp-1,))/IF(F18=0,1,F18)) -> 46001.18115 | Q17: 208429.0035 | R17: 0.98 | S17: 204260 | T17: 204260 | U17: =IF(A17="",0,IF('00summary'!$G$11=1,VLOOKUP('05 cv'!$U$5,cv_read!$4:$2064,A17+6,FALSE),T17)) -> 204260
A18: 9 | B18: 53 | C18: 0.001219 | D18: 0.9931485277 | E18: 0.730690205 | F18: 0.7256839013 | G18: 0 | H18: =IF(A18="",0,IF(B18>=ann_ganrantee_age,0,MAX(GP*MIN(A18,ppp)-SUM($G$10:G18),U18))) -> 367011 | I18: =IF(A18="",0,IF(AND(B18>start_age-1,B18<=ann_ganrantee_age),'00summary'!$F$17,0)) -> 0 | J18: 318.3564152 | K18: 318.3564152 | L18: 0.12 | M18: 0.08708206816 | N18: 17028.61134 | O18: =IF(A19="",0,IF(B19<ann2_begin_age,SUM(J19:OFFSET(J19,bpp-1,)),SUM(K19:OFFSET(K19,bpp-1,)))/IF(F19=0,1,F19)) -> 264473.5388 | P18: =IF(A19="",0,SUM(N19:OFFSET(N19,ppp-1,))/IF(F19=0,1,F19)) -> 23465.60439 | Q18: 241007.9344 | R18: 0.99 | S18: 238598 | T18: 238598 | U18: =IF(A18="",0,IF('00summary'!$G$11=1,VLOOKUP('05 cv'!$U$5,cv_read!$4:$2064,A18+6,FALSE),T18)) -> 238598
A19: 10 | B19: 54 | C19: 0.001329 | D19: 0.9919378797 | E19: 0.7025867356 | F19: 0.6969223968 | G19: 0 | H19: =IF(A19="",0,IF(B19>=ann_ganrantee_age,0,MAX(GP*MIN(A19,ppp)-SUM($G$10:G19),U19))) -> 407790 | I19: =IF(A19="",0,IF(AND(B19>start_age-1,B19<=ann_ganrantee_age),'00summary'!$F$17,0)) -> 0 | J19: 370.3644592 | K19: 370.3644592 | L19: 0.12 | M19: 0.08363068761 | N19: 16353.70526 | O19: =IF(A20="",0,IF(B20<ann2_begin_age,SUM(J20:OFFSET(J20,bpp-1,)),SUM(K20:OFFSET(K20,bpp-1,)))/IF(F20=0,1,F20)) -> 274865.0904 | P19: =IF(A20="",0,SUM(N20:OFFSET(N20,ppp-1,))/IF(F20=0,1,F20)) -> 0 | Q19: 274865.0904 | R19: 1 | S19: 274865 | T19: 274865 | U19: =IF(A19="",0,IF('00summary'!$G$11=1,VLOOKUP('05 cv'!$U$5,cv_read!$4:$2064,A19+6,FALSE),T19)) -> 274865
A20: 11 | B20: 55 | C20: 0.00145 | D20: 0.9906195942 | E20: 0.6755641688 | F20: 0.6692271028 | G20: 0 | H20: =IF(A20="",0,IF(B20>=ann_ganrantee_age,0,MAX(GP*MIN(A20,ppp)-SUM($G$10:G20),U20))) -> 407790 | I20: =IF(A20="",0,IF(AND(B20>start_age-1,B20<=ann_ganrantee_age),'00summary'!$F$17,0)) -> 0 | J20: 388.0265346 | K20: 388.0265346 | L20: 0 | M20: 0 | N20: 0 | O20: =IF(A21="",0,IF(B21<ann2_begin_age,SUM(J21:OFFSET(J21,bpp-1,)),SUM(K21:OFFSET(K21,bpp-1,)))/IF(F21=0,1,F21)) -> 285670.9114 | P20: =IF(A21="",0,SUM(N21:OFFSET(N21,ppp-1,))/IF(F21=0,1,F21)) -> 0 | Q20: 285670.9114 | R20: 1 | S20: 285671 | T20: 285671 | U20: =IF(A20="",0,IF('00summary'!$G$11=1,VLOOKUP('05 cv'!$U$5,cv_read!$4:$2064,A20+6,FALSE),T20)) -> 285671
A21: 12 | B21: 56 | C21: 0.001585 | D21: 0.9891831958 | E21: 0.6495809316 | F21: 0.6425545418 | G21: 0 | H21: =IF(A21="",0,IF(B21>=ann_ganrantee_age,0,MAX(GP*MIN(A21,ppp)-SUM($G$10:G21),U21))) -> 407790 | I21: =IF(A21="",0,IF(AND(B21>start_age-1,B21<=ann_ganrantee_age),'00summary'!$F$17,0)) -> 0 | J21: 407.2481932 | K21: 407.2481932 | L21: 0 | M21: 0 | N21: 0 | O21: =IF(A22="",0,IF(B22<ann2_begin_age,SUM(J22:OFFSET(J22,bpp-1,)),SUM(K22:OFFSET(K22,bpp-1,)))/IF(F22=0,1,F22)) -> 296909.2016 | P21: =IF(A22="",0,SUM(N22:OFFSET(N22,ppp-1,))/IF(F22=0,1,F22)) -> 0 | Q21: 296909.2016 | R21: 1 | S21: 296909 | T21: 296909 | U21: =IF(A21="",0,IF('00summary'!$G$11=1,VLOOKUP('05 cv'!$U$5,cv_read!$4:$2064,A21+6,FALSE),T21)) -> 296909
A22: 13 | B22: 57 | C22: 0.001736 | D22: 0.9876153404 | E22: 0.6245970496 | F22: 0.6168616278 | G22: 0 | H22: =IF(A22="",0,IF(B22>=ann_ganrantee_age,0,MAX(GP*MIN(A22,ppp)-SUM($G$10:G22),U22))) -> 407790 | I22: =IF(A22="",0,IF(AND(B22>start_age-1,B22<=ann_ganrantee_age),'00summary'!$F$17,0)) -> 0 | J22: 428.2105651 | K22: 428.2105651 | L22: 0 | M22: 0 | N22: 0 | O22: =IF(A23="",0,IF(B23<ann2_begin_age,SUM(J23:OFFSET(J23,bpp-1,)),SUM(K23:OFFSET(K23,bpp-1,)))/IF(F23=0,1,F23)) -> 308599.355 | P22: =IF(A23="",0,SUM(N23:OFFSET(N23,ppp-1,))/IF(F23=0,1,F23)) -> 0 | Q22: 308599.355 | R22: 1 | S22: 308599 | T22: 308599 | U22: =IF(A22="",0,IF('00summary'!$G$11=1,VLOOKUP('05 cv'!$U$5,cv_read!$4:$2064,A22+6,FALSE),T22)) -> 308599
A23: 14 | B23: 58 | C23: 0.001905 | D23: 0.9859008402 | E23: 0.6005740861 | F23: 0.5921064961 | G23: 0 | H23: =IF(A23="",0,IF(B23>=ann_ganrantee_age,0,MAX(GP*MIN(A23,ppp)-SUM($G$10:G23),U23))) -> 407790 | I23: =IF(A23="",0,IF(AND(B23>start_age-1,B23<=ann_ganrantee_age),'00summary'!$F$17,0)) -> 0 | J23: 451.0396358 | K23: 451.0396358 | L23: 0 | M23: 0 | N23: 0 | O23: =IF(A24="",0,IF(B24<ann2_begin_age,SUM(J24:OFFSET(J24,bpp-1,)),SUM(K24:OFFSET(K24,bpp-1,)))/IF(F24=0,1,F24)) -> 320762.1567 | P23: =IF(A24="",0,SUM(N24:OFFSET(N24,ppp-1,))/IF(F24=0,1,F24)) -> 0 | Q23: 320762.1567 | R23: 1 | S23: 320762 | T23: 320762 | U23: =IF(A23="",0,IF('00summary'!$G$11=1,VLOOKUP('05 cv'!$U$5,cv_read!$4:$2064,A23+6,FALSE),T23)) -> 320762
A24: 15 | B24: 59 | C24: 0.002097 | D24: 0.9840226991 | E24: 0.5774750828 | F24: 0.5682485897 | G24: 0 | H24: =IF(A24="",0,IF(B24>=ann_ganrantee_age,0,MAX(GP*MIN(A24,ppp)-SUM($G$10:G24),U24))) -> 407790 | I24: =IF(A24="",0,IF(AND(B24>start_age-1,B24<=ann_ganrantee_age),'00summary'!$F$17,0)) -> 0 | J24: 476.4931909 | K24: 476.4931909 | L24: 0 | M24: 0 | N24: 0 | O24: =IF(A25="",0,IF(B25<ann2_begin_age,SUM(J25:OFFSET(J25,bpp-1,)),SUM(K25:OFFSET(K25,bpp-1,)))/IF(F25=0,1,F25)) -> 333419.7536 | P24: =IF(A25="",0,SUM(N25:OFFSET(N25,ppp-1,))/IF(F25=0,1,F25)) -> 0 | Q24: 333419.7536 | R24: 1 | S24: 333420 | T24: 333420 | U24: =IF(A24="",0,IF('00summary'!$G$11=1,VLOOKUP('05 cv'!$U$5,cv_read!$4:$2064,A24+6,FALSE),T24)) -> 333420
A25: 16 | B25: 60 | C25: 0.002315 | D25: 0.9819592035 | E25: 0.5552645027 | F25: 0.5452470888 | G25: 0 | H25: =IF(A25="",0,IF(B25>=ann_ganrantee_age,0,MAX(GP*MIN(A25,ppp)-SUM($G$10:G25),U25))) -> 407790 | I25: =IF(A25="",0,IF(AND(B25>start_age-1,B25<=ann_ganrantee_age),'00summary'!$F$17,0)) -> 0 | J25: 504.7359665 | K25: 504.7359665 | L25: 0 | M25: 0 | N25: 0 | O25: =IF(A26="",0,IF(B26<ann2_begin_age,SUM(J26:OFFSET(J26,bpp-1,)),SUM(K26:OFFSET(K26,bpp-1,)))/IF(F26=0,1,F26)) -> 346596.1845 | P25: =IF(A26="",0,SUM(N26:OFFSET(N26,ppp-1,))/IF(F26=0,1,F26)) -> 0 | Q25: 346596.1845 | R25: 1 | S25: 346596 | T25: 346596 | U25: =IF(A25="",0,IF('00summary'!$G$11=1,VLOOKUP('05 cv'!$U$5,cv_read!$4:$2064,A25+6,FALSE),T25)) -> 346596
A26: 17 | B26: 61 | C26: 0.002561 | D26: 0.9796859679 | E26: 0.5339081757 | F26: 0.5230623479 | G26: 0 | H26: =IF(A26="",0,IF(B26>=ann_ganrantee_age,0,MAX(GP*MIN(A26,ppp)-SUM($G$10:G26),U26))) -> 407790 | I26: =IF(A26="",0,IF(AND(B26>start_age-1,B26<=ann_ganrantee_age),'00summary'!$F$17,0)) -> 0 | J26: 535.6522572 | K26: 535.6522572 | L26: 0 | M26: 0 | N26: 0 | O26: =IF(A27="",0,IF(B27<ann2_begin_age,SUM(J27:OFFSET(J27,bpp-1,)),SUM(K27:OFFSET(K27,bpp-1,)))/IF(F27=0,1,F27)) -> 360317.7733 | P26: =IF(A27="",0,SUM(N27:OFFSET(N27,ppp-1,))/IF(F27=0,1,F27)) -> 0 | Q26: 360317.7733 | R26: 1 | S26: 360318 | T26: 360318 | U26: =IF(A26="",0,IF('00summary'!$G$11=1,VLOOKUP('05 cv'!$U$5,cv_read!$4:$2064,A26+6,FALSE),T26)) -> 360318
A27: 18 | B27: 62 | C27: 0.002836 | D27: 0.9771769922 | E27: 0.5133732459 | F27: 0.5016565242 | G27: 0 | H27: =IF(A27="",0,IF(B27>=ann_ganrantee_age,0,MAX(GP*MIN(A27,ppp)-SUM($G$10:G27),U27))) -> 407790 | I27: =IF(A27="",0,IF(AND(B27>start_age-1,B27<=ann_ganrantee_age),'00summary'!$F$17,0)) -> 0 | J27: 568.8956242 | K27: 568.8956242 | L27: 0 | M27: 0 | N27: 0 | O27: =IF(A28="",0,IF(B28<ann2_begin_age,SUM(J28:OFFSET(J28,bpp-1,)),SUM(K28:OFFSET(K28,bpp-1,)))/IF(F28=0,1,F28)) -> 374613.4926 | P27: =IF(A28="",0,SUM(N28:OFFSET(N28,ppp-1,))/IF(F28=0,1,F28)) -> 0 | Q27: 374613.4926 | R27: 1 | S27: 374613 | T27: 374613 | U27: =IF(A27="",0,IF('00summary'!$G$11=1,VLOOKUP('05 cv'!$U$5,cv_read!$4:$2064,A27+6,FALSE),T27)) -> 374613
A28: 19 | B28: 63 | C28: 0.003137 | D28: 0.9744057182 | E28: 0.493628121 | F28: 0.4809940638 | G28: 0 | H28: =IF(A28="",0,IF(B28>=ann_ganrantee_age,0,MAX(GP*MIN(A28,ppp)-SUM($G$10:G28),U28))) -> 407790 | I28: =IF(A28="",0,IF(AND(B28>start_age-1,B28<=ann_ganrantee_age),'00summary'!$F$17,0)) -> 0 | J28: 603.3566965 | K28: 603.3566965 | L28: 0 | M28: 0 | N28: 0 | O28: =IF(A29="",0,IF(B29<ann2_begin_age,SUM(J29:OFFSET(J29,bpp-1,)),SUM(K29:OFFSET(K29,bpp-1,)))/IF(F29=0,1,F29)) -> 389515.3709 | P28: =IF(A29="",0,SUM(N29:OFFSET(N29,ppp-1,))/IF(F29=0,1,F29)) -> 0 | Q28: 389515.3709 | R28: 1 | S28: 389515 | T28: 389515 | U28: =IF(A28="",0,IF('00summary'!$G$11=1,VLOOKUP('05 cv'!$U$5,cv_read!$4:$2064,A28+6,FALSE),T28)) -> 389515
A29: 20 | B29: 64 | C29: 0.003468 | D29: 0.9713490075 | E29: 0.474642424 | F29: 0.4610434475 | G29: 0 | H29: =IF(A29="",0,IF(B29>=ann_ganrantee_age,0,MAX(GP*MIN(A29,ppp)-SUM($G$10:G29),U29))) -> 407790 | I29: =IF(A29="",0,IF(AND(B29>start_age-1,B29<=ann_ganrantee_age),'00summary'!$F$17,0)) -> 0 | J29: 639.3532025 | K29: 639.3532025 | L29: 0 | M29: 0 | N29: 0 | O29: =IF(A30="",0,IF(B30<ann2_begin_age,SUM(J30:OFFSET(J30,bpp-1,)),SUM(K30:OFFSET(K30,bpp-1,)))/IF(F30=0,1,F30)) -> 405058.5059 | P29: =IF(A30="",0,SUM(N30:OFFSET(N30,ppp-1,))/IF(F30=0,1,F30)) -> 0 | Q29: 393192.5059 | R29: 1 | S29: 393193 | T29: 405059 | U29: =IF(A29="",0,IF('00summary'!$G$11=1,VLOOKUP('05 cv'!$U$5,cv_read!$4:$2064,A29+6,FALSE),T29)) -> 405059
A30: 21 | B30: 65 | C30: 0.003835 | D30: 0.9679803691 | E30: 0.4563869462 | F30: 0.4417736047 | G30: 11866 | H30: =IF(A30="",0,IF(B30>=ann_ganrantee_age,0,MAX(GP*MIN(A30,ppp)-SUM($G$10:G30),U30))) -> 408889 | I30: =IF(A30="",0,IF(AND(B30>start_age-1,B30<=ann_ganrantee_age),'00summary'!$F$17,0)) -> 0 | J30: 5921.37351 | K30: 5921.37351 | L30: 0 | M30: 0 | N30: 0 | O30: =IF(A31="",0,IF(B31<ann2_begin_age,SUM(J31:OFFSET(J31,bpp-1,)),SUM(K31:OFFSET(K31,bpp-1,)))/IF(F31=0,1,F31)) -> 408889.1524 | P30: =IF(A31="",0,SUM(N31:OFFSET(N31,ppp-1,))/IF(F31=0,1,F31)) -> 0 | Q30: 397023.1524 | R30: 1 | S30: 397023 | T30: 408889 | U30: =IF(A30="",0,IF('00summary'!$G$11=1,VLOOKUP('05 cv'!$U$5,cv_read!$4:$2064,A30+6,FALSE),T30)) -> 408889
A31: 22 | B31: 66 | C31: 0.004254 | D31: 0.9642681644 | E31: 0.4388336021 | F31: 0.423153272 | G31: 11866 | H31: =IF(A31="",0,IF(B31>=ann_ganrantee_age,0,MAX(GP*MIN(A31,ppp)-SUM($G$10:G31),U31))) -> 412869 | I31: =IF(A31="",0,IF(AND(B31>start_age-1,B31<=ann_ganrantee_age),'00summary'!$F$17,0)) -> 0 | J31: 5749.907243 | K31: 5749.907243 | L31: 0 | M31: 0 | N31: 0 | O31: =IF(A32="",0,IF(B32<ann2_begin_age,SUM(J32:OFFSET(J32,bpp-1,)),SUM(K32:OFFSET(K32,bpp-1,)))/IF(F32=0,1,F32)) -> 412869.2973 | P31: =IF(A32="",0,SUM(N32:OFFSET(N32,ppp-1,))/IF(F32=0,1,F32)) -> 0 | Q31: 401003.2973 | R31: 1 | S31: 401003 | T31: 412869 | U31: =IF(A31="",0,IF('00summary'!$G$11=1,VLOOKUP('05 cv'!$U$5,cv_read!$4:$2064,A31+6,FALSE),T31)) -> 412869
A32: 23 | B32: 67 | C32: 0.00474 | D32: 0.9601661676 | E32: 0.4219553867 | F32: 0.4051472865 | G32: 11866 | H32: =IF(A32="",0,IF(B32>=ann_ganrantee_age,0,MAX(GP*MIN(A32,ppp)-SUM($G$10:G32),U32))) -> 417004 | I32: =IF(A32="",0,IF(AND(B32>start_age-1,B32<=ann_ganrantee_age),'00summary'!$F$17,0)) -> 0 | J32: 5592.740146 | K32: 5592.740146 | L32: 0 | M32: 0 | N32: 0 | O32: =IF(A33="",0,IF(B33<ann2_begin_age,SUM(J33:OFFSET(J33,bpp-1,)),SUM(K33:OFFSET(K33,bpp-1,)))/IF(F33=0,1,F33)) -> 417004.2862 | P32: =IF(A33="",0,SUM(N33:OFFSET(N33,ppp-1,))/IF(F33=0,1,F33)) -> 0 | Q32: 405138.2862 | R32: 1 | S32: 405138 | T32: 417004 | U32: =IF(A32="",0,IF('00summary'!$G$11=1,VLOOKUP('05 cv'!$U$5,cv_read!$4:$2064,A32+6,FALSE),T32)) -> 417004
A33: 24 | B33: 68 | C33: 0.005302 | D33: 0.95561498 | E33: 0.4057263333 | F33: 0.3877181619 | G33: 11866 | H33: =IF(A33="",0,IF(B33>=ann_ganrantee_age,0,MAX(GP*MIN(A33,ppp)-SUM($G$10:G33),U33))) -> 421300 | I33: =IF(A33="",0,IF(AND(B33>start_age-1,B33<=ann_ganrantee_age),'00summary'!$F$17,0)) -> 0 | J33: 5449.904132 | K33: 5449.904132 | L33: 0 | M33: 0 | N33: 0 | O33: =IF(A34="",0,IF(B34<ann2_begin_age,SUM(J34:OFFSET(J34,bpp-1,)),SUM(K34:OFFSET(K34,bpp-1,)))/IF(F34=0,1,F34)) -> 421299.5787 | P33: =IF(A34="",0,SUM(N34:OFFSET(N34,ppp-1,))/IF(F34=0,1,F34)) -> 0 | Q33: 409433.5787 | R33: 1 | S33: 409434 | T33: 421300 | U33: =IF(A33="",0,IF('00summary'!$G$11=1,VLOOKUP('05 cv'!$U$5,cv_read!$4:$2064,A33+6,FALSE),T33)) -> 421300
A34: 25 | B34: 69 | C34: 0.005943 | D34: 0.9505483094 | E34: 0.3901214743 | F34: 0.3708293079 | G34: 11866 | H34: =IF(A34="",0,IF(B34>=ann_ganrantee_age,0,MAX(GP*MIN(A34,ppp)-SUM($G$10:G34),U34))) -> 425761 | I34: =IF(A34="",0,IF(AND(B34>start_age-1,B34<=ann_ganrantee_age),'00summary'!$F$17,0)) -> 0 | J34: 5320.347766 | K34: 5320.347766 | L34: 0 | M34: 0 | N34: 0 | O34: =IF(A35="",0,IF(B35<ann2_begin_age,SUM(J35:OFFSET(J35,bpp-1,)),SUM(K35:OFFSET(K35,bpp-1,)))/IF(F35=0,1,F35)) -> 425760.811 | P34: =IF(A35="",0,SUM(N35:OFFSET(N35,ppp-1,))/IF(F35=0,1,F35)) -> 0 | Q34: 413894.811 | R34: 1 | S34: 413895 | T34: 425761 | U34: =IF(A34="",0,IF('00summary'!$G$11=1,VLOOKUP('05 cv'!$U$5,cv_read!$4:$2064,A34+6,FALSE),T34)) -> 425761
A35: 26 | B35: 70 | C35: 0.00666 | D35: 0.9448992008 | E35: 0.3751168023 | F35: 0.3544475667 | G35: 11866 | H35: =IF(A35="",0,IF(B35>=ann_ganrantee_age,0,MAX(GP*MIN(A35,ppp)-SUM($G$10:G35),U35))) -> 430394 | I35: =IF(A35="",0,IF(AND(B35>start_age-1,B35<=ann_ganrantee_age),'00summary'!$F$17,0)) -> 0 | J35: 5202.141876 | K35: 5202.141876 | L35: 0 | M35: 0 | N35: 0 | O35: =IF(A36="",0,IF(B36<ann2_begin_age,SUM(J36:OFFSET(J36,bpp-1,)),SUM(K36:OFFSET(K36,bpp-1,)))/IF(F36=0,1,F36)) -> 430393.836 | P35: =IF(A36="",0,SUM(N36:OFFSET(N36,ppp-1,))/IF(F36=0,1,F36)) -> 0 | Q35: 418527.836 | R35: 1 | S35: 418528 | T35: 430394 | U35: =IF(A35="",0,IF('00summary'!$G$11=1,VLOOKUP('05 cv'!$U$5,cv_read!$4:$2064,A35+6,FALSE),T35)) -> 430394
A36: 27 | B36: 71 | C36: 0.00746 | D36: 0.9386061721 | E36: 0.3606892329 | F36: 0.3385451402 | G36: 11866 | H36: =IF(A36="",0,IF(B36>=ann_ganrantee_age,0,MAX(GP*MIN(A36,ppp)-SUM($G$10:G36),U36))) -> 435205 | I36: =IF(A36="",0,IF(AND(B36>start_age-1,B36<=ann_ganrantee_age),'00summary'!$F$17,0)) -> 0 | J36: 5094.962833 | K36: 5094.962833 | L36: 0 | M36: 0 | N36: 0 | O36: =IF(A37="",0,IF(B37<ann2_begin_age,SUM(J37:OFFSET(J37,bpp-1,)),SUM(K37:OFFSET(K37,bpp-1,)))/IF(F37=0,1,F37)) -> 435204.6509 | P36: =IF(A37="",0,SUM(N37:OFFSET(N37,ppp-1,))/IF(F37=0,1,F37)) -> 0 | Q36: 423338.6509 | R36: 1 | S36: 423339 | T36: 435205 | U36: =IF(A36="",0,IF('00summary'!$G$11=1,VLOOKUP('05 cv'!$U$5,cv_read!$4:$2064,A36+6,FALSE),T36)) -> 435205
A37: 28 | B37: 72 | C37: 0.008369 | D37: 0.9316041701 | E37: 0.3468165701 | F37: 0.323095763 | G37: 11866 | H37: =IF(A37="",0,IF(B37>=ann_ganrantee_age,0,MAX(GP*MIN(A37,ppp)-SUM($G$10:G37),U37))) -> 440199 | I37: =IF(A37="",0,IF(AND(B37>start_age-1,B37<=ann_ganrantee_age),'00summary'!$F$17,0)) -> 0 | J37: 5001.032645 | K37: 5001.032645 | L37: 0 | M37: 0 | N37: 0 | O37: =IF(A38="",0,IF(B38<ann2_begin_age,SUM(J38:OFFSET(J38,bpp-1,)),SUM(K38:OFFSET(K38,bpp-1,)))/IF(F38=0,1,F38)) -> 440199.2408 | P37: =IF(A38="",0,SUM(N38:OFFSET(N38,ppp-1,))/IF(F38=0,1,F38)) -> 0 | Q37: 428333.2408 | R37: 1 | S37: 428333 | T37: 440199 | U37: =IF(A37="",0,IF('00summary'!$G$11=1,VLOOKUP('05 cv'!$U$5,cv_read!$4:$2064,A37+6,FALSE),T37)) -> 440199
A38: 29 | B38: 73 | C38: 0.009436 | D38: 0.9238075748 | E38: 0.3334774713 | F38: 0.308069014 | G38: 11866 | H38: =IF(A38="",0,IF(B38>=ann_ganrantee_age,0,MAX(GP*MIN(A38,ppp)-SUM($G$10:G38),U38))) -> 445383 | I38: =IF(A38="",0,IF(AND(B38>start_age-1,B38<=ann_ganrantee_age),'00summary'!$F$17,0)) -> 0 | J38: 4925.106004 | K38: 4925.106004 | L38: 0 | M38: 0 | N38: 0 | O38: =IF(A39="",0,IF(B39<ann2_begin_age,SUM(J39:OFFSET(J39,bpp-1,)),SUM(K39:OFFSET(K39,bpp-1,)))/IF(F39=0,1,F39)) -> 445383.3452 | P38: =IF(A39="",0,SUM(N39:OFFSET(N39,ppp-1,))/IF(F39=0,1,F39)) -> 0 | Q38: 433517.3452 | R38: 1 | S38: 433517 | T38: 445383 | U38: =IF(A38="",0,IF('00summary'!$G$11=1,VLOOKUP('05 cv'!$U$5,cv_read!$4:$2064,A38+6,FALSE),T38)) -> 445383
A39: 30 | B39: 74 | C39: 0.01073 | D39: 0.9150905265 | E39: 0.3206514147 | F39: 0.2934250719 | G39: 11866 | H39: =IF(A39="",0,IF(B39>=ann_ganrantee_age,0,MAX(GP*MIN(A39,ppp)-SUM($G$10:G39),U39))) -> 450762 | I39: =IF(A39="",0,IF(AND(B39>start_age-1,B39<=ann_ganrantee_age),'00summary'!$F$17,0)) -> 0 | J39: 4873.424037 | K39: 4873.424037 | L39: 0 | M39: 0 | N39: 0 | O39: =IF(A40="",0,IF(B40<ann2_begin_age,SUM(J40:OFFSET(J40,bpp-1,)),SUM(K40:OFFSET(K40,bpp-1,)))/IF(F40=0,1,F40)) -> 450762.2567 | P39: =IF(A40="",0,SUM(N40:OFFSET(N40,ppp-1,))/IF(F40=0,1,F40)) -> 0 | Q39: 438896.2567 | R39: 1 | S39: 438896 | T39: 450762 | U39: =IF(A39="",0,IF('00summary'!$G$11=1,VLOOKUP('05 cv'!$U$5,cv_read!$4:$2064,A39+6,FALSE),T39)) -> 450762
A40: 31 | B40: 75 | C40: 0.012332 | D40: 0.9052716051 | E40: 0.308318668 | F40: 0.2791121355 | G40: 11866 | H40: =IF(A40="",0,IF(B40>=ann_ganrantee_age,0,MAX(GP*MIN(A40,ppp)-SUM($G$10:G40),U40))) -> 456341 | I40: =IF(A40="",0,IF(AND(B40>start_age-1,B40<=ann_ganrantee_age),'00summary'!$F$17,0)) -> 0 | J40: 4852.172746 | K40: 4852.172746 | L40: 0 | M40: 0 | N40: 0 | O40: =IF(A41="",0,IF(B41<ann2_begin_age,SUM(J41:OFFSET(J41,bpp-1,)),SUM(K41:OFFSET(K41,bpp-1,)))/IF(F41=0,1,F41)) -> 456340.6543 | P40: =IF(A41="",0,SUM(N41:OFFSET(N41,ppp-1,))/IF(F41=0,1,F41)) -> 0 | Q40: 444474.6543 | R40: 1 | S40: 444475 | T40: 456341 | U40: =IF(A40="",0,IF('00summary'!$G$11=1,VLOOKUP('05 cv'!$U$5,cv_read!$4:$2064,A40+6,FALSE),T40)) -> 456341
A41: 32 | B41: 76 | C41: 0.014315 | D41: 0.8941077957 | E41: 0.2964602577 | F41: 0.2650674275 | G41: 11866 | H41: =IF(A41="",0,IF(B41>=ann_ganrantee_age,0,MAX(GP*MIN(A41,ppp)-SUM($G$10:G41),U41))) -> 462123 | I41: =IF(A41="",0,IF(AND(B41>start_age-1,B41<=ann_ganrantee_age),'00summary'!$F$17,0)) -> 0 | J41: 4864.736446 | K41: 4864.736446 | L41: 0 | M41: 0 | N41: 0 | O41: =IF(A42="",0,IF(B42<ann2_begin_age,SUM(J42:OFFSET(J42,bpp-1,)),SUM(K42:OFFSET(K42,bpp-1,)))/IF(F42=0,1,F42)) -> 462122.6265 | P41: =IF(A42="",0,SUM(N42:OFFSET(N42,ppp-1,))/IF(F42=0,1,F42)) -> 0 | Q41: =IF(A41="",0,O41-P41-IF(B42>ann_ganrantee_age,0,G42)) -> 450256.6265 | R41: 1 | S41: 450257 | T41: 462123 | U41: =IF(A41="",0,IF('00summary'!$G$11=1,VLOOKUP('05 cv'!$U$5,cv_read!$4:$2064,A41+6,FALSE),T41)) -> 462123
A42: 33 | B42: 77 | C42: 0.016734 | D42: 0.8813086426 | E42: 0.2850579401 | F42: 0.2512240262 | G42: =IF(A42="",0,IF(B42<ann2_begin_age,0,SA)+MIN(A42,ppp)*GP*I42) -> 11866 | H42: =IF(A42="",0,IF(B42>=ann_ganrantee_age,0,MAX(GP*MIN(A42,ppp)-SUM($G$10:G42),U42))) -> 468112 | I42: =IF(A42="",0,IF(AND(B42>start_age-1,B42<=ann_ganrantee_age),'00summary'!$F$17,0)) -> 0 | J42: =IF(A42="",0,G42*F42+H42*C42*F42/(1+i_cv)^0.5) -> 4910.743153 | K42: 4910.743153 | L42: =IF(A42="",0,IF(A42>ppp,0,VLOOKUP(ppp,cv_loading,MIN(6,A42)+1,FALSE))) -> 0 | M42: 0 | N42: =IF(A42="",0,IF(A42<=ppp,gp_cv*(1-L42)*F42,0)) -> 0 | O42: =IF(A43="",0,IF(B43<ann2_begin_age,SUM(J43:OFFSET(J43,bpp-1,)),SUM(K43:OFFSET(K43,bpp-1,)))/IF(F43=0,1,F43)) -> 468111.7559 | P42: =IF(A43="",0,SUM(N43:OFFSET(N43,ppp-1,))/IF(F43=0,1,F43)) -> 0 | Q42: 456245.7559 | R42: =IF(A42="",0,IF(A42<MIN(ppp,20),0.9+0.1*A42/MIN(ppp,20),1)) -> 1 | S42: =IF(A42="",0,IF(B42>=ann_ganrantee_age,0,MAX(ROUND(Q42*R42,0),0))) -> 456246 | T42: =IF(A42="",0,IF(B42>=ann_ganrantee_age,0,S42+IF(B42>ann_ganrantee_age-1,0,G43))) -> 468112 | U42: =IF(A42="",0,IF('00summary'!$G$11=1,VLOOKUP('05 cv'!$U$5,cv_read!$4:$2064,A42+6,FALSE),T42)) -> 468112
A43: 34 | B43: 78 | C43: 0.019619 | D43: 0.8665608238 | E43: =IF(A43="",0,E42/(1+i_cv)) -> 0.2740941731 | F43: 0.2375192725 | G43: 11866 | H43: =IF(A43="",0,IF(B43>=ann_ganrantee_age,0,MAX(GP*MIN(A43,ppp)-SUM($G$10:G43),U43))) -> 474311 | I43: =IF(A43="",0,IF(AND(B43>start_age-1,B43<=ann_ganrantee_age),'00summary'!$F$17,0)) -> 0 | J43: 4985.719744 | K43: 4985.719744 | L43: 0 | M43: 0 | N43: 0 | O43: =IF(A44="",0,IF(B44<ann2_begin_age,SUM(J44:OFFSET(J44,bpp-1,)),SUM(K44:OFFSET(K44,bpp-1,)))/IF(F44=0,1,F44)) -> 474311.3068 | P43: =IF(A44="",0,SUM(N44:OFFSET(N44,ppp-1,))/IF(F44=0,1,F44)) -> 0 | Q43: 462445.3068 | R43: 1 | S43: 462445 | T43: 474311 | U43: =IF(A43="",0,IF('00summary'!$G$11=1,VLOOKUP('05 cv'!$U$5,cv_read!$4:$2064,A43+6,FALSE),T43)) -> 474311
A44: 35 | B44: 79 | C44: 0.022971 | D44: 0.849559767 | E44: 0.2635520896 | F44: 0.2239032518 | G44: 11866 | H44: =IF(A44="",0,IF(B44>=ann_ganrantee_age,0,MAX(GP*MIN(A44,ppp)-SUM($G$10:G44),U44))) -> 480724 | I44: =IF(A44="",0,IF(AND(B44>start_age-1,B44<=ann_ganrantee_age),'00summary'!$F$17,0)) -> 0 | J44: 5081.32063 | K44: 5081.32063 | L44: 0 | M44: 0 | N44: 0 | O44: =IF(A45="",0,IF(B45<ann2_begin_age,SUM(J45:OFFSET(J45,bpp-1,)),SUM(K45:OFFSET(K45,bpp-1,)))/IF(F45=0,1,F45)) -> 480724.4404 | P44: =IF(A45="",0,SUM(N45:OFFSET(N45,ppp-1,))/IF(F45=0,1,F45)) -> 0 | Q44: 468858.4404 | R44: 1 | S44: 468858 | T44: 480724 | U44: =IF(A44="",0,IF('00summary'!$G$11=1,VLOOKUP('05 cv'!$U$5,cv_read!$4:$2064,A44+6,FALSE),T44)) -> 480724
A45: 36 | B45: 80 | C45: 0.02677 | D45: 0.8300445296 | E45: 0.2534154707 | F45: 0.2103461252 | G45: 11866 | H45: =IF(A45="",0,IF(B45>=ann_ganrantee_age,0,MAX(GP*MIN(A45,ppp)-SUM($G$10:G45),U45))) -> 487354 | I45: =IF(A45="",0,IF(AND(B45>start_age-1,B45<=ann_ganrantee_age),'00summary'!$F$17,0)) -> 0 | J45: 5186.948873 | K45: 5186.948873 | L45: 0 | M45: 0 | N45: 0 | O45: =IF(A46="",0,IF(B46<ann2_begin_age,SUM(J46:OFFSET(J46,bpp-1,)),SUM(K46:OFFSET(K46,bpp-1,)))/IF(F46=0,1,F46)) -> 487354.4183 | P45: =IF(A46="",0,SUM(N46:OFFSET(N46,ppp-1,))/IF(F46=0,1,F46)) -> 0 | Q45: 475488.4183 | R45: 1 | S45: 475488 | T45: 487354 | U45: =IF(A45="",0,IF('00summary'!$G$11=1,VLOOKUP('05 cv'!$U$5,cv_read!$4:$2064,A45+6,FALSE),T45)) -> 487354
A46: 37 | B46: 81 | C46: 0.030989 | D46: 0.8078242375 | E46: 0.2436687219 | F46: 0.1968414994 | G46: 11866 | H46: =IF(A46="",0,IF(B46>=ann_ganrantee_age,0,MAX(GP*MIN(A46,ppp)-SUM($G$10:G46),U46))) -> 494205 | I46: =IF(A46="",0,IF(AND(B46>start_age-1,B46<=ann_ganrantee_age),'00summary'!$F$17,0)) -> 0 | J46: 5291.791082 | K46: 5291.791082 | L46: 0 | M46: 0 | N46: 0 | O46: =IF(A47="",0,IF(B47<ann2_begin_age,SUM(J47:OFFSET(J47,bpp-1,)),SUM(K47:OFFSET(K47,bpp-1,)))/IF(F47=0,1,F47)) -> 494204.649 | P46: =IF(A47="",0,SUM(N47:OFFSET(N47,ppp-1,))/IF(F47=0,1,F47)) -> 0 | Q46: 482338.649 | R46: 1 | S46: 482339 | T46: 494205 | U46: =IF(A46="",0,IF('00summary'!$G$11=1,VLOOKUP('05 cv'!$U$5,cv_read!$4:$2064,A46+6,FALSE),T46)) -> 494205
A47: 38 | B47: 82 | C47: 0.035598 | D47: 0.7827905722 | E47: 0.2342968479 | F47: 0.1834053637 | G47: 11866 | H47: =IF(A47="",0,IF(B47>=ann_ganrantee_age,0,MAX(GP*MIN(A47,ppp)-SUM($G$10:G47),U47))) -> 501279 | I47: =IF(A47="",0,IF(AND(B47>start_age-1,B47<=ann_ganrantee_age),'00summary'!$F$17,0)) -> 0 | J47: 5385.515306 | K47: 5385.515306 | L47: 0 | M47: 0 | N47: 0 | O47: =IF(A48="",0,IF(B48<ann2_begin_age,SUM(J48:OFFSET(J48,bpp-1,)),SUM(K48:OFFSET(K48,bpp-1,)))/IF(F48=0,1,F48)) -> 501278.7963 | P47: =IF(A48="",0,SUM(N48:OFFSET(N48,ppp-1,))/IF(F48=0,1,F48)) -> 0 | Q47: 489412.7963 | R47: 1 | S47: 489413 | T47: 501279 | U47: =IF(A47="",0,IF('00summary'!$G$11=1,VLOOKUP('05 cv'!$U$5,cv_read!$4:$2064,A47+6,FALSE),T47)) -> 501279
A48: 39 | B48: 83 | C48: 0.040576 | D48: 0.7549247934 | E48: 0.2252854307 | F48: 0.1700735572 | G48: 11866 | H48: =IF(A48="",0,IF(B48>=ann_ganrantee_age,0,MAX(GP*MIN(A48,ppp)-SUM($G$10:G48),U48))) -> 508581 | I48: =IF(A48="",0,IF(AND(B48>start_age-1,B48<=ann_ganrantee_age),'00summary'!$F$17,0)) -> 0 | J48: 5459.606422 | K48: 5459.606422 | L48: 0 | M48: 0 | N48: 0 | O48: =IF(A49="",0,IF(B49<ann2_begin_age,SUM(J49:OFFSET(J49,bpp-1,)),SUM(K49:OFFSET(K49,bpp-1,)))/IF(F49=0,1,F49)) -> 508580.6156 | P48: =IF(A49="",0,SUM(N49:OFFSET(N49,ppp-1,))/IF(F49=0,1,F49)) -> 0 | Q48: 496714.6156 | R48: 1 | S48: 496715 | T48: 508581 | U48: =IF(A48="",0,IF('00summary'!$G$11=1,VLOOKUP('05 cv'!$U$5,cv_read!$4:$2064,A48+6,FALSE),T48)) -> 508581
A49: 40 | B49: 84 | C49: 0.045915 | D49: 0.724292965 | E49: 0.2166206064 | F49: 0.1568967813 | G49: 11866 | H49: =IF(A49="",0,IF(B49>=ann_ganrantee_age,0,MAX(GP*MIN(A49,ppp)-SUM($G$10:G49),U49))) -> 516114.2 | I49: =IF(A49="",0,IF(AND(B49>start_age-1,B49<=ann_ganrantee_age),'00summary'!$F$17,0)) -> 0 | J49: 5507.578517 | K49: 5507.578517 | L49: 0 | M49: 0 | N49: 0 | O49: =IF(A50="",0,IF(B50<ann2_begin_age,SUM(J50:OFFSET(J50,bpp-1,)),SUM(K50:OFFSET(K50,bpp-1,)))/IF(F50=0,1,F50)) -> 516113.8851 | P49: =IF(A50="",0,SUM(N50:OFFSET(N50,ppp-1,))/IF(F50=0,1,F50)) -> 0 | Q49: 430845.6851 | R49: 1 | S49: 430846 | T49: 516114.2 | U49: =IF(A49="",0,IF('00summary'!$G$11=1,VLOOKUP('05 cv'!$U$5,cv_read!$4:$2064,A49+6,FALSE),T49)) -> 516114.2
A50: 41 | B50: 85 | C50: 0.051616 | D50: 0.6910370535 | E50: 0.2082890447 | F50: 0.1439354477 | G50: 85268.2 | H50: =IF(A50="",0,IF(B50>=ann_ganrantee_age,0,MAX(GP*MIN(A50,ppp)-SUM($G$10:G50),U50))) -> 447622.2 | I50: =IF(A50="",0,IF(AND(B50>start_age-1,B50<=ann_ganrantee_age),'00summary'!$F$17,0)) -> 0.18 | J50: 15534.08844 | K50: 15534.08844 | L50: 0 | M50: 0 | N50: 0 | O50: =IF(A51="",0,IF(B51<ann2_begin_age,SUM(J51:OFFSET(J51,bpp-1,)),SUM(K51:OFFSET(K51,bpp-1,)))/IF(F51=0,1,F51)) -> 447621.9405 | P50: =IF(A51="",0,SUM(N51:OFFSET(N51,ppp-1,))/IF(F51=0,1,F51)) -> 0 | Q50: 362353.7405 | R50: 1 | S50: 362354 | T50: 447622.2 | U50: =IF(A50="",0,IF('00summary'!$G$11=1,VLOOKUP('05 cv'!$U$5,cv_read!$4:$2064,A50+6,FALSE),T50)) -> 447622.2
A51: 42 | B51: 86 | C51: 0.057646 | D51: 0.655368485 | E51: 0.2002779276 | F51: 0.131255842 | G51: 85268.2 | H51: =IF(A51="",0,IF(B51>=ann_ganrantee_age,0,MAX(GP*MIN(A51,ppp)-SUM($G$10:G51),U51))) -> 376418.2 | I51: =IF(A51="",0,IF(AND(B51>start_age-1,B51<=ann_ganrantee_age),'00summary'!$F$17,0)) -> 0.18 | J51: 13984.76178 | K51: 13984.76178 | L51: 0 | M51: 0 | N51: 0 | O51: =IF(A52="",0,IF(B52<ann2_begin_age,SUM(J52:OFFSET(J52,bpp-1,)),SUM(K52:OFFSET(K52,bpp-1,)))/IF(F52=0,1,F52)) -> 376418.163 | P51: =IF(A52="",0,SUM(N52:OFFSET(N52,ppp-1,))/IF(F52=0,1,F52)) -> 0 | Q51: 291149.963 | R51: 1 | S51: 291150 | T51: 376418.2 | U51: =IF(A51="",0,IF('00summary'!$G$11=1,VLOOKUP('05 cv'!$U$5,cv_read!$4:$2064,A51+6,FALSE),T51)) -> 376418.2
A52: 43 | B52: 87 | C52: 0.064084 | D52: 0.6175891133 | E52: 0.1925749303 | F52: 0.1189321805 | G52: 85268.2 | H52: =IF(A52="",0,IF(B52>=ann_ganrantee_age,0,MAX(GP*MIN(A52,ppp)-SUM($G$10:G52),U52))) -> 302412.2 | I52: =IF(A52="",0,IF(AND(B52>start_age-1,B52<=ann_ganrantee_age),'00summary'!$F$17,0)) -> 0.18 | J52: 12401.25364 | K52: 12401.25364 | L52: 0 | M52: 0 | N52: 0 | O52: =IF(A53="",0,IF(B53<ann2_begin_age,SUM(J53:OFFSET(J53,bpp-1,)),SUM(K53:OFFSET(K53,bpp-1,)))/IF(F53=0,1,F53)) -> 302412.1639 | P52: =IF(A53="",0,SUM(N53:OFFSET(N53,ppp-1,))/IF(F53=0,1,F53)) -> 0 | Q52: 217143.9639 | R52: 1 | S52: 217144 | T52: 302412.2 | U52: =IF(A52="",0,IF('00summary'!$G$11=1,VLOOKUP('05 cv'!$U$5,cv_read!$4:$2064,A52+6,FALSE),T52)) -> 302412.2
A53: 44 | B53: 88 | C53: 0.070942 | D53: 0.5780115326 | E53: 0.1851682023 | F53: 0.1070293564 | G53: 85268.2 | H53: =IF(A53="",0,IF(B53>=ann_ganrantee_age,0,MAX(GP*MIN(A53,ppp)-SUM($G$10:G53),U53))) -> 225513.2 | I53: =IF(A53="",0,IF(AND(B53>start_age-1,B53<=ann_ganrantee_age),'00summary'!$F$17,0)) -> 0.18 | J53: 10805.24287 | K53: 10805.24287 | L53: 0 | M53: 0 | N53: 0 | O53: =IF(A54="",0,IF(B54<ann2_begin_age,SUM(J54:OFFSET(J54,bpp-1,)),SUM(K54:OFFSET(K54,bpp-1,)))/IF(F54=0,1,F54)) -> 225512.8691 | P53: =IF(A54="",0,SUM(N54:OFFSET(N54,ppp-1,))/IF(F54=0,1,F54)) -> 0 | Q53: 140244.6691 | R53: 1 | S53: 140245 | T53: 225513.2 | U53: =IF(A53="",0,IF('00summary'!$G$11=1,VLOOKUP('05 cv'!$U$5,cv_read!$4:$2064,A53+6,FALSE),T53)) -> 225513.2
A54: 45 | B54: 89 | C54: 0.078241 | D54: 0.5370062384 | E54: 0.1780463483 | F54: 0.09561199978 | G54: 85268.2 | H54: =IF(A54="",0,IF(B54>=ann_ganrantee_age,0,MAX(GP*MIN(A54,ppp)-SUM($G$10:G54),U54))) -> 145629.2 | I54: =IF(A54="",0,IF(AND(B54>start_age-1,B54<=ann_ganrantee_age),'00summary'!$F$17,0)) -> 0.18 | J54: 9220.927108 | K54: 9220.927108 | L54: 0 | M54: 0 | N54: 0 | O54: =IF(A55="",0,IF(B55<ann2_begin_age,SUM(J55:OFFSET(J55,bpp-1,)),SUM(K55:OFFSET(K55,bpp-1,)))/IF(F55=0,1,F55)) -> 145628.7733 | P54: =IF(A55="",0,SUM(N55:OFFSET(N55,ppp-1,))/IF(F55=0,1,F55)) -> 0 | Q54: 60360.57333 | R54: 1 | S54: 60361 | T54: 145629.2 | U54: =IF(A54="",0,IF('00summary'!$G$11=1,VLOOKUP('05 cv'!$U$5,cv_read!$4:$2064,A54+6,FALSE),T54)) -> 145629.2
A55: 46 | B55: 90 | C55: 0.086003 | D55: 0.4949903333 | E55: 0.1711984118 | F55: 0.08474155894 | G55: 85268.2 | H55: =IF(A55="",0,IF(B55>=ann_ganrantee_age,0,MAX(GP*MIN(A55,ppp)-SUM($G$10:G55),U55))) -> 0 | I55: =IF(A55="",0,IF(AND(B55>start_age-1,B55<=ann_ganrantee_age),'00summary'!$F$17,0)) -> 0.18 | J55: 7225.760196 | K55: 7225.760196 | L55: 0 | M55: 0 | N55: 0 | O55: =IF(A56="",0,IF(B56<ann2_begin_age,SUM(J56:OFFSET(J56,bpp-1,)),SUM(K56:OFFSET(K56,bpp-1,)))/IF(F56=0,1,F56)) -> 68681.84061 | P55: =IF(A56="",0,SUM(N56:OFFSET(N56,ppp-1,))/IF(F56=0,1,F56)) -> 0 | Q55: 68681.84061 | R55: 1 | S55: 0 | T55: 0 | U55: =IF(A55="",0,IF('00summary'!$G$11=1,VLOOKUP('05 cv'!$U$5,cv_read!$4:$2064,A55+6,FALSE),T55)) -> 0
A56: 47 | B56: 91 | C56: 0.094249 | D56: 0.4524196797 | E56: 0.1646138575 | F56: 0.0744745487 | G56: 11866 | H56: =IF(A56="",0,IF(B56>=ann_ganrantee_age,0,MAX(GP*MIN(A56,ppp)-SUM($G$10:G56),U56))) -> 0 | I56: =IF(A56="",0,IF(AND(B56>start_age-1,B56<=ann_ganrantee_age),'00summary'!$F$17,0)) -> 0 | J56: 883.7149949 | K56: 883.7149949 | L56: 0 | M56: 0 | N56: 0 | O56: =IF(A57="",0,IF(B57<ann2_begin_age,SUM(J57:OFFSET(J57,bpp-1,)),SUM(K57:OFFSET(K57,bpp-1,)))/IF(F57=0,1,F57)) -> 65236.99585 | P56: =IF(A57="",0,SUM(N57:OFFSET(N57,ppp-1,))/IF(F57=0,1,F57)) -> 0 | Q56: 65236.99585 | R56: 1 | S56: 0 | T56: 0 | U56: =IF(A56="",0,IF('00summary'!$G$11=1,VLOOKUP('05 cv'!$U$5,cv_read!$4:$2064,A56+6,FALSE),T56)) -> 0
A57: 48 | B57: 92 | C57: 0.103002 | D57: 0.4097795773 | E57: 0.1582825553 | F57: 0.06486095862 | G57: 11866 | H57: =IF(A57="",0,IF(B57>=ann_ganrantee_age,0,MAX(GP*MIN(A57,ppp)-SUM($G$10:G57),U57))) -> 0 | I57: =IF(A57="",0,IF(AND(B57>start_age-1,B57<=ann_ganrantee_age),'00summary'!$F$17,0)) -> 0 | J57: 769.6401349 | K57: 769.6401349 | L57: 0 | M57: 0 | N57: 0 | O57: =IF(A58="",0,IF(B58<ann2_begin_age,SUM(J58:OFFSET(J58,bpp-1,)),SUM(K58:OFFSET(K58,bpp-1,)))/IF(F58=0,1,F58)) -> 61879.55345 | P57: =IF(A58="",0,SUM(N58:OFFSET(N58,ppp-1,))/IF(F58=0,1,F58)) -> 0 | Q57: 61879.55345 | R57: 1 | S57: 0 | T57: 0 | U57: =IF(A57="",0,IF('00summary'!$G$11=1,VLOOKUP('05 cv'!$U$5,cv_read!$4:$2064,A57+6,FALSE),T57)) -> 0
A58: 49 | B58: 93 | C58: 0.112281 | D58: 0.3675714613 | E58: 0.1521947647 | F58: 0.05594245207 | G58: 11866 | H58: =IF(A58="",0,IF(B58>=ann_ganrantee_age,0,MAX(GP*MIN(A58,ppp)-SUM($G$10:G58),U58))) -> 0 | I58: =IF(A58="",0,IF(AND(B58>start_age-1,B58<=ann_ganrantee_age),'00summary'!$F$17,0)) -> 0 | J58: 663.8131363 | K58: 663.8131363 | L58: 0 | M58: 0 | N58: 0 | O58: =IF(A59="",0,IF(B59<ann2_begin_age,SUM(J59:OFFSET(J59,bpp-1,)),SUM(K59:OFFSET(K59,bpp-1,)))/IF(F59=0,1,F59)) -> 58592.97321 | P58: =IF(A59="",0,SUM(N59:OFFSET(N59,ppp-1,))/IF(F59=0,1,F59)) -> 0 | Q58: 58592.97321 | R58: 1 | S58: 0 | T58: 0 | U58: =IF(A58="",0,IF('00summary'!$G$11=1,VLOOKUP('05 cv'!$U$5,cv_read!$4:$2064,A58+6,FALSE),T58)) -> 0
A59: 50 | B59: 94 | C59: 0.122109 | D59: 0.32630017 | E59: 0.1463411199 | F59: 0.04775113232 | G59: 11866 | H59: =IF(A59="",0,IF(B59>=ann_ganrantee_age,0,MAX(GP*MIN(A59,ppp)-SUM($G$10:G59),U59))) -> 0 | I59: =IF(A59="",0,IF(AND(B59>start_age-1,B59<=ann_ganrantee_age),'00summary'!$F$17,0)) -> 0 | J59: 566.6149361 | K59: 566.6149361 | L59: 0 | M59: 0 | N59: 0 | O59: =IF(A60="",0,IF(B60<ann2_begin_age,SUM(J60:OFFSET(J60,bpp-1,)),SUM(K60:OFFSET(K60,bpp-1,)))/IF(F60=0,1,F60)) -> 55355.4509 | P59: =IF(A60="",0,SUM(N60:OFFSET(N60,ppp-1,))/IF(F60=0,1,F60)) -> 0 | Q59: 55355.4509 | R59: 1 | S59: 0 | T59: 0 | U59: =IF(A59="",0,IF('00summary'!$G$11=1,VLOOKUP('05 cv'!$U$5,cv_read!$4:$2064,A59+6,FALSE),T59)) -> 0
A60: 51 | B60: 95 | C60: 0.13254 | D60: 0.2864559826 | E60: 0.1407126153 | F60: 0.04030797048 | G60: 11866 | H60: =IF(A60="",0,IF(B60>=ann_ganrantee_age,0,MAX(GP*MIN(A60,ppp)-SUM($G$10:G60),U60))) -> 0 | I60: =IF(A60="",0,IF(AND(B60>start_age-1,B60<=ann_ganrantee_age),'00summary'!$F$17,0)) -> 0 | J60: 478.2943778 | K60: 478.2943778 | L60: 0 | M60: 0 | N60: 0 | O60: =IF(A61="",0,IF(B61<ann2_begin_age,SUM(J61:OFFSET(J61,bpp-1,)),SUM(K61:OFFSET(K61,bpp-1,)))/IF(F61=0,1,F61)) -> 52139.61328 | P60: =IF(A61="",0,SUM(N61:OFFSET(N61,ppp-1,))/IF(F61=0,1,F61)) -> 0 | Q60: 52139.61328 | R60: 1 | S60: 0 | T60: 0 | U60: =IF(A60="",0,IF('00summary'!$G$11=1,VLOOKUP('05 cv'!$U$5,cv_read!$4:$2064,A60+6,FALSE),T60)) -> 0
A61: 52 | B61: 96 | C61: 0.143757 | D61: 0.2484891066 | E61: 0.1353005917 | F61: 0.03362072315 | G61: 11866 | H61: =IF(A61="",0,IF(B61>=ann_ganrantee_age,0,MAX(GP*MIN(A61,ppp)-SUM($G$10:G61),U61))) -> 0 | I61: =IF(A61="",0,IF(AND(B61>start_age-1,B61<=ann_ganrantee_age),'00summary'!$F$17,0)) -> 0 | J61: 398.9435009 | K61: 398.9435009 | L61: 0 | M61: 0 | N61: 0 | O61: =IF(A62="",0,IF(B62<ann2_begin_age,SUM(J62:OFFSET(J62,bpp-1,)),SUM(K62:OFFSET(K62,bpp-1,)))/IF(F62=0,1,F62)) -> 48916.67179 | P61: =IF(A62="",0,SUM(N62:OFFSET(N62,ppp-1,))/IF(F62=0,1,F62)) -> 0 | Q61: 48916.67179 | R61: 1 | S61: 0 | T61: 0 | U61: =IF(A61="",0,IF('00summary'!$G$11=1,VLOOKUP('05 cv'!$U$5,cv_read!$4:$2064,A61+6,FALSE),T61)) -> 0
A62: 53 | B62: 97 | C62: 0.155979 | D62: 0.2127670581 | E62: 0.1300967228 | F62: 0.02768029697 | G62: 11866 | H62: =IF(A62="",0,IF(B62>=ann_ganrantee_age,0,MAX(GP*MIN(A62,ppp)-SUM($G$10:G62),U62))) -> 0 | I62: =IF(A62="",0,IF(AND(B62>start_age-1,B62<=ann_ganrantee_age),'00summary'!$F$17,0)) -> 0 | J62: 328.4544039 | K62: 328.4544039 | L62: 0 | M62: 0 | N62: 0 | O62: =IF(A63="",0,IF(B63<ann2_begin_age,SUM(J63:OFFSET(J63,bpp-1,)),SUM(K63:OFFSET(K63,bpp-1,)))/IF(F63=0,1,F63)) -> 45653.72031 | P62: =IF(A63="",0,SUM(N63:OFFSET(N63,ppp-1,))/IF(F63=0,1,F63)) -> 0 | Q62: 45653.72031 | R62: 1 | S62: 0 | T62: 0 | U62: =IF(A62="",0,IF('00summary'!$G$11=1,VLOOKUP('05 cv'!$U$5,cv_read!$4:$2064,A62+6,FALSE),T62)) -> 0
A63: 54 | B63: 98 | C63: 0.169421 | D63: 0.1795798652 | E63: 0.1250930027 | F63: 0.02246418455 | G63: 11866 | H63: =IF(A63="",0,IF(B63>=ann_ganrantee_age,0,MAX(GP*MIN(A63,ppp)-SUM($G$10:G63),U63))) -> 0 | I63: =IF(A63="",0,IF(AND(B63>start_age-1,B63<=ann_ganrantee_age),'00summary'!$F$17,0)) -> 0 | J63: 266.5600139 | K63: 266.5600139 | L63: 0 | M63: 0 | N63: 0 | O63: =IF(A64="",0,IF(B64<ann2_begin_age,SUM(J64:OFFSET(J64,bpp-1,)),SUM(K64:OFFSET(K64,bpp-1,)))/IF(F64=0,1,F64)) -> 42306.90773 | P63: =IF(A64="",0,SUM(N64:OFFSET(N64,ppp-1,))/IF(F64=0,1,F64)) -> 0 | Q63: 42306.90773 | R63: 1 | S63: 0 | T63: 0 | U63: =IF(A63="",0,IF('00summary'!$G$11=1,VLOOKUP('05 cv'!$U$5,cv_read!$4:$2064,A63+6,FALSE),T63)) -> 0
A64: 55 | B64: 99 | C64: 0.184301 | D64: 0.1491552648 | E64: 0.1202817333 | F64: 0.01794065379 | G64: 11866 | H64: =IF(A64="",0,IF(B64>=ann_ganrantee_age,0,MAX(GP*MIN(A64,ppp)-SUM($G$10:G64),U64))) -> 0 | I64: =IF(A64="",0,IF(AND(B64>start_age-1,B64<=ann_ganrantee_age),'00summary'!$F$17,0)) -> 0 | J64: 212.8837978 | K64: 212.8837978 | L64: 0 | M64: 0 | N64: 0 | O64: =IF(A65="",0,IF(B65<ann2_begin_age,SUM(J65:OFFSET(J65,bpp-1,)),SUM(K65:OFFSET(K65,bpp-1,)))/IF(F65=0,1,F65)) -> 38811.55186 | P64: =IF(A65="",0,SUM(N65:OFFSET(N65,ppp-1,))/IF(F65=0,1,F65)) -> 0 | Q64: 38811.55186 | R64: 1 | S64: 0 | T64: 0 | U64: =IF(A64="",0,IF('00summary'!$G$11=1,VLOOKUP('05 cv'!$U$5,cv_read!$4:$2064,A64+6,FALSE),T64)) -> 0
A65: 56 | B65: 100 | C65: 0.200836 | D65: 0.1216658004 | E65: 0.1156555128 | F65: 0.01407132053 | G65: 11866 | H65: =IF(A65="",0,IF(B65>=ann_ganrantee_age,0,MAX(GP*MIN(A65,ppp)-SUM($G$10:G65),U65))) -> 0 | I65: =IF(A65="",0,IF(AND(B65>start_age-1,B65<=ann_ganrantee_age),'00summary'!$F$17,0)) -> 0 | J65: 166.9702894 | K65: 166.9702894 | L65: 0 | M65: 0 | N65: 0 | O65: =IF(A66="",0,IF(B66<ann2_begin_age,SUM(J66:OFFSET(J66,bpp-1,)),SUM(K66:OFFSET(K66,bpp-1,)))/IF(F66=0,1,F66)) -> 35065.86125 | P65: =IF(A66="",0,SUM(N66:OFFSET(N66,ppp-1,))/IF(F66=0,1,F66)) -> 0 | Q65: 35065.86125 | R65: 1 | S65: 0 | T65: 0 | U65: =IF(A65="",0,IF('00summary'!$G$11=1,VLOOKUP('05 cv'!$U$5,cv_read!$4:$2064,A65+6,FALSE),T65)) -> 0
A66: 57 | B66: 101 | C66: 0.219242 | D66: 0.09723092769 | E66: 0.1112072239 | F66: 0.01081278154 | G66: 11866 | H66: =IF(A66="",0,IF(B66>=ann_ganrantee_age,0,MAX(GP*MIN(A66,ppp)-SUM($G$10:G66),U66))) -> 0 | I66: =IF(A66="",0,IF(AND(B66>start_age-1,B66<=ann_ganrantee_age),'00summary'!$F$17,0)) -> 0 | J66: 128.3044658 | K66: 128.3044658 | L66: 0 | M66: 0 | N66: 0 | O66: =IF(A67="",0,IF(B67<ann2_begin_age,SUM(J67:OFFSET(J67,bpp-1,)),SUM(K67:OFFSET(K67,bpp-1,)))/IF(F67=0,1,F67)) -> 30903.11684 | P66: =IF(A67="",0,SUM(N67:OFFSET(N67,ppp-1,))/IF(F67=0,1,F67)) -> 0 | Q66: 30903.11684 | R66: 1 | S66: 0 | T66: 0 | U66: =IF(A66="",0,IF('00summary'!$G$11=1,VLOOKUP('05 cv'!$U$5,cv_read!$4:$2064,A66+6,FALSE),T66)) -> 0
A67: 58 | B67: 102 | C67: 0.239737 | D67: 0.07591382464 | E67: 0.1069300229 | F67: 0.00811746701 | G67: 11866 | H67: =IF(A67="",0,IF(B67>=ann_ganrantee_age,0,MAX(GP*MIN(A67,ppp)-SUM($G$10:G67),U67))) -> 0 | I67: =IF(A67="",0,IF(AND(B67>start_age-1,B67<=ann_ganrantee_age),'00summary'!$F$17,0)) -> 0 | J67: 96.32186354 | K67: 96.32186354 | L67: 0 | M67: 0 | N67: 0 | O67: =IF(A68="",0,IF(B68<ann2_begin_age,SUM(J68:OFFSET(J68,bpp-1,)),SUM(K68:OFFSET(K68,bpp-1,)))/IF(F68=0,1,F68)) -> 26041.77963 | P67: =IF(A68="",0,SUM(N68:OFFSET(N68,ppp-1,))/IF(F68=0,1,F68)) -> 0 | Q67: 26041.77963 | R67: 1 | S67: 0 | T67: 0 | U67: =IF(A67="",0,IF('00summary'!$G$11=1,VLOOKUP('05 cv'!$U$5,cv_read!$4:$2064,A67+6,FALSE),T67)) -> 0
A68: 59 | B68: 103 | C68: 0.262537 | D68: 0.05771447206 | E68: 0.1028173297 | F68: 0.005934047905 | G68: 11866 | H68: =IF(A68="",0,IF(B68>=ann_ganrantee_age,0,MAX(GP*MIN(A68,ppp)-SUM($G$10:G68),U68))) -> 0 | I68: =IF(A68="",0,IF(AND(B68>start_age-1,B68<=ann_ganrantee_age),'00summary'!$F$17,0)) -> 0 | J68: 70.41341244 | K68: 70.41341244 | L68: 0 | M68: 0 | N68: 0 | O68: =IF(A69="",0,IF(B69<ann2_begin_age,SUM(J69:OFFSET(J69,bpp-1,)),SUM(K69:OFFSET(K69,bpp-1,)))/IF(F69=0,1,F69)) -> 19991.25491 | P68: =IF(A69="",0,SUM(N69:OFFSET(N69,ppp-1,))/IF(F69=0,1,F69)) -> 0 | Q68: 19991.25491 | R68: 1 | S68: 0 | T68: 0 | U68: =IF(A68="",0,IF('00summary'!$G$11=1,VLOOKUP('05 cv'!$U$5,cv_read!$4:$2064,A68+6,FALSE),T68)) -> 0
A69: 60 | B69: 104 | C69: 0.287859 | D69: 0.04256228771 | E69: 0.09886281706 | F69: 0.004207827664 | G69: 11866 | H69: =IF(A69="",0,IF(B69>=ann_ganrantee_age,0,MAX(GP*MIN(A69,ppp)-SUM($G$10:G69),U69))) -> 0 | I69: =IF(A69="",0,IF(AND(B69>start_age-1,B69<=ann_ganrantee_age),'00summary'!$F$17,0)) -> 0 | J69: 49.93008306 | K69: 49.93008306 | L69: 0 | M69: 0 | N69: 0 | O69: =IF(A70="",0,IF(B70<ann2_begin_age,SUM(J70:OFFSET(J70,bpp-1,)),SUM(K70:OFFSET(K70,bpp-1,)))/IF(F70=0,1,F70)) -> 11866 | P69: =IF(A70="",0,SUM(N70:OFFSET(N70,ppp-1,))/IF(F70=0,1,F70)) -> 0 | Q69: 11866 | R69: 1 | S69: 0 | T69: 0 | U69: =IF(A69="",0,IF('00summary'!$G$11=1,VLOOKUP('05 cv'!$U$5,cv_read!$4:$2064,A69+6,FALSE),T69)) -> 0
A70: 61 | B70: 105 | C70: 1 | D70: 0.03031035013 | E70: 0.09506040102 | F70: 0.002881314039 | G70: 11866 | H70: =IF(A70="",0,IF(B70>=ann_ganrantee_age,0,MAX(GP*MIN(A70,ppp)-SUM($G$10:G70),U70))) -> 0 | I70: =IF(A70="",0,IF(AND(B70>start_age-1,B70<=ann_ganrantee_age),'00summary'!$F$17,0)) -> 0 | J70: 34.18967238 | K70: 34.18967238 | L70: 0 | M70: 0 | N70: 0 | O70: =IF(A71="",0,IF(B71<ann2_begin_age,SUM(J71:OFFSET(J71,bpp-1,)),SUM(K71:OFFSET(K71,bpp-1,)))/IF(F71=0,1,F71)) -> 0 | P70: =IF(A71="",0,SUM(N71:OFFSET(N71,ppp-1,))/IF(F71=0,1,F71)) -> 0 | Q70: 0 | R70: 1 | S70: 0 | T70: 0 | U70: =IF(A70="",0,IF('00summary'!$G$11=1,VLOOKUP('05 cv'!$U$5,cv_read!$4:$2064,A70+6,FALSE),T70)) -> 0
C71: 0 | D71: 0 | E71: 0 | F71: 0 | G71: 0 | H71: =IF(A71="",0,IF(B71>=ann_ganrantee_age,0,MAX(GP*MIN(A71,ppp)-SUM($G$10:G71),U71))) -> 0 | I71: =IF(A71="",0,IF(AND(B71>start_age-1,B71<=ann_ganrantee_age),'00summary'!$F$17,0)) -> 0 | J71: 0 | K71: 0 | L71: 0 | M71: 0 | N71: 0 | O71: =IF(A72="",0,IF(B72<ann2_begin_age,SUM(J72:OFFSET(J72,bpp-1,)),SUM(K72:OFFSET(K72,bpp-1,)))/IF(F72=0,1,F72)) -> 0 | P71: =IF(A72="",0,SUM(N72:OFFSET(N72,ppp-1,))/IF(F72=0,1,F72)) -> 0 | Q71: 0 | R71: 0 | S71: 0 | T71: 0 | U71: =IF(A71="",0,IF('00summary'!$G$11=1,VLOOKUP('05 cv'!$U$5,cv_read!$4:$2064,A71+6,FALSE),T71)) -> 0
C72: 0 | D72: 0 | E72: 0 | F72: 0 | G72: 0 | H72: =IF(A72="",0,IF(B72>=ann_ganrantee_age,0,MAX(GP*MIN(A72,ppp)-SUM($G$10:G72),U72))) -> 0 | I72: =IF(A72="",0,IF(AND(B72>start_age-1,B72<=ann_ganrantee_age),'00summary'!$F$17,0)) -> 0 | J72: 0 | K72: 0 | L72: 0 | M72: 0 | N72: 0 | O72: =IF(A73="",0,IF(B73<ann2_begin_age,SUM(J73:OFFSET(J73,bpp-1,)),SUM(K73:OFFSET(K73,bpp-1,)))/IF(F73=0,1,F73)) -> 0 | P72: =IF(A73="",0,SUM(N73:OFFSET(N73,ppp-1,))/IF(F73=0,1,F73)) -> 0 | Q72: 0 | R72: 0 | S72: 0 | T72: 0 | U72: =IF(A72="",0,IF('00summary'!$G$11=1,VLOOKUP('05 cv'!$U$5,cv_read!$4:$2064,A72+6,FALSE),T72)) -> 0
C73: 0 | D73: 0 | E73: 0 | F73: 0 | G73: 0 | H73: =IF(A73="",0,IF(B73>=ann_ganrantee_age,0,MAX(GP*MIN(A73,ppp)-SUM($G$10:G73),U73))) -> 0 | I73: =IF(A73="",0,IF(AND(B73>start_age-1,B73<=ann_ganrantee_age),'00summary'!$F$17,0)) -> 0 | J73: 0 | K73: 0 | L73: 0 | M73: 0 | N73: 0 | O73: =IF(A74="",0,IF(B74<ann2_begin_age,SUM(J74:OFFSET(J74,bpp-1,)),SUM(K74:OFFSET(K74,bpp-1,)))/IF(F74=0,1,F74)) -> 0 | P73: =IF(A74="",0,SUM(N74:OFFSET(N74,ppp-1,))/IF(F74=0,1,F74)) -> 0 | Q73: =IF(A73="",0,O73-P73-IF(B74>ann_ganrantee_age,0,G74)) -> 0 | R73: 0 | S73: 0 | T73: 0 | U73: =IF(A73="",0,IF('00summary'!$G$11=1,VLOOKUP('05 cv'!$U$5,cv_read!$4:$2064,A73+6,FALSE),T73)) -> 0
A74: =IF(A73>=bpp,"",A73+1) ->  | B74: =IF(A74="","",A74+age-1) ->  | C74: =IF(A74="",0,VLOOKUP(B74,mort_10_13,IF(sex=1,6,7))/1000) -> 0 | D74: 0 | E74: 0 | F74: 0 | G74: =IF(A74="",0,IF(B74<ann2_begin_age,0,SA)+MIN(A74,ppp)*GP*I74) -> 0 | H74: =IF(A74="",0,IF(B74>=ann_ganrantee_age,0,MAX(GP*MIN(A74,ppp)-SUM($G$10:G74),U74))) -> 0 | I74: =IF(A74="",0,IF(AND(B74>start_age-1,B74<=ann_ganrantee_age),'00summary'!$F$17,0)) -> 0 | J74: =IF(A74="",0,G74*F74+H74*C74*F74/(1+i_cv)^0.5) -> 0 | K74: 0 | L74: =IF(A74="",0,IF(A74>ppp,0,VLOOKUP(ppp,cv_loading,MIN(6,A74)+1,FALSE))) -> 0 | M74: 0 | N74: =IF(A74="",0,IF(A74<=ppp,gp_cv*(1-L74)*F74,0)) -> 0 | O74: =IF(A75="",0,IF(B75<ann2_begin_age,SUM(J75:OFFSET(J75,bpp-1,)),SUM(K75:OFFSET(K75,bpp-1,)))/IF(F75=0,1,F75)) -> 0 | P74: =IF(A75="",0,SUM(N75:OFFSET(N75,ppp-1,))/IF(F75=0,1,F75)) -> 0 | Q74: 0 | R74: =IF(A74="",0,IF(A74<MIN(ppp,20),0.9+0.1*A74/MIN(ppp,20),1)) -> 0 | S74: =IF(A74="",0,IF(B74>=ann_ganrantee_age,0,MAX(ROUND(Q74*R74,0),0))) -> 0 | T74: =IF(A74="",0,IF(B74>=ann_ganrantee_age,0,S74+IF(B74>ann_ganrantee_age-1,0,G75))) -> 0 | U74: =IF(A74="",0,IF('00summary'!$G$11=1,VLOOKUP('05 cv'!$U$5,cv_read!$4:$2064,A74+6,FALSE),T74)) -> 0
C75: 0 | D75: 0 | E75: =IF(A75="",0,E74/(1+i_cv)) -> 0 | F75: =IF(A75="",0,D75*E75) -> 0 | G75: 0 | H75: =IF(A75="",0,IF(B75>=ann_ganrantee_age,0,MAX(GP*MIN(A75,ppp)-SUM($G$10:G75),U75))) -> 0 | I75: =IF(A75="",0,IF(AND(B75>start_age-1,B75<=ann_ganrantee_age),'00summary'!$F$17,0)) -> 0 | J75: 0 | K75: =IF(A75="",0,J75) -> 0 | L75: 0 | M75: =IF(A75="",0,L75*F75) -> 0 | N75: 0 | O75: =IF(A76="",0,IF(B76<ann2_begin_age,SUM(J76:OFFSET(J76,bpp-1,)),SUM(K76:OFFSET(K76,bpp-1,)))/IF(F76=0,1,F76)) -> 0 | P75: =IF(A76="",0,SUM(N76:OFFSET(N76,ppp-1,))/IF(F76=0,1,F76)) -> 0 | Q75: 0 | R75: 0 | S75: 0 | T75: 0 | U75: =IF(A75="",0,IF('00summary'!$G$11=1,VLOOKUP('05 cv'!$U$5,cv_read!$4:$2064,A75+6,FALSE),T75)) -> 0
C76: 0 | D76: =IF(A76="",0,D75*(1-C75)) -> 0 | E76: 0 | F76: 0 | G76: 0 | H76: =IF(A76="",0,IF(B76>=ann_ganrantee_age,0,MAX(GP*MIN(A76,ppp)-SUM($G$10:G76),U76))) -> 0 | I76: =IF(A76="",0,IF(AND(B76>start_age-1,B76<=ann_ganrantee_age),'00summary'!$F$17,0)) -> 0 | J76: 0 | K76: 0 | L76: 0 | M76: 0 | N76: 0 | O76: =IF(A77="",0,IF(B77<ann2_begin_age,SUM(J77:OFFSET(J77,bpp-1,)),SUM(K77:OFFSET(K77,bpp-1,)))/IF(F77=0,1,F77)) -> 0 | P76: =IF(A77="",0,SUM(N77:OFFSET(N77,ppp-1,))/IF(F77=0,1,F77)) -> 0 | Q76: 0 | R76: 0 | S76: 0 | T76: 0 | U76: =IF(A76="",0,IF('00summary'!$G$11=1,VLOOKUP('05 cv'!$U$5,cv_read!$4:$2064,A76+6,FALSE),T76)) -> 0
C77: 0 | D77: 0 | E77: 0 | F77: 0 | G77: 0 | H77: =IF(A77="",0,IF(B77>=ann_ganrantee_age,0,MAX(GP*MIN(A77,ppp)-SUM($G$10:G77),U77))) -> 0 | I77: =IF(A77="",0,IF(AND(B77>start_age-1,B77<=ann_ganrantee_age),'00summary'!$F$17,0)) -> 0 | J77: 0 | K77: 0 | L77: 0 | M77: 0 | N77: 0 | O77: =IF(A78="",0,IF(B78<ann2_begin_age,SUM(J78:OFFSET(J78,bpp-1,)),SUM(K78:OFFSET(K78,bpp-1,)))/IF(F78=0,1,F78)) -> 0 | P77: =IF(A78="",0,SUM(N78:OFFSET(N78,ppp-1,))/IF(F78=0,1,F78)) -> 0 | Q77: 0 | R77: 0 | S77: 0 | T77: 0 | U77: =IF(A77="",0,IF('00summary'!$G$11=1,VLOOKUP('05 cv'!$U$5,cv_read!$4:$2064,A77+6,FALSE),T77)) -> 0
C78: 0 | D78: 0 | E78: 0 | F78: 0 | G78: 0 | H78: =IF(A78="",0,IF(B78>=ann_ganrantee_age,0,MAX(GP*MIN(A78,ppp)-SUM($G$10:G78),U78))) -> 0 | I78: =IF(A78="",0,IF(AND(B78>start_age-1,B78<=ann_ganrantee_age),'00summary'!$F$17,0)) -> 0 | J78: 0 | K78: 0 | L78: 0 | M78: 0 | N78: 0 | O78: =IF(A79="",0,IF(B79<ann2_begin_age,SUM(J79:OFFSET(J79,bpp-1,)),SUM(K79:OFFSET(K79,bpp-1,)))/IF(F79=0,1,F79)) -> 0 | P78: =IF(A79="",0,SUM(N79:OFFSET(N79,ppp-1,))/IF(F79=0,1,F79)) -> 0 | Q78: 0 | R78: 0 | S78: 0 | T78: 0 | U78: =IF(A78="",0,IF('00summary'!$G$11=1,VLOOKUP('05 cv'!$U$5,cv_read!$4:$2064,A78+6,FALSE),T78)) -> 0
C79: 0 | D79: 0 | E79: 0 | F79: 0 | G79: 0 | H79: =IF(A79="",0,IF(B79>=ann_ganrantee_age,0,MAX(GP*MIN(A79,ppp)-SUM($G$10:G79),U79))) -> 0 | I79: =IF(A79="",0,IF(AND(B79>start_age-1,B79<=ann_ganrantee_age),'00summary'!$F$17,0)) -> 0 | J79: 0 | K79: 0 | L79: 0 | M79: 0 | N79: 0 | O79: =IF(A80="",0,IF(B80<ann2_begin_age,SUM(J80:OFFSET(J80,bpp-1,)),SUM(K80:OFFSET(K80,bpp-1,)))/IF(F80=0,1,F80)) -> 0 | P79: =IF(A80="",0,SUM(N80:OFFSET(N80,ppp-1,))/IF(F80=0,1,F80)) -> 0 | Q79: 0 | R79: 0 | S79: 0 | T79: 0 | U79: =IF(A79="",0,IF('00summary'!$G$11=1,VLOOKUP('05 cv'!$U$5,cv_read!$4:$2064,A79+6,FALSE),T79)) -> 0
C80: 0 | D80: 0 | E80: 0 | F80: 0 | G80: 0 | H80: =IF(A80="",0,IF(B80>=ann_ganrantee_age,0,MAX(GP*MIN(A80,ppp)-SUM($G$10:G80),U80))) -> 0 | I80: =IF(A80="",0,IF(AND(B80>start_age-1,B80<=ann_ganrantee_age),'00summary'!$F$17,0)) -> 0 | J80: 0 | K80: 0 | L80: 0 | M80: 0 | N80: 0 | O80: =IF(A81="",0,IF(B81<ann2_begin_age,SUM(J81:OFFSET(J81,bpp-1,)),SUM(K81:OFFSET(K81,bpp-1,)))/IF(F81=0,1,F81)) -> 0 | P80: =IF(A81="",0,SUM(N81:OFFSET(N81,ppp-1,))/IF(F81=0,1,F81)) -> 0 | Q80: 0 | R80: 0 | S80: 0 | T80: 0 | U80: =IF(A80="",0,IF('00summary'!$G$11=1,VLOOKUP('05 cv'!$U$5,cv_read!$4:$2064,A80+6,FALSE),T80)) -> 0
C81: 0 | D81: 0 | E81: 0 | F81: 0 | G81: 0 | H81: =IF(A81="",0,IF(B81>=ann_ganrantee_age,0,MAX(GP*MIN(A81,ppp)-SUM($G$10:G81),U81))) -> 0 | I81: =IF(A81="",0,IF(AND(B81>start_age-1,B81<=ann_ganrantee_age),'00summary'!$F$17,0)) -> 0 | J81: 0 | K81: 0 | L81: 0 | M81: 0 | N81: 0 | O81: =IF(A82="",0,IF(B82<ann2_begin_age,SUM(J82:OFFSET(J82,bpp-1,)),SUM(K82:OFFSET(K82,bpp-1,)))/IF(F82=0,1,F82)) -> 0 | P81: =IF(A82="",0,SUM(N82:OFFSET(N82,ppp-1,))/IF(F82=0,1,F82)) -> 0 | Q81: 0 | R81: 0 | S81: 0 | T81: 0 | U81: =IF(A81="",0,IF('00summary'!$G$11=1,VLOOKUP('05 cv'!$U$5,cv_read!$4:$2064,A81+6,FALSE),T81)) -> 0
C82: 0 | D82: 0 | E82: 0 | F82: 0 | G82: 0 | H82: =IF(A82="",0,IF(B82>=ann_ganrantee_age,0,MAX(GP*MIN(A82,ppp)-SUM($G$10:G82),U82))) -> 0 | I82: =IF(A82="",0,IF(AND(B82>start_age-1,B82<=ann_ganrantee_age),'00summary'!$F$17,0)) -> 0 | J82: 0 | K82: 0 | L82: 0 | M82: 0 | N82: 0 | O82: =IF(A83="",0,IF(B83<ann2_begin_age,SUM(J83:OFFSET(J83,bpp-1,)),SUM(K83:OFFSET(K83,bpp-1,)))/IF(F83=0,1,F83)) -> 0 | P82: =IF(A83="",0,SUM(N83:OFFSET(N83,ppp-1,))/IF(F83=0,1,F83)) -> 0 | Q82: 0 | R82: 0 | S82: 0 | T82: 0 | U82: =IF(A82="",0,IF('00summary'!$G$11=1,VLOOKUP('05 cv'!$U$5,cv_read!$4:$2064,A82+6,FALSE),T82)) -> 0
C83: 0 | D83: 0 | E83: 0 | F83: 0 | G83: 0 | H83: =IF(A83="",0,IF(B83>=ann_ganrantee_age,0,MAX(GP*MIN(A83,ppp)-SUM($G$10:G83),U83))) -> 0 | I83: =IF(A83="",0,IF(AND(B83>start_age-1,B83<=ann_ganrantee_age),'00summary'!$F$17,0)) -> 0 | J83: 0 | K83: 0 | L83: 0 | M83: 0 | N83: 0 | O83: =IF(A84="",0,IF(B84<ann2_begin_age,SUM(J84:OFFSET(J84,bpp-1,)),SUM(K84:OFFSET(K84,bpp-1,)))/IF(F84=0,1,F84)) -> 0 | P83: =IF(A84="",0,SUM(N84:OFFSET(N84,ppp-1,))/IF(F84=0,1,F84)) -> 0 | Q83: 0 | R83: 0 | S83: 0 | T83: 0 | U83: =IF(A83="",0,IF('00summary'!$G$11=1,VLOOKUP('05 cv'!$U$5,cv_read!$4:$2064,A83+6,FALSE),T83)) -> 0
C84: 0 | D84: 0 | E84: 0 | F84: 0 | G84: 0 | H84: =IF(A84="",0,IF(B84>=ann_ganrantee_age,0,MAX(GP*MIN(A84,ppp)-SUM($G$10:G84),U84))) -> 0 | I84: =IF(A84="",0,IF(AND(B84>start_age-1,B84<=ann_ganrantee_age),'00summary'!$F$17,0)) -> 0 | J84: 0 | K84: 0 | L84: 0 | M84: 0 | N84: 0 | O84: =IF(A85="",0,IF(B85<ann2_begin_age,SUM(J85:OFFSET(J85,bpp-1,)),SUM(K85:OFFSET(K85,bpp-1,)))/IF(F85=0,1,F85)) -> 0 | P84: =IF(A85="",0,SUM(N85:OFFSET(N85,ppp-1,))/IF(F85=0,1,F85)) -> 0 | Q84: 0 | R84: 0 | S84: 0 | T84: 0 | U84: =IF(A84="",0,IF('00summary'!$G$11=1,VLOOKUP('05 cv'!$U$5,cv_read!$4:$2064,A84+6,FALSE),T84)) -> 0
C85: 0 | D85: 0 | E85: 0 | F85: 0 | G85: 0 | H85: =IF(A85="",0,IF(B85>=ann_ganrantee_age,0,MAX(GP*MIN(A85,ppp)-SUM($G$10:G85),U85))) -> 0 | I85: =IF(A85="",0,IF(AND(B85>start_age-1,B85<=ann_ganrantee_age),'00summary'!$F$17,0)) -> 0 | J85: 0 | K85: 0 | L85: 0 | M85: 0 | N85: 0 | O85: =IF(A86="",0,IF(B86<ann2_begin_age,SUM(J86:OFFSET(J86,bpp-1,)),SUM(K86:OFFSET(K86,bpp-1,)))/IF(F86=0,1,F86)) -> 0 | P85: =IF(A86="",0,SUM(N86:OFFSET(N86,ppp-1,))/IF(F86=0,1,F86)) -> 0 | Q85: 0 | R85: 0 | S85: 0 | T85: 0 | U85: =IF(A85="",0,IF('00summary'!$G$11=1,VLOOKUP('05 cv'!$U$5,cv_read!$4:$2064,A85+6,FALSE),T85)) -> 0
C86: 0 | D86: 0 | E86: 0 | F86: 0 | G86: 0 | H86: =IF(A86="",0,IF(B86>=ann_ganrantee_age,0,MAX(GP*MIN(A86,ppp)-SUM($G$10:G86),U86))) -> 0 | I86: =IF(A86="",0,IF(AND(B86>start_age-1,B86<=ann_ganrantee_age),'00summary'!$F$17,0)) -> 0 | J86: 0 | K86: 0 | L86: 0 | M86: 0 | N86: 0 | O86: =IF(A87="",0,IF(B87<ann2_begin_age,SUM(J87:OFFSET(J87,bpp-1,)),SUM(K87:OFFSET(K87,bpp-1,)))/IF(F87=0,1,F87)) -> 0 | P86: =IF(A87="",0,SUM(N87:OFFSET(N87,ppp-1,))/IF(F87=0,1,F87)) -> 0 | Q86: 0 | R86: 0 | S86: 0 | T86: 0 | U86: =IF(A86="",0,IF('00summary'!$G$11=1,VLOOKUP('05 cv'!$U$5,cv_read!$4:$2064,A86+6,FALSE),T86)) -> 0
C87: 0 | D87: 0 | E87: 0 | F87: 0 | G87: 0 | H87: =IF(A87="",0,IF(B87>=ann_ganrantee_age,0,MAX(GP*MIN(A87,ppp)-SUM($G$10:G87),U87))) -> 0 | I87: =IF(A87="",0,IF(AND(B87>start_age-1,B87<=ann_ganrantee_age),'00summary'!$F$17,0)) -> 0 | J87: 0 | K87: 0 | L87: 0 | M87: 0 | N87: 0 | O87: =IF(A88="",0,IF(B88<ann2_begin_age,SUM(J88:OFFSET(J88,bpp-1,)),SUM(K88:OFFSET(K88,bpp-1,)))/IF(F88=0,1,F88)) -> 0 | P87: =IF(A88="",0,SUM(N88:OFFSET(N88,ppp-1,))/IF(F88=0,1,F88)) -> 0 | Q87: 0 | R87: 0 | S87: 0 | T87: 0 | U87: =IF(A87="",0,IF('00summary'!$G$11=1,VLOOKUP('05 cv'!$U$5,cv_read!$4:$2064,A87+6,FALSE),T87)) -> 0
C88: 0 | D88: 0 | E88: 0 | F88: 0 | G88: 0 | H88: =IF(A88="",0,IF(B88>=ann_ganrantee_age,0,MAX(GP*MIN(A88,ppp)-SUM($G$10:G88),U88))) -> 0 | I88: =IF(A88="",0,IF(AND(B88>start_age-1,B88<=ann_ganrantee_age),'00summary'!$F$17,0)) -> 0 | J88: 0 | K88: 0 | L88: 0 | M88: 0 | N88: 0 | O88: =IF(A89="",0,IF(B89<ann2_begin_age,SUM(J89:OFFSET(J89,bpp-1,)),SUM(K89:OFFSET(K89,bpp-1,)))/IF(F89=0,1,F89)) -> 0 | P88: =IF(A89="",0,SUM(N89:OFFSET(N89,ppp-1,))/IF(F89=0,1,F89)) -> 0 | Q88: 0 | R88: 0 | S88: 0 | T88: 0 | U88: =IF(A88="",0,IF('00summary'!$G$11=1,VLOOKUP('05 cv'!$U$5,cv_read!$4:$2064,A88+6,FALSE),T88)) -> 0
C89: 0 | D89: 0 | E89: 0 | F89: 0 | G89: 0 | H89: =IF(A89="",0,IF(B89>=ann_ganrantee_age,0,MAX(GP*MIN(A89,ppp)-SUM($G$10:G89),U89))) -> 0 | I89: =IF(A89="",0,IF(AND(B89>start_age-1,B89<=ann_ganrantee_age),'00summary'!$F$17,0)) -> 0 | J89: 0 | K89: 0 | L89: 0 | M89: 0 | N89: 0 | O89: =IF(A90="",0,IF(B90<ann2_begin_age,SUM(J90:OFFSET(J90,bpp-1,)),SUM(K90:OFFSET(K90,bpp-1,)))/IF(F90=0,1,F90)) -> 0 | P89: =IF(A90="",0,SUM(N90:OFFSET(N90,ppp-1,))/IF(F90=0,1,F90)) -> 0 | Q89: 0 | R89: 0 | S89: 0 | T89: 0 | U89: =IF(A89="",0,IF('00summary'!$G$11=1,VLOOKUP('05 cv'!$U$5,cv_read!$4:$2064,A89+6,FALSE),T89)) -> 0
C90: 0 | D90: 0 | E90: 0 | F90: 0 | G90: 0 | H90: =IF(A90="",0,IF(B90>=ann_ganrantee_age,0,MAX(GP*MIN(A90,ppp)-SUM($G$10:G90),U90))) -> 0 | I90: =IF(A90="",0,IF(AND(B90>start_age-1,B90<=ann_ganrantee_age),'00summary'!$F$17,0)) -> 0 | J90: 0 | K90: 0 | L90: 0 | M90: 0 | N90: 0 | O90: =IF(A91="",0,IF(B91<ann2_begin_age,SUM(J91:OFFSET(J91,bpp-1,)),SUM(K91:OFFSET(K91,bpp-1,)))/IF(F91=0,1,F91)) -> 0 | P90: =IF(A91="",0,SUM(N91:OFFSET(N91,ppp-1,))/IF(F91=0,1,F91)) -> 0 | Q90: 0 | R90: 0 | S90: 0 | T90: 0 | U90: =IF(A90="",0,IF('00summary'!$G$11=1,VLOOKUP('05 cv'!$U$5,cv_read!$4:$2064,A90+6,FALSE),T90)) -> 0
C91: 0 | D91: 0 | E91: 0 | F91: 0 | G91: 0 | H91: =IF(A91="",0,IF(B91>=ann_ganrantee_age,0,MAX(GP*MIN(A91,ppp)-SUM($G$10:G91),U91))) -> 0 | I91: =IF(A91="",0,IF(AND(B91>start_age-1,B91<=ann_ganrantee_age),'00summary'!$F$17,0)) -> 0 | J91: 0 | K91: 0 | L91: 0 | M91: 0 | N91: 0 | O91: =IF(A92="",0,IF(B92<ann2_begin_age,SUM(J92:OFFSET(J92,bpp-1,)),SUM(K92:OFFSET(K92,bpp-1,)))/IF(F92=0,1,F92)) -> 0 | P91: =IF(A92="",0,SUM(N92:OFFSET(N92,ppp-1,))/IF(F92=0,1,F92)) -> 0 | Q91: 0 | R91: 0 | S91: 0 | T91: 0 | U91: =IF(A91="",0,IF('00summary'!$G$11=1,VLOOKUP('05 cv'!$U$5,cv_read!$4:$2064,A91+6,FALSE),T91)) -> 0
C92: 0 | D92: 0 | E92: 0 | F92: 0 | G92: 0 | H92: =IF(A92="",0,IF(B92>=ann_ganrantee_age,0,MAX(GP*MIN(A92,ppp)-SUM($G$10:G92),U92))) -> 0 | I92: =IF(A92="",0,IF(AND(B92>start_age-1,B92<=ann_ganrantee_age),'00summary'!$F$17,0)) -> 0 | J92: 0 | K92: 0 | L92: 0 | M92: 0 | N92: 0 | O92: =IF(A93="",0,IF(B93<ann2_begin_age,SUM(J93:OFFSET(J93,bpp-1,)),SUM(K93:OFFSET(K93,bpp-1,)))/IF(F93=0,1,F93)) -> 0 | P92: =IF(A93="",0,SUM(N93:OFFSET(N93,ppp-1,))/IF(F93=0,1,F93)) -> 0 | Q92: 0 | R92: 0 | S92: 0 | T92: 0 | U92: =IF(A92="",0,IF('00summary'!$G$11=1,VLOOKUP('05 cv'!$U$5,cv_read!$4:$2064,A92+6,FALSE),T92)) -> 0
C93: 0 | D93: 0 | E93: 0 | F93: 0 | G93: 0 | H93: =IF(A93="",0,IF(B93>=ann_ganrantee_age,0,MAX(GP*MIN(A93,ppp)-SUM($G$10:G93),U93))) -> 0 | I93: =IF(A93="",0,IF(AND(B93>start_age-1,B93<=ann_ganrantee_age),'00summary'!$F$17,0)) -> 0 | J93: 0 | K93: 0 | L93: 0 | M93: 0 | N93: 0 | O93: =IF(A94="",0,IF(B94<ann2_begin_age,SUM(J94:OFFSET(J94,bpp-1,)),SUM(K94:OFFSET(K94,bpp-1,)))/IF(F94=0,1,F94)) -> 0 | P93: =IF(A94="",0,SUM(N94:OFFSET(N94,ppp-1,))/IF(F94=0,1,F94)) -> 0 | Q93: 0 | R93: 0 | S93: 0 | T93: 0 | U93: =IF(A93="",0,IF('00summary'!$G$11=1,VLOOKUP('05 cv'!$U$5,cv_read!$4:$2064,A93+6,FALSE),T93)) -> 0
C94: 0 | D94: 0 | E94: 0 | F94: 0 | G94: 0 | H94: =IF(A94="",0,IF(B94>=ann_ganrantee_age,0,MAX(GP*MIN(A94,ppp)-SUM($G$10:G94),U94))) -> 0 | I94: =IF(A94="",0,IF(AND(B94>start_age-1,B94<=ann_ganrantee_age),'00summary'!$F$17,0)) -> 0 | J94: 0 | K94: 0 | L94: 0 | M94: 0 | N94: 0 | O94: =IF(A95="",0,IF(B95<ann2_begin_age,SUM(J95:OFFSET(J95,bpp-1,)),SUM(K95:OFFSET(K95,bpp-1,)))/IF(F95=0,1,F95)) -> 0 | P94: =IF(A95="",0,SUM(N95:OFFSET(N95,ppp-1,))/IF(F95=0,1,F95)) -> 0 | Q94: 0 | R94: 0 | S94: 0 | T94: 0 | U94: =IF(A94="",0,IF('00summary'!$G$11=1,VLOOKUP('05 cv'!$U$5,cv_read!$4:$2064,A94+6,FALSE),T94)) -> 0
C95: 0 | D95: 0 | E95: 0 | F95: 0 | G95: 0 | H95: =IF(A95="",0,IF(B95>=ann_ganrantee_age,0,MAX(GP*MIN(A95,ppp)-SUM($G$10:G95),U95))) -> 0 | I95: =IF(A95="",0,IF(AND(B95>start_age-1,B95<=ann_ganrantee_age),'00summary'!$F$17,0)) -> 0 | J95: 0 | K95: 0 | L95: 0 | M95: 0 | N95: 0 | O95: =IF(A96="",0,IF(B96<ann2_begin_age,SUM(J96:OFFSET(J96,bpp-1,)),SUM(K96:OFFSET(K96,bpp-1,)))/IF(F96=0,1,F96)) -> 0 | P95: =IF(A96="",0,SUM(N96:OFFSET(N96,ppp-1,))/IF(F96=0,1,F96)) -> 0 | Q95: 0 | R95: 0 | S95: 0 | T95: 0 | U95: =IF(A95="",0,IF('00summary'!$G$11=1,VLOOKUP('05 cv'!$U$5,cv_read!$4:$2064,A95+6,FALSE),T95)) -> 0
C96: 0 | D96: 0 | E96: 0 | F96: 0 | G96: 0 | H96: =IF(A96="",0,IF(B96>=ann_ganrantee_age,0,MAX(GP*MIN(A96,ppp)-SUM($G$10:G96),U96))) -> 0 | I96: =IF(A96="",0,IF(AND(B96>start_age-1,B96<=ann_ganrantee_age),'00summary'!$F$17,0)) -> 0 | J96: 0 | K96: 0 | L96: 0 | M96: 0 | N96: 0 | O96: =IF(A97="",0,IF(B97<ann2_begin_age,SUM(J97:OFFSET(J97,bpp-1,)),SUM(K97:OFFSET(K97,bpp-1,)))/IF(F97=0,1,F97)) -> 0 | P96: =IF(A97="",0,SUM(N97:OFFSET(N97,ppp-1,))/IF(F97=0,1,F97)) -> 0 | Q96: 0 | R96: 0 | S96: 0 | T96: 0 | U96: =IF(A96="",0,IF('00summary'!$G$11=1,VLOOKUP('05 cv'!$U$5,cv_read!$4:$2064,A96+6,FALSE),T96)) -> 0
C97: 0 | D97: 0 | E97: 0 | F97: 0 | G97: 0 | H97: =IF(A97="",0,IF(B97>=ann_ganrantee_age,0,MAX(GP*MIN(A97,ppp)-SUM($G$10:G97),U97))) -> 0 | I97: =IF(A97="",0,IF(AND(B97>start_age-1,B97<=ann_ganrantee_age),'00summary'!$F$17,0)) -> 0 | J97: 0 | K97: 0 | L97: 0 | M97: 0 | N97: 0 | O97: =IF(A98="",0,IF(B98<ann2_begin_age,SUM(J98:OFFSET(J98,bpp-1,)),SUM(K98:OFFSET(K98,bpp-1,)))/IF(F98=0,1,F98)) -> 0 | P97: =IF(A98="",0,SUM(N98:OFFSET(N98,ppp-1,))/IF(F98=0,1,F98)) -> 0 | Q97: 0 | R97: 0 | S97: 0 | T97: 0 | U97: =IF(A97="",0,IF('00summary'!$G$11=1,VLOOKUP('05 cv'!$U$5,cv_read!$4:$2064,A97+6,FALSE),T97)) -> 0
C98: 0 | D98: 0 | E98: 0 | F98: 0 | G98: 0 | H98: =IF(A98="",0,IF(B98>=ann_ganrantee_age,0,MAX(GP*MIN(A98,ppp)-SUM($G$10:G98),U98))) -> 0 | I98: =IF(A98="",0,IF(AND(B98>start_age-1,B98<=ann_ganrantee_age),'00summary'!$F$17,0)) -> 0 | J98: 0 | K98: 0 | L98: 0 | M98: 0 | N98: 0 | O98: =IF(A99="",0,IF(B99<ann2_begin_age,SUM(J99:OFFSET(J99,bpp-1,)),SUM(K99:OFFSET(K99,bpp-1,)))/IF(F99=0,1,F99)) -> 0 | P98: =IF(A99="",0,SUM(N99:OFFSET(N99,ppp-1,))/IF(F99=0,1,F99)) -> 0 | Q98: 0 | R98: 0 | S98: 0 | T98: 0 | U98: =IF(A98="",0,IF('00summary'!$G$11=1,VLOOKUP('05 cv'!$U$5,cv_read!$4:$2064,A98+6,FALSE),T98)) -> 0
C99: 0 | D99: 0 | E99: 0 | F99: 0 | G99: 0 | H99: =IF(A99="",0,IF(B99>=ann_ganrantee_age,0,MAX(GP*MIN(A99,ppp)-SUM($G$10:G99),U99))) -> 0 | I99: =IF(A99="",0,IF(AND(B99>start_age-1,B99<=ann_ganrantee_age),'00summary'!$F$17,0)) -> 0 | J99: 0 | K99: 0 | L99: 0 | M99: 0 | N99: 0 | O99: =IF(A100="",0,IF(B100<ann2_begin_age,SUM(J100:OFFSET(J100,bpp-1,)),SUM(K100:OFFSET(K100,bpp-1,)))/IF(F100=0,1,F100)) -> 0 | P99: =IF(A100="",0,SUM(N100:OFFSET(N100,ppp-1,))/IF(F100=0,1,F100)) -> 0 | Q99: 0 | R99: 0 | S99: 0 | T99: 0 | U99: =IF(A99="",0,IF('00summary'!$G$11=1,VLOOKUP('05 cv'!$U$5,cv_read!$4:$2064,A99+6,FALSE),T99)) -> 0
C100: 0 | D100: 0 | E100: 0 | F100: 0 | G100: 0 | H100: =IF(A100="",0,IF(B100>=ann_ganrantee_age,0,MAX(GP*MIN(A100,ppp)-SUM($G$10:G100),U100))) -> 0 | I100: =IF(A100="",0,IF(AND(B100>start_age-1,B100<=ann_ganrantee_age),'00summary'!$F$17,0)) -> 0 | J100: 0 | K100: 0 | L100: 0 | M100: 0 | N100: 0 | O100: =IF(A101="",0,IF(B101<ann2_begin_age,SUM(J101:OFFSET(J101,bpp-1,)),SUM(K101:OFFSET(K101,bpp-1,)))/IF(F101=0,1,F101)) -> 0 | P100: =IF(A101="",0,SUM(N101:OFFSET(N101,ppp-1,))/IF(F101=0,1,F101)) -> 0 | Q100: 0 | R100: 0 | S100: 0 | T100: 0 | U100: =IF(A100="",0,IF('00summary'!$G$11=1,VLOOKUP('05 cv'!$U$5,cv_read!$4:$2064,A100+6,FALSE),T100)) -> 0
C101: 0 | D101: 0 | E101: 0 | F101: 0 | G101: 0 | H101: =IF(A101="",0,IF(B101>=ann_ganrantee_age,0,MAX(GP*MIN(A101,ppp)-SUM($G$10:G101),U101))) -> 0 | I101: =IF(A101="",0,IF(AND(B101>start_age-1,B101<=ann_ganrantee_age),'00summary'!$F$17,0)) -> 0 | J101: 0 | K101: 0 | L101: 0 | M101: 0 | N101: 0 | O101: =IF(A102="",0,IF(B102<ann2_begin_age,SUM(J102:OFFSET(J102,bpp-1,)),SUM(K102:OFFSET(K102,bpp-1,)))/IF(F102=0,1,F102)) -> 0 | P101: =IF(A102="",0,SUM(N102:OFFSET(N102,ppp-1,))/IF(F102=0,1,F102)) -> 0 | Q101: 0 | R101: 0 | S101: 0 | T101: 0 | U101: =IF(A101="",0,IF('00summary'!$G$11=1,VLOOKUP('05 cv'!$U$5,cv_read!$4:$2064,A101+6,FALSE),T101)) -> 0
C102: 0 | D102: 0 | E102: 0 | F102: 0 | G102: 0 | H102: =IF(A102="",0,IF(B102>=ann_ganrantee_age,0,MAX(GP*MIN(A102,ppp)-SUM($G$10:G102),U102))) -> 0 | I102: =IF(A102="",0,IF(AND(B102>start_age-1,B102<=ann_ganrantee_age),'00summary'!$F$17,0)) -> 0 | J102: 0 | K102: 0 | L102: 0 | M102: 0 | N102: 0 | O102: =IF(A103="",0,IF(B103<ann2_begin_age,SUM(J103:OFFSET(J103,bpp-1,)),SUM(K103:OFFSET(K103,bpp-1,)))/IF(F103=0,1,F103)) -> 0 | P102: =IF(A103="",0,SUM(N103:OFFSET(N103,ppp-1,))/IF(F103=0,1,F103)) -> 0 | Q102: 0 | R102: 0 | S102: 0 | T102: 0 | U102: =IF(A102="",0,IF('00summary'!$G$11=1,VLOOKUP('05 cv'!$U$5,cv_read!$4:$2064,A102+6,FALSE),T102)) -> 0
C103: 0 | D103: 0 | E103: 0 | F103: 0 | G103: 0 | H103: =IF(A103="",0,IF(B103>=ann_ganrantee_age,0,MAX(GP*MIN(A103,ppp)-SUM($G$10:G103),U103))) -> 0 | I103: =IF(A103="",0,IF(AND(B103>start_age-1,B103<=ann_ganrantee_age),'00summary'!$F$17,0)) -> 0 | J103: 0 | K103: 0 | L103: 0 | M103: 0 | N103: 0 | O103: =IF(A104="",0,IF(B104<ann2_begin_age,SUM(J104:OFFSET(J104,bpp-1,)),SUM(K104:OFFSET(K104,bpp-1,)))/IF(F104=0,1,F104)) -> 0 | P103: =IF(A104="",0,SUM(N104:OFFSET(N104,ppp-1,))/IF(F104=0,1,F104)) -> 0 | Q103: 0 | R103: 0 | S103: 0 | T103: 0 | U103: =IF(A103="",0,IF('00summary'!$G$11=1,VLOOKUP('05 cv'!$U$5,cv_read!$4:$2064,A103+6,FALSE),T103)) -> 0
C104: 0 | D104: 0 | E104: 0 | F104: 0 | G104: 0 | H104: =IF(A104="",0,IF(B104>=ann_ganrantee_age,0,MAX(GP*MIN(A104,ppp)-SUM($G$10:G104),U104))) -> 0 | I104: =IF(A104="",0,IF(AND(B104>start_age-1,B104<=ann_ganrantee_age),'00summary'!$F$17,0)) -> 0 | J104: 0 | K104: 0 | L104: 0 | M104: 0 | N104: 0 | O104: =IF(A105="",0,IF(B105<ann2_begin_age,SUM(J105:OFFSET(J105,bpp-1,)),SUM(K105:OFFSET(K105,bpp-1,)))/IF(F105=0,1,F105)) -> 0 | P104: =IF(A105="",0,SUM(N105:OFFSET(N105,ppp-1,))/IF(F105=0,1,F105)) -> 0 | Q104: 0 | R104: 0 | S104: 0 | T104: 0 | U104: =IF(A104="",0,IF('00summary'!$G$11=1,VLOOKUP('05 cv'!$U$5,cv_read!$4:$2064,A104+6,FALSE),T104)) -> 0
C105: 0 | D105: 0 | E105: 0 | F105: 0 | G105: 0 | H105: =IF(A105="",0,IF(B105>=ann_ganrantee_age,0,MAX(GP*MIN(A105,ppp)-SUM($G$10:G105),U105))) -> 0 | I105: =IF(A105="",0,IF(AND(B105>start_age-1,B105<=ann_ganrantee_age),'00summary'!$F$17,0)) -> 0 | J105: 0 | K105: 0 | L105: 0 | M105: 0 | N105: 0 | O105: =IF(A106="",0,IF(B106<ann2_begin_age,SUM(J106:OFFSET(J106,bpp-1,)),SUM(K106:OFFSET(K106,bpp-1,)))/IF(F106=0,1,F106)) -> 0 | P105: =IF(A106="",0,SUM(N106:OFFSET(N106,ppp-1,))/IF(F106=0,1,F106)) -> 0 | Q105: =IF(A105="",0,O105-P105-IF(B106>ann_ganrantee_age,0,G106)) -> 0 | R105: 0 | S105: 0 | T105: 0 | U105: =IF(A105="",0,IF('00summary'!$G$11=1,VLOOKUP('05 cv'!$U$5,cv_read!$4:$2064,A105+6,FALSE),T105)) -> 0
C106: 0 | D106: 0 | E106: 0 | F106: 0 | G106: =IF(A106="",0,IF(B106<ann2_begin_age,0,SA)+MIN(A106,ppp)*GP*I106) -> 0 | H106: =IF(A106="",0,IF(B106>=ann_ganrantee_age,0,MAX(GP*MIN(A106,ppp)-SUM($G$10:G106),U106))) -> 0 | I106: =IF(A106="",0,IF(AND(B106>start_age-1,B106<=ann_ganrantee_age),'00summary'!$F$17,0)) -> 0 | J106: =IF(A106="",0,G106*F106+H106*C106*F106/(1+i_cv)^0.5) -> 0 | K106: 0 | L106: =IF(A106="",0,IF(A106>ppp,0,VLOOKUP(ppp,cv_loading,MIN(6,A106)+1,FALSE))) -> 0 | M106: 0 | N106: =IF(A106="",0,IF(A106<=ppp,gp_cv*(1-L106)*F106,0)) -> 0 | O106: =IF(A107="",0,IF(B107<ann2_begin_age,SUM(J107:OFFSET(J107,bpp-1,)),SUM(K107:OFFSET(K107,bpp-1,)))/IF(F107=0,1,F107)) -> 0 | P106: =IF(A107="",0,SUM(N107:OFFSET(N107,ppp-1,))/IF(F107=0,1,F107)) -> 0 | Q106: 0 | R106: =IF(A106="",0,IF(A106<MIN(ppp,20),0.9+0.1*A106/MIN(ppp,20),1)) -> 0 | S106: =IF(A106="",0,IF(B106>=ann_ganrantee_age,0,MAX(ROUND(Q106*R106,0),0))) -> 0 | T106: =IF(A106="",0,IF(B106>=ann_ganrantee_age,0,S106+IF(B106>ann_ganrantee_age-1,0,G107))) -> 0 | U106: =IF(A106="",0,IF('00summary'!$G$11=1,VLOOKUP('05 cv'!$U$5,cv_read!$4:$2064,A106+6,FALSE),T106)) -> 0
C107: 0 | D107: 0 | E107: =IF(A107="",0,E106/(1+i_cv)) -> 0 | F107: 0 | G107: 0 | H107: =IF(A107="",0,IF(B107>=ann_ganrantee_age,0,MAX(GP*MIN(A107,ppp)-SUM($G$10:G107),U107))) -> 0 | I107: =IF(A107="",0,IF(AND(B107>start_age-1,B107<=ann_ganrantee_age),'00summary'!$F$17,0)) -> 0 | J107: 0 | K107: 0 | L107: 0 | M107: 0 | N107: 0 | O107: =IF(A108="",0,IF(B108<ann2_begin_age,SUM(J108:OFFSET(J108,bpp-1,)),SUM(K108:OFFSET(K108,bpp-1,)))/IF(F108=0,1,F108)) -> 0 | P107: =IF(A108="",0,SUM(N108:OFFSET(N108,ppp-1,))/IF(F108=0,1,F108)) -> 0 | Q107: 0 | R107: 0 | S107: 0 | T107: 0 | U107: =IF(A107="",0,IF('00summary'!$G$11=1,VLOOKUP('05 cv'!$U$5,cv_read!$4:$2064,A107+6,FALSE),T107)) -> 0
C108: 0 | D108: 0 | E108: 0 | F108: 0 | G108: 0 | H108: =IF(A108="",0,IF(B108>=ann_ganrantee_age,0,MAX(GP*MIN(A108,ppp)-SUM($G$10:G108),U108))) -> 0 | I108: =IF(A108="",0,IF(AND(B108>start_age-1,B108<=ann_ganrantee_age),'00summary'!$F$17,0)) -> 0 | J108: 0 | K108: 0 | L108: 0 | M108: 0 | N108: 0 | O108: =IF(A109="",0,IF(B109<ann2_begin_age,SUM(J109:OFFSET(J109,bpp-1,)),SUM(K109:OFFSET(K109,bpp-1,)))/IF(F109=0,1,F109)) -> 0 | P108: =IF(A109="",0,SUM(N109:OFFSET(N109,ppp-1,))/IF(F109=0,1,F109)) -> 0 | Q108: 0 | R108: 0 | S108: 0 | T108: 0 | U108: =IF(A108="",0,IF('00summary'!$G$11=1,VLOOKUP('05 cv'!$U$5,cv_read!$4:$2064,A108+6,FALSE),T108)) -> 0
C109: 0 | D109: 0 | E109: 0 | F109: 0 | G109: 0 | H109: =IF(A109="",0,IF(B109>=ann_ganrantee_age,0,MAX(GP*MIN(A109,ppp)-SUM($G$10:G109),U109))) -> 0 | I109: =IF(A109="",0,IF(AND(B109>start_age-1,B109<=ann_ganrantee_age),'00summary'!$F$17,0)) -> 0 | J109: 0 | K109: 0 | L109: 0 | M109: 0 | N109: 0 | O109: =IF(A110="",0,IF(B110<ann2_begin_age,SUM(J110:OFFSET(J110,bpp-1,)),SUM(K110:OFFSET(K110,bpp-1,)))/IF(F110=0,1,F110)) -> 0 | P109: =IF(A110="",0,SUM(N110:OFFSET(N110,ppp-1,))/IF(F110=0,1,F110)) -> 0 | Q109: 0 | R109: 0 | S109: 0 | T109: 0 | U109: =IF(A109="",0,IF('00summary'!$G$11=1,VLOOKUP('05 cv'!$U$5,cv_read!$4:$2064,A109+6,FALSE),T109)) -> 0
C110: 0 | D110: 0 | E110: 0 | F110: 0 | G110: 0 | H110: =IF(A110="",0,IF(B110>=ann_ganrantee_age,0,MAX(GP*MIN(A110,ppp)-SUM($G$10:G110),U110))) -> 0 | I110: =IF(A110="",0,IF(AND(B110>start_age-1,B110<=ann_ganrantee_age),'00summary'!$F$17,0)) -> 0 | J110: 0 | K110: 0 | L110: 0 | M110: 0 | N110: 0 | O110: =IF(A111="",0,IF(B111<ann2_begin_age,SUM(J111:OFFSET(J111,bpp-1,)),SUM(K111:OFFSET(K111,bpp-1,)))/IF(F111=0,1,F111)) -> 0 | P110: =IF(A111="",0,SUM(N111:OFFSET(N111,ppp-1,))/IF(F111=0,1,F111)) -> 0 | Q110: 0 | R110: 0 | S110: 0 | T110: 0 | U110: =IF(A110="",0,IF('00summary'!$G$11=1,VLOOKUP('05 cv'!$U$5,cv_read!$4:$2064,A110+6,FALSE),T110)) -> 0
C111: 0 | D111: 0 | E111: 0 | F111: 0 | G111: 0 | H111: =IF(A111="",0,IF(B111>=ann_ganrantee_age,0,MAX(GP*MIN(A111,ppp)-SUM($G$10:G111),U111))) -> 0 | I111: =IF(A111="",0,IF(AND(B111>start_age-1,B111<=ann_ganrantee_age),'00summary'!$F$17,0)) -> 0 | J111: 0 | K111: 0 | L111: 0 | M111: 0 | N111: 0 | O111: =IF(A112="",0,IF(B112<ann2_begin_age,SUM(J112:OFFSET(J112,bpp-1,)),SUM(K112:OFFSET(K112,bpp-1,)))/IF(F112=0,1,F112)) -> 0 | P111: =IF(A112="",0,SUM(N112:OFFSET(N112,ppp-1,))/IF(F112=0,1,F112)) -> 0 | Q111: 0 | R111: 0 | S111: 0 | T111: 0 | U111: =IF(A111="",0,IF('00summary'!$G$11=1,VLOOKUP('05 cv'!$U$5,cv_read!$4:$2064,A111+6,FALSE),T111)) -> 0
C112: 0 | D112: 0 | E112: 0 | F112: 0 | G112: 0 | H112: =IF(A112="",0,IF(B112>=ann_ganrantee_age,0,MAX(GP*MIN(A112,ppp)-SUM($G$10:G112),U112))) -> 0 | I112: =IF(A112="",0,IF(AND(B112>start_age-1,B112<=ann_ganrantee_age),'00summary'!$F$17,0)) -> 0 | J112: 0 | K112: 0 | L112: 0 | M112: 0 | N112: 0 | O112: =IF(A113="",0,IF(B113<ann2_begin_age,SUM(J113:OFFSET(J113,bpp-1,)),SUM(K113:OFFSET(K113,bpp-1,)))/IF(F113=0,1,F113)) -> 0 | P112: =IF(A113="",0,SUM(N113:OFFSET(N113,ppp-1,))/IF(F113=0,1,F113)) -> 0 | Q112: 0 | R112: 0 | S112: 0 | T112: 0 | U112: =IF(A112="",0,IF('00summary'!$G$11=1,VLOOKUP('05 cv'!$U$5,cv_read!$4:$2064,A112+6,FALSE),T112)) -> 0
C113: 0 | D113: 0 | E113: 0 | F113: 0 | G113: 0 | H113: =IF(A113="",0,IF(B113>=ann_ganrantee_age,0,MAX(GP*MIN(A113,ppp)-SUM($G$10:G113),U113))) -> 0 | I113: =IF(A113="",0,IF(AND(B113>start_age-1,B113<=ann_ganrantee_age),'00summary'!$F$17,0)) -> 0 | J113: 0 | K113: 0 | L113: 0 | M113: 0 | N113: 0 | O113: =IF(A114="",0,IF(B114<ann2_begin_age,SUM(J114:OFFSET(J114,bpp-1,)),SUM(K114:OFFSET(K114,bpp-1,)))/IF(F114=0,1,F114)) -> 0 | P113: =IF(A114="",0,SUM(N114:OFFSET(N114,ppp-1,))/IF(F114=0,1,F114)) -> 0 | Q113: 0 | R113: 0 | S113: 0 | T113: 0 | U113: =IF(A113="",0,IF('00summary'!$G$11=1,VLOOKUP('05 cv'!$U$5,cv_read!$4:$2064,A113+6,FALSE),T113)) -> 0
C114: 0 | D114: 0 | E114: 0 | F114: 0 | G114: 0 | H114: =IF(A114="",0,IF(B114>=ann_ganrantee_age,0,MAX(GP*MIN(A114,ppp)-SUM($G$10:G114),U114))) -> 0 | I114: =IF(A114="",0,IF(AND(B114>start_age-1,B114<=ann_ganrantee_age),'00summary'!$F$17,0)) -> 0 | J114: 0 | K114: 0 | L114: 0 | M114: 0 | N114: 0 | O114: =IF(A115="",0,IF(B115<ann2_begin_age,SUM(J115:OFFSET(J115,bpp-1,)),SUM(K115:OFFSET(K115,bpp-1,)))/IF(F115=0,1,F115)) -> 0 | P114: =IF(A115="",0,SUM(N115:OFFSET(N115,ppp-1,))/IF(F115=0,1,F115)) -> 0 | Q114: 0 | R114: 0 | S114: 0 | T114: 0 | U114: =IF(A114="",0,IF('00summary'!$G$11=1,VLOOKUP('05 cv'!$U$5,cv_read!$4:$2064,A114+6,FALSE),T114)) -> 0
C115: 0 | D115: 0 | E115: 0 | F115: 0 | G115: 0 | H115: =IF(A115="",0,IF(B115>=ann_ganrantee_age,0,MAX(GP*MIN(A115,ppp)-SUM($G$10:G115),U115))) -> 0 | I115: =IF(A115="",0,IF(AND(B115>start_age-1,B115<=ann_ganrantee_age),'00summary'!$F$17,0)) -> 0 | J115: 0 | K115: 0 | L115: 0 | M115: 0 | N115: 0 | O115: =IF(A116="",0,IF(B116<ann2_begin_age,SUM(J116:OFFSET(J116,bpp-1,)),SUM(K116:OFFSET(K116,bpp-1,)))/IF(F116=0,1,F116)) -> 0 | P115: =IF(A116="",0,SUM(N116:OFFSET(N116,ppp-1,))/IF(F116=0,1,F116)) -> 0 | Q115: 0 | R115: 0 | S115: 0 | T115: 0 | U115: =IF(A115="",0,IF('00summary'!$G$11=1,VLOOKUP('05 cv'!$U$5,cv_read!$4:$2064,A115+6,FALSE),T115)) -> 0
C116: 0 | D116: 0 | E116: 0 | F116: 0 | G116: 0 | H116: =IF(A116="",0,IF(B116>=ann_ganrantee_age,0,MAX(GP*MIN(A116,ppp)-SUM($G$10:G116),U116))) -> 0 | I116: =IF(A116="",0,IF(AND(B116>start_age-1,B116<=ann_ganrantee_age),'00summary'!$F$17,0)) -> 0 | J116: 0 | K116: 0 | L116: 0 | M116: 0 | N116: 0 | O116: =IF(A117="",0,IF(B117<ann2_begin_age,SUM(J117:OFFSET(J117,bpp-1,)),SUM(K117:OFFSET(K117,bpp-1,)))/IF(F117=0,1,F117)) -> 0 | P116: =IF(A117="",0,SUM(N117:OFFSET(N117,ppp-1,))/IF(F117=0,1,F117)) -> 0 | Q116: 0 | R116: 0 | S116: 0 | T116: 0 | U116: =IF(A116="",0,IF('00summary'!$G$11=1,VLOOKUP('05 cv'!$U$5,cv_read!$4:$2064,A116+6,FALSE),T116)) -> 0
C117: 0 | D117: 0 | E117: 0 | F117: 0 | G117: 0 | H117: =IF(A117="",0,IF(B117>=ann_ganrantee_age,0,MAX(GP*MIN(A117,ppp)-SUM($G$10:G117),U117))) -> 0 | I117: =IF(A117="",0,IF(AND(B117>start_age-1,B117<=ann_ganrantee_age),'00summary'!$F$17,0)) -> 0 | J117: 0 | K117: 0 | L117: 0 | M117: 0 | N117: 0 | O117: =IF(A118="",0,IF(B118<ann2_begin_age,SUM(J118:OFFSET(J118,bpp-1,)),SUM(K118:OFFSET(K118,bpp-1,)))/IF(F118=0,1,F118)) -> 0 | P117: =IF(A118="",0,SUM(N118:OFFSET(N118,ppp-1,))/IF(F118=0,1,F118)) -> 0 | Q117: 0 | R117: 0 | S117: 0 | T117: 0 | U117: =IF(A117="",0,IF('00summary'!$G$11=1,VLOOKUP('05 cv'!$U$5,cv_read!$4:$2064,A117+6,FALSE),T117)) -> 0

Sheet 06 rsv (hidden)
A2: age | B2: =age -> 45 | D2: i | E2: 0.025 | J2: αxF | K2: =H10*C10/(1+i_rsv)^0.5 -> 25.77832014 | M2: α | N2: =IF(ppp=1,J9,MAX(K2,E4-0.035*K3)) -> 22629.20255
A3: sex | B3: =sex -> 2 | D3: 起领年龄 | E3: =ann2_begin_age -> 65 | G3: annuity due | H3: =SUM(F10:OFFSET(F10,ppp-1,)) -> 8.940123951 | J3: ave_SA | K3: =SUMPRODUCT(H10:OFFSET(H10,bpp-2,),F10:OFFSET(F10,bpp-2,))/SUM(F10:OFFSET(F10,bpp-2,)) -> 337431.608 | M3: β | N3: =IF(ppp=1,0,(J9-N2)/(H3-1)) -> 35926.70454
A4: bpp | B4: =bpp -> 61 | D4: pNL | E4: =H4/H3 -> 34439.30883 | G4: pvfb | H4: =SUM(I10:OFFSET(I10,bpp-1,)) -> 307891.6897
A5: ppp | B5: =ppp -> 10
A7: 1 | B7: 2 | C7: 3 | D7: 4 | E7: 5 | F7: 6 | G7: 7 | H7: 8 | I7: 9 | J7: 10 | K7: 11 | L7: 12 | M7: 13 | AC7: 0
A8: Policy Year | B8: Age (BOY) | C8: qx (MOY) | D8: tpx (BOY) | E8: (1+i)-t (BOY) | F8: PVCP (BOY) | G8: annuity benefit array (BOY) | H8: death benefit array (MOY) | I8: PVFB0 | J8: PVFBt' | K8: tvx | L8: max(tvx,cv) | M8: A.C.rsv
A9: 0 | J9: =IF(A10="",0,SUM(I10:OFFSET(I10,bpp-1,))/IF(F10=0,1,F10)) -> 307891.6897 | K9: =IF(OR(A9="",A9=0),0,IF(A9<=ppp,J9-MIN(β,GP)*SUM(F10:OFFSET($F$10,ppp-1,))/IF(F10=0,1,F10),J9)) -> 0
A10: =IF(A9>=bpp,"",A9+1) -> 1 | B10: =IF(A10="","",A10+age-1) -> 45 | C10: =IF(A10="",0,VLOOKUP(B10,mort_10_13,IF(sex=1,6,7))/1000) -> 0.00064 | D10: 1 | E10: 1 | F10: =IF(A10="",0,D10*E10) -> 1 | G10: =IF(A10="",0,'05 cv'!G10) -> 0 | H10: =IF(A10="",0,'05 cv'!H10) -> 40779 | I10: =IF(A10="",0,G10*F10+H10*C10*F10/(1+i_rsv)^0.5) -> 25.77832014 | J10: =IF(A11="",0,SUM(I11:OFFSET(I11,bpp-1,))/IF(F11=0,1,F11)) -> 315764.6486 | K10: =IF(OR(A10="",A10=0),0,IF(A10<ppp,J10-MIN(β,GP)*SUM(F11:OFFSET($F$10,ppp-1,))/IF(F11=0,1,F11),J10)) -> 23183.34718 | L10: =IF(A10="",0,MAX(K10,'05 cv'!T10)) -> 23183.34718 | M10: =IF(A10="",0,L10-G11) -> 23183.34718
A11: 2 | B11: 46 | C11: 0.000693 | D11: =IF(A11="",0,D10*(1-C10)) -> 0.99936 | E11: =IF(A11="",0,E10/(1+i_rsv)) -> 0.9756097561 | F11: =IF(A11="",0,D11*E11) -> 0.9749853659 | G11: =IF(A11="",0,'05 cv'!G11) -> 0 | H11: =IF(A11="",0,'05 cv'!H11) -> 81558 | I11: 54.42970323 | J11: =IF(A12="",0,SUM(I12:OFFSET(I12,bpp-1,))/IF(F12=0,1,F12)) -> 323825.9544 | K11: =IF(OR(A11="",A11=0),0,IF(A11<ppp,J11-MIN(β,GP)*SUM(F12:OFFSET($F$10,ppp-1,))/IF(F12=0,1,F12),J11)) -> 60572.55797 | L11: =IF(A11="",0,MAX(K11,'05 cv'!T11)) -> 60572.55797 | M11: =IF(A11="",0,L11-G12) -> 60572.55797
A12: 3 | B12: 47 | C12: 0.00075 | D12: =IF(A12="",0,D11*(1-C11)) -> 0.9986674435 | E12: 0.9518143962 | F12: 0.9505460498 | G12: =IF(A12="",0,'05 cv'!G12) -> 0 | H12: =IF(A12="",0,'05 cv'!H12) -> 122337 | I12: 86.14504821 | J12: =IF(A13="",0,SUM(I13:OFFSET(I13,bpp-1,))/IF(F13=0,1,F13)) -> 332077.769 | K12: =IF(OR(A12="",A12=0),0,IF(A12<ppp,J12-MIN(β,GP)*SUM(F13:OFFSET($F$10,ppp-1,))/IF(F13=0,1,F13),J12)) -> 98893.02126 | L12: =IF(A12="",0,MAX(K12,'05 cv'!T12)) -> 98893.02126 | M12: 98893.02126
A13: 4 | B13: 48 | C13: 0.000811 | D13: 0.9979184429 | E13: 0.9285994109 | F13: 0.9266664783 | G13: =IF(A13="",0,'05 cv'!G13) -> 0 | H13: =IF(A13="",0,'05 cv'!H13) -> 163116 | I13: 121.0818192 | J13: =IF(A14="",0,SUM(I14:OFFSET(I14,bpp-1,))/IF(F14=0,1,F14)) -> 340521.946 | K13: =IF(OR(A13="",A13=0),0,IF(A13<ppp,J13-MIN(β,GP)*SUM(F14:OFFSET($F$10,ppp-1,))/IF(F14=0,1,F14),J13)) -> 138168.343 | L13: =IF(A13="",0,MAX(K13,'05 cv'!T13)) -> 138168.343 | M13: 138168.343
A14: 5 | B14: 49 | C14: 0.000877 | D14: 0.9971091311 | E14: 0.9059506448 | F14: 0.9033316602 | G14: =IF(A14="",0,'05 cv'!G14) -> 0 | H14: =IF(A14="",0,'05 cv'!H14) -> 203895 | I14: 159.5480382 | J14: =IF(A15="",0,SUM(I15:OFFSET(I15,bpp-1,))/IF(F15=0,1,F15)) -> 349160.1708 | K14: =IF(OR(A14="",A14=0),0,IF(A14<ppp,J14-MIN(β,GP)*SUM(F15:OFFSET($F$10,ppp-1,))/IF(F15=0,1,F15),J14)) -> 178422.8633 | L14: =IF(A14="",0,MAX(K14,'05 cv'!T14)) -> 178422.8633 | M14: 178422.8633
A15: 6 | B15: 50 | C15: 0.00095 | D15: 0.9962346664 | E15: 0.8838542876 | F15: 0.8805262813 | G15: =IF(A15="",0,'05 cv'!G15) -> 0 | H15: =IF(A15="",0,'05 cv'!H15) -> 244674 | I15: 202.1584121 | J15: =IF(A16="",0,SUM(I16:OFFSET(I16,bpp-1,))/IF(F16=0,1,F16)) -> 357993.9415 | K15: =IF(OR(A15="",A15=0),0,IF(A15<ppp,J15-MIN(β,GP)*SUM(F16:OFFSET($F$10,ppp-1,))/IF(F16=0,1,F16),J15)) -> 219681.6767 | L15: =IF(A15="",0,MAX(K15,'05 cv'!T15)) -> 219681.6767 | M15: 219681.6767
A16: 7 | B16: 51 | C16: 0.001031 | D16: 0.9952882434 | E16: 0.862296866 | F16: 0.858233933 | G16: =IF(A16="",0,'05 cv'!G16) -> 0 | H16: =IF(A16="",0,'05 cv'!H16) -> 285453 | I16: 249.4807414 | J16: =IF(A17="",0,SUM(I17:OFFSET(I17,bpp-1,))/IF(F17=0,1,F17)) -> 367024.2339 | K16: =IF(OR(A16="",A16=0),0,IF(A16<ppp,J16-MIN(β,GP)*SUM(F17:OFFSET($F$10,ppp-1,))/IF(F17=0,1,F17),J16)) -> 261970.7245 | L16: =IF(A16="",0,MAX(K16,'05 cv'!T16)) -> 261970.7245 | M16: 261970.7245
A17: 8 | B17: 52 | C17: 0.00112 | D17: 0.9942621013 | E17: 0.8412652351 | F17: 0.8364381404 | G17: =IF(A17="",0,'05 cv'!G17) -> 0 | H17: =IF(A17="",0,'05 cv'!H17) -> 326232 | I17: 301.8675823 | J17: =IF(A18="",0,SUM(I18:OFFSET(I18,bpp-1,))/IF(F18=0,1,F18)) -> 376251.3223 | K17: =IF(OR(A17="",A17=0),0,IF(A17<ppp,J17-MIN(β,GP)*SUM(F18:OFFSET($F$10,ppp-1,))/IF(F18=0,1,F18),J17)) -> 305316.9008 | L17: =IF(A17="",0,MAX(K17,'05 cv'!T17)) -> 305316.9008 | M17: 305316.9008
A18: 9 | B18: 53 | C18: 0.001219 | D18: 0.9931485277 | E18: 0.8207465708 | F18: 0.8151232484 | G18: =IF(A18="",0,'05 cv'!G18) -> 0 | H18: =IF(A18="",0,'05 cv'!H18) -> 367011 | I18: 360.2003529 | J18: =IF(A19="",0,SUM(I19:OFFSET(I19,bpp-1,))/IF(F19=0,1,F19)) -> 385674.7987 | K18: =IF(OR(A18="",A18=0),0,IF(A18<ppp,J18-MIN(β,GP)*SUM(F19:OFFSET($F$10,ppp-1,))/IF(F19=0,1,F19),J18)) -> 349748.0942 | L18: =IF(A18="",0,MAX(K18,'05 cv'!T18)) -> 349748.0942 | M18: 349748.0942
A19: 10 | B19: 54 | C19: 0.001329 | D19: 0.9919378797 | E19: 0.8007283618 | F19: 0.7942727933 | G19: =IF(A19="",0,'05 cv'!G19) -> 0 | H19: =IF(A19="",0,'05 cv'!H19) -> 407790 | I19: 425.1765529 | J19: =IF(A20="",0,SUM(I20:OFFSET(I20,bpp-1,))/IF(F20=0,1,F20)) -> 395293.328 | K19: =IF(OR(A19="",A19=0),0,IF(A19<ppp,J19-MIN(β,GP)*SUM(F20:OFFSET($F$10,ppp-1,))/IF(F20=0,1,F20),J19)) -> 395293.328 | L19: =IF(A19="",0,MAX(K19,'05 cv'!T19)) -> 395293.328 | M19: 395293.328
A20: 11 | B20: 55 | C20: 0.00145 | D20: 0.9906195942 | E20: 0.7811984017 | F20: 0.7738704437 | G20: =IF(A20="",0,'05 cv'!G20) -> 0 | H20: =IF(A20="",0,'05 cv'!H20) -> 407790 | I20: 451.9713448 | J20: =IF(A21="",0,SUM(I21:OFFSET(I21,bpp-1,))/IF(F21=0,1,F21)) -> 405164.5087 | K20: =IF(OR(A20="",A20=0),0,IF(A20<ppp,J20-MIN(β,GP)*SUM(F21:OFFSET($F$10,ppp-1,))/IF(F21=0,1,F21),J20)) -> 405164.5087 | L20: =IF(A20="",0,MAX(K20,'05 cv'!T20)) -> 405164.5087 | M20: 405164.5087
A21: 12 | B21: 56 | C21: 0.001585 | D21: 0.9891831958 | E21: 0.7621447822 | F21: 0.7539008113 | G21: =IF(A21="",0,'05 cv'!G21) -> 0 | H21: =IF(A21="",0,'05 cv'!H21) -> 407790 | I21: 481.3024985 | J21: =IF(A22="",0,SUM(I22:OFFSET(I22,bpp-1,))/IF(F22=0,1,F22)) -> 415297.4913 | K21: =IF(OR(A21="",A21=0),0,IF(A21<ppp,J21-MIN(β,GP)*SUM(F22:OFFSET($F$10,ppp-1,))/IF(F22=0,1,F22),J21)) -> 415297.4913 | L21: =IF(A21="",0,MAX(K21,'05 cv'!T21)) -> 415297.4913 | M21: 415297.4913
A22: 13 | B22: 57 | C22: 0.001736 | D22: 0.9876153404 | E22: 0.743555885 | F22: 0.7343471985 | G22: =IF(A22="",0,'05 cv'!G22) -> 0 | H22: =IF(A22="",0,'05 cv'!H22) -> 407790 | I22: 513.4826835 | J22: =IF(A23="",0,SUM(I23:OFFSET(I23,bpp-1,))/IF(F23=0,1,F23)) -> 425702.2298 | K22: =IF(OR(A22="",A22=0),0,IF(A22<ppp,J22-MIN(β,GP)*SUM(F23:OFFSET($F$10,ppp-1,))/IF(F23=0,1,F23),J22)) -> 425702.2298 | L22: =IF(A22="",0,MAX(K22,'05 cv'!T22)) -> 425702.2298 | M22: 425702.2298
A23: 14 | B23: 58 | C23: 0.001905 | D23: 0.9859008402 | E23: 0.7254203757 | F23: 0.7151925579 | G23: =IF(A23="",0,'05 cv'!G23) -> 0 | H23: =IF(A23="",0,'05 cv'!H23) -> 407790 | I23: 548.7728356 | J23: =IF(A24="",0,SUM(I24:OFFSET(I24,bpp-1,))/IF(F24=0,1,F24)) -> 436389.6173 | K23: =IF(OR(A23="",A23=0),0,IF(A23<ppp,J23-MIN(β,GP)*SUM(F24:OFFSET($F$10,ppp-1,))/IF(F24=0,1,F24),J23)) -> 436389.6173 | L23: =IF(A23="",0,MAX(K23,'05 cv'!T23)) -> 436389.6173 | M23: 436389.6173
A24: 15 | B24: 59 | C24: 0.002097 | D24: 0.9840226991 | E24: 0.7077271958 | F24: 0.6964196254 | G24: =IF(A24="",0,'05 cv'!G24) -> 0 | H24: =IF(A24="",0,'05 cv'!H24) -> 407790 | I24: 588.2258021 | J24: =IF(A25="",0,SUM(I25:OFFSET(I25,bpp-1,))/IF(F25=0,1,F25)) -> 447371.7374 | K24: =IF(OR(A24="",A24=0),0,IF(A24<ppp,J24-MIN(β,GP)*SUM(F25:OFFSET($F$10,ppp-1,))/IF(F25=0,1,F25),J24)) -> 447371.7374 | L24: =IF(A24="",0,MAX(K24,'05 cv'!T24)) -> 447371.7374 | M24: 447371.7374
A25: 16 | B25: 60 | C25: 0.002315 | D25: 0.9819592035 | E25: 0.6904655568 | F25: 0.6780090082 | G25: =IF(A25="",0,'05 cv'!G25) -> 0 | H25: =IF(A25="",0,'05 cv'!H25) -> 407790 | I25: 632.2096176 | J25: =IF(A26="",0,SUM(I26:OFFSET(I26,bpp-1,))/IF(F26=0,1,F26)) -> 458662.0721 | K25: =IF(OR(A25="",A25=0),0,IF(A25<ppp,J25-MIN(β,GP)*SUM(F26:OFFSET($F$10,ppp-1,))/IF(F26=0,1,F26),J25)) -> 458662.0721 | L25: =IF(A25="",0,MAX(K25,'05 cv'!T25)) -> 458662.0721 | M25: 458662.0721
A26: 17 | B26: 61 | C26: 0.002561 | D26: 0.9796859679 | E26: 0.6736249335 | F26: 0.659940895 | G26: =IF(A26="",0,'05 cv'!G26) -> 0 | H26: =IF(A26="",0,'05 cv'!H26) -> 407790 | I26: 680.7525218 | J26: =IF(A27="",0,SUM(I27:OFFSET(I27,bpp-1,))/IF(F27=0,1,F27)) -> 470275.676 | K26: =IF(OR(A26="",A26=0),0,IF(A26<ppp,J26-MIN(β,GP)*SUM(F27:OFFSET($F$10,ppp-1,))/IF(F27=0,1,F27),J26)) -> 470275.676 | L26: =IF(A26="",0,MAX(K26,'05 cv'!T26)) -> 470275.676 | M26: 470275.676
A27: 18 | B27: 62 | C27: 0.002836 | D27: 0.9771769922 | E27: 0.6571950571 | F27: 0.6421958891 | G27: =IF(A27="",0,'05 cv'!G27) -> 0 | H27: =IF(A27="",0,'05 cv'!H27) -> 407790 | I27: 733.5815274 | J27: =IF(A28="",0,SUM(I28:OFFSET(I28,bpp-1,))/IF(F28=0,1,F28)) -> 482229.3108 | K27: =IF(OR(A27="",A27=0),0,IF(A27<ppp,J27-MIN(β,GP)*SUM(F28:OFFSET($F$10,ppp-1,))/IF(F28=0,1,F28),J27)) -> 482229.3108 | L27: =IF(A27="",0,MAX(K27,'05 cv'!T27)) -> 482229.3108 | M27: 482229.3108
A28: 19 | B28: 63 | C28: 0.003137 | D28: 0.9744057182 | E28: 0.6411659093 | F28: 0.6247557284 | G28: =IF(A28="",0,'05 cv'!G28) -> 0 | H28: =IF(A28="",0,'05 cv'!H28) -> 407790 | I28: 789.4041487 | J28: =IF(A29="",0,SUM(I29:OFFSET(I29,bpp-1,))/IF(F29=0,1,F29)) -> 494541.2906 | K28: =IF(OR(A28="",A28=0),0,IF(A28<ppp,J28-MIN(β,GP)*SUM(F29:OFFSET($F$10,ppp-1,))/IF(F29=0,1,F29),J28)) -> 494541.2906 | L28: =IF(A28="",0,MAX(K28,'05 cv'!T28)) -> 494541.2906 | M28: 494541.2906
A29: 20 | B29: 64 | C29: 0.003468 | D29: 0.9713490075 | E29: 0.6255277164 | F29: 0.6076057265 | G29: =IF(A29="",0,'05 cv'!G29) -> 0 | H29: =IF(A29="",0,'05 cv'!H29) -> 407790 | I29: 848.7417895 | J29: =IF(A30="",0,SUM(I30:OFFSET(I30,bpp-1,))/IF(F30=0,1,F30)) -> 507232.1196 | K29: =IF(OR(A29="",A29=0),0,IF(A29<ppp,J29-MIN(β,GP)*SUM(F30:OFFSET($F$10,ppp-1,))/IF(F30=0,1,F30),J29)) -> 507232.1196 | L29: =IF(A29="",0,MAX(K29,'05 cv'!T29)) -> 507232.1196 | M29: 495366.1196
A30: 21 | B30: 65 | C30: 0.003835 | D30: 0.9679803691 | E30: 0.6102709429 | F30: 0.5907302925 | G30: =IF(A30="",0,'05 cv'!G30) -> 11866 | H30: =IF(A30="",0,'05 cv'!H30) -> 408889 | I30: 7924.557217 | J30: =IF(A31="",0,SUM(I31:OFFSET(I31,bpp-1,))/IF(F31=0,1,F31)) -> 508111.31 | K30: =IF(OR(A30="",A30=0),0,IF(A30<ppp,J30-MIN(β,GP)*SUM(F31:OFFSET($F$10,ppp-1,))/IF(F31=0,1,F31),J30)) -> 508111.31 | L30: =IF(A30="",0,MAX(K30,'05 cv'!T30)) -> 508111.31 | M30: 496245.31
A31: 22 | B31: 66 | C31: 0.004254 | D31: 0.9642681644 | E31: 0.5953862857 | F31: 0.5741120408 | G31: =IF(A31="",0,'05 cv'!G31) -> 11866 | H31: =IF(A31="",0,'05 cv'!H31) -> 412869 | I31: 7808.37941 | J31: =IF(A32="",0,SUM(I32:OFFSET(I32,bpp-1,))/IF(F32=0,1,F32)) -> 509038.73 | K31: =IF(OR(A31="",A31=0),0,IF(A31<ppp,J31-MIN(β,GP)*SUM(F32:OFFSET($F$10,ppp-1,))/IF(F32=0,1,F32),J31)) -> 509038.73 | L31: =IF(A31="",0,MAX(K31,'05 cv'!T31)) -> 509038.73 | M31: 497172.73
A32: 23 | B32: 67 | C32: 0.00474 | D32: 0.9601661676 | E32: 0.580864669 | F32: 0.5577266031 | G32: =IF(A32="",0,'05 cv'!G32) -> 11866 | H32: =IF(A32="",0,'05 cv'!H32) -> 417004 | I32: 7706.858782 | J32: =IF(A33="",0,SUM(I33:OFFSET(I33,bpp-1,))/IF(F33=0,1,F33)) -> 510018.3815 | K32: =IF(OR(A32="",A32=0),0,IF(A32<ppp,J32-MIN(β,GP)*SUM(F33:OFFSET($F$10,ppp-1,))/IF(F33=0,1,F33),J32)) -> 510018.3815 | L32: =IF(A32="",0,MAX(K32,'05 cv'!T32)) -> 510018.3815 | M32: 498152.3815
A33: 24 | B33: 68 | C33: 0.005302 | D33: 0.95561498 | E33: 0.566697238 | F33: 0.5415443698 | G33: =IF(A33="",0,'05 cv'!G33) -> 11866 | H33: =IF(A33="",0,'05 cv'!H33) -> 421300 | I33: 7620.787724 | J33: =IF(A34="",0,SUM(I34:OFFSET(I34,bpp-1,))/IF(F34=0,1,F34)) -> 511054.3191 | K33: =IF(OR(A33="",A33=0),0,IF(A33<ppp,J33-MIN(β,GP)*SUM(F34:OFFSET($F$10,ppp-1,))/IF(F34=0,1,F34),J33)) -> 511054.3191 | L33: =IF(A33="",0,MAX(K33,'05 cv'!T33)) -> 511054.3191 | M33: 499188.3191
A34: 25 | B34: 69 | C34: 0.005943 | D34: 0.9505483094 | E34: 0.5528753542 | F34: 0.5255347332 | G34: =IF(A34="",0,'05 cv'!G34) -> 11866 | H34: =IF(A34="",0,'05 cv'!H34) -> 425761 | I34: 7549.437748 | J34: =IF(A35="",0,SUM(I35:OFFSET(I35,bpp-1,))/IF(F35=0,1,F35)) -> 512150.0035 | K34: =IF(OR(A34="",A34=0),0,IF(A34<ppp,J34-MIN(β,GP)*SUM(F35:OFFSET($F$10,ppp-1,))/IF(F35=0,1,F35),J34)) -> 512150.0035 | L34: =IF(A34="",0,MAX(K34,'05 cv'!T34)) -> 512150.0035 | M34: 500284.0035
A35: 26 | B35: 70 | C35: 0.00666 | D35: 0.9448992008 | E35: 0.5393905894 | F35: 0.5096697369 | G35: =IF(A35="",0,'05 cv'!G35) -> 11866 | H35: =IF(A35="",0,'05 cv'!H35) -> 430394 | I35: 7490.744489 | J35: =IF(A36="",0,SUM(I36:OFFSET(I36,bpp-1,))/IF(F36=0,1,F36)) -> 513307.6997 | K35: =IF(OR(A35="",A35=0),0,IF(A35<ppp,J35-MIN(β,GP)*SUM(F36:OFFSET($F$10,ppp-1,))/IF(F36=0,1,F36),J35)) -> 513307.6997 | L35: =IF(A35="",0,MAX(K35,'05 cv'!T35)) -> 513307.6997 | M35: 501441.6997
A36: 27 | B36: 71 | C36: 0.00746 | D36: 0.9386061721 | E36: 0.5262347214 | F36: 0.4939271575 | G36: =IF(A36="",0,'05 cv'!G36) -> 11866 | H36: =IF(A36="",0,'05 cv'!H36) -> 435205 | I36: 7444.861234 | J36: =IF(A37="",0,SUM(I37:OFFSET(I37,bpp-1,))/IF(F37=0,1,F37)) -> 514529.1681 | K36: =IF(OR(A36="",A36=0),0,IF(A36<ppp,J36-MIN(β,GP)*SUM(F37:OFFSET($F$10,ppp-1,))/IF(F37=0,1,F37),J36)) -> 514529.1681 | L36: =IF(A36="",0,MAX(K36,'05 cv'!T36)) -> 514529.1681 | M36: 502663.1681
A37: 28 | B37: 72 | C37: 0.008369 | D37: 0.9316041701 | E37: 0.5133997282 | F37: 0.4782853277 | G37: =IF(A37="",0,'05 cv'!G37) -> 11866 | H37: =IF(A37="",0,'05 cv'!H37) -> 440199 | I37: 7415.728371 | J37: =IF(A38="",0,SUM(I38:OFFSET(I38,bpp-1,))/IF(F38=0,1,F38)) -> 515816.8269 | K37: =IF(OR(A37="",A37=0),0,IF(A37<ppp,J37-MIN(β,GP)*SUM(F38:OFFSET($F$10,ppp-1,))/IF(F38=0,1,F38),J37)) -> 515816.8269 | L37: =IF(A37="",0,MAX(K37,'05 cv'!T37)) -> 515816.8269 | M37: 503950.8269
A38: 29 | B38: 73 | C38: 0.009436 | D38: 0.9238075748 | E38: 0.5008777836 | F38: 0.4627146905 | G38: =IF(A38="",0,'05 cv'!G38) -> 11866 | H38: =IF(A38="",0,'05 cv'!H38) -> 445383 | I38: 7411.331725 | J38: =IF(A39="",0,SUM(I39:OFFSET(I39,bpp-1,))/IF(F39=0,1,F39)) -> 517174.8165 | K38: =IF(OR(A38="",A38=0),0,IF(A38<ppp,J38-MIN(β,GP)*SUM(F39:OFFSET($F$10,ppp-1,))/IF(F39=0,1,F39),J38)) -> 517174.8165 | L38: =IF(A38="",0,MAX(K38,'05 cv'!T38)) -> 517174.8165 | M38: 505308.8165
A39: 30 | B39: 74 | C39: 0.01073 | D39: 0.9150905265 | E39: 0.4886612523 | F39: 0.4471692827 | G39: =IF(A39="",0,'05 cv'!G39) -> 11866 | H39: =IF(A39="",0,'05 cv'!H39) -> 450762 | I39: 7442.385173 | J39: =IF(A40="",0,SUM(I40:OFFSET(I40,bpp-1,))/IF(F40=0,1,F40)) -> 518609.4549 | K39: =IF(OR(A39="",A39=0),0,IF(A39<ppp,J39-MIN(β,GP)*SUM(F40:OFFSET($F$10,ppp-1,))/IF(F40=0,1,F40),J39)) -> 518609.4549 | L39: =IF(A39="",0,MAX(K39,'05 cv'!T39)) -> 518609.4549 | M39: 506743.4549
A40: 31 | B40: 75 | C40: 0.012332 | D40: 0.9052716051 | E40: 0.4767426852 | F40: 0.4315816159 | G40: =IF(A40="",0,'05 cv'!G40) -> 11866 | H40: =IF(A40="",0,'05 cv'!H40) -> 456341 | I40: 7520.112995 | J40: =IF(A41="",0,SUM(I41:OFFSET(I41,bpp-1,))/IF(F41=0,1,F41)) -> 520128.7612 | K40: =IF(OR(A40="",A40=0),0,IF(A40<ppp,J40-MIN(β,GP)*SUM(F41:OFFSET($F$10,ppp-1,))/IF(F41=0,1,F41),J40)) -> 520128.7612 | L40: =IF(A40="",0,MAX(K40,'05 cv'!T40)) -> 520128.7612 | M40: 508262.7612
A41: 32 | B41: 76 | C41: 0.014315 | D41: 0.8941077957 | E41: 0.4651148148 | F41: 0.4158627818 | G41: =IF(A41="",0,'05 cv'!G41) -> 11866 | H41: =IF(A41="",0,'05 cv'!H41) -> 462123 | I41: 7651.924448 | J41: =IF(A42="",0,SUM(I42:OFFSET(I42,bpp-1,))/IF(F42=0,1,F42)) -> 521740.5751 | K41: =IF(OR(A41="",A41=0),0,IF(A41<ppp,J41-MIN(β,GP)*SUM(F42:OFFSET($F$10,ppp-1,))/IF(F42=0,1,F42),J41)) -> 521740.5751 | L41: =IF(A41="",0,MAX(K41,'05 cv'!T41)) -> 521740.5751 | M41: 509874.5751
A42: 33 | B42: 77 | C42: 0.016734 | D42: 0.8813086426 | E42: 0.453770551 | F42: 0.3999119084 | G42: =IF(A42="",0,'05 cv'!G42) -> 11866 | H42: =IF(A42="",0,'05 cv'!H42) -> 468112 | I42: =IF(A42="",0,G42*F42+H42*C42*F42/(1+i_rsv)^0.5) -> 7839.580076 | J42: =IF(A43="",0,SUM(I43:OFFSET(I43,bpp-1,))/IF(F43=0,1,F43)) -> 523450.1553 | K42: =IF(OR(A42="",A42=0),0,IF(A42<ppp,J42-MIN(β,GP)*SUM(F43:OFFSET($F$10,ppp-1,))/IF(F43=0,1,F43),J42)) -> 523450.1553 | L42: =IF(A42="",0,MAX(K42,'05 cv'!T42)) -> 523450.1553 | M42: 511584.1553
A43: 34 | B43: 78 | C43: 0.019619 | D43: 0.8665608238 | E43: =IF(A43="",0,E42/(1+i_rsv)) -> 0.4427029766 | F43: 0.3836290561 | G43: =IF(A43="",0,'05 cv'!G43) -> 11866 | H43: =IF(A43="",0,'05 cv'!H43) -> 474311 | I43: 8078.201782 | J43: =IF(A44="",0,SUM(I44:OFFSET(I44,bpp-1,))/IF(F44=0,1,F44)) -> 525257.6814 | K43: =IF(OR(A43="",A43=0),0,IF(A43<ppp,J43-MIN(β,GP)*SUM(F44:OFFSET($F$10,ppp-1,))/IF(F44=0,1,F44),J43)) -> 525257.6814 | L43: =IF(A43="",0,MAX(K43,'05 cv'!T43)) -> 525257.6814 | M43: 513391.6814
A44: 35 | B44: 79 | C44: 0.022971 | D44: 0.849559767 | E44: 0.431905343 | F44: 0.3669294026 | G44: =IF(A44="",0,'05 cv'!G44) -> 11866 | H44: =IF(A44="",0,'05 cv'!H44) -> 480724 | I44: 8356.161253 | J44: =IF(A45="",0,SUM(I45:OFFSET(I45,bpp-1,))/IF(F45=0,1,F45)) -> 527155.8783 | K44: =IF(OR(A44="",A44=0),0,IF(A44<ppp,J44-MIN(β,GP)*SUM(F45:OFFSET($F$10,ppp-1,))/IF(F45=0,1,F45),J44)) -> 527155.8783 | L44: =IF(A44="",0,MAX(K44,'05 cv'!T44)) -> 527155.8783 | M44: 515289.8783
A45: 36 | B45: 80 | C45: 0.02677 | D45: 0.8300445296 | E45: 0.4213710664 | F45: 0.3497567486 | G45: =IF(A45="",0,'05 cv'!G45) -> 11866 | H45: =IF(A45="",0,'05 cv'!H45) -> 487354 | I45: 8657.312358 | J45: =IF(A46="",0,SUM(I46:OFFSET(I46,bpp-1,))/IF(F46=0,1,F46)) -> 529128.3505 | K45: =IF(OR(A45="",A45=0),0,IF(A45<ppp,J45-MIN(β,GP)*SUM(F46:OFFSET($F$10,ppp-1,))/IF(F46=0,1,F46),J45)) -> 529128.3505 | L45: =IF(A45="",0,MAX(K45,'05 cv'!T45)) -> 529128.3505 | M45: 517262.3505
A46: 37 | B46: 81 | C46: 0.030989 | D46: 0.8078242375 | E46: 0.4110937233 | F46: 0.3320914736 | G46: =IF(A46="",0,'05 cv'!G46) -> 11866 | H46: =IF(A46="",0,'05 cv'!H46) -> 494205 | I46: 8964.144653 | J46: =IF(A47="",0,SUM(I47:OFFSET(I47,bpp-1,))/IF(F47=0,1,F47)) -> 531148.4965 | K46: =IF(OR(A46="",A46=0),0,IF(A46<ppp,J46-MIN(β,GP)*SUM(F47:OFFSET($F$10,ppp-1,))/IF(F47=0,1,F47),J46)) -> 531148.4965 | L46: =IF(A46="",0,MAX(K46,'05 cv'!T46)) -> 531148.4965 | M46: 519282.4965
A47: 38 | B47: 82 | C47: 0.035598 | D47: 0.7827905722 | E47: 0.4010670471 | F47: 0.3139515033 | G47: =IF(A47="",0,'05 cv'!G47) -> 11866 | H47: =IF(A47="",0,'05 cv'!H47) -> 501279 | I47: 9258.922819 | J47: =IF(A48="",0,SUM(I48:OFFSET(I48,bpp-1,))/IF(F48=0,1,F48)) -> 533178.4354 | K47: =IF(OR(A47="",A47=0),0,IF(A47<ppp,J47-MIN(β,GP)*SUM(F48:OFFSET($F$10,ppp-1,))/IF(F48=0,1,F48),J47)) -> 533178.4354 | L47: =IF(A47="",0,MAX(K47,'05 cv'!T47)) -> 533178.4354 | M47: 521312.4354
A48: 39 | B48: 83 | C48: 0.040576 | D48: 0.7549247934 | E48: 0.391284924 | F48: 0.2953906904 | G48: =IF(A48="",0,'05 cv'!G48) -> 11866 | H48: =IF(A48="",0,'05 cv'!H48) -> 508581 | I48: 9526.045033 | J48: =IF(A49="",0,SUM(I49:OFFSET(I49,bpp-1,))/IF(F49=0,1,F49)) -> 535167.6669 | K48: =IF(OR(A48="",A48=0),0,IF(A48<ppp,J48-MIN(β,GP)*SUM(F49:OFFSET($F$10,ppp-1,))/IF(F49=0,1,F49),J48)) -> 535167.6669 | L48: =IF(A48="",0,MAX(K48,'05 cv'!T48)) -> 535167.6669 | M48: 523301.6669
A49: 40 | B49: 84 | C49: 0.045915 | D49: 0.724292965 | E49: 0.3817413893 | F49: 0.2764926027 | G49: =IF(A49="",0,'05 cv'!G49) -> 11866 | H49: =IF(A49="",0,'05 cv'!H49) -> 516114.2 | I49: 9752.614925 | J49: =IF(A50="",0,SUM(I50:OFFSET(I50,bpp-1,))/IF(F50=0,1,F50)) -> 537051.1394 | K49: =IF(OR(A49="",A49=0),0,IF(A49<ppp,J49-MIN(β,GP)*SUM(F50:OFFSET($F$10,ppp-1,))/IF(F50=0,1,F50),J49)) -> 537051.1394 | L49: =IF(A49="",0,MAX(K49,'05 cv'!T49)) -> 537051.1394 | M49: 451782.9394
A50: 41 | B50: 85 | C50: 0.051616 | D50: 0.6910370535 | E50: 0.3724306237 | F50: 0.2573633608 | G50: =IF(A50="",0,'05 cv'!G50) -> 85268.2 | H50: =IF(A50="",0,'05 cv'!H50) -> 447622.2 | I50: 27818.19112 | J50: =IF(A51="",0,SUM(I51:OFFSET(I51,bpp-1,))/IF(F51=0,1,F51)) -> 463616.0273 | K50: =IF(OR(A50="",A50=0),0,IF(A50<ppp,J50-MIN(β,GP)*SUM(F51:OFFSET($F$10,ppp-1,))/IF(F51=0,1,F51),J50)) -> 463616.0273 | L50: =IF(A50="",0,MAX(K50,'05 cv'!T50)) -> 463616.0273 | M50: 378347.8273
A51: 42 | B51: 86 | C51: 0.057646 | D51: 0.655368485 | E51: 0.3633469499 | F51: 0.2381261401 | G51: =IF(A51="",0,'05 cv'!G51) -> 85268.2 | H51: =IF(A51="",0,'05 cv'!H51) -> 376418.2 | I51: 25408.2849 | J51: =IF(A52="",0,SUM(I52:OFFSET(I52,bpp-1,))/IF(F52=0,1,F52)) -> 388217.1204 | K51: =IF(OR(A51="",A51=0),0,IF(A51<ppp,J51-MIN(β,GP)*SUM(F52:OFFSET($F$10,ppp-1,))/IF(F52=0,1,F52),J51)) -> 388217.1204 | L51: =IF(A51="",0,MAX(K51,'05 cv'!T51)) -> 388217.1204 | M51: 302948.9204
A52: 43 | B52: 87 | C52: 0.064084 | D52: 0.6175891133 | E52: 0.3544848292 | F52: 0.2189259714 | G52: =IF(A52="",0,'05 cv'!G52) -> 85268.2 | H52: =IF(A52="",0,'05 cv'!H52) -> 302412.2 | I52: 22858.10132 | J52: =IF(A53="",0,SUM(I53:OFFSET(I53,bpp-1,))/IF(F53=0,1,F53)) -> 310820.7447 | K52: =IF(OR(A52="",A52=0),0,IF(A52<ppp,J52-MIN(β,GP)*SUM(F53:OFFSET($F$10,ppp-1,))/IF(F53=0,1,F53),J52)) -> 310820.7447 | L52: =IF(A52="",0,MAX(K52,'05 cv'!T52)) -> 310820.7447 | M52: 225552.5447
A53: 44 | B53: 88 | C53: 0.070942 | D53: 0.5780115326 | E53: 0.3458388578 | F53: 0.1998988482 | G53: =IF(A53="",0,'05 cv'!G53) -> 85268.2 | H53: =IF(A53="",0,'05 cv'!H53) -> 225513.2 | I53: 20203.82679 | J53: =IF(A54="",0,SUM(I54:OFFSET(I54,bpp-1,))/IF(F54=0,1,F54)) -> 231411.0162 | K53: =IF(OR(A53="",A53=0),0,IF(A53<ppp,J53-MIN(β,GP)*SUM(F54:OFFSET($F$10,ppp-1,))/IF(F54=0,1,F54),J53)) -> 231411.0162 | L53: =IF(A53="",0,MAX(K53,'05 cv'!T53)) -> 231411.0162 | M53: 146142.8162
A54: 45 | B54: 89 | C54: 0.078241 | D54: 0.5370062384 | E54: 0.3374037637 | F54: 0.181187926 | G54: =IF(A54="",0,'05 cv'!G54) -> 85268.2 | H54: =IF(A54="",0,'05 cv'!H54) -> 145629.2 | I54: 17488.72302 | J54: =IF(A55="",0,SUM(I55:OFFSET(I55,bpp-1,))/IF(F55=0,1,F55)) -> 149996.544 | K54: =IF(OR(A54="",A54=0),0,IF(A54<ppp,J54-MIN(β,GP)*SUM(F55:OFFSET($F$10,ppp-1,))/IF(F55=0,1,F55),J54)) -> 149996.544 | L54: =IF(A54="",0,MAX(K54,'05 cv'!T54)) -> 149996.544 | M54: 64728.34397
A55: 46 | B55: 90 | C55: 0.086003 | D55: 0.4949903333 | E55: 0.3291744036 | F55: 0.1629381478 | G55: =IF(A55="",0,'05 cv'!G55) -> 85268.2 | H55: =IF(A55="",0,'05 cv'!H55) -> 0 | I55: 13893.44257 | J55: =IF(A56="",0,SUM(I56:OFFSET(I56,bpp-1,))/IF(F56=0,1,F56)) -> 72589.46426 | K55: =IF(OR(A55="",A55=0),0,IF(A55<ppp,J55-MIN(β,GP)*SUM(F56:OFFSET($F$10,ppp-1,))/IF(F56=0,1,F56),J55)) -> 72589.46426 | L55: =IF(A55="",0,MAX(K55,'05 cv'!T55)) -> 72589.46426 | M55: 60723.46426
A56: 47 | B56: 91 | C56: 0.094249 | D56: 0.4524196797 | E56: 0.3211457596 | F56: 0.1452926617 | G56: =IF(A56="",0,'05 cv'!G56) -> 11866 | H56: =IF(A56="",0,'05 cv'!H56) -> 0 | I56: 1724.042724 | J56: =IF(A57="",0,SUM(I57:OFFSET(I57,bpp-1,))/IF(F57=0,1,F57)) -> 68718.16964 | K56: =IF(OR(A56="",A56=0),0,IF(A56<ppp,J56-MIN(β,GP)*SUM(F57:OFFSET($F$10,ppp-1,))/IF(F57=0,1,F57),J56)) -> 68718.16964 | L56: =IF(A56="",0,MAX(K56,'05 cv'!T56)) -> 68718.16964 | M56: 56852.16964
A57: 48 | B57: 92 | C57: 0.103002 | D57: 0.4097795773 | E57: 0.3133129362 | F57: 0.1283892426 | G57: =IF(A57="",0,'05 cv'!G57) -> 11866 | H57: =IF(A57="",0,'05 cv'!H57) -> 0 | I57: 1523.466752 | J57: =IF(A58="",0,SUM(I58:OFFSET(I58,bpp-1,))/IF(F58=0,1,F58)) -> 64964.99867 | K57: =IF(OR(A57="",A57=0),0,IF(A57<ppp,J57-MIN(β,GP)*SUM(F58:OFFSET($F$10,ppp-1,))/IF(F58=0,1,F58),J57)) -> 64964.99867 | L57: =IF(A57="",0,MAX(K57,'05 cv'!T57)) -> 64964.99867 | M57: 53098.99867
A58: 49 | B58: 93 | C58: 0.112281 | D58: 0.3675714613 | E58: 0.3056711573 | F58: 0.1123559939 | G58: =IF(A58="",0,'05 cv'!G58) -> 11866 | H58: =IF(A58="",0,'05 cv'!H58) -> 0 | I58: 1333.216224 | J58: =IF(A59="",0,SUM(I59:OFFSET(I59,bpp-1,))/IF(F59=0,1,F59)) -> 61310.47509 | K58: =IF(OR(A58="",A58=0),0,IF(A58<ppp,J58-MIN(β,GP)*SUM(F59:OFFSET($F$10,ppp-1,))/IF(F59=0,1,F59),J58)) -> 61310.47509 | L58: =IF(A58="",0,MAX(K58,'05 cv'!T58)) -> 61310.47509 | M58: 49444.47509
A59: 50 | B59: 94 | C59: 0.122109 | D59: 0.32630017 | E59: 0.2982157632 | F59: 0.09730785423 | G59: =IF(A59="",0,'05 cv'!G59) -> 11866 | H59: =IF(A59="",0,'05 cv'!H59) -> 0 | I59: 1154.654998 | J59: =IF(A60="",0,SUM(I60:OFFSET(I60,bpp-1,))/IF(F60=0,1,F60)) -> 57729.93113 | K59: =IF(OR(A59="",A59=0),0,IF(A59<ppp,J59-MIN(β,GP)*SUM(F60:OFFSET($F$10,ppp-1,))/IF(F60=0,1,F60),J59)) -> 57729.93113 | L59: =IF(A59="",0,MAX(K59,'05 cv'!T59)) -> 57729.93113 | M59: 45863.93113
A60: 51 | B60: 95 | C60: 0.13254 | D60: 0.2864559826 | E60: 0.290942208 | F60: 0.08334213606 | G60: =IF(A60="",0,'05 cv'!G60) -> 11866 | H60: =IF(A60="",0,'05 cv'!H60) -> 0 | I60: 988.9377865 | J60: =IF(A61="",0,SUM(I61:OFFSET(I61,bpp-1,))/IF(F61=0,1,F61)) -> 54193.31082 | K60: =IF(OR(A60="",A60=0),0,IF(A60<ppp,J60-MIN(β,GP)*SUM(F61:OFFSET($F$10,ppp-1,))/IF(F61=0,1,F61),J60)) -> 54193.31082 | L60: =IF(A60="",0,MAX(K60,'05 cv'!T60)) -> 54193.31082 | M60: 42327.31082
A61: 52 | B61: 96 | C61: 0.143757 | D61: 0.2484891066 | E61: 0.2838460566 | F61: 0.07053265302 | G61: =IF(A61="",0,'05 cv'!G61) -> 11866 | H61: =IF(A61="",0,'05 cv'!H61) -> 0 | I61: 836.9404607 | J61: =IF(A62="",0,SUM(I62:OFFSET(I62,bpp-1,))/IF(F62=0,1,F62)) -> 50669.60383 | K61: =IF(OR(A61="",A61=0),0,IF(A61<ppp,J61-MIN(β,GP)*SUM(F62:OFFSET($F$10,ppp-1,))/IF(F62=0,1,F62),J61)) -> 50669.60383 | L61: =IF(A61="",0,MAX(K61,'05 cv'!T61)) -> 50669.60383 | M61: 38803.60383
A62: 53 | B62: 97 | C62: 0.155979 | D62: 0.2127670581 | E62: 0.276922982 | F62: 0.05892008821 | G62: =IF(A62="",0,'05 cv'!G62) -> 11866 | H62: =IF(A62="",0,'05 cv'!H62) -> 0 | I62: 699.1457667 | J62: =IF(A63="",0,SUM(I63:OFFSET(I63,bpp-1,))/IF(F63=0,1,F63)) -> 47124.05725 | K62: =IF(OR(A62="",A62=0),0,IF(A62<ppp,J62-MIN(β,GP)*SUM(F63:OFFSET($F$10,ppp-1,))/IF(F63=0,1,F63),J62)) -> 47124.05725 | L62: =IF(A62="",0,MAX(K62,'05 cv'!T62)) -> 47124.05725 | M62: 35258.05725
A63: 54 | B63: 98 | C63: 0.169421 | D63: 0.1795798652 | E63: 0.2701687629 | F63: 0.04851687002 | G63: =IF(A63="",0,'05 cv'!G63) -> 11866 | H63: =IF(A63="",0,'05 cv'!H63) -> 0 | I63: 575.7011797 | J63: =IF(A64="",0,SUM(I64:OFFSET(I64,bpp-1,))/IF(F64=0,1,F64)) -> 43511.22372 | K63: =IF(OR(A63="",A63=0),0,IF(A63<ppp,J63-MIN(β,GP)*SUM(F64:OFFSET($F$10,ppp-1,))/IF(F64=0,1,F64),J63)) -> 43511.22372 | L63: =IF(A63="",0,MAX(K63,'05 cv'!T63)) -> 43511.22372 | M63: 31645.22372
A64: 55 | B64: 99 | C64: 0.184301 | D64: 0.1491552648 | E64: 0.2635792809 | F64: 0.03931423745 | G64: =IF(A64="",0,'05 cv'!G64) -> 11866 | H64: =IF(A64="",0,'05 cv'!H64) -> 0 | I64: 466.5027416 | J64: =IF(A65="",0,SUM(I65:OFFSET(I65,bpp-1,))/IF(F65=0,1,F65)) -> 39765.10246 | K64: =IF(OR(A64="",A64=0),0,IF(A64<ppp,J64-MIN(β,GP)*SUM(F65:OFFSET($F$10,ppp-1,))/IF(F65=0,1,F65),J64)) -> 39765.10246 | L64: =IF(A64="",0,MAX(K64,'05 cv'!T64)) -> 39765.10246 | M64: 27899.10246
A65: 56 | B65: 100 | C65: 0.200836 | D65: 0.1216658004 | E65: 0.257150518 | F65: 0.03128642358 | G65: =IF(A65="",0,'05 cv'!G65) -> 11866 | H65: =IF(A65="",0,'05 cv'!H65) -> 0 | I65: 371.2447023 | J65: =IF(A66="",0,SUM(I66:OFFSET(I66,bpp-1,))/IF(F66=0,1,F66)) -> 35783.11839 | K65: =IF(OR(A65="",A65=0),0,IF(A65<ppp,J65-MIN(β,GP)*SUM(F66:OFFSET($F$10,ppp-1,))/IF(F66=0,1,F66),J65)) -> 35783.11839 | L65: =IF(A65="",0,MAX(K65,'05 cv'!T65)) -> 35783.11839 | M65: 23917.11839
A66: 57 | B66: 101 | C66: 0.219242 | D66: 0.09723092769 | E66: 0.2508785541 | F66: 0.02439315455 | G66: =IF(A66="",0,'05 cv'!G66) -> 11866 | H66: =IF(A66="",0,'05 cv'!H66) -> 0 | I66: 289.4491719 | J66: =IF(A67="",0,SUM(I67:OFFSET(I67,bpp-1,))/IF(F67=0,1,F67)) -> 31399.03318 | K66: =IF(OR(A66="",A66=0),0,IF(A66<ppp,J66-MIN(β,GP)*SUM(F67:OFFSET($F$10,ppp-1,))/IF(F67=0,1,F67),J66)) -> 31399.03318 | L66: =IF(A66="",0,MAX(K66,'05 cv'!T66)) -> 31399.03318 | M66: 19533.03318
A67: 58 | B67: 102 | C67: 0.239737 | D67: 0.07591382464 | E67: 0.244759565 | F67: 0.0185806347 | G67: =IF(A67="",0,'05 cv'!G67) -> 11866 | H67: =IF(A67="",0,'05 cv'!H67) -> 0 | I67: 220.4778113 | J67: =IF(A68="",0,SUM(I68:OFFSET(I68,bpp-1,))/IF(F68=0,1,F68)) -> 26334.78021 | K67: =IF(OR(A67="",A67=0),0,IF(A67<ppp,J67-MIN(β,GP)*SUM(F68:OFFSET($F$10,ppp-1,))/IF(F68=0,1,F68),J67)) -> 26334.78021 | L67: =IF(A67="",0,MAX(K67,'05 cv'!T67)) -> 26334.78021 | M67: 14468.78021
A68: 59 | B68: 103 | C68: 0.262537 | D68: 0.05771447206 | E68: 0.2387898195 | F68: 0.01378162837 | G68: =IF(A68="",0,'05 cv'!G68) -> 11866 | H68: =IF(A68="",0,'05 cv'!H68) -> 0 | I68: 163.5328022 | J68: =IF(A69="",0,SUM(I69:OFFSET(I69,bpp-1,))/IF(F69=0,1,F69)) -> 20110.16108 | K68: =IF(OR(A68="",A68=0),0,IF(A68<ppp,J68-MIN(β,GP)*SUM(F69:OFFSET($F$10,ppp-1,))/IF(F69=0,1,F69),J68)) -> 20110.16108 | L68: =IF(A68="",0,MAX(K68,'05 cv'!T68)) -> 20110.16108 | M68: 8244.161079
A69: 60 | B69: 104 | C69: 0.287859 | D69: 0.04256228771 | E69: 0.2329656776 | F69: 0.009915552195 | G69: =IF(A69="",0,'05 cv'!G69) -> 11866 | H69: =IF(A69="",0,'05 cv'!H69) -> 0 | I69: 117.6579423 | J69: =IF(A70="",0,SUM(I70:OFFSET(I70,bpp-1,))/IF(F70=0,1,F70)) -> 11866 | K69: =IF(OR(A69="",A69=0),0,IF(A69<ppp,J69-MIN(β,GP)*SUM(F70:OFFSET($F$10,ppp-1,))/IF(F70=0,1,F70),J69)) -> 11866 | L69: =IF(A69="",0,MAX(K69,'05 cv'!T69)) -> 11866 | M69: 1.818989404e-12
A70: 61 | B70: 105 | C70: 1 | D70: 0.03031035013 | E70: 0.2272835879 | F70: 0.006889045128 | G70: =IF(A70="",0,'05 cv'!G70) -> 11866 | H70: =IF(A70="",0,'05 cv'!H70) -> 0 | I70: 81.74540948 | J70: =IF(A71="",0,SUM(I71:OFFSET(I71,bpp-1,))/IF(F71=0,1,F71)) -> 0 | K70: =IF(OR(A70="",A70=0),0,IF(A70<ppp,J70-MIN(β,GP)*SUM(F71:OFFSET($F$10,ppp-1,))/IF(F71=0,1,F71),J70)) -> 0 | L70: =IF(A70="",0,MAX(K70,'05 cv'!T70)) -> 0 | M70: 0
C71: 0 | D71: 0 | E71: 0 | F71: 0 | G71: =IF(A71="",0,'05 cv'!G71) -> 0 | H71: =IF(A71="",0,'05 cv'!H71) -> 0 | I71: 0 | J71: =IF(A72="",0,SUM(I72:OFFSET(I72,bpp-1,))/IF(F72=0,1,F72)) -> 0 | K71: =IF(OR(A71="",A71=0),0,IF(A71<ppp,J71-MIN(β,GP)*SUM(F72:OFFSET($F$10,ppp-1,))/IF(F72=0,1,F72),J71)) -> 0 | L71: =IF(A71="",0,MAX(K71,'05 cv'!T71)) -> 0 | M71: 0
C72: 0 | D72: 0 | E72: 0 | F72: 0 | G72: =IF(A72="",0,'05 cv'!G72) -> 0 | H72: =IF(A72="",0,'05 cv'!H72) -> 0 | I72: 0 | J72: =IF(A73="",0,SUM(I73:OFFSET(I73,bpp-1,))/IF(F73=0,1,F73)) -> 0 | K72: =IF(OR(A72="",A72=0),0,IF(A72<ppp,J72-MIN(β,GP)*SUM(F73:OFFSET($F$10,ppp-1,))/IF(F73=0,1,F73),J72)) -> 0 | L72: =IF(A72="",0,MAX(K72,'05 cv'!T72)) -> 0 | M72: 0
C73: 0 | D73: 0 | E73: 0 | F73: 0 | G73: =IF(A73="",0,'05 cv'!G73) -> 0 | H73: =IF(A73="",0,'05 cv'!H73) -> 0 | I73: 0 | J73: =IF(A74="",0,SUM(I74:OFFSET(I74,bpp-1,))/IF(F74=0,1,F74)) -> 0 | K73: =IF(OR(A73="",A73=0),0,IF(A73<ppp,J73-MIN(β,GP)*SUM(F74:OFFSET($F$10,ppp-1,))/IF(F74=0,1,F74),J73)) -> 0 | L73: =IF(A73="",0,MAX(K73,'05 cv'!T73)) -> 0 | M73: 0
A74: =IF(A73>=bpp,"",A73+1) ->  | B74: =IF(A74="","",A74+age-1) ->  | C74: =IF(A74="",0,VLOOKUP(B74,mort_10_13,IF(sex=1,6,7))/1000) -> 0 | D74: 0 | E74: 0 | F74: 0 | G74: =IF(A74="",0,'05 cv'!G74) -> 0 | H74: =IF(A74="",0,'05 cv'!H74) -> 0 | I74: =IF(A74="",0,G74*F74+H74*C74*F74/(1+i_rsv)^0.5) -> 0 | J74: =IF(A75="",0,SUM(I75:OFFSET(I75,bpp-1,))/IF(F75=0,1,F75)) -> 0 | K74: =IF(OR(A74="",A74=0),0,IF(A74<ppp,J74-MIN(β,GP)*SUM(F75:OFFSET($F$10,ppp-1,))/IF(F75=0,1,F75),J74)) -> 0 | L74: =IF(A74="",0,MAX(K74,'05 cv'!T74)) -> 0 | M74: 0
C75: 0 | D75: 0 | E75: =IF(A75="",0,E74/(1+i_rsv)) -> 0 | F75: =IF(A75="",0,D75*E75) -> 0 | G75: =IF(A75="",0,'05 cv'!G75) -> 0 | H75: =IF(A75="",0,'05 cv'!H75) -> 0 | I75: 0 | J75: =IF(A76="",0,SUM(I76:OFFSET(I76,bpp-1,))/IF(F76=0,1,F76)) -> 0 | K75: =IF(OR(A75="",A75=0),0,IF(A75<ppp,J75-MIN(β,GP)*SUM(F76:OFFSET($F$10,ppp-1,))/IF(F76=0,1,F76),J75)) -> 0 | L75: =IF(A75="",0,MAX(K75,'05 cv'!T75)) -> 0 | M75: =IF(A75="",0,L75-G76) -> 0
C76: 0 | D76: =IF(A76="",0,D75*(1-C75)) -> 0 | E76: 0 | F76: 0 | G76: =IF(A76="",0,'05 cv'!G76) -> 0 | H76: =IF(A76="",0,'05 cv'!H76) -> 0 | I76: 0 | J76: =IF(A77="",0,SUM(I77:OFFSET(I77,bpp-1,))/IF(F77=0,1,F77)) -> 0 | K76: =IF(OR(A76="",A76=0),0,IF(A76<ppp,J76-MIN(β,GP)*SUM(F77:OFFSET($F$10,ppp-1,))/IF(F77=0,1,F77),J76)) -> 0 | L76: =IF(A76="",0,MAX(K76,'05 cv'!T76)) -> 0 | M76: 0
C77: 0 | D77: 0 | E77: 0 | F77: 0 | G77: =IF(A77="",0,'05 cv'!G77) -> 0 | H77: =IF(A77="",0,'05 cv'!H77) -> 0 | I77: 0 | J77: =IF(A78="",0,SUM(I78:OFFSET(I78,bpp-1,))/IF(F78=0,1,F78)) -> 0 | K77: =IF(OR(A77="",A77=0),0,IF(A77<ppp,J77-MIN(β,GP)*SUM(F78:OFFSET($F$10,ppp-1,))/IF(F78=0,1,F78),J77)) -> 0 | L77: =IF(A77="",0,MAX(K77,'05 cv'!T77)) -> 0 | M77: 0
C78: 0 | D78: 0 | E78: 0 | F78: 0 | G78: =IF(A78="",0,'05 cv'!G78) -> 0 | H78: =IF(A78="",0,'05 cv'!H78) -> 0 | I78: 0 | J78: =IF(A79="",0,SUM(I79:OFFSET(I79,bpp-1,))/IF(F79=0,1,F79)) -> 0 | K78: =IF(OR(A78="",A78=0),0,IF(A78<ppp,J78-MIN(β,GP)*SUM(F79:OFFSET($F$10,ppp-1,))/IF(F79=0,1,F79),J78)) -> 0 | L78: =IF(A78="",0,MAX(K78,'05 cv'!T78)) -> 0 | M78: 0
C79: 0 | D79: 0 | E79: 0 | F79: 0 | G79: =IF(A79="",0,'05 cv'!G79) -> 0 | H79: =IF(A79="",0,'05 cv'!H79) -> 0 | I79: 0 | J79: =IF(A80="",0,SUM(I80:OFFSET(I80,bpp-1,))/IF(F80=0,1,F80)) -> 0 | K79: =IF(OR(A79="",A79=0),0,IF(A79<ppp,J79-MIN(β,GP)*SUM(F80:OFFSET($F$10,ppp-1,))/IF(F80=0,1,F80),J79)) -> 0 | L79: =IF(A79="",0,MAX(K79,'05 cv'!T79)) -> 0 | M79: 0
C80: 0 | D80: 0 | E80: 0 | F80: 0 | G80: =IF(A80="",0,'05 cv'!G80) -> 0 | H80: =IF(A80="",0,'05 cv'!H80) -> 0 | I80: 0 | J80: =IF(A81="",0,SUM(I81:OFFSET(I81,bpp-1,))/IF(F81=0,1,F81)) -> 0 | K80: =IF(OR(A80="",A80=0),0,IF(A80<ppp,J80-MIN(β,GP)*SUM(F81:OFFSET($F$10,ppp-1,))/IF(F81=0,1,F81),J80)) -> 0 | L80: =IF(A80="",0,MAX(K80,'05 cv'!T80)) -> 0 | M80: 0
C81: 0 | D81: 0 | E81: 0 | F81: 0 | G81: =IF(A81="",0,'05 cv'!G81) -> 0 | H81: =IF(A81="",0,'05 cv'!H81) -> 0 | I81: 0 | J81: =IF(A82="",0,SUM(I82:OFFSET(I82,bpp-1,))/IF(F82=0,1,F82)) -> 0 | K81: =IF(OR(A81="",A81=0),0,IF(A81<ppp,J81-MIN(β,GP)*SUM(F82:OFFSET($F$10,ppp-1,))/IF(F82=0,1,F82),J81)) -> 0 | L81: =IF(A81="",0,MAX(K81,'05 cv'!T81)) -> 0 | M81: 0
C82: 0 | D82: 0 | E82: 0 | F82: 0 | G82: =IF(A82="",0,'05 cv'!G82) -> 0 | H82: =IF(A82="",0,'05 cv'!H82) -> 0 | I82: 0 | J82: =IF(A83="",0,SUM(I83:OFFSET(I83,bpp-1,))/IF(F83=0,1,F83)) -> 0 | K82: =IF(OR(A82="",A82=0),0,IF(A82<ppp,J82-MIN(β,GP)*SUM(F83:OFFSET($F$10,ppp-1,))/IF(F83=0,1,F83),J82)) -> 0 | L82: =IF(A82="",0,MAX(K82,'05 cv'!T82)) -> 0 | M82: 0
C83: 0 | D83: 0 | E83: 0 | F83: 0 | G83: =IF(A83="",0,'05 cv'!G83) -> 0 | H83: =IF(A83="",0,'05 cv'!H83) -> 0 | I83: 0 | J83: =IF(A84="",0,SUM(I84:OFFSET(I84,bpp-1,))/IF(F84=0,1,F84)) -> 0 | K83: =IF(OR(A83="",A83=0),0,IF(A83<ppp,J83-MIN(β,GP)*SUM(F84:OFFSET($F$10,ppp-1,))/IF(F84=0,1,F84),J83)) -> 0 | L83: =IF(A83="",0,MAX(K83,'05 cv'!T83)) -> 0 | M83: 0
C84: 0 | D84: 0 | E84: 0 | F84: 0 | G84: =IF(A84="",0,'05 cv'!G84) -> 0 | H84: =IF(A84="",0,'05 cv'!H84) -> 0 | I84: 0 | J84: =IF(A85="",0,SUM(I85:OFFSET(I85,bpp-1,))/IF(F85=0,1,F85)) -> 0 | K84: =IF(OR(A84="",A84=0),0,IF(A84<ppp,J84-MIN(β,GP)*SUM(F85:OFFSET($F$10,ppp-1,))/IF(F85=0,1,F85),J84)) -> 0 | L84: =IF(A84="",0,MAX(K84,'05 cv'!T84)) -> 0 | M84: 0
C85: 0 | D85: 0 | E85: 0 | F85: 0 | G85: =IF(A85="",0,'05 cv'!G85) -> 0 | H85: =IF(A85="",0,'05 cv'!H85) -> 0 | I85: 0 | J85: =IF(A86="",0,SUM(I86:OFFSET(I86,bpp-1,))/IF(F86=0,1,F86)) -> 0 | K85: =IF(OR(A85="",A85=0),0,IF(A85<ppp,J85-MIN(β,GP)*SUM(F86:OFFSET($F$10,ppp-1,))/IF(F86=0,1,F86),J85)) -> 0 | L85: =IF(A85="",0,MAX(K85,'05 cv'!T85)) -> 0 | M85: 0
C86: 0 | D86: 0 | E86: 0 | F86: 0 | G86: =IF(A86="",0,'05 cv'!G86) -> 0 | H86: =IF(A86="",0,'05 cv'!H86) -> 0 | I86: 0 | J86: =IF(A87="",0,SUM(I87:OFFSET(I87,bpp-1,))/IF(F87=0,1,F87)) -> 0 | K86: =IF(OR(A86="",A86=0),0,IF(A86<ppp,J86-MIN(β,GP)*SUM(F87:OFFSET($F$10,ppp-1,))/IF(F87=0,1,F87),J86)) -> 0 | L86: =IF(A86="",0,MAX(K86,'05 cv'!T86)) -> 0 | M86: 0
C87: 0 | D87: 0 | E87: 0 | F87: 0 | G87: =IF(A87="",0,'05 cv'!G87) -> 0 | H87: =IF(A87="",0,'05 cv'!H87) -> 0 | I87: 0 | J87: =IF(A88="",0,SUM(I88:OFFSET(I88,bpp-1,))/IF(F88=0,1,F88)) -> 0 | K87: =IF(OR(A87="",A87=0),0,IF(A87<ppp,J87-MIN(β,GP)*SUM(F88:OFFSET($F$10,ppp-1,))/IF(F88=0,1,F88),J87)) -> 0 | L87: =IF(A87="",0,MAX(K87,'05 cv'!T87)) -> 0 | M87: 0
C88: 0 | D88: 0 | E88: 0 | F88: 0 | G88: =IF(A88="",0,'05 cv'!G88) -> 0 | H88: =IF(A88="",0,'05 cv'!H88) -> 0 | I88: 0 | J88: =IF(A89="",0,SUM(I89:OFFSET(I89,bpp-1,))/IF(F89=0,1,F89)) -> 0 | K88: =IF(OR(A88="",A88=0),0,IF(A88<ppp,J88-MIN(β,GP)*SUM(F89:OFFSET($F$10,ppp-1,))/IF(F89=0,1,F89),J88)) -> 0 | L88: =IF(A88="",0,MAX(K88,'05 cv'!T88)) -> 0 | M88: 0
C89: 0 | D89: 0 | E89: 0 | F89: 0 | G89: =IF(A89="",0,'05 cv'!G89) -> 0 | H89: =IF(A89="",0,'05 cv'!H89) -> 0 | I89: 0 | J89: =IF(A90="",0,SUM(I90:OFFSET(I90,bpp-1,))/IF(F90=0,1,F90)) -> 0 | K89: =IF(OR(A89="",A89=0),0,IF(A89<ppp,J89-MIN(β,GP)*SUM(F90:OFFSET($F$10,ppp-1,))/IF(F90=0,1,F90),J89)) -> 0 | L89: =IF(A89="",0,MAX(K89,'05 cv'!T89)) -> 0 | M89: 0
C90: 0 | D90: 0 | E90: 0 | F90: 0 | G90: =IF(A90="",0,'05 cv'!G90) -> 0 | H90: =IF(A90="",0,'05 cv'!H90) -> 0 | I90: 0 | J90: =IF(A91="",0,SUM(I91:OFFSET(I91,bpp-1,))/IF(F91=0,1,F91)) -> 0 | K90: =IF(OR(A90="",A90=0),0,IF(A90<ppp,J90-MIN(β,GP)*SUM(F91:OFFSET($F$10,ppp-1,))/IF(F91=0,1,F91),J90)) -> 0 | L90: =IF(A90="",0,MAX(K90,'05 cv'!T90)) -> 0 | M90: 0
C91: 0 | D91: 0 | E91: 0 | F91: 0 | G91: =IF(A91="",0,'05 cv'!G91) -> 0 | H91: =IF(A91="",0,'05 cv'!H91) -> 0 | I91: 0 | J91: =IF(A92="",0,SUM(I92:OFFSET(I92,bpp-1,))/IF(F92=0,1,F92)) -> 0 | K91: =IF(OR(A91="",A91=0),0,IF(A91<ppp,J91-MIN(β,GP)*SUM(F92:OFFSET($F$10,ppp-1,))/IF(F92=0,1,F92),J91)) -> 0 | L91: =IF(A91="",0,MAX(K91,'05 cv'!T91)) -> 0 | M91: 0
C92: 0 | D92: 0 | E92: 0 | F92: 0 | G92: =IF(A92="",0,'05 cv'!G92) -> 0 | H92: =IF(A92="",0,'05 cv'!H92) -> 0 | I92: 0 | J92: =IF(A93="",0,SUM(I93:OFFSET(I93,bpp-1,))/IF(F93=0,1,F93)) -> 0 | K92: =IF(OR(A92="",A92=0),0,IF(A92<ppp,J92-MIN(β,GP)*SUM(F93:OFFSET($F$10,ppp-1,))/IF(F93=0,1,F93),J92)) -> 0 | L92: =IF(A92="",0,MAX(K92,'05 cv'!T92)) -> 0 | M92: 0
C93: 0 | D93: 0 | E93: 0 | F93: 0 | G93: =IF(A93="",0,'05 cv'!G93) -> 0 | H93: =IF(A93="",0,'05 cv'!H93) -> 0 | I93: 0 | J93: =IF(A94="",0,SUM(I94:OFFSET(I94,bpp-1,))/IF(F94=0,1,F94)) -> 0 | K93: =IF(OR(A93="",A93=0),0,IF(A93<ppp,J93-MIN(β,GP)*SUM(F94:OFFSET($F$10,ppp-1,))/IF(F94=0,1,F94),J93)) -> 0 | L93: =IF(A93="",0,MAX(K93,'05 cv'!T93)) -> 0 | M93: 0
C94: 0 | D94: 0 | E94: 0 | F94: 0 | G94: =IF(A94="",0,'05 cv'!G94) -> 0 | H94: =IF(A94="",0,'05 cv'!H94) -> 0 | I94: 0 | J94: =IF(A95="",0,SUM(I95:OFFSET(I95,bpp-1,))/IF(F95=0,1,F95)) -> 0 | K94: =IF(OR(A94="",A94=0),0,IF(A94<ppp,J94-MIN(β,GP)*SUM(F95:OFFSET($F$10,ppp-1,))/IF(F95=0,1,F95),J94)) -> 0 | L94: =IF(A94="",0,MAX(K94,'05 cv'!T94)) -> 0 | M94: 0
C95: 0 | D95: 0 | E95: 0 | F95: 0 | G95: =IF(A95="",0,'05 cv'!G95) -> 0 | H95: =IF(A95="",0,'05 cv'!H95) -> 0 | I95: 0 | J95: =IF(A96="",0,SUM(I96:OFFSET(I96,bpp-1,))/IF(F96=0,1,F96)) -> 0 | K95: =IF(OR(A95="",A95=0),0,IF(A95<ppp,J95-MIN(β,GP)*SUM(F96:OFFSET($F$10,ppp-1,))/IF(F96=0,1,F96),J95)) -> 0 | L95: =IF(A95="",0,MAX(K95,'05 cv'!T95)) -> 0 | M95: 0
C96: 0 | D96: 0 | E96: 0 | F96: 0 | G96: =IF(A96="",0,'05 cv'!G96) -> 0 | H96: =IF(A96="",0,'05 cv'!H96) -> 0 | I96: 0 | J96: =IF(A97="",0,SUM(I97:OFFSET(I97,bpp-1,))/IF(F97=0,1,F97)) -> 0 | K96: =IF(OR(A96="",A96=0),0,IF(A96<ppp,J96-MIN(β,GP)*SUM(F97:OFFSET($F$10,ppp-1,))/IF(F97=0,1,F97),J96)) -> 0 | L96: =IF(A96="",0,MAX(K96,'05 cv'!T96)) -> 0 | M96: 0
C97: 0 | D97: 0 | E97: 0 | F97: 0 | G97: =IF(A97="",0,'05 cv'!G97) -> 0 | H97: =IF(A97="",0,'05 cv'!H97) -> 0 | I97: 0 | J97: =IF(A98="",0,SUM(I98:OFFSET(I98,bpp-1,))/IF(F98=0,1,F98)) -> 0 | K97: =IF(OR(A97="",A97=0),0,IF(A97<ppp,J97-MIN(β,GP)*SUM(F98:OFFSET($F$10,ppp-1,))/IF(F98=0,1,F98),J97)) -> 0 | L97: =IF(A97="",0,MAX(K97,'05 cv'!T97)) -> 0 | M97: 0
C98: 0 | D98: 0 | E98: 0 | F98: 0 | G98: =IF(A98="",0,'05 cv'!G98) -> 0 | H98: =IF(A98="",0,'05 cv'!H98) -> 0 | I98: 0 | J98: =IF(A99="",0,SUM(I99:OFFSET(I99,bpp-1,))/IF(F99=0,1,F99)) -> 0 | K98: =IF(OR(A98="",A98=0),0,IF(A98<ppp,J98-MIN(β,GP)*SUM(F99:OFFSET($F$10,ppp-1,))/IF(F99=0,1,F99),J98)) -> 0 | L98: =IF(A98="",0,MAX(K98,'05 cv'!T98)) -> 0 | M98: 0
C99: 0 | D99: 0 | E99: 0 | F99: 0 | G99: =IF(A99="",0,'05 cv'!G99) -> 0 | H99: =IF(A99="",0,'05 cv'!H99) -> 0 | I99: 0 | J99: =IF(A100="",0,SUM(I100:OFFSET(I100,bpp-1,))/IF(F100=0,1,F100)) -> 0 | K99: =IF(OR(A99="",A99=0),0,IF(A99<ppp,J99-MIN(β,GP)*SUM(F100:OFFSET($F$10,ppp-1,))/IF(F100=0,1,F100),J99)) -> 0 | L99: =IF(A99="",0,MAX(K99,'05 cv'!T99)) -> 0 | M99: 0
C100: 0 | D100: 0 | E100: 0 | F100: 0 | G100: =IF(A100="",0,'05 cv'!G100) -> 0 | H100: =IF(A100="",0,'05 cv'!H100) -> 0 | I100: 0 | J100: =IF(A101="",0,SUM(I101:OFFSET(I101,bpp-1,))/IF(F101=0,1,F101)) -> 0 | K100: =IF(OR(A100="",A100=0),0,IF(A100<ppp,J100-MIN(β,GP)*SUM(F101:OFFSET($F$10,ppp-1,))/IF(F101=0,1,F101),J100)) -> 0 | L100: =IF(A100="",0,MAX(K100,'05 cv'!T100)) -> 0 | M100: 0
C101: 0 | D101: 0 | E101: 0 | F101: 0 | G101: =IF(A101="",0,'05 cv'!G101) -> 0 | H101: =IF(A101="",0,'05 cv'!H101) -> 0 | I101: 0 | J101: =IF(A102="",0,SUM(I102:OFFSET(I102,bpp-1,))/IF(F102=0,1,F102)) -> 0 | K101: =IF(OR(A101="",A101=0),0,IF(A101<ppp,J101-MIN(β,GP)*SUM(F102:OFFSET($F$10,ppp-1,))/IF(F102=0,1,F102),J101)) -> 0 | L101: =IF(A101="",0,MAX(K101,'05 cv'!T101)) -> 0 | M101: 0
C102: 0 | D102: 0 | E102: 0 | F102: 0 | G102: =IF(A102="",0,'05 cv'!G102) -> 0 | H102: =IF(A102="",0,'05 cv'!H102) -> 0 | I102: 0 | J102: =IF(A103="",0,SUM(I103:OFFSET(I103,bpp-1,))/IF(F103=0,1,F103)) -> 0 | K102: =IF(OR(A102="",A102=0),0,IF(A102<ppp,J102-MIN(β,GP)*SUM(F103:OFFSET($F$10,ppp-1,))/IF(F103=0,1,F103),J102)) -> 0 | L102: =IF(A102="",0,MAX(K102,'05 cv'!T102)) -> 0 | M102: 0
C103: 0 | D103: 0 | E103: 0 | F103: 0 | G103: =IF(A103="",0,'05 cv'!G103) -> 0 | H103: =IF(A103="",0,'05 cv'!H103) -> 0 | I103: 0 | J103: =IF(A104="",0,SUM(I104:OFFSET(I104,bpp-1,))/IF(F104=0,1,F104)) -> 0 | K103: =IF(OR(A103="",A103=0),0,IF(A103<ppp,J103-MIN(β,GP)*SUM(F104:OFFSET($F$10,ppp-1,))/IF(F104=0,1,F104),J103)) -> 0 | L103: =IF(A103="",0,MAX(K103,'05 cv'!T103)) -> 0 | M103: 0
C104: 0 | D104: 0 | E104: 0 | F104: 0 | G104: =IF(A104="",0,'05 cv'!G104) -> 0 | H104: =IF(A104="",0,'05 cv'!H104) -> 0 | I104: 0 | J104: =IF(A105="",0,SUM(I105:OFFSET(I105,bpp-1,))/IF(F105=0,1,F105)) -> 0 | K104: =IF(OR(A104="",A104=0),0,IF(A104<ppp,J104-MIN(β,GP)*SUM(F105:OFFSET($F$10,ppp-1,))/IF(F105=0,1,F105),J104)) -> 0 | L104: =IF(A104="",0,MAX(K104,'05 cv'!T104)) -> 0 | M104: 0
C105: 0 | D105: 0 | E105: 0 | F105: 0 | G105: =IF(A105="",0,'05 cv'!G105) -> 0 | H105: =IF(A105="",0,'05 cv'!H105) -> 0 | I105: 0 | J105: =IF(A106="",0,SUM(I106:OFFSET(I106,bpp-1,))/IF(F106=0,1,F106)) -> 0 | K105: =IF(OR(A105="",A105=0),0,IF(A105<ppp,J105-MIN(β,GP)*SUM(F106:OFFSET($F$10,ppp-1,))/IF(F106=0,1,F106),J105)) -> 0 | L105: =IF(A105="",0,MAX(K105,'05 cv'!T105)) -> 0 | M105: 0
C106: 0 | D106: 0 | E106: 0 | F106: 0 | G106: =IF(A106="",0,'05 cv'!G106) -> 0 | H106: =IF(A106="",0,'05 cv'!H106) -> 0 | I106: =IF(A106="",0,G106*F106+H106*C106*F106/(1+i_rsv)^0.5) -> 0 | J106: =IF(A107="",0,SUM(I107:OFFSET(I107,bpp-1,))/IF(F107=0,1,F107)) -> 0 | K106: =IF(OR(A106="",A106=0),0,IF(A106<ppp,J106-MIN(β,GP)*SUM(F107:OFFSET($F$10,ppp-1,))/IF(F107=0,1,F107),J106)) -> 0 | L106: =IF(A106="",0,MAX(K106,'05 cv'!T106)) -> 0 | M106: 0
C107: 0 | D107: 0 | E107: =IF(A107="",0,E106/(1+i_rsv)) -> 0 | F107: 0 | G107: =IF(A107="",0,'05 cv'!G107) -> 0 | H107: =IF(A107="",0,'05 cv'!H107) -> 0 | I107: 0 | J107: =IF(A108="",0,SUM(I108:OFFSET(I108,bpp-1,))/IF(F108=0,1,F108)) -> 0 | K107: =IF(OR(A107="",A107=0),0,IF(A107<ppp,J107-MIN(β,GP)*SUM(F108:OFFSET($F$10,ppp-1,))/IF(F108=0,1,F108),J107)) -> 0 | L107: =IF(A107="",0,MAX(K107,'05 cv'!T107)) -> 0 | M107: 0
C108: 0 | D108: 0 | E108: 0 | F108: 0 | G108: =IF(A108="",0,'05 cv'!G108) -> 0 | H108: =IF(A108="",0,'05 cv'!H108) -> 0 | I108: 0 | J108: =IF(A109="",0,SUM(I109:OFFSET(I109,bpp-1,))/IF(F109=0,1,F109)) -> 0 | K108: =IF(OR(A108="",A108=0),0,IF(A108<ppp,J108-MIN(β,GP)*SUM(F109:OFFSET($F$10,ppp-1,))/IF(F109=0,1,F109),J108)) -> 0 | L108: =IF(A108="",0,MAX(K108,'05 cv'!T108)) -> 0 | M108: 0
C109: 0 | D109: 0 | E109: 0 | F109: 0 | G109: =IF(A109="",0,'05 cv'!G109) -> 0 | H109: =IF(A109="",0,'05 cv'!H109) -> 0 | I109: 0 | J109: =IF(A110="",0,SUM(I110:OFFSET(I110,bpp-1,))/IF(F110=0,1,F110)) -> 0 | K109: =IF(OR(A109="",A109=0),0,IF(A109<ppp,J109-MIN(β,GP)*SUM(F110:OFFSET($F$10,ppp-1,))/IF(F110=0,1,F110),J109)) -> 0 | L109: =IF(A109="",0,MAX(K109,'05 cv'!T109)) -> 0 | M109: 0
C110: 0 | D110: 0 | E110: 0 | F110: 0 | G110: =IF(A110="",0,'05 cv'!G110) -> 0 | H110: =IF(A110="",0,'05 cv'!H110) -> 0 | I110: 0 | J110: =IF(A111="",0,SUM(I111:OFFSET(I111,bpp-1,))/IF(F111=0,1,F111)) -> 0 | K110: =IF(OR(A110="",A110=0),0,IF(A110<ppp,J110-MIN(β,GP)*SUM(F111:OFFSET($F$10,ppp-1,))/IF(F111=0,1,F111),J110)) -> 0 | L110: =IF(A110="",0,MAX(K110,'05 cv'!T110)) -> 0 | M110: 0
C111: 0 | D111: 0 | E111: 0 | F111: 0 | G111: =IF(A111="",0,'05 cv'!G111) -> 0 | H111: =IF(A111="",0,'05 cv'!H111) -> 0 | I111: 0 | J111: =IF(A112="",0,SUM(I112:OFFSET(I112,bpp-1,))/IF(F112=0,1,F112)) -> 0 | K111: =IF(OR(A111="",A111=0),0,IF(A111<ppp,J111-MIN(β,GP)*SUM(F112:OFFSET($F$10,ppp-1,))/IF(F112=0,1,F112),J111)) -> 0 | L111: =IF(A111="",0,MAX(K111,'05 cv'!T111)) -> 0 | M111: 0
C112: 0 | D112: 0 | E112: 0 | F112: 0 | G112: =IF(A112="",0,'05 cv'!G112) -> 0 | H112: =IF(A112="",0,'05 cv'!H112) -> 0 | I112: 0 | J112: =IF(A113="",0,SUM(I113:OFFSET(I113,bpp-1,))/IF(F113=0,1,F113)) -> 0 | K112: =IF(OR(A112="",A112=0),0,IF(A112<ppp,J112-MIN(β,GP)*SUM(F113:OFFSET($F$10,ppp-1,))/IF(F113=0,1,F113),J112)) -> 0 | L112: =IF(A112="",0,MAX(K112,'05 cv'!T112)) -> 0 | M112: 0
C113: 0 | D113: 0 | E113: 0 | F113: 0 | G113: =IF(A113="",0,'05 cv'!G113) -> 0 | H113: =IF(A113="",0,'05 cv'!H113) -> 0 | I113: 0 | J113: =IF(A114="",0,SUM(I114:OFFSET(I114,bpp-1,))/IF(F114=0,1,F114)) -> 0 | K113: =IF(OR(A113="",A113=0),0,IF(A113<ppp,J113-MIN(β,GP)*SUM(F114:OFFSET($F$10,ppp-1,))/IF(F114=0,1,F114),J113)) -> 0 | L113: =IF(A113="",0,MAX(K113,'05 cv'!T113)) -> 0 | M113: 0
C114: 0 | D114: 0 | E114: 0 | F114: 0 | G114: =IF(A114="",0,'05 cv'!G114) -> 0 | H114: =IF(A114="",0,'05 cv'!H114) -> 0 | I114: 0 | J114: =IF(A115="",0,SUM(I115:OFFSET(I115,bpp-1,))/IF(F115=0,1,F115)) -> 0 | K114: =IF(OR(A114="",A114=0),0,IF(A114<ppp,J114-MIN(β,GP)*SUM(F115:OFFSET($F$10,ppp-1,))/IF(F115=0,1,F115),J114)) -> 0 | L114: =IF(A114="",0,MAX(K114,'05 cv'!T114)) -> 0 | M114: 0
C115: 0 | D115: 0 | E115: 0 | F115: 0 | G115: =IF(A115="",0,'05 cv'!G115) -> 0 | H115: =IF(A115="",0,'05 cv'!H115) -> 0 | I115: 0 | J115: =IF(A116="",0,SUM(I116:OFFSET(I116,bpp-1,))/IF(F116=0,1,F116)) -> 0 | K115: =IF(OR(A115="",A115=0),0,IF(A115<ppp,J115-MIN(β,GP)*SUM(F116:OFFSET($F$10,ppp-1,))/IF(F116=0,1,F116),J115)) -> 0 | L115: =IF(A115="",0,MAX(K115,'05 cv'!T115)) -> 0 | M115: 0
C116: 0 | D116: 0 | E116: 0 | F116: 0 | G116: =IF(A116="",0,'05 cv'!G116) -> 0 | H116: =IF(A116="",0,'05 cv'!H116) -> 0 | I116: 0 | J116: =IF(A117="",0,SUM(I117:OFFSET(I117,bpp-1,))/IF(F117=0,1,F117)) -> 0 | K116: =IF(OR(A116="",A116=0),0,IF(A116<ppp,J116-MIN(β,GP)*SUM(F117:OFFSET($F$10,ppp-1,))/IF(F117=0,1,F117),J116)) -> 0 | L116: =IF(A116="",0,MAX(K116,'05 cv'!T116)) -> 0 | M116: 0
C117: 0 | D117: 0 | E117: 0 | F117: 0 | G117: =IF(A117="",0,'05 cv'!G117) -> 0 | H117: =IF(A117="",0,'05 cv'!H117) -> 0 | I117: 0 | J117: =IF(A118="",0,SUM(I118:OFFSET(I118,bpp-1,))/IF(F118=0,1,F118)) -> 0 | K117: =IF(OR(A117="",A117=0),0,IF(A117<ppp,J117-MIN(β,GP)*SUM(F118:OFFSET($F$10,ppp-1,))/IF(F118=0,1,F118),J117)) -> 0 | L117: =IF(A117="",0,MAX(K117,'05 cv'!T117)) -> 0 | M117: 0

Sheet gp_read (hidden)
C1: 泰康经代新养老年金保险（分红型）费率表（60岁起领）
C2: 以1000元基本保险金额为计算单位
C3: 单位：元
C4: 投保 | D4: 保险费一次性交纳
C5: 年龄 | F5: 3年交 | H5: 5年交 | J5: 10年交 | L5: 15年交 | N5: 20年交
C6: (周岁) | D6: 男性 | E6: 女性 | F6: 男性 | G6: 女性 | H6: 男性 | I6: 女性 | J6: 男性 | K6: 女性 | L6: 男性 | M6: 女性 | N6: 男性 | O6: 女性
C7: 0 | D7: 74715 | E7: 79167 | F7: 28530 | G7: 30236 | H7: 17584 | I7: 18636 | J7: 9428 | K7: 9993 | L7: 6768 | M7: 7175 | N7: 5453 | O7: 5782
C8: 1 | D8: 76920 | E8: 81507 | F8: 29390 | G8: 31149 | H8: 18117 | I8: 19202 | J8: 9717 | K8: 10300 | L8: 6979 | M8: 7399 | N8: 5626 | O8: 5965
C9: 2 | D9: 79201 | E9: 83928 | F9: 30281 | G9: 32095 | H9: 18669 | I9: 19788 | J9: 10017 | K9: 10619 | L9: 7198 | M9: 7632 | N9: 5805 | O9: 6155
C10: 3 | D10: 81561 | E10: 86433 | F10: 31205 | G10: 33076 | H10: 19241 | I10: 20396 | J10: 10329 | K10: 10950 | L10: 7425 | M10: 7873 | N10: 5991 | O10: 6353
C11: 4 | D11: 84003 | E11: 89026 | F11: 32163 | G11: 34093 | H11: 19835 | I11: 21027 | J11: 10652 | K11: 11293 | L11: 7661 | M11: 8124 | N11: 6184 | O11: 6559
C12: 5 | D12: 86532 | E12: 91711 | F12: 33155 | G12: 35147 | H12: 20451 | I12: 21680 | J12: 10987 | K12: 11649 | L12: 7906 | M12: 8384 | N12: 6386 | O12: 6773
C13: 6 | D13: 89150 | E13: 94491 | F13: 34185 | G13: 36241 | H13: 21089 | I13: 22359 | J13: 11336 | K13: 12019 | L13: 8161 | M13: 8655 | N13: 6595 | O13: 6996
C14: 7 | D14: 91861 | E14: 97370 | F14: 35253 | G14: 37375 | H14: 21752 | I14: 23063 | J14: 11697 | K14: 12404 | L14: 8426 | M14: 8937 | N14: 6813 | O14: 7227
C15: 8 | D15: 94671 | E15: 100353 | F15: 36362 | G15: 38553 | H15: 22440 | I15: 23793 | J15: 12073 | K15: 12803 | L15: 8702 | M15: 9230 | N15: 7040 | O15: 7469
C16: 9 | D16: 97583 | E16: 103446 | F16: 37513 | G16: 39775 | H16: 23155 | I16: 24553 | J16: 12464 | K16: 13219 | L16: 8989 | M16: 9535 | N16: 7277 | O16: 7720
C17: 10 | D17: 100601 | E17: 106652 | F17: 38708 | G17: 41045 | H17: 23897 | I17: 25341 | J17: 12871 | K17: 13651 | L17: 9288 | M17: 9853 | N17: 7524 | O17: 7983
C18: 11 | D18: 103732 | E18: 109978 | F18: 39950 | G18: 42365 | H18: 24669 | I18: 26161 | J18: 13294 | K18: 14100 | L18: 9600 | M18: 10184 | N18: 7782 | O18: 8257
C19: 12 | D19: 106981 | E19: 113429 | F19: 41242 | G19: 43737 | H19: 25472 | I19: 27014 | J19: 13734 | K19: 14568 | L19: 9924 | M19: 10529 | N19: 8051 | O19: 8543
C20: 13 | D20: 110353 | E20: 117011 | F20: 42584 | G20: 45164 | H20: 26307 | I20: 27902 | J20: 14193 | K20: 15056 | L20: 10263 | M20: 10889 | N20: 8331 | O20: 8842
C21: 14 | D21: 113854 | E21: 120730 | F21: 43981 | G21: 46649 | H21: 27176 | I21: 28826 | J21: 14671 | K21: 15565 | L21: 10617 | M21: 11265 | N21: 8625 | O21: 9154
C22: 15 | D22: 117490 | E22: 124594 | F22: 45436 | G22: 48195 | H22: 28082 | I22: 29788 | J22: 15170 | K22: 16095 | L22: 10986 | M22: 11658 | N22: 8932 | O22: 9481
C23: 16 | D23: 121269 | E23: 128611 | F23: 46951 | G23: 49805 | H23: 29025 | I23: 30791 | J23: 15691 | K23: 16648 | L23: 11372 | M23: 12068 | N23: 9254 | O23: 9823
C24: 17 | D24: 125198 | E24: 132787 | F24: 48530 | G24: 51484 | H24: 30009 | I24: 31837 | J24: 16234 | K24: 17226 | L24: 11776 | M24: 12498 | N24: 9591 | O24: 10182
C25: 18 | D25: 129285 | E25: 137131 | F25: 50176 | G25: 53234 | H25: 31035 | I25: 32929 | J25: 16802 | K25: 17830 | L25: 12199 | M25: 12947 | N25: 9945 | O25: 10558
C26: 19 | D26: 133538 | E26: 141652 | F26: 51894 | G26: 55061 | H26: 32107 | I26: 34068 | J26: 17396 | K26: 18462 | L26: 12642 | M26: 13418 | N26: 10316 | O26: 10952
C27: 20 | D27: 137967 | E27: 146361 | F27: 53688 | G27: 56968 | H27: 33227 | I27: 35259 | J27: 18018 | K27: 19123 | L27: 13106 | M27: 13912 | N27: 10706 | O27: 11367
C28: 21 | D28: 142581 | E28: 151266 | F28: 55562 | G28: 58960 | H28: 34398 | I28: 36504 | J28: 18669 | K28: 19815 | L28: 13593 | M28: 14430 | N28: 11116 | O28: 11803
C29: 22 | D29: 147390 | E29: 156380 | F29: 57521 | G29: 61044 | H29: 35623 | I29: 37806 | J29: 19351 | K29: 20540 | L29: 14105 | M29: 14974 | N29: 11548 | O29: 12262
C30: 23 | D30: 152407 | E30: 161714 | F30: 59572 | G30: 63224 | H30: 36905 | I30: 39169 | J30: 20067 | K30: 21301 | L30: 14643 | M30: 15547 | N30: 12003 | O30: 12746
C31: 24 | D31: 157642 | E31: 167281 | F31: 61719 | G31: 65506 | H31: 38249 | I31: 40598 | J31: 20819 | K31: 22100 | L31: 15210 | M31: 16149 | N31: 12483 | O31: 13256
C32: 25 | D32: 163109 | E32: 173096 | F32: 63968 | G32: 67898 | H32: 39658 | I32: 42096 | J32: 21609 | K32: 22940 | L32: 15807 | M32: 16783 | N32: 12990 | O32: 13795
C33: 26 | D33: 168823 | E33: 179172 | F33: 66328 | G33: 70406 | H33: 41137 | I33: 43668 | J33: 22440 | K33: 23823 | L33: 16436 | M33: 17452 | N33: 13527 | O33: 14365
C34: 27 | D34: 174798 | E34: 185527 | F34: 68805 | G34: 73039 | H34: 42691 | I34: 45320 | J34: 23315 | K34: 24753 | L34: 17101 | M34: 18158 | N34: 14095 | O34: 14968
C35: 28 | D35: 181051 | E35: 192178 | F35: 71408 | G35: 75806 | H35: 44326 | I35: 47057 | J35: 24237 | K35: 25733 | L35: 17803 | M35: 18904 | N35: 14697 | O35: 15608
C36: 29 | D36: 187602 | E36: 199143 | F36: 74146 | G36: 78715 | H36: 46047 | I36: 48886 | J36: 25211 | K36: 26767 | L36: 18548 | M36: 19694 | N36: 15337 | O36: 16288
C37: 30 | D37: 194466 | E37: 206445 | F37: 77028 | G37: 81778 | H37: 47860 | I37: 50813 | J37: 26241 | K37: 27860 | L37: 19336 | M37: 20531 | N37: 16018 | O37: 17010
C38: 31 | D38: 201668 | E38: 214106 | F38: 80065 | G38: 85006 | H38: 49774 | I38: 52845 | J38: 27329 | K38: 29016 | L38: 20174 | M38: 21420 | N38: 16743 | O38: 17780
C39: 32 | D39: 209232 | E39: 222148 | F39: 83271 | G39: 88411 | H39: 51795 | I39: 54992 | J39: 28483 | K39: 30241 | L39: 21065 | M39: 22365 | N39: 17517 | O39: 18601
C40: 33 | D40: 217179 | E40: 230602 | F40: 86658 | G40: 92007 | H40: 53933 | I40: 57262 | J40: 29708 | K40: 31540 | L40: 22013 | M40: 23371 | N40: 18346 | O40: 19479
C41: 34 | D41: 225541 | E41: 239495 | F41: 90239 | G41: 95811 | H41: 56198 | I41: 59665 | J41: 31009 | K41: 32920 | L41: 23025 | M41: 24443 | N41: 19233 | O41: 20420
C42: 35 | D42: 234349 | E42: 248859 | F42: 94035 | G42: 99839 | H42: 58599 | I42: 62213 | J42: 32394 | K42: 34388 | L42: 24107 | M42: 25589 | N42: 20186 | O42: 21430
C43: 36 | D43: 243633 | E43: 258732 | F43: 98060 | G43: 104110 | H43: 61149 | I43: 64919 | J43: 33871 | K43: 35953 | L43: 25266 | M43: 26817 | N43: 21212 | O43: 22516
C44: 37 | D44: 253432 | E44: 269151 | F44: 102334 | G44: 108645 | H44: 63864 | I44: 67795 | J44: 35448 | K44: 37624 | L44: 26510 | M44: 28134 | N44: 22320 | O44: 23689
C45: 38 | D45: 263792 | E45: 280158 | F45: 106886 | G45: 113468 | H45: 66756 | I45: 70860 | J45: 37137 | K45: 39411 | L45: 27849 | M45: 29549 | N45: 23518 | O45: 24957
C46: 39 | D46: 274750 | E46: 291805 | F46: 111736 | G46: 118608 | H46: 69843 | I46: 74130 | J46: 38949 | K46: 41326 | L46: 29293 | M46: 31076 | N46: 24819 | O46: 26334
C47: 40 | D47: 286361 | E47: 304143 | F47: 116912 | G47: 124092 | H47: 73147 | I47: 77626 | J47: 40895 | K47: 43385 | L47: 30854 | M47: 32727 | N47: 26237 | O47: 27832
C48: 41 | D48: 298687 | E48: 317228 | F48: 122455 | G48: 129956 | H48: 76688 | I48: 81371 | J48: 42993 | K48: 45601 | L48: 32548 | M48: 34515
C49: 42 | D49: 311781 | E49: 331134 | F49: 128395 | G49: 136239 | H49: 80488 | I49: 85391 | J49: 45261 | K49: 47994 | L49: 34392 | M49: 36461
C50: 43 | D50: 325718 | E50: 345930 | F50: 134773 | G50: 142986 | H50: 84585 | I50: 89717 | J50: 47717 | K50: 50586 | L50: 36405 | M50: 38585
C51: 44 | D51: 340586 | E51: 361697 | F51: 141647 | G51: 150246 | H51: 89006 | I51: 94383 | J51: 50385 | K51: 53401 | L51: 38610 | M51: 40911
C52: 45 | D52: 356461 | E52: 378540 | F52: 149069 | G52: 158079 | H52: 93790 | I52: 99433 | J52: 53296 | K52: 56468 | L52: 41040 | M52: 43469
C53: 46 | D53: 373447 | E53: 396557 | F53: 157102 | G53: 166559 | H53: 98984 | I53: 104910 | J53: 56483 | K53: 59822
C54: 47 | D54: 391676 | E54: 415868 | F54: 165823 | G54: 175761 | H54: 104645 | I54: 110871 | J54: 59985 | K54: 63507
C55: 48 | D55: 411259 | E55: 436625 | F55: 175334 | G55: 185779 | H55: 110832 | I55: 117387 | J55: 63850 | K55: 67571
C56: 49 | D56: 432347 | E56: 458982 | F56: 185732 | G56: 196728 | H56: 117619 | I56: 124532 | J56: 68134 | K56: 72074
C57: 50 | D57: 455149 | E57: 483120 | F57: 197143 | G57: 208743 | H57: 125097 | I57: 132400 | J57: 72918 | K57: 77091
C58: 51 | D58: 479841 | E58: 509262 | F58: 209719 | G58: 221980 | H58: 133389 | I58: 141103
C59: 52 | D59: 506660 | E59: 537671 | F59: 223663 | G59: 236629 | H59: 142619 | I59: 150786
C60: 53 | D60: 535887 | E60: 568630 | F60: 239198 | G60: 252928 | H60: 152951 | I60: 161623
C61: 54 | D61: 567902 | E61: 602488 | F61: 256599 | G61: 271186 | H61: 164594 | I61: 173823
C62: 55 | D62: 603064 | E62: 639675 | F62: 276219 | G62: 291753 | H62: 177814 | I62: 187654
C63: 56 | D63: 641849 | E63: 680715 | F63: 298501 | G63: 315088
C64: 57 | D64: 684836 | E64: 726196 | F64: 324079 | G64: 341780
C65: 58 | D65: 732785 | E65: 776865
C66: 59 | D66: 786596 | E66: 833643
C67: 60
C70: 泰康经代新养老年金保险（分红型）费率表（65岁起领）
C71: 以1000元基本保险金额为计算单位
C72: 单位：元
C73: 投保 | D73: 保险费一次性交纳
C74: 年龄 | F74: 3年交 | H74: 5年交 | J74: 10年交 | L74: 15年交 | N74: 20年交
C75: (周岁) | D75: 男性 | E75: 女性 | F75: 男性 | G75: 女性 | H75: 男性 | I75: 女性 | J75: 男性 | K75: 女性 | L75: 男性 | M75: 女性 | N75: 男性 | O75: 女性
C76: 0 | D76: 61295 | E76: 64914 | F76: 23328 | G76: 24712 | H76: 14368 | I76: 15221 | J76: 7688 | K76: 8146 | L76: 5507 | M76: 5837 | N76: 4427 | O76: 4693
C77: 1 | D77: 63061 | E77: 66789 | F77: 24012 | G77: 25439 | H77: 14791 | I77: 15670 | J77: 7917 | K77: 8390 | L77: 5674 | M77: 6013 | N77: 4562 | O77: 4836
C78: 2 | D78: 64886 | E78: 68726 | F78: 24720 | G78: 26191 | H78: 15229 | I78: 16136 | J78: 8155 | K78: 8641 | L78: 5846 | M78: 6196 | N78: 4703 | O78: 4985
C79: 3 | D79: 66771 | E79: 70727 | F79: 25453 | G79: 26969 | H79: 15682 | I79: 16617 | J79: 8400 | K79: 8902 | L79: 6024 | M79: 6386 | N79: 4848 | O79: 5140
C80: 4 | D80: 68720 | E80: 72796 | F80: 26211 | G80: 27774 | H80: 16152 | I80: 17116 | J80: 8654 | K80: 9173 | L80: 6209 | M80: 6582 | N80: 4999 | O80: 5300
C81: 5 | D81: 70733 | E81: 74934 | F81: 26996 | G81: 28608 | H81: 16637 | I81: 17632 | J81: 8918 | K81: 9453 | L81: 6401 | M81: 6786 | N81: 5155 | O81: 5467
C82: 6 | D82: 72815 | E82: 77145 | F82: 27808 | G82: 29471 | H82: 17140 | I82: 18166 | J82: 9191 | K82: 9743 | L82: 6599 | M82: 6997 | N82: 5318 | O82: 5640
C83: 7 | D83: 74968 | E83: 79432 | F83: 28649 | G83: 30364 | H83: 17661 | I83: 18720 | J83: 9474 | K83: 10044 | L83: 6806 | M83: 7216 | N83: 5486 | O83: 5819
C84: 8 | D84: 77195 | E84: 81797 | F84: 29521 | G84: 31290 | H84: 18201 | I84: 19293 | J84: 9768 | K84: 10356 | L84: 7020 | M84: 7444 | N84: 5662 | O84: 6005
C85: 9 | D85: 79499 | E85: 84245 | F85: 30423 | G85: 32249 | H85: 18761 | I85: 19888 | J85: 10072 | K85: 10679 | L85: 7242 | M85: 7680 | N85: 5844 | O85: 6199
C86: 10 | D86: 81884 | E86: 86778 | F86: 31359 | G86: 33244 | H86: 19341 | I86: 20504 | J86: 10388 | K86: 11015 | L86: 7473 | M86: 7926 | N86: 6033 | O86: 6401
C87: 11 | D87: 84352 | E87: 89401 | F87: 32329 | G87: 34275 | H87: 19942 | I87: 21144 | J87: 10716 | K87: 11364 | L87: 7712 | M87: 8181 | N87: 6230 | O87: 6610
C88: 12 | D88: 86909 | E88: 92117 | F88: 33335 | G88: 35344 | H88: 20566 | I88: 21807 | J88: 11056 | K88: 11726 | L88: 7962 | M88: 8446 | N88: 6435 | O88: 6829
C89: 13 | D89: 89557 | E89: 94931 | F89: 34379 | G89: 36454 | H89: 21214 | I89: 22496 | J89: 11410 | K89: 12102 | L89: 8221 | M89: 8722 | N89: 6649 | O89: 7056
C90: 14 | D90: 92300 | E90: 97848 | F90: 35463 | G90: 37606 | H90: 21887 | I90: 23211 | J90: 11778 | K90: 12493 | L90: 8491 | M90: 9009 | N90: 6871 | O90: 7293
C91: 15 | D91: 95145 | E91: 100871 | F91: 36588 | G91: 38803 | H91: 22585 | I91: 23955 | J91: 12160 | K91: 12900 | L91: 8772 | M91: 9308 | N91: 7103 | O91: 7540
C92: 16 | D92: 98093 | E92: 104007 | F92: 37757 | G92: 40046 | H92: 23311 | I92: 24727 | J92: 12558 | K92: 13324 | L92: 9065 | M92: 9620 | N92: 7346 | O92: 7797
C93: 17 | D93: 101152 | E93: 107259 | F93: 38971 | G93: 41338 | H93: 24067 | I93: 25530 | J93: 12972 | K93: 13764 | L93: 9370 | M93: 9945 | N93: 7598 | O93: 8066
C94: 18 | D94: 104327 | E94: 110635 | F94: 40234 | G94: 42682 | H94: 24852 | I94: 26366 | J94: 13404 | K94: 14223 | L94: 9689 | M94: 10284 | N94: 7862 | O94: 8347
C95: 19 | D95: 107622 | E95: 114140 | F95: 41548 | G95: 44080 | H95: 25670 | I95: 27236 | J95: 13853 | K95: 14702 | L95: 10021 | M95: 10637 | N95: 8138 | O95: 8641
C96: 20 | D96: 111044 | E96: 117781 | F96: 42916 | G96: 45536 | H96: 26521 | I96: 28142 | J96: 14322 | K96: 15201 | L96: 10368 | M96: 11007 | N96: 8427 | O96: 8948
C97: 21 | D97: 114600 | E97: 121564 | F97: 44341 | G97: 47052 | H97: 27408 | I97: 29086 | J97: 14812 | K97: 15721 | L97: 10731 | M97: 11393 | N97: 8729 | O97: 9270
C98: 22 | D98: 118296 | E98: 125497 | F98: 45825 | G98: 48631 | H98: 28333 | I98: 30070 | J98: 15322 | K98: 16265 | L98: 11110 | M98: 11796 | N98: 9045 | O98: 9606
C99: 23 | D99: 122141 | E99: 129588 | F99: 47373 | G99: 50278 | H99: 29298 | I99: 31097 | J99: 15856 | K99: 16833 | L99: 11507 | M99: 12219 | N99: 9377 | O99: 9960
C100: 24 | D100: 126141 | E100: 133845 | F100: 48988 | G100: 51997 | H100: 30305 | I100: 32169 | J100: 16414 | K100: 17427 | L100: 11923 | M100: 12661 | N100: 9726 | O100: 10330
C101: 25 | D101: 130305 | E101: 138277 | F101: 50674 | G101: 53791 | H101: 31358 | I101: 33288 | J101: 16998 | K101: 18048 | L101: 12359 | M101: 13125 | N101: 10092 | O101: 10720
C102: 26 | D102: 134644 | E102: 142894 | F102: 52435 | G102: 55664 | H102: 32458 | I102: 34459 | J102: 17610 | K102: 18699 | L102: 12817 | M102: 13612 | N102: 10476 | O102: 11129
C103: 27 | D103: 139165 | E103: 147706 | F103: 54276 | G103: 57623 | H103: 33608 | I103: 35683 | J103: 18251 | K103: 19380 | L103: 13297 | M103: 14123 | N103: 10881 | O103: 11560
C104: 28 | D104: 143879 | E104: 152725 | F104: 56202 | G104: 59673 | H104: 34813 | I104: 36964 | J104: 18923 | K104: 20095 | L104: 13802 | M104: 14660 | N104: 11308 | O104: 12013
C105: 29 | D105: 148799 | E105: 157962 | F105: 58219 | G105: 61818 | H105: 36075 | I105: 38307 | J105: 19628 | K105: 20846 | L105: 14334 | M105: 15225 | N105: 11758 | O105: 12492
C106: 30 | D106: 153936 | E106: 163430 | F106: 60332 | G106: 64065 | H106: 37398 | I106: 39715 | J106: 20370 | K106: 21634 | L106: 14894 | M106: 15820 | N106: 12234 | O106: 12997
C107: 31 | D107: 159303 | E107: 169144 | F107: 62548 | G107: 66423 | H107: 38788 | I107: 41192 | J107: 21150 | K107: 22463 | L107: 15484 | M107: 16448 | N107: 12736 | O107: 13531
C108: 32 | D108: 164916 | E108: 175119 | F108: 64874 | G108: 68896 | H108: 40247 | I108: 42743 | J108: 21971 | K108: 23336 | L108: 16108 | M108: 17110 | N108: 13268 | O108: 14096
C109: 33 | D109: 170788 | E109: 181369 | F109: 67318 | G109: 71494 | H109: 41781 | I109: 44374 | J109: 22837 | K109: 24255 | L109: 16766 | M109: 17809 | N109: 13833 | O109: 14696
C110: 34 | D110: 176936 | E110: 187916 | F110: 69886 | G110: 74226 | H110: 43397 | I110: 46091 | J110: 23751 | K110: 25226 | L110: 17464 | M110: 18550 | N110: 14432 | O110: 15331
C111: 35 | D111: 183383 | E111: 194776 | F111: 72592 | G111: 77100 | H111: 45099 | I111: 47898 | J111: 24716 | K111: 26251 | L111: 18203 | M111: 19334 | N111: 15068 | O111: 16008
C112: 36 | D112: 190142 | E112: 201970 | F112: 75443 | G112: 80129 | H112: 46893 | I112: 49805 | J112: 25738 | K112: 27334 | L112: 18988 | M112: 20166 | N112: 15747 | O112: 16728
C113: 37 | D113: 197237 | E113: 209523 | F113: 78449 | G113: 83323 | H113: 48790 | I113: 51818 | J113: 26819 | K113: 28482 | L113: 19822 | M113: 21051 | N113: 16471 | O113: 17495
C114: 38 | D114: 204697 | E114: 217458 | F114: 81628 | G114: 86696 | H114: 50796 | I114: 53946 | J114: 27967 | K114: 29699 | L114: 20710 | M114: 21992 | N114: 17244 | O114: 18316
C115: 39 | D115: 212541 | E115: 225803 | F115: 84988 | G115: 90261 | H115: 52918 | I115: 56199 | J115: 29187 | K115: 30991 | L115: 21657 | M115: 22995 | N115: 18073 | O115: 19195
C116: 40 | D116: 220799 | E116: 234589 | F116: 88544 | G116: 94036 | H116: 55171 | I116: 58586 | J116: 30484 | K116: 32365 | L116: 22669 | M116: 24068 | N116: 18963 | O116: 20138
C117: 41 | D117: 229507 | E117: 243846 | F117: 92319 | G117: 98037 | H117: 57562 | I117: 61119 | J117: 31867 | K117: 33830 | L117: 23753 | M117: 25215 | N117: 19919 | O117: 21154
C118: 42 | D118: 238694 | E118: 253613 | F118: 96328 | G118: 102283 | H118: 60103 | I118: 63813 | J118: 33344 | K118: 35392 | L118: 24915 | M118: 26446 | N118: 20951 | O118: 22248
C119: 43 | D119: 248398 | E119: 263931 | F119: 100588 | G119: 106799 | H119: 62814 | I119: 66681 | J119: 34924 | K119: 37064 | L119: 26164 | M119: 27769 | N119: 22068 | O119: 23431
C120: 44 | D120: 258669 | E120: 274840 | F120: 105132 | G120: 111608 | H120: 65705 | I120: 69740 | J120: 36616 | K120: 38855 | L120: 27512 | M120: 29195 | N120: 23278 | O120: 24715
C121: 45 | D121: 269544 | E121: 286392 | F121: 109981 | G121: 116737 | H121: 68795 | I121: 73011 | J121: 38437 | K121: 40779 | L121: 28968 | M121: 30735 | N121: 24595 | O121: 26113
C122: 46 | D122: 281075 | E122: 298645 | F122: 115162 | G122: 122224 | H122: 72107 | I122: 76512 | J122: 40397 | K122: 42850 | L122: 30546 | M122: 32406
C123: 47 | D123: 293334 | E123: 311655 | F123: 120717 | G123: 128099 | H123: 75663 | I123: 80269 | J123: 42511 | K123: 45087 | L123: 32263 | M123: 34223
C124: 48 | D124: 306370 | E124: 325494 | F124: 126683 | G124: 134402 | H124: 79486 | I124: 84315 | J124: 44803 | K124: 47508 | L124: 34138 | M124: 36204
C125: 49 | D125: 320252 | E125: 340244 | F125: 133098 | G125: 141191 | H125: 83613 | I125: 88676 | J125: 47293 | K125: 50137 | L125: 36191 | M125: 38375
C126: 50 | D126: 335089 | E126: 355984 | F126: 140021 | G126: 148514 | H126: 88079 | I126: 93392 | J126: 50005 | K126: 53003 | L126: 38449 | M126: 40764
C127: 51 | D127: 350949 | E127: 372818 | F127: 147519 | G127: 156433 | H127: 92923 | I127: 98510 | J127: 52971 | K127: 56138
C128: 52 | D128: 367931 | E128: 390867 | F128: 155652 | G128: 165028 | H128: 98193 | I128: 104083 | J128: 56232 | K128: 59580
C129: 53 | D129: 386193 | E129: 410246 | F129: 164505 | G129: 174392 | H129: 103957 | I129: 110170 | J129: 59833 | K129: 63376
C130: 54 | D130: 405844 | E130: 431107 | F130: 174182 | G130: 184623 | H130: 110284 | I130: 116843 | J130: 63827 | K130: 67586
C131: 55 | D131: 427038 | E131: 453645 | F131: 184815 | G131: 195844 | H131: 117253 | I131: 124197 | J131: 68281 | K131: 72284
C132: 56 | D132: 449988 | E132: 478037 | F132: 196533 | G132: 208209 | H132: 124968 | I132: 132343
C133: 57 | D133: 474924 | E133: 504516 | F133: 209511 | G133: 221917 | H133: 133555 | I133: 141406
C134: 58 | D134: 502077 | E134: 533373 | F134: 223961 | G134: 237177 | H134: 143191 | I134: 151549
C135: 59 | D135: 531751 | E135: 564953 | F135: 240170 | G135: 254266 | H135: 154069 | I135: 162975
C136: 60 | D136: 564330 | E136: 599620 | F136: 258494 | G136: 273527 | H136: 166438 | I136: 175968
C137: 61
C138: 62
C139: 63
C140: 64
C141: 65
C144: 泰康经代新养老年金保险（分红型）费率表（70岁起领）
C145: 以1000元基本保险金额为计算单位
C146: 单位：元
C147: 投保 | D147: 保险费一次性交纳
C148: 年龄 | F148: 3年交 | H148: 5年交 | J148: 10年交 | L148: 15年交 | N148: 20年交
C149: (周岁) | D149: 男性 | E149: 女性 | F149: 男性 | G149: 女性 | H149: 男性 | I149: 女性 | J149: 男性 | K149: 女性 | L149: 男性 | M149: 女性 | N149: 男性 | O149: 女性
C150: 0 | D150: 50553 | E150: 53470 | F150: 19184 | G150: 20297 | H150: 11808 | I150: 12494 | J150: 6308 | K150: 6675 | L150: 4510 | M150: 4774 | N150: 3618 | O150: 3831
C151: 1 | D151: 51979 | E151: 54982 | F151: 19733 | G151: 20879 | H151: 12147 | I151: 12854 | J151: 6491 | K151: 6870 | L151: 4642 | M151: 4914 | N151: 3725 | O151: 3945
C152: 2 | D152: 53450 | E152: 56542 | F152: 20301 | G152: 21481 | H152: 12498 | I152: 13226 | J152: 6680 | K152: 7070 | L152: 4779 | M152: 5059 | N152: 3836 | O152: 4062
C153: 3 | D153: 54969 | E153: 58152 | F153: 20887 | G153: 22104 | H153: 12860 | I153: 13610 | J153: 6876 | K153: 7278 | L153: 4920 | M153: 5209 | N153: 3951 | O153: 4184
C154: 4 | D154: 56536 | E154: 59815 | F154: 21493 | G154: 22747 | H154: 13235 | I154: 14008 | J154: 7078 | K154: 7493 | L154: 5067 | M154: 5365 | N154: 4070 | O154: 4311
C155: 5 | D155: 58153 | E155: 61531 | F155: 22119 | G155: 23411 | H155: 13622 | I155: 14418 | J155: 7287 | K155: 7715 | L155: 5218 | M155: 5526 | N155: 4193 | O155: 4441
C156: 6 | D156: 59824 | E156: 63303 | F156: 22766 | G156: 24098 | H156: 14022 | I156: 14843 | J156: 7503 | K156: 7944 | L156: 5375 | M156: 5692 | N156: 4321 | O156: 4577
C157: 7 | D157: 61548 | E157: 65132 | F157: 23435 | G157: 24808 | H157: 14436 | I157: 15282 | J157: 7727 | K157: 8182 | L157: 5537 | M157: 5865 | N157: 4453 | O157: 4717
C158: 8 | D158: 63330 | E158: 67023 | F158: 24127 | G158: 25542 | H158: 14864 | I158: 15737 | J158: 7959 | K158: 8428 | L158: 5705 | M158: 6043 | N158: 4590 | O158: 4863
C159: 9 | D159: 65170 | E159: 68976 | F159: 24843 | G159: 26302 | H159: 15306 | I159: 16207 | J159: 8199 | K159: 8683 | L159: 5880 | M159: 6228 | N159: 4732 | O159: 5014
C160: 10 | D160: 67072 | E160: 70994 | F160: 25583 | G160: 27088 | H160: 15764 | I160: 16693 | J160: 8447 | K160: 8947 | L160: 6060 | M160: 6420 | N160: 4879 | O160: 5170
C161: 11 | D161: 69037 | E161: 73080 | F161: 26349 | G161: 27902 | H161: 16239 | I161: 17197 | J161: 8704 | K161: 9220 | L161: 6247 | M161: 6619 | N161: 5032 | O161: 5333
C162: 12 | D162: 71069 | E162: 75237 | F162: 27142 | G162: 28744 | H162: 16730 | I162: 17719 | J162: 8971 | K162: 9503 | L162: 6442 | M162: 6825 | N162: 5191 | O162: 5502
C163: 13 | D163: 73170 | E163: 77468 | F163: 27963 | G163: 29616 | H163: 17238 | I163: 18259 | J163: 9247 | K163: 9797 | L163: 6643 | M163: 7040 | N163: 5356 | O163: 5677
C164: 14 | D164: 75343 | E164: 79777 | F164: 28814 | G164: 30520 | H164: 17765 | I164: 18819 | J164: 9534 | K164: 10102 | L164: 6852 | M164: 7262 | N164: 5527 | O164: 5859
C165: 15 | D165: 77592 | E165: 82165 | F165: 29695 | G165: 31456 | H165: 18311 | I165: 19399 | J165: 9831 | K165: 10418 | L165: 7069 | M165: 7493 | N165: 5705 | O165: 6049
C166: 16 | D166: 79919 | E166: 84637 | F166: 30608 | G166: 32427 | H166: 18878 | I166: 20001 | J166: 10140 | K166: 10746 | L166: 7295 | M166: 7733 | N166: 5890 | O166: 6245
C167: 17 | D167: 82329 | E167: 87197 | F167: 31556 | G167: 33434 | H167: 19465 | I167: 20626 | J167: 10460 | K167: 11086 | L167: 7529 | M167: 7982 | N167: 6083 | O167: 6450
C168: 18 | D168: 84824 | E168: 89848 | F168: 32538 | G168: 34478 | H168: 20075 | I168: 21274 | J168: 10793 | K168: 11440 | L168: 7773 | M168: 8241 | N168: 6284 | O168: 6664
C169: 19 | D169: 87408 | E169: 92595 | F169: 33558 | G169: 35562 | H169: 20708 | I169: 21947 | J169: 11139 | K169: 11808 | L169: 8027 | M169: 8511 | N169: 6493 | O169: 6886
C170: 20 | D170: 90087 | E170: 95442 | F170: 34616 | G170: 36688 | H170: 21365 | I170: 22645 | J170: 11498 | K170: 12190 | L170: 8291 | M170: 8792 | N170: 6710 | O170: 7118
C171: 21 | D171: 92864 | E171: 98393 | F171: 35716 | G171: 37857 | H171: 22048 | I171: 23372 | J171: 11872 | K171: 12588 | L171: 8566 | M171: 9084 | N171: 6938 | O171: 7359
C172: 22 | D172: 95743 | E172: 101455 | F172: 36858 | G172: 39072 | H172: 22758 | I172: 24126 | J172: 12262 | K172: 13002 | L172: 8853 | M172: 9389 | N172: 7175 | O172: 7612
C173: 23 | D173: 98731 | E173: 104631 | F173: 38046 | G173: 40335 | H173: 23497 | I173: 24912 | J173: 12667 | K173: 13433 | L173: 9152 | M173: 9707 | N173: 7423 | O173: 7875
C174: 24 | D174: 101832 | E174: 107928 | F174: 39282 | G174: 41648 | H174: 24265 | I174: 25729 | J174: 13090 | K174: 13882 | L174: 9464 | M174: 10039 | N174: 7682 | O174: 8150
C175: 25 | D175: 105051 | E175: 111352 | F175: 40568 | G175: 43015 | H175: 25066 | I175: 26579 | J175: 13530 | K175: 14350 | L175: 9790 | M175: 10385 | N175: 7952 | O175: 8438
C176: 26 | D176: 108397 | E176: 114909 | F176: 41907 | G176: 44438 | H176: 25899 | I176: 27465 | J176: 13990 | K176: 14838 | L176: 10130 | M176: 10747 | N176: 8235 | O176: 8739
C177: 27 | D177: 111873 | E177: 118606 | F177: 43302 | G177: 45921 | H177: 26768 | I177: 28389 | J177: 14470 | K177: 15348 | L177: 10486 | M177: 11125 | N177: 8532 | O177: 9054
C178: 28 | D178: 115486 | E178: 122450 | F178: 44756 | G178: 47467 | H178: 27675 | I178: 29352 | J178: 14971 | K178: 15881 | L178: 10859 | M178: 11521 | N178: 8843 | O178: 9384
C179: 29 | D179: 119247 | E179: 126449 | F179: 46273 | G179: 49079 | H179: 28621 | I179: 30358 | J179: 15494 | K179: 16437 | L179: 11249 | M179: 11935 | N179: 9170 | O179: 9731
C180: 30 | D180: 123160 | E180: 130610 | F180: 47856 | G180: 50761 | H180: 29609 | I180: 31407 | J180: 16042 | K180: 17019 | L180: 11657 | M180: 12369 | N180: 9512 | O180: 10095
C181: 31 | D181: 127236 | E181: 134945 | F181: 49509 | G181: 52518 | H181: 30641 | I181: 32504 | J181: 16616 | K181: 17628 | L181: 12086 | M181: 12824 | N181: 9873 | O181: 10477
C182: 32 | D182: 131483 | E182: 139462 | F182: 51238 | G182: 54354 | H182: 31721 | I182: 33651 | J182: 17217 | K182: 18266 | L182: 12537 | M182: 13302 | N182: 10251 | O182: 10879
C183: 33 | D183: 135910 | E183: 144169 | F183: 53045 | G183: 56273 | H183: 32851 | I183: 34851 | J183: 17847 | K183: 18935 | L183: 13009 | M183: 13804 | N183: 10651 | O183: 11302
C184: 34 | D184: 140528 | E184: 149082 | F184: 54936 | G184: 58283 | H184: 34035 | I184: 36108 | J184: 18509 | K184: 19637 | L184: 13507 | M184: 14331 | N184: 11071 | O184: 11749
C185: 35 | D185: 145350 | E185: 154209 | F185: 56919 | G185: 60387 | H185: 35276 | I185: 37425 | J185: 19204 | K185: 20374 | L185: 14031 | M185: 14887 | N185: 11515 | O185: 12220
C186: 36 | D186: 150386 | E186: 159563 | F186: 58996 | G186: 62592 | H186: 36578 | I186: 38807 | J186: 19935 | K186: 21148 | L186: 14583 | M186: 15472 | N186: 11984 | O186: 12717
C187: 37 | D187: 155651 | E187: 165160 | F187: 61176 | G187: 64905 | H187: 37946 | I187: 40257 | J187: 20703 | K187: 21963 | L187: 15166 | M187: 16089 | N187: 12481 | O187: 13243
C188: 38 | D188: 161159 | E188: 171014 | F188: 63467 | G188: 67334 | H188: 39383 | I188: 41781 | J188: 21514 | K188: 22821 | L188: 15782 | M188: 16741 | N188: 13006 | O188: 13801
C189: 39 | D189: 166923 | E189: 177140 | F189: 65874 | G189: 69885 | H189: 40896 | I189: 43384 | J189: 22369 | K189: 23726 | L189: 16433 | M189: 17431 | N189: 13565 | O189: 14392
C190: 40 | D190: 172963 | E190: 183558 | F190: 68406 | G190: 72570 | H190: 42490 | I190: 45072 | J190: 23271 | K190: 24682 | L190: 17123 | M190: 18161 | N190: 14157 | O190: 15020
C191: 41 | D191: 179298 | E191: 190286 | F191: 71076 | G191: 75397 | H191: 44170 | I191: 46850 | J191: 24226 | K191: 25691 | L191: 17855 | M191: 18935 | N191: 14788 | O191: 15689
C192: 42 | D192: 185943 | E192: 197343 | F192: 73890 | G192: 78375 | H192: 45943 | I192: 48727 | J192: 25236 | K192: 26760 | L192: 18631 | M192: 19758 | N192: 15461 | O192: 16402
C193: 43 | D193: 192925 | E193: 204757 | F193: 76860 | G193: 81521 | H193: 47818 | I193: 50710 | J193: 26307 | K193: 27893 | L193: 19458 | M193: 20633 | N193: 16179 | O193: 17163
C194: 44 | D194: 200267 | E194: 212547 | F194: 80002 | G194: 84843 | H194: 49802 | I194: 52808 | J194: 27444 | K194: 29095 | L194: 20340 | M194: 21565 | N194: 16947 | O194: 17978
C195: 45 | D195: 207989 | E195: 220744 | F195: 83325 | G195: 88357 | H195: 51903 | I195: 55031 | J195: 28654 | K195: 30373 | L195: 21280 | M195: 22560 | N195: 17771 | O195: 18852
C196: 46 | D196: 216127 | E196: 229379 | F196: 86845 | G196: 92083 | H196: 54135 | I196: 57388 | J196: 29941 | K196: 31734 | L196: 22286 | M196: 23625 | N196: 18657 | O196: 19791
C197: 47 | D197: 224712 | E197: 238482 | F197: 90586 | G197: 96035 | H197: 56505 | I197: 59893 | J197: 31315 | K197: 33187 | L197: 23365 | M197: 24766 | N197: 19610 | O197: 20804
C198: 48 | D198: 233769 | E198: 248092 | F198: 94559 | G198: 100232 | H198: 59027 | I198: 62561 | J198: 32785 | K198: 34738 | L198: 24523 | M198: 25993 | N198: 20641 | O198: 21899
C199: 49 | D199: 243346 | E199: 258253 | F199: 98784 | G199: 104705 | H199: 61720 | I199: 65404 | J199: 34357 | K199: 36401 | L199: 25771 | M199: 27315 | N199: 21758 | O199: 23085
C200: 50 | D200: 253486 | E200: 269003 | F200: 103298 | G200: 109473 | H200: 64594 | I200: 68440 | J200: 36045 | K200: 38187 | L200: 27119 | M200: 28741 | N200: 22971 | O200: 24374
C201: 51 | D201: 264224 | E201: 280396 | F201: 108118 | G201: 114564 | H201: 67667 | I201: 71693 | J201: 37864 | K201: 40108 | L201: 28578 | M201: 30287
C202: 52 | D202: 275622 | E202: 292495 | F202: 113271 | G202: 120021 | H202: 70970 | I202: 75181 | J202: 39824 | K202: 42180 | L202: 30162 | M202: 31969
C203: 53 | D203: 287745 | E203: 305352 | F203: 118809 | G203: 125875 | H203: 74519 | I203: 78930 | J203: 41942 | K203: 44425 | L203: 31891 | M203: 33803
C204: 54 | D204: 300640 | E204: 319042 | F204: 124762 | G204: 132165 | H204: 78339 | I204: 82977 | J204: 44246 | K204: 46862 | L204: 33786 | M204: 35811
... 17 more rows

Sheet cv_read (hidden)
A2: 60起领 | G2: =SUM(cvoutput_60) -> 
G3: 保单年度
A4: index | B4: 保险期间 | C4: 起领年龄 | D4: 交费期间 | E4: 年龄 | F4: 性别 | G4: 1 | H4: 2 | I4: 3 | J4: 4 | K4: 5 | L4: 6 | M4: 7 | N4: 8 | O4: 9 | P4: 10 | Q4: 11 | R4: 12 | S4: 13 | T4: 14 | U4: 15 | V4: 16 | W4: 17 | X4: 18 | Y4: 19 | Z4: 20 | AA4: 21 | AB4: 22 | AC4: 23 | AD4: 24 | AE4: 25 | AF4: 26 | AG4: 27 | AH4: 28 | AI4: 29 | AJ4: 30 | AK4: 31 | AL4: 32 | AM4: 33 | AN4: 34 | AO4: 35 | AP4: 36 | AQ4: 37 | AR4: 38 | AS4: 39 | AT4: 40 | AU4: 41 | AV4: 42 | AW4: 43 | AX4: 44 | AY4: 45 | AZ4: 46 | BA4: 47 | BB4: 48 | BC4: 49 | BD4: 50 | BE4: 51 | BF4: 52 | BG4: 53 | BH4: 54 | BI4: 55 | BJ4: 56 | BK4: 57 | BL4: 58 | BM4: 59 | BN4: 60 | BO4: 61 | BP4: 62 | BQ4: 63 | BR4: 64 | BS4: 65 | BT4: 66 | BU4: 67 | BV4: 68 | BW4: 69 | BX4: 70 | BY4: 71 | BZ4: 72 | CA4: 73 | CB4: 74 | CC4: 75 | CD4: 76 | CE4: 77 | CF4: 78 | CG4: 79 | CH4: 80 | CI4: 81 | CJ4: 82 | CK4: 83 | CL4: 84 | CM4: 85 | CN4: 86 | CO4: 87 | CP4: 88 | CQ4: 89 | CR4: 90 | CS4: 91 | CT4: 92 | CU4: 93 | CV4: 94 | CW4: 95 | CX4: 96 | CY4: 97 | CZ4: 98 | DA4: 99 | DB4: 100 | DC4: 101 | DD4: 102 | DE4: 103 | DF4: 104 | DG4: 105 | DH4: bpp | DI4: code
A5: =C5&"_"&D5&"_"&E5&"_"&F5 -> 60_1_0_男 | B5: 保至105周岁 | C5: 60 | D5: 1 | E5: 0 | F5: 男 | G5: 25301 | H5: 26293 | I5: 27332 | J5: 28416 | K5: 29545 | L5: 30721 | M5: 31944 | N5: 33216 | O5: 34539 | P5: 35915 | Q5: 37346 | R5: 38834 | S5: 40381 | T5: 41990 | U5: 43663 | V5: 45404 | W5: 47213 | X5: 49096 | Y5: 51054 | Z5: 53090 | AA5: 55209 | AB5: 57412 | AC5: 59704 | AD5: 62089 | AE5: 64569 | AF5: 67149 | AG5: 69833 | AH5: 72625 | AI5: 75529 | AJ5: 78550 | AK5: 81691 | AL5: 84958 | AM5: 88356 | AN5: 91889 | AO5: 95564 | AP5: 99385 | AQ5: 103359 | AR5: 107492 | AS5: 111790 | AT5: 116260 | AU5: 120908 | AV5: 125742 | AW5: 130769 | AX5: 135997 | AY5: 141433 | AZ5: 147086 | BA5: 152965 | BB5: 159079 | BC5: 165436 | BD5: 172047 | BE5: 178921 | BF5: 186069 | BG5: 193502 | BH5: 201231 | BI5: 209268 | BJ5: 217625 | BK5: 226315 | BL5: 235350 | BM5: 244744 | BN5: 254512 | BO5: 252329 | BP5: 250056 | BQ5: 247691 | BR5: 245230 | BS5: 242667 | BT5: 240000 | BU5: 237224 | BV5: 234334 | BW5: 231325 | BX5: 228193 | BY5: 224931 | BZ5: 221535 | CA5: 217997 | CB5: 214311 | CC5: 210469 | CD5: 206463 | CE5: 202285 | CF5: 197925 | CG5: 193375 | CH5: 188625.7 | CI5: 169694.7 | CJ5: 150002.7 | CK5: 129526.7 | CL5: 108239.7 | CM5: 86115.7 | CN5: 0 | CO5: 0 | CP5: 0 | CQ5: 0 | CR5: 0 | CS5: 0 | CT5: 0 | CU5: 0 | CV5: 0 | CW5: 0 | CX5: 0 | CY5: 0 | CZ5: 0 | DA5: 0 | DB5: 0 | DC5: 0 | DD5: 0 | DE5: 0 | DF5: 0 | DG5: 0
A6: =C6&"_"&D6&"_"&E6&"_"&F6 -> 60_1_1_男 | B6: 保至105周岁 | C6: 60 | D6: 1 | E6: 1 | F6: 男 | G6: 26403 | H6: 27445 | I6: 28533 | J6: 29667 | K6: 30847 | L6: 32074 | M6: 33352 | N6: 34680 | O6: 36061 | P6: 37498 | Q6: 38992 | R6: 40545 | S6: 42160 | T6: 43839 | U6: 45586 | V6: 47403 | W6: 49292 | X6: 51258 | Y6: 53302 | Z6: 55428 | AA6: 57640 | AB6: 59941 | AC6: 62334 | AD6: 64823 | AE6: 67413 | AF6: 70107 | AG6: 72909 | AH6: 75825 | AI6: 78857 | AJ6: 82011 | AK6: 85291 | AL6: 88701 | AM6: 92249 | AN6: 95937 | AO6: 99774 | AP6: 103763 | AQ6: 107913 | AR6: 112227 | AS6: 116715 | AT6: 121381 | AU6: 126234 | AV6: 131281 | AW6: 136529 | AX6: 141986 | AY6: 147662 | AZ6: 153564 | BA6: 159701 | BB6: 166083 | BC6: 172720 | BD6: 179621 | BE6: 186797 | BF6: 194259 | BG6: 202019 | BH6: 210087 | BI6: 218476 | BJ6: 227200 | BK6: 236270 | BL6: 245702 | BM6: 255508 | BN6: 253364 | BO6: 251133 | BP6: 248811 | BQ6: 246394 | BR6: 243878 | BS6: 241259 | BT6: 238533 | BU6: 235695 | BV6: 232740 | BW6: 229664 | BX6: 226461 | BY6: 223126 | BZ6: 219651 | CA6: 216031 | CB6: 212257 | CC6: 208322 | CD6: 204217 | CE6: 199934 | CF6: 195463 | CG6: 190795.6 | CH6: 171535.6 | CI6: 151503.6 | CJ6: 130673.6 | CK6: 109018.6 | CL6: 86512.6 | CM6: 0 | CN6: 0 | CO6: 0 | CP6: 0 | CQ6: 0 | CR6: 0 | CS6: 0 | CT6: 0 | CU6: 0 | CV6: 0 | CW6: 0 | CX6: 0 | CY6: 0 | CZ6: 0 | DA6: 0 | DB6: 0 | DC6: 0 | DD6: 0 | DE6: 0 | DF6: 0 | DG6: 0
A7: 60_1_2_男 | B7: 保至105周岁 | C7: 60 | D7: 1 | E7: 2 | F7: 男 | G7: 27562 | H7: 28654 | I7: 29793 | J7: 30977 | K7: 32210 | L7: 33492 | M7: 34826 | N7: 36213 | O7: 37655 | P7: 39155 | Q7: 40714 | R7: 42335 | S7: 44022 | T7: 45775 | U7: 47599 | V7: 49496 | W7: 51469 | X7: 53521 | Y7: 55656 | Z7: 57876 | AA7: 60186 | AB7: 62588 | AC7: 65087 | AD7: 67687 | AE7: 70391 | AF7: 73204 | AG7: 76131 | AH7: 79175 | AI7: 82342 | AJ7: 85634 | AK7: 89059 | AL7: 92620 | AM7: 96324 | AN7: 100176 | AO7: 104182 | AP7: 108347 | AQ7: 112680 | AR7: 117185 | AS7: 121870 | AT7: 126743 | AU7: 131810 | AV7: 137079 | AW7: 142559 | AX7: 148257 | AY7: 154183 | AZ7: 160345 | BA7: 166753 | BB7: 173416 | BC7: 180345 | BD7: 187550 | BE7: 195042 | BF7: 202833 | BG7: 210934 | BH7: 219357 | BI7: 228116 | BJ7: 237223 | BK7: 246692 | BL7: 256538 | BM7: 254435 | BN7: 252247 | BO7: 249969 | BP7: 247598 | BQ7: 245130 | BR7: 242561 | BS7: 239887 | BT7: 237103 | BU7: 234204 | BV7: 231187 | BW7: 228044 | BX7: 224772 | BY7: 221363 | BZ7: 217810 | CA7: 214107 | CB7: 210245 | CC7: 206216 | CD7: 202011 | CE7: 197622 | CF7: 193039.18 | CG7: 173441.18 | CH7: 153057.18 | CI7: 131860.18 | CJ7: 109824.18 | CK7: 86923.18 | CL7: 0 | CM7: 0 | CN7: 0 | CO7: 0 | CP7: 0 | CQ7: 0 | CR7: 0 | CS7: 0 | CT7: 0 | CU7: 0 | CV7: 0 | CW7: 0 | CX7: 0 | CY7: 0 | CZ7: 0 | DA7: 0 | DB7: 0 | DC7: 0 | DD7: 0 | DE7: 0 | DF7: 0 | DG7: 0
A8: 60_1_3_男 | B8: 保至105周岁 | C8: 60 | D8: 1 | E8: 3 | F8: 男 | G8: 28780 | H8: 29923 | I8: 31112 | J8: 32350 | K8: 33638 | L8: 34977 | M8: 36370 | N8: 37818 | O8: 39324 | P8: 40890 | Q8: 42518 | R8: 44211 | S8: 45971 | T8: 47802 | U8: 49707 | V8: 51688 | W8: 53748 | X8: 55891 | Y8: 58121 | Z8: 60440 | AA8: 62852 | AB8: 65361 | AC8: 67970 | AD8: 70685 | AE8: 73510 | AF8: 76448 | AG8: 79504 | AH8: 82684 | AI8: 85990 | AJ8: 89429 | AK8: 93005 | AL8: 96724 | AM8: 100592 | AN8: 104614 | AO8: 108798 | AP8: 113148 | AQ8: 117672 | AR8: 122377 | AS8: 127269 | AT8: 132357 | AU8: 137648 | AV8: 143151 | AW8: 148873 | AX8: 154823 | AY8: 161011 | AZ8: 167445 | BA8: 174136 | BB8: 181094 | BC8: 188329 | BD8: 195852 | BE8: 203675 | BF8: 211810 | BG8: 220268 | BH8: 229063 | BI8: 238208 | BJ8: 247717 | BK8: 257603 | BL8: 255543 | BM8: 253399 | BN8: 251167 | BO8: 248844 | BP8: 246426 | BQ8: 243909 | BR8: 241288 | BS8: 238560 | BT8: 235719 | BU8: 232762 | BV8: 229682 | BW8: 226475 | BX8: 223133 | BY8: 219651 | BZ8: 216021 | CA8: 212234 | CB8: 208284 | CC8: 204161 | CD8: 199856 | CE8: 195360.98 | CF8: 175411.98 | CG8: 154662.98 | CH8: 133087.98 | CI8: 110657.98 | CJ8: 87347.98 | CK8: 0 | CL8: 0 | CM8: 0 | CN8: 0 | CO8: 0 | CP8: 0 | CQ8: 0 | CR8: 0 | CS8: 0 | CT8: 0 | CU8: 0 | CV8: 0 | CW8: 0 | CX8: 0 | CY8: 0 | CZ8: 0 | DA8: 0 | DB8: 0 | DC8: 0 | DD8: 0 | DE8: 0 | DF8: 0 | DG8: 0
A9: 60_1_4_男 | B9: 保至105周岁 | C9: 60 | D9: 1 | E9: 4 | F9: 男 | G9: 30058 | H9: 31253 | I9: 32496 | J9: 33789 | K9: 35134 | L9: 36532 | M9: 37987 | N9: 39499 | O9: 41071 | P9: 42706 | Q9: 44406 | R9: 46175 | S9: 48013 | T9: 49926 | U9: 51915 | V9: 53984 | W9: 56136 | X9: 58374 | Y9: 60703 | Z9: 63125 | AA9: 65644 | AB9: 68264 | AC9: 70990 | AD9: 73826 | AE9: 76776 | AF9: 79845 | AG9: 83037 | AH9: 86358 | AI9: 89812 | AJ9: 93403 | AK9: 97138 | AL9: 101023 | AM9: 105062 | AN9: 109263 | AO9: 113632 | AP9: 118175 | AQ9: 122900 | AR9: 127814 | AS9: 132924 | AT9: 138238 | AU9: 143764 | AV9: 149510 | AW9: 155486 | AX9: 161700 | AY9: 168162 | AZ9: 174882 | BA9: 181869 | BB9: 189135 | BC9: 196691 | BD9: 204547 | BE9: 212717 | BF9: 221211 | BG9: 230044 | BH9: 239228 | BI9: 248777 | BJ9: 258706 | BK9: 256690 | BL9: 254592 | BM9: 252407 | BN9: 250134 | BO9: 247767 | BP9: 245303 | BQ9: 242738 | BR9: 240067 | BS9: 237287 | BT9: 234392 | BU9: 231377 | BV9: 228237 | BW9: 224965 | BX9: 221556 | BY9: 218001 | BZ9: 214293 | CA9: 210424 | CB9: 206385 | CC9: 202168 | CD9: 197763.54 | CE9: 177451.54 | CF9: 156325.54 | CG9: 134357.54 | CH9: 111521.54 | CI9: 87787.54 | CJ9: 0 | CK9: 0 | CL9: 0 | CM9: 0 | CN9: 0 | CO9: 0 | CP9: 0 | CQ9: 0 | CR9: 0 | CS9: 0 | CT9: 0 | CU9: 0 | CV9: 0 | CW9: 0 | CX9: 0 | CY9: 0 | CZ9: 0 | DA9: 0 | DB9: 0 | DC9: 0 | DD9: 0 | DE9: 0 | DF9: 0 | DG9: 0
A10: 60_1_5_男 | B10: 保至105周岁 | C10: 60 | D10: 1 | E10: 5 | F10: 男 | G10: 31398 | H10: 32647 | I10: 33945 | J10: 35296 | K10: 36701 | L10: 38162 | M10: 39681 | N10: 41260 | O10: 42902 | P10: 44609 | Q10: 46385 | R10: 48232 | S10: 50152 | T10: 52150 | U10: 54228 | V10: 56389 | W10: 58637 | X10: 60975 | Y10: 63408 | Z10: 65938 | AA10: 68569 | AB10: 71307 | AC10: 74154 | AD10: 77116 | AE10: 80198 | AF10: 83404 | AG10: 86739 | AH10: 90208 | AI10: 93815 | AJ10: 97567 | AK10: 101469 | AL10: 105526 | AM10: 109745 | AN10: 114134 | AO10: 118697 | AP10: 123443 | AQ10: 128378 | AR10: 133510 | AS10: 138848 | AT10: 144398 | AU10: 150170 | AV10: 156172 | AW10: 162414 | AX10: 168904 | AY10: 175654 | AZ10: 182672 | BA10: 189970 | BB10: 197559 | BC10: 205450 | BD10: 213655 | BE10: 222187 | BF10: 231059 | BG10: 240284 | BH10: 249875 | BI10: 259848 | BJ10: 257877 | BK10: 255826 | BL10: 253691 | BM10: 251469 | BN10: 249155 | BO10: 246747 | BP10: 244239 | BQ10: 241629 | BR10: 238910 | BS10: 236080 | BT10: 233132 | BU10: 230062 | BV10: 226863 | BW10: 223528 | BX10: 220052 | BY10: 216425 | BZ10: 212640 | CA10: 208689 | CB10: 204562 | CC10: 200251.76 | CD10: 179563.76 | CE10: 158047.76 | CF10: 135673.76 | CG10: 112414.76 | CH10: 88242.76 | CI10: 0 | CJ10: 0 | CK10: 0 | CL10: 0 | CM10: 0 | CN10: 0 | CO10: 0 | CP10: 0 | CQ10: 0 | CR10: 0 | CS10: 0 | CT10: 0 | CU10: 0 | CV10: 0 | CW10: 0 | CX10: 0 | CY10: 0 | CZ10: 0 | DA10: 0 | DB10: 0 | DC10: 0 | DD10: 0 | DE10: 0 | DF10: 0 | DG10: 0
A11: 60_1_6_男 | B11: 保至105周岁 | C11: 60 | D11: 1 | E11: 6 | F11: 男 | G11: 32803 | H11: 34108 | I11: 35465 | J11: 36876 | K11: 38343 | L11: 39869 | M11: 41456 | N11: 43105 | O11: 44820 | P11: 46604 | Q11: 48459 | R11: 50388 | S11: 52394 | T11: 54481 | U11: 56652 | V11: 58910 | W11: 61258 | X11: 63701 | Y11: 66242 | Z11: 68885 | AA11: 71635 | AB11: 74495 | AC11: 77470 | AD11: 80565 | AE11: 83784 | AF11: 87134 | AG11: 90618 | AH11: 94242 | AI11: 98011 | AJ11: 101930 | AK11: 106006 | AL11: 110245 | AM11: 114653 | AN11: 119237 | AO11: 124004 | AP11: 128962 | AQ11: 134118 | AR11: 139479 | AS11: 145055 | AT11: 150853 | AU11: 156883 | AV11: 163153 | AW11: 169673 | AX11: 176453 | AY11: 183503 | AZ11: 190834 | BA11: 198458 | BB11: 206385 | BC11: 214627 | BD11: 223198 | BE11: 232110 | BF11: 241377 | BG11: 251012 | BH11: 261030 | BI11: 259107 | BJ11: 257105 | BK11: 255021 | BL11: 252851 | BM11: 250593 | BN11: 248242 | BO11: 245794 | BP11: 243245 | BQ11: 240591 | BR11: 237827 | BS11: 234949 | BT11: 231951 | BU11: 228827 | BV11: 225570 | BW11: 222175 | BX11: 218632 | BY11: 214935 | BZ11: 211074 | CA11: 207041 | CB11: 202827 | CC11: 181751 | CD11: 159830 | CE11: 137035 | CF11: 113340 | CG11: 88714 | CH11: 0 | CI11: 0 | CJ11: 0 | CK11: 0 | CL11: 0 | CM11: 0 | CN11: 0 | CO11: 0 | CP11: 0 | CQ11: 0 | CR11: 0 | CS11: 0 | CT11: 0 | CU11: 0 | CV11: 0 | CW11: 0 | CX11: 0 | CY11: 0 | CZ11: 0 | DA11: 0 | DB11: 0 | DC11: 0 | DD11: 0 | DE11: 0 | DF11: 0 | DG11: 0
A12: 60_1_7_男 | B12: 保至105周岁 | C12: 60 | D12: 1 | E12: 7 | F12: 男 | G12: 34276 | H12: 35640 | I12: 37058 | J12: 38532 | K12: 40065 | L12: 41658 | M12: 43315 | N12: 45038 | O12: 46830 | P12: 48694 | Q12: 50632 | R12: 52647 | S12: 54744 | T12: 56924 | U12: 59192 | V12: 61552 | W12: 64006 | X12: 66558 | Y12: 69213 | Z12: 71975 | AA12: 74848 | AB12: 77836 | AC12: 80945 | AD12: 84179 | AE12: 87543 | AF12: 91043 | AG12: 94684 | AH12: 98471 | AI12: 102408 | AJ12: 106503 | AK12: 110762 | AL12: 115191 | AM12: 119796 | AN12: 124586 | AO12: 129567 | AP12: 134747 | AQ12: 140133 | AR12: 145735 | AS12: 151561 | AT12: 157618 | AU12: 163918 | AV12: 170468 | AW12: 177280 | AX12: 184364 | AY12: 191729 | AZ12: 199388 | BA12: 207353 | BB12: 215634 | BC12: 224245 | BD12: 233199 | BE12: 242509 | BF12: 252189 | BG12: 262254 | BH12: 260380 | BI12: 258428 | BJ12: 256397 | BK12: 254283 | BL12: 252081 | BM12: 249789 | BN12: 247403 | BO12: 244918 | BP12: 242331 | BQ12: 239637 | BR12: 236830 | BS12: 233907 | BT12: 230861 | BU12: 227685 | BV12: 224373 | BW12: 220918 | BX12: 217310 | BY12: 213543 | BZ12: 209607 | CA12: 205494.98 | CB12: 184014.98 | CC12: 161674.98 | CD12: 138445.98 | CE12: 114297.98 | CF12: 89201.98 | CG12: 0 | CH12: 0 | CI12: 0 | CJ12: 0 | CK12: 0 | CL12: 0 | CM12: 0 | CN12: 0 | CO12: 0 | CP12: 0 | CQ12: 0 | CR12: 0 | CS12: 0 | CT12: 0 | CU12: 0 | CV12: 0 | CW12: 0 | CX12: 0 | CY12: 0 | CZ12: 0 | DA12: 0 | DB12: 0 | DC12: 0 | DD12: 0 | DE12: 0 | DF12: 0 | DG12: 0
A13: 60_1_8_男 | B13: 保至105周岁 | C13: 60 | D13: 1 | E13: 8 | F13: 男 | G13: 35821 | H13: 37246 | I13: 38727 | J13: 40267 | K13: 41869 | L13: 43534 | M13: 45265 | N13: 47065 | O13: 48938 | P13: 50885 | Q13: 52910 | R13: 55016 | S13: 57207 | T13: 59486 | U13: 61856 | V13: 64322 | W13: 66886 | X13: 69554 | Y13: 72328 | Z13: 75214 | AA13: 78216 | AB13: 81339 | AC13: 84588 | AD13: 87968 | AE13: 91484 | AF13: 95142 | AG13: 98947 | AH13: 102904 | AI13: 107018 | AJ13: 111298 | AK13: 115748 | AL13: 120376 | AM13: 125189 | AN13: 130194 | AO13: 135399 | AP13: 140811 | AQ13: 146440 | AR13: 152294 | AS13: 158381 | AT13: 164711 | AU13: 171293 | AV13: 178138 | AW13: 185255 | AX13: 192657 | AY13: 200353 | AZ13: 208356 | BA13: 216677 | BB13: 225330 | BC13: 234327 | BD13: 243682 | BE13: 253409 | BF13: 263523 | BG13: 261699 | BH13: 259800 | BI13: 257824 | BJ13: 255766 | BK13: 253624 | BL13: 251394 | BM13: 249071 | BN13: 246653 | BO13: 244135 | BP13: 241512 | BQ13: 238780 | BR13: 235935 | BS13: 232969 | BT13: 229877 | BU13: 226652 | BV13: 223287 | BW13: 219773 | BX13: 216103 | BY13: 212267 | BZ13: 208258.78 | CA13: 186361.78 | CB13: 163587.78 | CC13: 139907.78 | CD13: 115290.78 | CE13: 89707.78 | CF13: 0 | CG13: 0 | CH13: 0 | CI13: 0 | CJ13: 0 | CK13: 0 | CL13: 0 | CM13: 0 | CN13: 0 | CO13: 0 | CP13: 0 | CQ13: 0 | CR13: 0 | CS13: 0 | CT13: 0 | CU13: 0 | CV13: 0 | CW13: 0 | CX13: 0 | CY13: 0 | CZ13: 0 | DA13: 0 | DB13: 0 | DC13: 0 | DD13: 0 | DE13: 0 | DF13: 0 | DG13: 0
A14: 60_1_9_男 | B14: 保至105周岁 | C14: 60 | D14: 1 | E14: 9 | F14: 男 | G14: 37441 | H14: 38930 | I14: 40478 | J14: 42087 | K14: 43761 | L14: 45501 | M14: 47310 | N14: 49191 | O14: 51148 | P14: 53183 | Q14: 55299 | R14: 57501 | S14: 59791 | T14: 62173 | U14: 64650 | V14: 67227 | W14: 69907 | X14: 72695 | Y14: 75595 | Z14: 78611 | AA14: 81749 | AB14: 85013 | AC14: 88409 | AD14: 91941 | AE14: 95617 | AF14: 99441 | AG14: 103417 | AH14: 107552 | AI14: 111853 | AJ14: 116325 | AK14: 120976 | AL14: 125813 | AM14: 130843 | AN14: 136074 | AO14: 141514 | AP14: 147171 | AQ14: 153054 | AR14: 159171 | AS14: 165533 | AT14: 172148 | AU14: 179027 | AV14: 186180 | AW14: 193618 | AX14: 201353 | AY14: 209395 | AZ14: 217758 | BA14: 226454 | BB14: 235496 | BC14: 244898 | BD14: 254673 | BE14: 264838 | BF14: 263066 | BG14: 261222 | BH14: 259303 | BI14: 257304 | BJ14: 255223 | BK14: 253056 | BL14: 250800 | BM14: 248451 | BN14: 246004 | BO14: 243456 | BP14: 240801 | BQ14: 238036 | BR14: 235153 | BS14: 232148 | BT14: 229013 | BU14: 225741 | BV14: 222325 | BW14: 218755 | BX14: 215024 | BY14: 211123.94 | BZ14: 188793.94 | CA14: 165569.94 | CB14: 141421.94 | CC14: 116318.94 | CD14: 90231.94 | CE14: 0 | CF14: 0 | CG14: 0 | CH14: 0 | CI14: 0 | CJ14: 0 | CK14: 0 | CL14: 0 | CM14: 0 | CN14: 0 | CO14: 0 | CP14: 0 | CQ14: 0 | CR14: 0 | CS14: 0 | CT14: 0 | CU14: 0 | CV14: 0 | CW14: 0 | CX14: 0 | CY14: 0 | CZ14: 0 | DA14: 0 | DB14: 0 | DC14: 0 | DD14: 0 | DE14: 0 | DF14: 0 | DG14: 0
A15: 60_1_10_男 | B15: 保至105周岁 | C15: 60 | D15: 1 | E15: 10 | F15: 男 | G15: 39141 | H15: 40697 | I15: 42314 | J15: 43996 | K15: 45745 | L15: 47563 | M15: 49454 | N15: 51421 | O15: 53466 | P15: 55593 | Q15: 57806 | R15: 60107 | S15: 62501 | T15: 64991 | U15: 67580 | V15: 70274 | W15: 73076 | X15: 75990 | Y15: 79021 | Z15: 82174 | AA15: 85454 | AB15: 88866 | AC15: 92416 | AD15: 96109 | AE15: 99952 | AF15: 103949 | AG15: 108106 | AH15: 112428 | AI15: 116924 | AJ15: 121599 | AK15: 126461 | AL15: 131517 | AM15: 136774 | AN15: 142242 | AO15: 147928 | AP15: 153841 | AQ15: 159990 | AR15: 166384 | AS15: 173033 | AT15: 179948 | AU15: 187138 | AV15: 194614 | AW15: 202389 | AX15: 210473 | AY15: 218879 | AZ15: 227619 | BA15: 236708 | BB15: 246158 | BC15: 255984 | BD15: 266200 | BE15: 264483 | BF15: 262696 | BG15: 260835 | BH15: 258897 | BI15: 256880 | BJ15: 254779 | BK15: 252592 | BL15: 250314 | BM15: 247941 | BN15: 245470 | BO15: 242896 | BP15: 240214 | BQ15: 237418 | BR15: 234502 | BS15: 231461 | BT15: 228286 | BU15: 224970 | BV15: 221504 | BW15: 217881 | BX15: 214093.18 | BY15: 191315.18 | BZ15: 167625.18 | CA15: 142992.18 | CB15: 117386.18 | CC15: 90775.18 | CD15: 0 | CE15: 0 | CF15: 0 | CG15: 0 | CH15: 0 | CI15: 0 | CJ15: 0 | CK15: 0 | CL15: 0 | CM15: 0 | CN15: 0 | CO15: 0 | CP15: 0 | CQ15: 0 | CR15: 0 | CS15: 0 | CT15: 0 | CU15: 0 | CV15: 0 | CW15: 0 | CX15: 0 | CY15: 0 | CZ15: 0 | DA15: 0 | DB15: 0 | DC15: 0 | DD15: 0 | DE15: 0 | DF15: 0 | DG15: 0
A16: 60_1_11_男 | B16: 保至105周岁 | C16: 60 | D16: 1 | E16: 11 | F16: 男 | G16: 40924 | H16: 42550 | I16: 44241 | J16: 45999 | K16: 47827 | L16: 49727 | M16: 51704 | N16: 53760 | O16: 55898 | P16: 58123 | Q16: 60436 | R16: 62842 | S16: 65345 | T16: 67948 | U16: 70655 | V16: 73471 | W16: 76400 | X16: 79447 | Y16: 82616 | Z16: 85913 | AA16: 89342 | AB16: 92909 | AC16: 96621 | AD16: 100483 | AE16: 104501 | AF16: 108680 | AG16: 113026 | AH16: 117545 | AI16: 122245 | AJ16: 127132 | AK16: 132215 | AL16: 137501 | AM16: 142998 | AN16: 148714 | AO16: 154658 | AP16: 160840 | AQ16: 167268 | AR16: 173952 | AS16: 180903 | AT16: 188132 | AU16: 195648 | AV16: 203463 | AW16: 211590 | AX16: 220041 | AY16: 228828 | AZ16: 237965 | BA16: 247465 | BB16: 257343 | BC16: 267614 | BD16: 265954 | BE16: 264225 | BF16: 262425 | BG16: 260551 | BH16: 258599 | BI16: 256567 | BJ16: 254451 | BK16: 252247 | BL16: 249951 | BM16: 247560 | BN16: 245069 | BO16: 242473 | BP16: 239767 | BQ16: 236945 | BR16: 234000 | BS16: 230925 | BT16: 227713 | BU16: 224356 | BV16: 220845 | BW16: 217173.76 | BX16: 193929.76 | BY16: 169756.76 | BZ16: 144620.76 | CA16: 118491.76 | CB16: 91338.76 | CC16: 0 | CD16: 0 | CE16: 0 | CF16: 0 | CG16: 0 | CH16: 0 | CI16: 0 | CJ16: 0 | CK16: 0 | CL16: 0 | CM16: 0 | CN16: 0 | CO16: 0 | CP16: 0 | CQ16: 0 | CR16: 0 | CS16: 0 | CT16: 0 | CU16: 0 | CV16: 0 | CW16: 0 | CX16: 0 | CY16: 0 | CZ16: 0 | DA16: 0 | DB16: 0 | DC16: 0 | DD16: 0 | DE16: 0 | DF16: 0 | DG16: 0
A17: 60_1_12_男 | B17: 保至105周岁 | C17: 60 | D17: 1 | E17: 12 | F17: 男 | G17: 42795 | H17: 44495 | I17: 46263 | J17: 48100 | K17: 50011 | L17: 51999 | M17: 54066 | N17: 56216 | O17: 58452 | P17: 60778 | Q17: 63197 | R17: 65713 | S17: 68330 | T17: 71051 | U17: 73882 | V17: 76827 | W17: 79890 | X17: 83076 | Y17: 86389 | Z17: 89836 | AA17: 93422 | AB17: 97153 | AC17: 101035 | AD17: 105074 | AE17: 109276 | AF17: 113645 | AG17: 118189 | AH17: 122915 | AI17: 127829 | AJ17: 132940 | AK17: 138254 | AL17: 143781 | AM17: 149529 | AN17: 155506 | AO17: 161721 | AP17: 168185 | AQ17: 174906 | AR17: 181895 | AS17: 189163 | AT17: 196720 | AU17: 204579 | AV17: 212750 | AW17: 221247 | AX17: 230082 | AY17: 239269 | AZ17: 248822 | BA17: 258754 | BB17: 269081 | BC17: 267479 | BD17: 265811 | BE17: 264074 | BF17: 262266 | BG17: 260383 | BH17: 258422 | BI17: 256379 | BJ17: 254252 | BK17: 252036 | BL17: 249728 | BM17: 247323 | BN17: 244817 | BO17: 242204 | BP17: 239479 | BQ17: 236634 | BR17: 233664 | BS17: 230560 | BT17: 227315 | BU17: 223921 | BV17: 220369.58 | BW17: 196643.58 | BX17: 171967.58 | BY17: 146310.58 | BZ17: 119639.58 | CA17: 91923.58 | CB17: 0 | CC17: 0 | CD17: 0 | CE17: 0 | CF17: 0 | CG17: 0 | CH17: 0 | CI17: 0 | CJ17: 0 | CK17: 0 | CL17: 0 | CM17: 0 | CN17: 0 | CO17: 0 | CP17: 0 | CQ17: 0 | CR17: 0 | CS17: 0 | CT17: 0 | CU17: 0 | CV17: 0 | CW17: 0 | CX17: 0 | CY17: 0 | CZ17: 0 | DA17: 0 | DB17: 0 | DC17: 0 | DD17: 0 | DE17: 0 | DF17: 0 | DG17: 0
A18: 60_1_13_男 | B18: 保至105周岁 | C18: 60 | D18: 1 | E18: 13 | F18: 男 | G18: 44759 | H18: 46537 | I18: 48385 | J18: 50307 | K18: 52305 | L18: 54384 | M18: 56546 | N18: 58794 | O18: 61133 | P18: 63565 | Q18: 66095 | R18: 68727 | S18: 71463 | T18: 74310 | U18: 77271 | V18: 80350 | W18: 83553 | X18: 86885 | Y18: 90350 | Z18: 93956 | AA18: 97706 | AB18: 101609 | AC18: 105669 | AD18: 109894 | AE18: 114288 | AF18: 118858 | AG18: 123610 | AH18: 128552 | AI18: 133692 | AJ18: 139037 | AK18: 144595 | AL18: 150375 | AM18: 156386 | AN18: 162636 | AO18: 169136 | AP18: 175896 | AQ18: 182924 | AR18: 190233 | AS18: 197833 | AT18: 205736 | AU18: 213954 | AV18: 222499 | AW18: 231384 | AX18: 240623 | AY18: 250230 | AZ18: 260218 | BA18: 270604 | BB18: 269062 | BC18: 267458 | BD18: 265787 | BE18: 264046 | BF18: 262234 | BG18: 260347 | BH18: 258381 | BI18: 256334 | BJ18: 254201 | BK18: 251979 | BL18: 249664 | BM18: 247251 | BN18: 244734 | BO18: 242109 | BP18: 239369 | BQ18: 236507 | BR18: 233516 | BS18: 230387 | BT18: 227114 | BU18: 223687.54 | BV18: 199460.54 | BW18: 174263.54 | BX18: 148064.54 | BY18: 120831.54 | BZ18: 92530.54 | CA18: 0 | CB18: 0 | CC18: 0 | CD18: 0 | CE18: 0 | CF18: 0 | CG18: 0 | CH18: 0 | CI18: 0 | CJ18: 0 | CK18: 0 | CL18: 0 | CM18: 0 | CN18: 0 | CO18: 0 | CP18: 0 | CQ18: 0 | CR18: 0 | CS18: 0 | CT18: 0 | CU18: 0 | CV18: 0 | CW18: 0 | CX18: 0 | CY18: 0 | CZ18: 0 | DA18: 0 | DB18: 0 | DC18: 0 | DD18: 0 | DE18: 0 | DF18: 0 | DG18: 0
A19: 60_1_14_男 | B19: 保至105周岁 | C19: 60 | D19: 1 | E19: 14 | F19: 男 | G19: 46822 | H19: 48681 | I19: 50614 | J19: 52624 | K19: 54715 | L19: 56889 | M19: 59150 | N19: 61503 | O19: 63949 | P19: 66493 | Q19: 69140 | R19: 71892 | S19: 74755 | T19: 77732 | U19: 80829 | V19: 84050 | W19: 87400 | X19: 90885 | Y19: 94511 | Z19: 98282 | AA19: 102206 | AB19: 106288 | AC19: 110536 | AD19: 114956 | AE19: 119552 | AF19: 124332 | AG19: 129303 | AH19: 134473 | AI19: 139849 | AJ19: 145440 | AK19: 151254 | AL19: 157299 | AM19: 163587 | AN19: 170124 | AO19: 176923 | AP19: 183993 | AQ19: 191345 | AR19: 198989 | AS19: 206938 | AT19: 215204 | AU19: 223799 | AV19: 232736 | AW19: 242029 | AX19: 251691 | AY19: 261738 | AZ19: 272184 | BA19: 270706 | BB19: 269167 | BC19: 267564 | BD19: 265895 | BE19: 264157 | BF19: 262346 | BG19: 260460 | BH19: 258495 | BI19: 256448 | BJ19: 254316 | BK19: 252093 | BL19: 249777 | BM19: 247361 | BN19: 244840 | BO19: 242208 | BP19: 239458 | BQ19: 236584 | BR19: 233576 | BS19: 230428 | BT19: 227131.72 | BU19: 202384.72 | BV19: 176646.72 | BW19: 149885.72 | BX19: 122068.72 | BY19: 93160.72 | BZ19: 0 | CA19: 0 | CB19: 0 | CC19: 0 | CD19: 0 | CE19: 0 | CF19: 0 | CG19: 0 | CH19: 0 | CI19: 0 | CJ19: 0 | CK19: 0 | CL19: 0 | CM19: 0 | CN19: 0 | CO19: 0 | CP19: 0 | CQ19: 0 | CR19: 0 | CS19: 0 | CT19: 0 | CU19: 0 | CV19: 0 | CW19: 0 | CX19: 0 | CY19: 0 | CZ19: 0 | DA19: 0 | DB19: 0 | DC19: 0 | DD19: 0 | DE19: 0 | DF19: 0 | DG19: 0
A20: 60_1_15_男 | B20: 保至105周岁 | C20: 60 | D20: 1 | E20: 15 | F20: 男 | G20: 48989 | H20: 50934 | I20: 52956 | J20: 55059 | K20: 57246 | L20: 59521 | M20: 61887 | N20: 64348 | O20: 66907 | P20: 69569 | Q20: 72338 | R20: 75218 | S20: 78213 | T20: 81327 | U20: 84567 | V20: 87937 | W20: 91442 | X20: 95088 | Y20: 98881 | Z20: 102827 | AA20: 106932 | AB20: 111204 | AC20: 115649 | AD20: 120273 | AE20: 125082 | AF20: 130083 | AG20: 135284 | AH20: 140693 | AI20: 146317 | AJ20: 152166 | AK20: 158248 | AL20: 164573 | AM20: 171151 | AN20: 177990 | AO20: 185103 | AP20: 192499 | AQ20: 200189 | AR20: 208186 | AS20: 216502 | AT20: 225149 | AU20: 234140 | AV20: 243489 | AW20: 253210 | AX20: 263317 | AY20: 273826 | AZ20: 272413 | BA20: 270942 | BB20: 269410 | BC20: 267815 | BD20: 266153 | BE20: 264422 | BF20: 262618 | BG20: 260740 | BH20: 258782 | BI20: 256743 | BJ20: 254617 | BK20: 252400 | BL20: 250089 | BM20: 247676 | BN20: 245157 | BO20: 242524 | BP20: 239770 | BQ20: 236888 | BR20: 233870 | BS20: 230708.2 | BT20: 205421.2 | BU20: 179122.2 | BV20: 151777.2 | BW20: 123353.2 | BX20: 93815.2 | BY20: 0 | BZ20: 0 | CA20: 0 | CB20: 0 | CC20: 0 | CD20: 0 | CE20: 0 | CF20: 0 | CG20: 0 | CH20: 0 | CI20: 0 | CJ20: 0 | CK20: 0 | CL20: 0 | CM20: 0 | CN20: 0 | CO20: 0 | CP20: 0 | CQ20: 0 | CR20: 0 | CS20: 0 | CT20: 0 | CU20: 0 | CV20: 0 | CW20: 0 | CX20: 0 | CY20: 0 | CZ20: 0 | DA20: 0 | DB20: 0 | DC20: 0 | DD20: 0 | DE20: 0 | DF20: 0 | DG20: 0
A21: 60_1_16_男 | B21: 保至105周岁 | C21: 60 | D21: 1 | E21: 16 | F21: 男 | G21: 51266 | H21: 53301 | I21: 55417 | J21: 57618 | K21: 59907 | L21: 62287 | M21: 64763 | N21: 67338 | O21: 70017 | P21: 72802 | Q21: 75699 | R21: 78712 | S21: 81846 | T21: 85105 | U21: 88495 | V21: 92021 | W21: 95689 | X21: 99504 | Y21: 103473 | Z21: 107602 | AA21: 111899 | AB21: 116370 | AC21: 121023 | AD21: 125862 | AE21: 130894 | AF21: 136127 | AG21: 141569 | AH21: 147229 | AI21: 153114 | AJ21: 159234 | AK21: 165599 | AL21: 172217 | AM21: 179099 | AN21: 186256 | AO21: 193698 | AP21: 201437 | AQ21: 209484 | AR21: 217851 | AS21: 226552 | AT21: 235599 | AU21: 245006 | AV21: 254787 | AW21: 264958 | AX21: 275533 | AY21: 274188 | AZ21: 272788 | BA21: 271329 | BB21: 269810 | BC21: 268228 | BD21: 266579 | BE21: 264862 | BF21: 263073 | BG21: 261208 | BH21: 259265 | BI21: 257239 | BJ21: 255127 | BK21: 252924 | BL21: 250624 | BM21: 248221 | BN21: 245709 | BO21: 243082 | BP21: 240330 | BQ21: 237448 | BR21: 234426.42 | BS21: 208577.42 | BT21: 181694.42 | BU21: 153743.42 | BV21: 124688.42 | BW21: 94495.42 | BX21: 0 | BY21: 0 | BZ21: 0 | CA21: 0 | CB21: 0 | CC21: 0 | CD21: 0 | CE21: 0 | CF21: 0 | CG21: 0 | CH21: 0 | CI21: 0 | CJ21: 0 | CK21: 0 | CL21: 0 | CM21: 0 | CN21: 0 | CO21: 0 | CP21: 0 | CQ21: 0 | CR21: 0 | CS21: 0 | CT21: 0 | CU21: 0 | CV21: 0 | CW21: 0 | CX21: 0 | CY21: 0 | CZ21: 0 | DA21: 0 | DB21: 0 | DC21: 0 | DD21: 0 | DE21: 0 | DF21: 0 | DG21: 0
A22: 60_1_17_男 | B22: 保至105周岁 | C22: 60 | D22: 1 | E22: 17 | F22: 男 | G22: 53661 | H22: 55791 | I22: 58005 | J22: 60309 | K22: 62705 | L22: 65196 | M22: 67788 | N22: 70483 | O22: 73286 | P22: 76202 | Q22: 79233 | R22: 82387 | S22: 85666 | T22: 89077 | U22: 92625 | V22: 96315 | W22: 100154 | X22: 104147 | Y22: 108301 | Z22: 112624 | AA22: 117122 | AB22: 121802 | AC22: 126672 | AD22: 131737 | AE22: 137004 | AF22: 142481 | AG22: 148177 | AH22: 154100 | AI22: 160260 | AJ22: 166665 | AK22: 173326 | AL22: 180253 | AM22: 187455 | AN22: 194945 | AO22: 202734 | AP22: 210832 | AQ22: 219254 | AR22: 228010 | AS22: 237116 | AT22: 246583 | AU22: 256428 | AV22: 266664 | AW22: 277307 | AX22: 276033 | AY22: 274706 | AZ22: 273324 | BA22: 271885 | BB22: 270385 | BC22: 268823 | BD22: 267195 | BE22: 265498 | BF22: 263730 | BG22: 261887 | BH22: 259966 | BI22: 257962 | BJ22: 255872 | BK22: 253689 | BL22: 251407 | BM22: 249022 | BN22: 246525 | BO22: 243909 | BP22: 241167 | BQ22: 238291.64 | BR22: 211859.64 | BS22: 184369.64 | BT22: 155786.64 | BU22: 126076.64 | BV22: 95202.64 | BW22: 0 | BX22: 0 | BY22: 0 | BZ22: 0 | CA22: 0 | CB22: 0 | CC22: 0 | CD22: 0 | CE22: 0 | CF22: 0 | CG22: 0 | CH22: 0 | CI22: 0 | CJ22: 0 | CK22: 0 | CL22: 0 | CM22: 0 | CN22: 0 | CO22: 0 | CP22: 0 | CQ22: 0 | CR22: 0 | CS22: 0 | CT22: 0 | CU22: 0 | CV22: 0 | CW22: 0 | CX22: 0 | CY22: 0 | CZ22: 0 | DA22: 0 | DB22: 0 | DC22: 0 | DD22: 0 | DE22: 0 | DF22: 0 | DG22: 0
A23: 60_1_18_男 | B23: 保至105周岁 | C23: 60 | D23: 1 | E23: 18 | F23: 男 | G23: 56180 | H23: 58409 | I23: 60728 | J23: 63139 | K23: 65647 | L23: 68256 | M23: 70969 | N23: 73790 | O23: 76725 | P23: 79776 | Q23: 82950 | R23: 86251 | S23: 89684 | T23: 93254 | U23: 96968 | V23: 100831 | W23: 104849 | X23: 109030 | Y23: 113379 | Z23: 117905 | AA23: 122614 | AB23: 127515 | AC23: 132613 | AD23: 137915 | AE23: 143429 | AF23: 149163 | AG23: 155125 | AH23: 161326 | AI23: 167774 | AJ23: 174479 | AK23: 181452 | AL23: 188703 | AM23: 196243 | AN23: 204083 | AO23: 212235 | AP23: 220713 | AQ23: 229528 | AR23: 238694 | AS23: 248224 | AT23: 258134 | AU23: 268438 | AV23: 279152 | AW23: 277952 | AX23: 276702 | AY23: 275399 | AZ23: 274042 | BA23: 272629 | BB23: 271156 | BC23: 269621 | BD23: 268021 | BE23: 266353 | BF23: 264615 | BG23: 262802 | BH23: 260911 | BI23: 258938 | BJ23: 256876 | BK23: 254722 | BL23: 252467 | BM23: 250106 | BN23: 247632 | BO23: 245036 | BP23: 242312.3 | BQ23: 215272.3 | BR23: 187151.3 | BS23: 157913.3 | BT23: 127520.3 | BU23: 95938.3 | BV23: 0 | BW23: 0 | BX23: 0 | BY23: 0 | BZ23: 0 | CA23: 0 | CB23: 0 | CC23: 0 | CD23: 0 | CE23: 0 | CF23: 0 | CG23: 0 | CH23: 0 | CI23: 0 | CJ23: 0 | CK23: 0 | CL23: 0 | CM23: 0 | CN23: 0 | CO23: 0 | CP23: 0 | CQ23: 0 | CR23: 0 | CS23: 0 | CT23: 0 | CU23: 0 | CV23: 0 | CW23: 0 | CX23: 0 | CY23: 0 | CZ23: 0 | DA23: 0 | DB23: 0 | DC23: 0 | DD23: 0 | DE23: 0 | DF23: 0 | DG23: 0
A24: 60_1_19_男 | B24: 保至105周岁 | C24: 60 | D24: 1 | E24: 19 | F24: 男 | G24: 58830 | H24: 61164 | I24: 63592 | J24: 66118 | K24: 68744 | L24: 71475 | M24: 74316 | N24: 77270 | O24: 80342 | P24: 83537 | Q24: 86860 | R24: 90316 | S24: 93910 | T24: 97648 | U24: 101536 | V24: 105581 | W24: 109789 | X24: 114166 | Y24: 118721 | Z24: 123460 | AA24: 128392 | AB24: 133526 | AC24: 138864 | AD24: 144416 | AE24: 150189 | AF24: 156193 | AG24: 162436 | AH24: 168928 | AI24: 175680 | AJ24: 182700 | AK24: 190001 | AL24: 197593 | AM24: 205487 | AN24: 213695 | AO24: 222231 | AP24: 231107 | AQ24: 240336 | AR24: 249932 | AS24: 259910 | AT24: 270285 | AU24: 281072 | AV24: 279949 | AW24: 278778 | AX24: 277559 | AY24: 276288 | AZ24: 274964 | BA24: 273584 | BB24: 272146 | BC24: 270647 | BD24: 269084 | BE24: 267454 | BF24: 265754 | BG24: 263980 | BH24: 262129 | BI24: 260194 | BJ24: 258171 | BK24: 256053 | BL24: 253833 | BM24: 251506 | BN24: 249063 | BO24: 246496.84 | BP24: 218824.84 | BQ24: 190046.84 | BR24: 160124.84 | BS24: 129023.84 | BT24: 96703.84 | BU24: 0 | BV24: 0 | BW24: 0 | BX24: 0 | BY24: 0 | BZ24: 0 | CA24: 0 | CB24: 0 | CC24: 0 | CD24: 0 | CE24: 0 | CF24: 0 | CG24: 0 | CH24: 0 | CI24: 0 | CJ24: 0 | CK24: 0 | CL24: 0 | CM24: 0 | CN24: 0 | CO24: 0 | CP24: 0 | CQ24: 0 | CR24: 0 | CS24: 0 | CT24: 0 | CU24: 0 | CV24: 0 | CW24: 0 | CX24: 0 | CY24: 0 | CZ24: 0 | DA24: 0 | DB24: 0 | DC24: 0 | DD24: 0 | DE24: 0 | DF24: 0 | DG24: 0
A25: 60_1_20_男 | B25: 保至105周岁 | C25: 60 | D25: 1 | E25: 20 | F25: 男 | G25: 61620 | H25: 64066 | I25: 66609 | J25: 69254 | K25: 72004 | L25: 74865 | M25: 77840 | N25: 80933 | O25: 84151 | P25: 87496 | Q25: 90976 | R25: 94595 | S25: 98359 | T25: 102274 | U25: 106346 | V25: 110582 | W25: 114988 | X25: 119573 | Y25: 124344 | Z25: 129309 | AA25: 134476 | AB25: 139852 | AC25: 145443 | AD25: 151257 | AE25: 157304 | AF25: 163592 | AG25: 170130 | AH25: 176930 | AI25: 184000 | AJ25: 191353 | AK25: 198998 | AL25: 206949 | AM25: 215216 | AN25: 223812 | AO25: 232751 | AP25: 242046 | AQ25: 251710 | AR25: 261759 | AS25: 272208 | AT25: 283072 | AU25: 282028 | AV25: 280941 | AW25: 279808 | AX25: 278627 | AY25: 277396 | AZ25: 276113 | BA25: 274775 | BB25: 273381 | BC25: 271927 | BD25: 270410 | BE25: 268828 | BF25: 267176 | BG25: 265451 | BH25: 263649 | BI25: 261762 | BJ25: 259786 | BK25: 257715 | BL25: 255540 | BM25: 253256 | BN25: 250854.06 | BO25: 222524.06 | BP25: 193062.06 | BQ25: 162429.06 | BR25: 130588.06 | BS25: 97501.06 | BT25: 0 | BU25: 0 | BV25: 0 | BW25: 0 | BX25: 0 | BY25: 0 | BZ25: 0 | CA25: 0 | CB25: 0 | CC25: 0 | CD25: 0 | CE25: 0 | CF25: 0 | CG25: 0 | CH25: 0 | CI25: 0 | CJ25: 0 | CK25: 0 | CL25: 0 | CM25: 0 | CN25: 0 | CO25: 0 | CP25: 0 | CQ25: 0 | CR25: 0 | CS25: 0 | CT25: 0 | CU25: 0 | CV25: 0 | CW25: 0 | CX25: 0 | CY25: 0 | CZ25: 0 | DA25: 0 | DB25: 0 | DC25: 0 | DD25: 0 | DE25: 0 | DF25: 0 | DG25: 0
A26: 60_1_21_男 | B26: 保至105周岁 | C26: 60 | D26: 1 | E26: 21 | F26: 男 | G26: 64559 | H26: 67121 | I26: 69785 | J26: 72556 | K26: 75437 | L26: 78434 | M26: 81550 | N26: 84791 | O26: 88160 | P26: 91665 | Q26: 95310 | R26: 99100 | S26: 103043 | T26: 107143 | U26: 111409 | V26: 115846 | W26: 120463 | X26: 125267 | Y26: 130265 | Z26: 135467 | AA26: 140881 | AB26: 146513 | AC26: 152371 | AD26: 158462 | AE26: 164796 | AF26: 171382 | AG26: 178232 | AH26: 185354 | AI26: 192761 | AJ26: 200463 | AK26: 208472 | AL26: 216800 | AM26: 225460 | AN26: 234464 | AO26: 243827 | AP26: 253563 | AQ26: 263686 | AR26: 274211 | AS26: 285155 | AT26: 284195 | AU26: 283194 | AV26: 282150 | AW26: 281063 | AX26: 279929 | AY26: 278747 | AZ26: 277514 | BA26: 276229 | BB26: 274888 | BC26: 273490 | BD26: 272030 | BE26: 270506 | BF26: 268913 | BG26: 267248 | BH26: 265504 | BI26: 263676 | BJ26: 261758 | BK26: 259743 | BL26: 257624 | BM26: 255393.58 | BN26: 226377.58 | BO26: 196202.58 | BP26: 164829.58 | BQ26: 132218.58 | BR26: 98331.58 | BS26: 0 | BT26: 0 | BU26: 0 | BV26: 0 | BW26: 0 | BX26: 0 | BY26: 0 | BZ26: 0 | CA26: 0 | CB26: 0 | CC26: 0 | CD26: 0 | CE26: 0 | CF26: 0 | CG26: 0 | CH26: 0 | CI26: 0 | CJ26: 0 | CK26: 0 | CL26: 0 | CM26: 0 | CN26: 0 | CO26: 0 | CP26: 0 | CQ26: 0 | CR26: 0 | CS26: 0 | CT26: 0 | CU26: 0 | CV26: 0 | CW26: 0 | CX26: 0 | CY26: 0 | CZ26: 0 | DA26: 0 | DB26: 0 | DC26: 0 | DD26: 0 | DE26: 0 | DF26: 0 | DG26: 0
A27: 60_1_22_男 | B27: 保至105周岁 | C27: 60 | D27: 1 | E27: 22 | F27: 男 | G27: 67656 | H27: 70340 | I27: 73132 | J27: 76035 | K27: 79054 | L27: 82194 | M27: 85459 | N27: 88854 | O27: 92384 | P27: 96056 | Q27: 99874 | R27: 103846 | S27: 107976 | T27: 112273 | U27: 116742 | V27: 121392 | W27: 126230 | X27: 131263 | Y27: 136502 | Z27: 141954 | AA27: 147629 | AB27: 153531 | AC27: 159668 | AD27: 166050 | AE27: 172687 | AF27: 179589 | AG27: 186766 | AH27: 194229 | AI27: 201989 | AJ27: 210059 | AK27: 218451 | AL27: 227176 | AM27: 236249 | AN27: 245684 | AO27: 255493 | AP27: 265694 | AQ27: 276299 | AR27: 287327 | AS27: 286453 | AT27: 285542 | AU27: 284592 | AV27: 283602 | AW27: 282569 | AX27: 281493 | AY27: 280369 | AZ27: 279198 | BA27: 277975 | BB27: 276699 | BC27: 275367 | BD27: 273976 | BE27: 272521 | BF27: 270999 | BG27: 269404 | BH27: 267730 | BI27: 265972 | BJ27: 264123 | BK27: 262176 | BL27: 260124.2 | BM27: 230394.2 | BN27: 199476.2 | BO27: 167331.2 | BP27: 133917.2 | BQ27: 99197.2 | BR27: 0 | BS27: 0 | BT27: 0 | BU27: 0 | BV27: 0 | BW27: 0 | BX27: 0 | BY27: 0 | BZ27: 0 | CA27: 0 | CB27: 0 | CC27: 0 | CD27: 0 | CE27: 0 | CF27: 0 | CG27: 0 | CH27: 0 | CI27: 0 | CJ27: 0 | CK27: 0 | CL27: 0 | CM27: 0 | CN27: 0 | CO27: 0 | CP27: 0 | CQ27: 0 | CR27: 0 | CS27: 0 | CT27: 0 | CU27: 0 | CV27: 0 | CW27: 0 | CX27: 0 | CY27: 0 | CZ27: 0 | DA27: 0 | DB27: 0 | DC27: 0 | DD27: 0 | DE27: 0 | DF27: 0 | DG27: 0
A28: 60_1_23_男 | B28: 保至105周岁 | C28: 60 | D28: 1 | E28: 23 | F28: 男 | G28: 70921 | H28: 73735 | I28: 76661 | J28: 79704 | K28: 82868 | L28: 86158 | M28: 89579 | N28: 93137 | O28: 96837 | P28: 100685 | Q28: 104686 | R28: 108848 | S28: 113177 | T28: 117680 | U28: 122364 | V28: 127238 | W28: 132309 | X28: 137585 | Y28: 143077 | Z28: 148793 | AA28: 154741 | AB28: 160927 | AC28: 167360 | AD28: 174049 | AE28: 181005 | AF28: 188238 | AG28: 195760 | AH28: 203582 | AI28: 211715 | AJ28: 220173 | AK28: 228967 | AL28: 238112 | AM28: 247621 | AN28: 257508 | AO28: 267788 | AP28: 278478 | AQ28: 289592 | AR28: 288808 | AS28: 287991 | AT28: 287139 | AU28: 286251 | AV28: 285324 | AW28: 284357 | AX28: 283348 | AY28: 282295 | AZ28: 281196 | BA28: 280048 | BB28: 278849 | BC28: 277596 | BD28: 276285 | BE28: 274912 | BF28: 273472 | BG28: 271960 | BH28: 270369 | BI28: 268693 | BJ28: 266926 | BK28: 265060.26 | BL28: 234585.26 | BM28: 202892.26 | BN28: 169940.26 | BO28: 135690.26 | BP28: 100100.26 | BQ28: 0 | BR28: 0 | BS28: 0 | BT28: 0 | BU28: 0 | BV28: 0 | BW28: 0 | BX28: 0 | BY28: 0 | BZ28: 0 | CA28: 0 | CB28: 0 | CC28: 0 | CD28: 0 | CE28: 0 | CF28: 0 | CG28: 0 | CH28: 0 | CI28: 0 | CJ28: 0 | CK28: 0 | CL28: 0 | CM28: 0 | CN28: 0 | CO28: 0 | CP28: 0 | CQ28: 0 | CR28: 0 | CS28: 0 | CT28: 0 | CU28: 0 | CV28: 0 | CW28: 0 | CX28: 0 | CY28: 0 | CZ28: 0 | DA28: 0 | DB28: 0 | DC28: 0 | DD28: 0 | DE28: 0 | DF28: 0 | DG28: 0
A29: 60_1_24_男 | B29: 保至105周岁 | C29: 60 | D29: 1 | E29: 24 | F29: 男 | G29: 74365 | H29: 77315 | I29: 80382 | J29: 83572 | K29: 86889 | L29: 90338 | M29: 93924 | N29: 97653 | O29: 101531 | P29: 105564 | Q29: 109759 | R29: 114122 | S29: 118660 | T29: 123380 | U29: 128291 | V29: 133401 | W29: 138718 | X29: 144251 | Y29: 150009 | Z29: 156004 | AA29: 162240 | AB29: 168726 | AC29: 175469 | AD29: 182482 | AE29: 189775 | AF29: 197358 | AG29: 205244 | AH29: 213444 | AI29: 221970 | AJ29: 230836 | AK29: 240056 | AL29: 249642 | AM29: 259610 | AN29: 269974 | AO29: 280751 | AP29: 291956 | AQ29: 291266 | AR29: 290548 | AS29: 289798 | AT29: 289015 | AU29: 288198 | AV29: 287346 | AW29: 286456 | AX29: 285526 | AY29: 284556 | AZ29: 283542 | BA29: 282482 | BB29: 281373 | BC29: 280213 | BD29: 278995 | BE29: 277717 | BF29: 276373 | BG29: 274956 | BH29: 273462 | BI29: 271882 | BJ29: 270210.56 | BK29: 238957.56 | BL29: 206455.56 | BM29: 172663.56 | BN29: 137539.56 | BO29: 101042.56 | BP29: 0 | BQ29: 0 | BR29: 0 | BS29: 0 | BT29: 0 | BU29: 0 | BV29: 0 | BW29: 0 | BX29: 0 | BY29: 0 | BZ29: 0 | CA29: 0 | CB29: 0 | CC29: 0 | CD29: 0 | CE29: 0 | CF29: 0 | CG29: 0 | CH29: 0 | CI29: 0 | CJ29: 0 | CK29: 0 | CL29: 0 | CM29: 0 | CN29: 0 | CO29: 0 | CP29: 0 | CQ29: 0 | CR29: 0 | CS29: 0 | CT29: 0 | CU29: 0 | CV29: 0 | CW29: 0 | CX29: 0 | CY29: 0 | CZ29: 0 | DA29: 0 | DB29: 0 | DC29: 0 | DD29: 0 | DE29: 0 | DF29: 0 | DG29: 0
A30: 60_1_25_男 | B30: 保至105周岁 | C30: 60 | D30: 1 | E30: 25 | F30: 男 | G30: 77999 | H30: 81093 | I30: 84309 | J30: 87653 | K30: 91131 | L30: 94747 | M30: 98507 | N30: 102417 | O30: 106484 | P30: 110713 | Q30: 115111 | R30: 119685 | S30: 124444 | T30: 129394 | U30: 134544 | V30: 139903 | W30: 145479 | X30: 151282 | Y30: 157323 | Z30: 163612 | AA30: 170152 | AB30: 176953 | AC30: 184025 | AD30: 191379 | AE30: 199027 | AF30: 206979 | AG30: 215248 | AH30: 223847 | AI30: 232788 | AJ30: 242085 | AK30: 251753 | AL30: 261805 | AM30: 272257 | AN30: 283124 | AO30: 294424 | AP30: 293833 | AQ30: 293217 | AR30: 292573 | AS30: 291902 | AT30: 291200 | AU30: 290467 | AV30: 289701 | AW30: 288901 | AX30: 288065 | AY30: 287191 | AZ30: 286276 | BA30: 285318 | BB30: 284314 | BC30: 283260 | BD30: 282151 | BE30: 280982 | BF30: 279747 | BG30: 278441 | BH30: 277057 | BI30: 275589.62 | BJ30: 243523.62 | BK30: 210177.62 | BL30: 175507.62 | BM30: 139471.62 | BN30: 102026.62 | BO30: 0 | BP30: 0 | BQ30: 0 | BR30: 0 | BS30: 0 | BT30: 0 | BU30: 0 | BV30: 0 | BW30: 0 | BX30: 0 | BY30: 0 | BZ30: 0 | CA30: 0 | CB30: 0 | CC30: 0 | CD30: 0 | CE30: 0 | CF30: 0 | CG30: 0 | CH30: 0 | CI30: 0 | CJ30: 0 | CK30: 0 | CL30: 0 | CM30: 0 | CN30: 0 | CO30: 0 | CP30: 0 | CQ30: 0 | CR30: 0 | CS30: 0 | CT30: 0 | CU30: 0 | CV30: 0 | CW30: 0 | CX30: 0 | CY30: 0 | CZ30: 0 | DA30: 0 | DB30: 0 | DC30: 0 | DD30: 0 | DE30: 0 | DF30: 0 | DG30: 0
A31: 60_1_26_男 | B31: 保至105周岁 | C31: 60 | D31: 1 | E31: 26 | F31: 男 | G31: 81837 | H31: 85082 | I31: 88455 | J31: 91963 | K31: 95610 | L31: 99403 | M31: 103347 | N31: 107448 | O31: 111712 | P31: 116148 | Q31: 120761 | R31: 125559 | S31: 130550 | T31: 135743 | U31: 141145 | V31: 146767 | W31: 152617 | X31: 158707 | Y31: 165046 | Z31: 171643 | AA31: 178504 | AB31: 185638 | AC31: 193056 | AD31: 200771 | AE31: 208793 | AF31: 217134 | AG31: 225808 | AH31: 234828 | AI31: 244207 | AJ31: 253959 | AK31: 264099 | AL31: 274642 | AM31: 285605 | AN31: 297004 | AO31: 296516 | AP31: 296007 | AQ31: 295475 | AR31: 294919 | AS31: 294337 | AT31: 293729 | AU31: 293094 | AV31: 292429 | AW31: 291733 | AX31: 291005 | AY31: 290242 | AZ31: 289441 | BA31: 288601 | BB31: 287717 | BC31: 286784 | BD31: 285799 | BE31: 284755 | BF31: 283646 | BG31: 282467 | BH31: 281211.14 | BI31: 248296.14 | BJ31: 214067.14 | BK31: 178480.14 | BL31: 141490.14 | BM31: 103055.14 | BN31: 0 | BO31: 0 | BP31: 0 | BQ31: 0 | BR31: 0 | BS31: 0 | BT31: 0 | BU31: 0 | BV31: 0 | BW31: 0 | BX31: 0 | BY31: 0 | BZ31: 0 | CA31: 0 | CB31: 0 | CC31: 0 | CD31: 0 | CE31: 0 | CF31: 0 | CG31: 0 | CH31: 0 | CI31: 0 | CJ31: 0 | CK31: 0 | CL31: 0 | CM31: 0 | CN31: 0 | CO31: 0 | CP31: 0 | CQ31: 0 | CR31: 0 | CS31: 0 | CT31: 0 | CU31: 0 | CV31: 0 | CW31: 0 | CX31: 0 | CY31: 0 | CZ31: 0 | DA31: 0 | DB31: 0 | DC31: 0 | DD31: 0 | DE31: 0 | DF31: 0 | DG31: 0
A32: 60_1_27_男 | B32: 保至105周岁 | C32: 60 | D32: 1 | E32: 27 | F32: 男 | G32: 85891 | H32: 89295 | I32: 92835 | J32: 96515 | K32: 100341 | L32: 104320 | M32: 108457 | N32: 112760 | O32: 117234 | P32: 121887 | Q32: 126727 | R32: 131761 | S32: 136999 | T32: 142447 | U32: 148116 | V32: 154016 | W32: 160156 | X32: 166547 | Y32: 173202 | Z32: 180125 | AA32: 187324 | AB32: 194810 | AC32: 202594 | AD32: 210689 | AE32: 219107 | AF32: 227859 | AG32: 236961 | AH32: 246425 | AI32: 256265 | AJ32: 266498 | AK32: 277137 | AL32: 288200 | AM32: 299702 | AN32: 299322 | AO32: 298924 | AP32: 298508 | AQ32: 298073 | AR32: 297618 | AS32: 297141 | AT32: 296641 | AU32: 296117 | AV32: 295568 | AW32: 294993 | AX32: 294388 | AY32: 293753 | AZ32: 293084 | BA32: 292377 | BB32: 291630 | BC32: 290836 | BD32: 289991 | BE32: 289089 | BF32: 288123 | BG32: 287088.64 | BH32: 253286.64 | BI32: 218134.64 | BJ32: 181587.64 | BK32: 143601.64 | BL32: 104130.64 | BM32: 0 | BN32: 0 | BO32: 0 | BP32: 0 | BQ32: 0 | BR32: 0 | BS32: 0 | BT32: 0 | BU32: 0 | BV32: 0 | BW32: 0 | BX32: 0 | BY32: 0 | BZ32: 0 | CA32: 0 | CB32: 0 | CC32: 0 | CD32: 0 | CE32: 0 | CF32: 0 | CG32: 0 | CH32: 0 | CI32: 0 | CJ32: 0 | CK32: 0 | CL32: 0 | CM32: 0 | CN32: 0 | CO32: 0 | CP32: 0 | CQ32: 0 | CR32: 0 | CS32: 0 | CT32: 0 | CU32: 0 | CV32: 0 | CW32: 0 | CX32: 0 | CY32: 0 | CZ32: 0 | DA32: 0 | DB32: 0 | DC32: 0 | DD32: 0 | DE32: 0 | DF32: 0 | DG32: 0
A33: 60_1_28_男 | B33: 保至105周岁 | C33: 60 | D33: 1 | E33: 28 | F33: 男 | G33: 90176 | H33: 93749 | I33: 97463 | J33: 101325 | K33: 105341 | L33: 109516 | M33: 113858 | N33: 118373 | O33: 123069 | P33: 127953 | Q33: 133032 | R33: 138316 | S33: 143813 | T33: 149532 | U33: 155483 | V33: 161676 | W33: 168122 | X33: 174834 | Y33: 181822 | Z33: 189089 | AA33: 196645 | AB33: 204503 | AC33: 212674 | AD33: 221171 | AE33: 230006 | AF33: 239193 | AG33: 248746 | AH33: 258680 | AI33: 269008 | AJ33: 279748 | AK33: 290915 | AL33: 302525 | AM33: 302258 | AN33: 301977 | AO33: 301683 | AP33: 301375 | AQ33: 301051 | AR33: 300711 | AS33: 300353 | AT33: 299977 | AU33: 299582 | AV33: 299166 | AW33: 298728 | AX33: 298265 | AY33: 297775 | AZ33: 297255 | BA33: 296700 | BB33: 296107 | BC33: 295470 | BD33: 294784 | BE33: 294043 | BF33: 293241.18 | BG33: 258509.18 | BH33: 222391.18 | BI33: 184840.18 | BJ33: 145811.18 | BK33: 105256.18 | BL33: 0 | BM33: 0 | BN33: 0 | BO33: 0 | BP33: 0 | BQ33: 0 | BR33: 0 | BS33: 0 | BT33: 0 | BU33: 0 | BV33: 0 | BW33: 0 | BX33: 0 | BY33: 0 | BZ33: 0 | CA33: 0 | CB33: 0 | CC33: 0 | CD33: 0 | CE33: 0 | CF33: 0 | CG33: 0 | CH33: 0 | CI33: 0 | CJ33: 0 | CK33: 0 | CL33: 0 | CM33: 0 | CN33: 0 | CO33: 0 | CP33: 0 | CQ33: 0 | CR33: 0 | CS33: 0 | CT33: 0 | CU33: 0 | CV33: 0 | CW33: 0 | CX33: 0 | CY33: 0 | CZ33: 0 | DA33: 0 | DB33: 0 | DC33: 0 | DD33: 0 | DE33: 0 | DF33: 0 | DG33: 0
A34: 60_1_29_男 | B34: 保至105周岁 | C34: 60 | D34: 1 | E34: 29 | F34: 男 | G34: 94710 | H34: 98460 | I34: 102360 | J34: 106414 | K34: 110630 | L34: 115013 | M34: 119571 | N34: 124311 | O34: 129241 | P34: 134368 | Q34: 139701 | R34: 145248 | S34: 151020 | T34: 157025 | U34: 163274 | V34: 169778 | W34: 176549 | X34: 183600 | Y34: 190937 | Z34: 198568 | AA34: 206503 | AB34: 214754 | AC34: 223333 | AD34: 232255 | AE34: 241532 | AF34: 251178 | AG34: 261209 | AH34: 271639 | AI34: 282483 | AJ34: 293759 | AK34: 305483 | AL34: 305334 | AM34: 305176 | AN34: 305010 | AO34: 304834 | AP34: 304648 | AQ34: 304451 | AR34: 304242 | AS34: 304022 | AT34: 303787 | AU34: 303539 | AV34: 303274 | AW34: 302992 | AX34: 302690 | AY34: 302365 | AZ34: 302013 | BA34: 301630 | BB34: 301211 | BC34: 300751 | BD34: 300245 | BE34: 299685.36 | BF34: 263981.36 | BG34: 226851.36 | BH34: 188248.36 | BI34: 148125.36 | BJ34: 106435.36 | BK34: 0 | BL34: 0 | BM34: 0 | BN34: 0 | BO34: 0 | BP34: 0 | BQ34: 0 | BR34: 0 | BS34: 0 | BT34: 0 | BU34: 0 | BV34: 0 | BW34: 0 | BX34: 0 | BY34: 0 | BZ34: 0 | CA34: 0 | CB34: 0 | CC34: 0 | CD34: 0 | CE34: 0 | CF34: 0 | CG34: 0 | CH34: 0 | CI34: 0 | CJ34: 0 | CK34: 0 | CL34: 0 | CM34: 0 | CN34: 0 | CO34: 0 | CP34: 0 | CQ34: 0 | CR34: 0 | CS34: 0 | CT34: 0 | CU34: 0 | CV34: 0 | CW34: 0 | CX34: 0 | CY34: 0 | CZ34: 0 | DA34: 0 | DB34: 0 | DC34: 0 | DD34: 0 | DE34: 0 | DF34: 0 | DG34: 0
A35: 60_1_30_男 | B35: 保至105周岁 | C35: 60 | D35: 1 | E35: 30 | F35: 男 | G35: 99507 | H35: 103446 | I35: 107541 | J35: 111798 | K35: 116225 | L35: 120829 | M35: 125615 | N35: 130593 | O35: 135770 | P35: 141155 | Q35: 146756 | R35: 152582 | S35: 158644 | T35: 164952 | U35: 171517 | V35: 178350 | W35: 185465 | X35: 192875 | Y35: 200582 | Z35: 208598 | AA35: 216932 | AB35: 225599 | AC35: 234611 | AD35: 243982 | AE35: 253727 | AF35: 263859 | AG35: 274394 | AH35: 285349 | AI35: 296740 | AJ35: 308583 | AK35: 308557 | AL35: 308528 | AM35: 308495 | AN35: 308458 | AO35: 308416 | AP35: 308370 | AQ35: 308317 | AR35: 308259 | AS35: 308193 | AT35: 308120 | AU35: 308038 | AV35: 307945 | AW35: 307840 | AX35: 307719 | AY35: 307579 | AZ35: 307417 | BA35: 307227 | BB35: 307004 | BC35: 306743 | BD35: 306438.88 | BE35: 269713.88 | BF35: 231523.88 | BG35: 191818.88 | BH35: 150550.88 | BI35: 107670.88 | BJ35: 0 | BK35: 0 | BL35: 0 | BM35: 0 | BN35: 0 | BO35: 0 | BP35: 0 | BQ35: 0 | BR35: 0 | BS35: 0 | BT35: 0 | BU35: 0 | BV35: 0 | BW35: 0 | BX35: 0 | BY35: 0 | BZ35: 0 | CA35: 0 | CB35: 0 | CC35: 0 | CD35: 0 | CE35: 0 | CF35: 0 | CG35: 0 | CH35: 0 | CI35: 0 | CJ35: 0 | CK35: 0 | CL35: 0 | CM35: 0 | CN35: 0 | CO35: 0 | CP35: 0 | CQ35: 0 | CR35: 0 | CS35: 0 | CT35: 0 | CU35: 0 | CV35: 0 | CW35: 0 | CX35: 0 | CY35: 0 | CZ35: 0 | DA35: 0 | DB35: 0 | DC35: 0 | DD35: 0 | DE35: 0 | DF35: 0 | DG35: 0
